{"text_format":"1","workbook":"xlsx","n_sheets":16,"sheets":["Unit Conversion Sheet","Instructions","Main Menu","Start Page","Summary","AWWA-Water Balance Data Transf.","Performance Indicator Charts","Real Losses Component Analysis","Real Loss Components Chart","Failure Frequency Analysis","A-L-R Times Options","Economic Intervention Frequency","Pressure Management Options","Glossary","License","Data 2012"],"not_rendered":{"charts":5,"images":31,"macros":1,"external_links":0,"defined_names":13,"comments":0,"pivot_tables":0},"unopened":[],"bounds":{"document_bytes":16777216,"sheet_cells":100000,"rows_first":2000,"rows_last":500,"rows_between":2000,"halvings":0,"cell_chars":16384,"cell_head_chars":4096},"cells_cut":0,"cells_raw":0,"read":"whole","date_system":"1900"}

{"sheet":"Unit Conversion Sheet","index":0,"n_rows":79,"n_cols":16,"rows_kept":79,"cut":false,"hidden":true,"merged":[[7,2,7,4]]}
[]
[]
[null,"gallons / cubic foot",7.4805194500000001]
[null,"sq feet / acre",43560]
[null,"litres / gallon",3.7854117999999999]
[null,"gallons / litre",{"$f":"1/C5","v":0.26417205124155846}]
[null,"km / mi",1.60934]
[null,null,"Customer Retail Cost Units"]
[null,null,1,2,3]
[null,"Variable Production Cost Units","$/100 cubic feet (ccf)","$/1000 gallons (US)","$/1000 litres",null,null,"Used for cost drop box reference"]
[1,"Million gallons (US)",{"$f":"1000000/(C3*100)","v":1336.8055610095364},1000,{"$f":"1000/C6","v":3785.4117999999999},null,null,"$/100 cubic feet (ccf)"]
[2,"Megalitres (thousand cubic metres)",{"$f":"1000000/C5/(C3*100)","v":353.14666716301156},{"$f":"1000/C5","v":264.17205124155845},1000,null,null,"$/1000 gallons (US)"]
[3,"Acre-feet",{"$f":"C4/100","v":435.6},{"$f":"C4*C3/1000","v":325.851427242},{"$f":"C4*C3*C5/1000","v":1233.4818377287083},null,null,"$/1000 litres"]
[]
[]
[null,null,"Million gallons (US)","Megalitres (thousand cubic metres)","Acre-feet","Gallons"]
[1,"Million gallons (US)",1,{"$f":"C5","v":3.7854117999999999},3.0688832897372298,{"$f":"10^6","v":1000000}]
[2,"Megalitres (thousand cubic metres)",{"$f":"1/D17","v":0.26417205124155846},1,0.8107131936708255,{"$f":"C18*10^6","v":264172.05124155845},null,null,null,null,null,null,null,null,{"$f":"1/E17","v":0.32585142724199984}]
[3,"Acre-feet",{"$f":"325851.427242/1000000","v":0.325851427242},1.2334818377287082,1,{"$f":"C19*10^6","v":325851.42724200001},null,null,null,null,null,null,null,null,{"$f":"O18*E17","v":1}]
[]
[null,null,null,null,null,null,null,null,null,null,null,null,null,null,1000]
[null,null,null,null,null,null,null,null,null,null,null,null,null,null,{"$f":"O21/E17","v":325.85142724199983},{"$f":"C19*E17","v":1.0000000000000004}]
[null,null,"Service Connection units","conversion multiplier"]
[1,"Million gallons (US)","gal/service con/day",{"$f":"10^6","v":1000000},null,null,null,null,null,null,null,null,null,null,"km"]
[2,"Megalitres","litres/service con/day",1000000,null,null,null,null,null,null,null,null,null,"Miles"]
[3,"Acre-feet","gal/service con/day",325851.42724200001]
[]
[]
[1,"Million Gallons","MG/Yr"]
[2,"Megalitres","ML/Yr"]
[3,"Acre-feet","Acre-feet/Yr"]
[]
[]
[null,"Length Units","Miles","Kilometers"]
[null,null,1,2]
[1,"Million gallons (US)","gal/mi/day","gal/km/day"]
[2,"Megalitres","litres/mi/day","litres/km/day"]
[3,"Acre-feet","gal/mile/day","gal/km/day"]
[]
[]
[]
[null,"Unit","Volume Multiplier"]
[1,"Million Gallons",1]
[2,"Megalitres (thousand cubic metres)",{"$f":"1/C6","v":3.7854117999999999}]
[3,"Acre-feet",{"$f":"10^6/(C3*C4)","v":3.068883289737228}]
[]
[null,"Unit","Pressure Multiplier","Pressure Units"]
[1,"Million Gallons",1,"PSI"]
[2,"Megalitres (thousand cubic metres)",1.4218999999999999,"m",null,{"$f":"70/C49","v":49.229903650045713}]
[3,"Acre-feet",1,"PSI"]
[]
[null,"Unit","volume/length multiplier"]
[1,"gal/mi/day",1]
[2,"litres/km/day",2.3521399999999999]
[3,"gal/mi/day",1]
[]
[]
[null,"volume per service conn per day multipliers for ex util",null,"actual units"]
[1,"MG",1,"gal/service con/day"]
[2,"ML",3.875,"litres/service con/day"]
[3,"Acre-feet",1,"gal/service con/day"]
[]
[null,"Length Units","Miles","Kilometers"]
[null,null,1,2]
[1,"Million gallons (US)",1,1.60934]
[2,"Megalitres",{"$f":"1/C6","v":3.7854117999999999},{"$f":"C66*1.60934","v":6.0920146262119994}]
[3,"Acre-feet",1,{"$f":"C67*1.60934","v":1.60934}]
[]
[null,"Length Units Label","Miles","Kilometers"]
[null,null,1,2]
[1,"Million gallons (US)","Performance Indicator: Real Losses per length of mains per day [gal/mi/day]","Performance Indicator: Real Losses per length of mains per day [gal/km/day]"]
[2,"Megalitres","Performance Indicator: Real Losses per length of mains per day [litres/mi/day]","Performance Indicator: Real Losses per length of mains per day [litres/km/day]"]
[3,"Acre-feet","Performance Indicator: Real Losses per length of mains per day [gal/mi/day]","Performance Indicator: Real Losses per length of mains per day [gal/km/day]"]
[]
[]
[null,"Reservoir Background Leakage"]
[1,0.25,"gpm","per MG",1]
[2,{"$f":"B77*C5","v":0.94635294999999997},"lpm","per ML",{"$f":"E77*C5","v":3.7854117999999999}]
[3,{"$f":"B78/E78","v":0.25},"lpm/ML"]

{"sheet":"Instructions","index":1,"n_rows":101,"n_cols":2,"rows_kept":101,"cut":false,"hidden":false,"merged":[[38,1,38,9],[39,1,39,9],[40,1,40,9],[49,1,49,9],[50,1,50,9],[46,1,46,9],[47,1,47,9],[48,1,48,9],[41,1,41,9],[33,1,33,9],[34,1,34,9],[35,1,35,9],[36,1,36,9],[37,1,37,9],[28,1,28,9],[29,1,29,9],[30,1,30,9],[31,1,31,9],[32,1,32,9],[22,0,22,9],[9,0,9,9],[10,0,10,9],[7,0,7,9],[2,0,2,16383],[51,1,51,9],[23,0,23,9],[4,0,6,9],[8,0,8,9],[21,0,21,9],[13,0,13,9],[20,0,20,9],[14,1,14,9],[15,1,15,9],[16,1,16,9],[17,1,17,9],[18,1,18,9],[19,1,19,9],[12,0,12,9],[44,1,44,9],[45,1,45,9],[77,1,77,9],[66,1,66,9],[67,1,67,9],[98,0,98,9],[92,0,92,9],[80,0,80,9],[86,0,86,9],[79,0,79,9],[82,0,82,9],[81,0,81,9],[84,0,84,9],[75,1,75,9],[76,1,76,16383],[73,1,73,9],[78,1,78,9],[74,0,74,9],[60,0,60,9],[68,1,68,9],[69,1,69,9],[71,1,71,9],[72,1,72,9],[62,0,62,9],[61,0,61,9],[65,0,65,9],[99,0,99,9],[100,0,100,9],[87,0,87,9],[91,0,91,9],[97,0,97,9],[88,0,88,9],[94,1,94,9],[96,0,96,9],[95,0,95,9],[93,1,93,9],[90,0,90,9],[89,0,89,9],[59,1,59,9],[63,0,63,9],[27,0,27,9],[64,0,64,9],[0,0,1,8],[52,1,52,9],[53,1,53,9],[56,1,56,9],[57,1,57,9],[58,1,58,9],[24,0,24,9],[54,1,54,9],[43,0,43,9],[55,1,55,9],[25,0,25,9],[26,0,26,9]]}
["WaterRF 4372: Real Loss Component Analysis: A Tool for Economic Water Loss Control"]
[]
[{"$f":"IF('Start Page'!$Y$37=\"\",\"\",IF('Start Page'!$K$37=\"Partial Audit Period\",\"Water Audit: \"&'Start Page'!$D$26&\", \"&'Start Page'!$H$26&\", \"&'Start Page'!$K$26&\", \"&'Start Page'!$Y$37,\"Water Audit: \"&'Start Page'!$D$26&\", \"&'Start Page'!$H$26&\", \"&'Start Page'!$K$26&\", \"&YEAR('Start Page'!$Y$37)))","v":""}]
["INSTRUCTIONS"]
["Welcome to the WaterRF 4372 Component Analysis of Real Losses Software Model.  These instructions will provide a basic summary of each tab in this model.   Instructions are also available on each tab.  This spreadsheet based \"Model\" was designed to provide North American (NA) water utilities with a utility-tested software tool to undertake a leakage component analysis and to identify economic options for real loss reduction through improved speed and quality of leak repair, proactive leak detection and pressure management. This Model was also designed to assist NA water utilities in evaluating options for implementing efficient and sustainable leakage control programs. The models results should only be seen as a preliminary starting point for proactive management of Real Losses. The preliminary Real Loss control strategy needs to be refined as more results become available. \n\nIt is important to acknowledge that the Model is only as useful and instructive as the quality of the user’s data inputs. Throughout the instructions provided in the Model (and throughout the WaterRF 4372 report), there is particular emphasis on the importance of data quality and validation.\n\nFurthermore, it is important to highlight that the Model requires a significant amount of validated data and its \"outputs\" are meant to provide opportunities to test scenarios but do not represent concrete goals or hard and fast targets. The Model is a dynamic tool meant for guidance and not a mechanism for direct reporting like the AWWA Free Water Audit Software, or for regulatory target setting."]
[]
[]
["The WaterRF Model 4372 must be run in a Microsoft Windows environment with Excel 2003 or newer.  The Model will not function properly using any Macintosh versions of Microsoft Excel."]
["Macros must be enabled to properly use the WaterRF 4372 Component Analysis Modeling Software"]
["Due to the limitations of using Microsoft Excel, users may experience growing buttons and/or combination boxes.  This is likely caused by a limitation of system resources.  If this occurs, the user should immediately close the model without saving and close any other running programs and then reopen the model."]
["For a full definition of any term used within the Model, simply click the term and you will be taken to the glossary"]
[]
["Start Page"]
["In the blue user input cells, enter the basic details of the Utility including the Name, State, Country and a description of the system being analyzed by the model (i.e. Entire System, Zone 1).  An explanation of each data entry field follows:\n\n"]
["-","Utility - The name of the utility whose data is being inputted into the WaterRF 4372 Model Software"]
["-","State/Province - The state or province where the utility whose data is being inputted into the WaterRF 4372 Model Software is located"]
["-","Country - The country where the utility whose data is being inputted into the WaterRF 4372 Model Software is located"]
["-","System Description - The portion of the system that is being analyzed using the WaterRF 4372 Model Software.  Examples may include \"Entire System, \"Zone 1A\", \"Potable Water Distribution System\""]
["-","Date of Data Entry - The date which the utility's data was entered into the WaterRF 4372 Model Software.  This field has been included to allow utilities to maintain a version control of each model filled out for the utility."]
["-","Model User's Name - The name of the user that is filling out the WaterRF 4372 Model Software. This field has been included to allow utilities to maintain a version control of each model filled out for the utility."]
["Enter the start and end date of the audit period being analyzed by the WaterRF 4372 Model.  If no start and/or end dates are entered, the model will set a default audit period of 365 days.  The model will also allow the user to define a custom audit period (e.g. 3 months, 2 years, etc)."]
["Select the volume and mains length units that are to be used throughout the model using the dropdown boxes.  For volume, the model can accommodate Million Gallons (MG), Acre-feet, and Megalitres (ML).  For mains length, the model can accommodate miles and kilometres."]
[]
["Summary"]
["The summary page displays the performance/financial indicators from the AWWA - Water Balance Results sheet, the summary table from the Real Losses Component Analysis sheet, the results from the A-L-R Runtimes sheet, the results from the Economic Intervention Frequency sheet and the results from the Pressure Management Options sheet.  This sheet was designed to present the results of this software model on a single printed page."]
[]
["AWWA - Water Balance Results"]
["In the blue boxes, transpose all of the requested inputs from the AWWA Free Water Audit Software into the model. All definitions of the inputs are available in the Glossary.  An explanation of each data entry field follows:"]
["-","Water Supplied - This should be transposed from the \"WATER SUPPLIED\" field in the AWWA Free Water Audit Software.  In the AWWA Free Water Audit Software, this is calculated by summing the water produced accounting for the master meter measurement error and the water imported and subtracting the water exported."]
["-","Billed Metered -This should be transposed from the \"Billed metered\" field in the AWWA Free Water Audit Software."]
["-","Billed Unmetered - This should be transposed from the \"Billed unmetered\" field in the AWWA Free Water Audit Software.  This is also referred to as the Billed Unmetered Authorized Consumption."]
["-","Unbilled Metered -This should be transposed from the \"Unbilled metered\" Field in the AWWA free Water Audit Software.  This is also referred to as the Unbilled Metered Authorized Consumption."]
["-","Unbilled Unmetered - This should be transposed from the \"Unbilled unmetered\" field in the AWWA Free Water Audit Software.  This is also referred to as the Unbilled Unmetered Authorized Consumption."]
["-","Apparent Losses - This should be transposed from the \"Apparent Losses\" field in the AWWA Free Water Audit Software.  "]
["-","Length of Mains - This should be transposed from the \"Length of mains\" field in the AWWA Free Water Audit Software"]
["-","Number of Active and Inactive Service Connections - This should be transposed from the \"Number of active AND inactive service connections\" field in the AWWA Free Water Audit Software."]
["-","Average Length of Customer Service Line - This should be transposed from the \"Average length of customer service line\" field in the AWWA Free Water Audit Software."]
["-","Average Operating Pressure - This should be transposed from the \"Average operating pressure\" field in the AWWA Free Water Audit Software."]
["-","Total Annual Cost of Operating the System - This should be transposed from the \"Total annual cost of operating water system\" field in the AWWA Free Water Audit Software."]
["-","Customer Retail Unit Cost (Applied to Apparent Losses) - This should be transposed from the \"Customer retail unit cost (applied to Apparent Losses)\" field in the AWWA Free Water Audit Software"]
["-","Variable Production Cost - This should be transposed from the \"Variable Production Cost (applied to Real Losses)\" field in the AWWA Free Water Audit Software"]
["-","AWWA Water Audit Data Validity Score - This should be transposed from the \"WATER AUDIT DATA VALIDITY SCORE\" field in the AWWA Free Water Audit Software.  If the data validity of your AWWA Water Audit is less than 51 it is recommended to improve the data validity of your AWWA Water Audit data before any of the results of the following economic analysis are considered for implementation. "]
[]
["The white boxes are automatically calculated for the user.  These include both system characteristics and performance indicators.  Descriptions of each automatically calculated field follows:"]
["-","Authorized Consumption - This is automatically calculated in the model by summing all of the authorized consumption data entry fields, including \"Billed Metered,\" \"Billed Unmetered,\" \"Unbilled Metered,\" and \"Unbilled Unmetered\""]
["-","Water Losses - This is automatically calculated in the model by subtracting the \"AUTHORIZED CONSUMPTION\" field from the \"WATER SUPPLIED\" field"]
["-","Real Losses - This is automatically calculated in the model by subtracting the \"Apparent Losses\" field from the \"Water Losses\" field"]
["-","Non Revenue Water - This is automatically calculated in the model by summing the \"Real Losses\" field, \"Apparent Losses\" field, \"Unbilled Metered\" field and the \"Unbilled Unmetered\" field"]
["-","Service Connection Density - This is automatically calculated in the model by dividing the \"Number of Active and Inactive Service Connections\" field by the \"Length of Mains\" field"]
["-","Non-revenue water as percent of water supplied - This is automatically calculated by the model by dividing the \"Non Revenue Water\" field by the \"WATER SUPPLIED\" field"]
["-","Non-revenue water as percent of operating system - This is automatically calculated in the model by dividing the associated cost of each component of the \"Non Revenue Water Field\" by the \"Total Annual Cost of Operating the System\" field"]
["-","Annual cost of Apparent Losses - This is automatically calculated in the model by multiplying the \"Customer Retail Unit Cost\" field by the \"Apparent Losses\" field"]
["-","Annual cost of Real Losses - This is automatically calculated in the model by multiplying the \"Variable Production Cost\" by the \"REAL LOSSES\" field"]
["-","Apparent Losses per service connection per day - This is automatically calculated in the model by dividing the \"Apparent Losses\" field by the \"Number of Active and Inactive Service Connections\" Field"]
["-","Real Losses per service connection per day - This is automatically calculated in the model by dividing the \"Real Losses\" field by the \"Number of Active and Inactive Service Connections\" field.  If the service connection density is less than 32 service connections per mile of main then the \"Real Losses per length of main per day\" field is used instead."]
["-","Real Losses per length of main per day -  This is automatically calculated in the model by dividing the \"Real Losses\" by the \"Length of Mains\" field only if the service connection density is less than 32 service connections per mile of main (20 service connections per kilometer of main)."]
["-","Real Losses per service connection per day per PSI of pressure - This is automatically calculated in the model by dividing the \"Real Losses\" field by \"Number of Active and Inactive Service Connections\" field and the \"Average Operating Pressure\" field."]
["-","Unavoidable Annual Real Losses (UARL) - This is automatically calculated based on the UARL formula, which is available in the Glossary and M36 Manual.  The M36 Manual recommends the use of the UARL for systems with more than 3,000 service connections and a service connection density greater than 16 connections per mile (10 connections per kilometer of main)."]
["-","Current Annual Real Losses (CARL) - This is the amount of real losses calculated in the \"REAL LOSSES\" field if the audit period is one full year."]
["-","Infrastructure Leakage Index (ILI) [CARL/UARL] - This is automatically calculated in the model by dividing the \"Current Annual Real Losses (CARL)\" field by the \"Unavoidable Annual Real Losses (UARL)\" field.  The ILI is only calculated by the model if the audit period used is at least one full year."]
[]
["Performance Indicator Charts"]
["The Performance Indicator Charts page was designed to allow the user to compare their AWWA Free Water Audit Software data to a validated set of water audits from North America.  The comparison data has been validated by the AWWA Water Loss Control Committee (WLCC) and is freely available on AWWA's website.  For ease of use, the user's results are distinguished by the orange bar.  It is important to note that not all of the available choices are Performance Indicators; some are System Characteristics defined by the  users infrastructure (i.e. length of mains, number of service connections, etc).  These have been distinguished in the title on the chart.  Once the AWWA - Water Balance Results sheet has been filled in, the user can use the combo box to select which performance indicator, financial indicator or system characteristic to be shown on the chart.  "]
[]
["Real Losses Component Analysis"]
["The Real Losses Component Analysis sheet lets the user further analyze their system's real losses that were identified by the AWWA - Water Balance.  In the Real Losses Component Analysis the real losses are further broken down by system component (Reservoirs, Mains and Appurtenances, and Service Connections) and the type of leakage (Background, Reported and Unreported).  From this analysis the user will be able to determine the amount of recoverable real losses currently running undetected within the distribution system."]
["-","Summary: REAL LOSS COMPONENT ANALYSIS - This table summarizes the results of the entire Real Losses Component Analysis.  Combined with the information on the AWWA - Water Balance Results, the Model will automatically calculate the 'Hidden Losses/Unreported Leakage Currently Running Undetected.'  This represents the total amount of Unreported Leakage that could be recovered through a more aggressive water loss control program.  Based on these results, the user can then work with the A-L-R Times, the Economic Intervention Frequency and Pressure Management sheets to explore the benefits of each real loss intervention strategy for reducing real leakage losses."]
["-","Step 1: First enter the capacity of all distribution system reservoirs and tanks in use during the audit period. In case the system input volume is based on raw water meters located upstream of the Water Treatment Plant (WTP) then also include the capacity of the WTP reservoirs. Next select a reservoir background leakage rate - either the default value provided by the model or a utility specific flow rate. If reservoirs and tanks are well maintained and the utility does not suspect any background leakage from the reservoirs and tanks then enter zero as the utility specific flow rate.  In case a reservoir or tank was reported leaking or has overflowed, enter the estimated volume in cell G27 . If a proactive investigation/inspection of the system reservoirs and tanks has discovered a leaking reservoir or tank then enter the estimated annual volume lost in cell G28. "]
["-","Step 2: The background leakage volume from mains and service connections will be automatically calculated after selecting one of the default Infrastructure Condition Factors (ICF) based on infrastructure age or after a utility specific ICF has been selected and entered in cell P43. If a utility specific ICF is not available at this time, it is strongly recommended to assess the utility specific ICF through one of the recommended approaches outlined in the AWWA M36 manual."]
["-","Step 3: Drinking water utilities supply water through underground piping systems.  Such systems, sooner or later, will incur failures in the form of leaks and breaks (ruptures) in distribution piping. Failures are categorized into three broad types: failures that occur on the primary water main piping, failures on customer service connection piping, and failures on appurtenances attached to water mains; including fire hydrants, valves and air valves or taps. This section \"REPORTED LEAKS AND BREAKS\" of the model features a standardized calculation of the real loss volume stemming from failure events reported to the utility. Reported leaks and breaks (failure events) are defined as events that are brought to the attention of the water utility by the general public or other parties as a result of either water showing on the ground surface or other visible places, or of customer complaints. Follow Steps 3A,3B and 3C to calculate the real loss volume stemming from reported leaks and breaks."]
[]
["-","Step 3A: Enter the total number of failures by main size that were reported to and repaired by the water utility during the audit period in cells C58 to C77. Next enter the total length of mains for each mains size group in cells D58 to D77  (Note: this information is not required for the real loss component analysis but serves to calculate failure frequencies by mains size). Next enter the average awareness duration for reported failure events by mains size in cells I58 to I77 (Awareness duration is the average time from the occurrence of the failure event until the water utility becomes aware of its existence). Next enter the average duration of locating and containing reported failure events by mains size in cells K58 to K77. Next select either the default average leak flow rate provided by the model in cells P58 to P77 or select and enter your own utility specific average leakage flow rates in cells Q58 to R77. "]
["-","Step 3B: Enter the total number of failures by distribution system appurtenance type that were reported to and repaired by the water utility during the audit period in cells C86 to C89. Next enter the total number of appurtenances for each system appurtenance group in cells D86 to D89  (Note: this information is not required for the real loss component analysis but serves to calculate failure frequencies by appurtenance type). Next enter the average awareness duration for reported failure events by system appurtenance type in cells I86 to I89 (Awareness duration is the average time from the occurrence of the failure event until the water utility becomes aware of its existence). Next enter the average duration of locating and containing reported failure events by system appurtenance type in cells K86 to K89. Next select either the default average leak flow rate provided by the model in cells P86 to P89 or select and enter your own utility specific average leakage flow rates in cells Q86 to R89. "]
["-","Step 3C: Enter the total number of failures by service connection size (<1\" or >=1\") that were reported to and repaired the water utility during the audit period in cells C98 to C99. Next enter the total number of service connections for each service connection size group in cells D98 to D99  (Note: this information is not required for the real loss component analysis but serves to calculate failure frequencies by service connection size group). Next enter the average awareness duration for reported failure events by  service connection size group in cells I98 to I99 (Awareness duration is the average time from the occurrence of the failure event until the water utility becomes aware of its existence). Next enter the average duration of locating and containing reported failure events by service connection size group in cells K89 to K99. Next select either the default average leak flow rate provided by the model in cells P98 to P99 or select and enter your own utility specific average leakage flow rates in cells Q98 to R99. "]
["Did your utility carry out proactive leak detection during the audit period? If NO then go to the Component Analysis Summary Table at the top of this sheet - If YES then provide the data requested in STEP 4A, 4B , and 4C "]
["-","Step 4: Drinking water utilities supply water through underground piping systems.  Such systems,sooner or later, will incur failures in the form of leaks and breaks (ruptures) in distribution piping. Failures are categorized into three broad types: failures that occur on the primary water main piping , failures on customer service connection piping, and failures on appurtenances attached to water mains; including fire hydrants, valves and air valves or taps. This section \"UNREPORTED FAILURES\" of the model features a standardized calculation of the real loss volume stemming from failure events found through proactive leak detection programs. Unreported leaks and breaks (failure events) are defined as events that are usually hidden and are found only if a water utility has an active leakage control/leak detection program. Follow Steps 4A, 4B and 4C to calculate the real loss volume stemming from unreported leaks and breaks."]
["-","Step 4A: Enter the total failures by main size that were detected and repaired through proactive leak detection during the audit period in cells C117 to C136. Next enter the total length of mains for each mains size group in cells D117 to D136  (Note: this information is not required for the real loss component analysis but serves to calculate failure frequencies by mains size). Next enter the average awareness duration for unreported failure events by mains size in cells I117 to I136 (If the entire distribution system is surveyed once a year the average awareness time is 365 days ÷ 2 = 182.5 days, if the system is surveyed twice a year then the average awareness time is 365 days ÷ 4 = 91.25 days and so on). Next enter the average duration of locating and containing unreported failure events by mains size in cells K117 to K136. Next select either the default average leak flow rate provided by the model in cells P117 to P136 or select and enter your own utility specific average leakage flow rates in cells Q117 to R136. "]
["-","Step 4B: Enter the total number of failures by distribution system appurtenance type that were detected and repaired through proactive leak detection during the audit period in cells C145 to C148. Next enter the total number of system appurtenances for each appurtenance type in cells D145 to D148 (Note: this information is not required for the real loss component analysis but serves to calculate failure frequencies by appurtenance type). Next enter the average awareness duration for unreported failure events by system appurtenance type in cells I145 to I148  (If the entire distribution system is surveyed once a year the average awareness time is 365 days ÷ 2 = 182.5 days, if the system is surveyed twice a year then the average awareness time is 365 days ÷ 4 = 91.25 days and so on). Next enter the average duration of locating and containing unreported failure events by system appurtenance type in cells K145 to K48. Next select either the default average leak flow rate provided by the model in cells P145 to P148 or select and enter your own utility specific average leakage flow rates in cells Q145 to R148. "]
["-","Step 4C: Enter the total number of failures by service connection size (<1\" or >=1\") that were detected and repaired through proactive leak detection during the audit period in cells C157 to C158. Next enter the total number of service connections for each service connection size group in cells D157 to D158  (Note: this information is not required for the real loss component analysis but serves to calculate failure frequencies by service connection size group). Next enter the average awareness duration for unreported failure events by  service connection size group in cells I157 to I158 (If the entire distribution system is surveyed once a year the average awareness time is 365 days ÷ 2 = 182.5 days, if the system is surveyed twice a year then the average awareness time is 365 days ÷ 4 = 91.25 days and so on). Next enter the average duration of locating and containing unreported failure events by service connection size group in cells K157 to K158. Next select either the default average leak flow rate provided by the model in cells P157 to P158 or select and enter your own utility specific average leakage flow rates in cells Q157 to R158. "]
[]
["Real Loss Components Chart"]
["The results of the Real Losses Component Analysis are shown using a hybrid pie chart.  The chart shows the percentage of real losses attributed to background leakage, reported failures, and unreported failures.  The chart further examines unreported leakage by breaking it up into two components: 'Unreported Failures Identified through Existing Proactive Leak Detection Program' and 'Hidden Failures/Unreported Failures not Identified or Captured by Current Leakage Management Policy.'"]
[]
["Failure Frequency Analysis"]
["The results of the mains and service line failure frequency analysis are shown using the two column charts.  For the mains failure frequency, the user's data is compared to the average failure frequency in North America based on the literature review completed for the WaterRF 4372, Effective Organization and Component Analysis of Water Utility Leakage Data and the failure frequency for optimized distribution systems from the WaterRF project, Criteria for Optimized Distribution Systems.\n\nFor the service line failure frequency, the user's data is compared to the  tecnical minimum amount of service connection failures based on the Unavoidable Annual Real Losses (UARL) component for reported service line failures.  If the user's service connection failure frequency is less than the technical minimum, the Model will show a warning that the service line failures during the audit period may be erroneous. "]
[]
["A-L-R Times Options"]
["Use What IF option in the blue highlighted cells to evaluate potential savings in real losses stemming from reducing the average location and repair time for each of the three infrastructure components for both reported and unreported failure events. Enter a target average location and repair duration (in days) and the model will calculate the resulting savings in leakage volume as well as the corresponding monetary savings. Undertake further cost benefit analysis if this analysis has shown potentially cost effective options for leakage loss reductions by reducing the current average location and repair times."]
["This sheet was not designed to provide a robust determination of the payback of reducing average location and repair times.  It is a simplified cost calculation designed to stimulate further analysis if this initial review indicates potentially cost effective ways of reducing real losses. "]
[]
["Economic Intervention Frequency"]
["The Economic Intervention Sheet was designed to establish a preliminary schedule for proactive leak detection surveys and the corresponding necessary budget. Once the results from consecutive leak surveys are available, the Rate of Rise of Unreported Leakage should be updated and the proactive leak detection schedule should be refined taking into consideration these findings. "]
["The majority of this sheet has already been filled is based upon previous inputs into the model.  To complete the economic intervention frequency calculation, two inputs are necessary, Cost per mile of leak detection services and the average rate of rise of unreported leakage for the distribution system being analyzed with the model."]
["-","Cost of Comprehensive Leak Detection Survey: In general, cost per mile of leak detection can vary significantly depending on working conditions, whether it is being done in house or by a contractor and other factors.  In general, detailed leak detection services, in which every service connection and distribution system appurtenance is sounded, costs between $250 - $500 per mile.  "]
["-","Average Rate of Rise of Unreported Leakage: The rate at which leakage increases with time under a policy of passive leakage control, at a specified average system pressure; or the rate at which leakage increases with time between period of active leakage control interventions, such as leak surveys, at a specified average system pressure.  The rate of rise is not necessarily a linear variable as it can change quickly because of seasonal changing temperatures and other impacts.  This can be assessed from water balances in successive years (in the case of passive leakage control), or by analysis of night flows and or repair records (in the case of active leakage control).  It is usually expressed in volume per day in a year, or a volume per service connection per day in a year; or a volume per mile (or kilometer) of mains per day in a year. The AWWA M36 Manual recommends assessing The Average Rate of Rise of Unreported Leakage either by comparing water balance results of several consecutive years and calculating the Average Rate of Rise of Unreported Leakage based on the increase n Real Loss volume from year to year (if utility does not employ proactive leak detection), or by analysis of District Metered Area night flow data or repair records of leaks detected through proactive leak detection (if utility employs proactive leakage control). Further details about how to assess the Average Rate of Rise of Unreported Leakage are provided in the AWWA M36 Manual. "]
[]
["Pressure Management Options"]
["The Pressure Management Options sheet was designed to provide a simple way to simulate the possible reduction in leakage losses as a result of system wide pressure reduction.  The sheet uses the concept of Fixed and Variable Discharges concept to model the possible reduction of leakage losses by implementing a pressure reduction program.  Using the system data including average system pressure, cost of water and the percentage of rigid pipes (e.g. cast iron, ductile iron, etc.) a dollar value can be determined based on the water savings from a reduction in average system pressure."]
["In order to calculate a system specific Fixed and Variable Area Discharges (FAVAD) N1 value, the user must input the percentage of rigid (metallic) pipes in the distribution system.  Further explanation of the FAVAD concept is available in the Glossary and AWWA M36 Manual.  The model will then automatically calculate a 'System Specific N1' in cell E24.  This value represents the sensitivity of the relationship between pressure and leakage in a users system.  In general, systems with a large amount of non-rigid pipe will have a higher sensitivity to pressure and leakage than a system largely composed of rigid pipe based on the FAVAD concept principles.  "]
["Next, the user should enter the proposed reduction in overall system pressure into cell D29 and the estimated cost to implement this pressure management policy to that level in cell D35.  The model will then calculated the estimated reduction in real losses and the monetary value of this reduction in real losses.  Based on the estimated cost to implement the pressure management policy, the model will calculate a simple payback period based on the monetary value of the reduction in real losses.  "]
["This sheet was not designed to provide a robust determination of the payback of a pressure management program. It is a simplified cost calculation designed to stimulate further analysis if this initial review indicates potentially cost effective ways of reducing real losses. "]

{"sheet":"Main Menu","index":2,"n_rows":57,"n_cols":11,"rows_kept":57,"cut":false,"hidden":false,"merged":[[56,1,56,2],[38,4,39,9],[23,4,24,9],[47,4,48,9],[44,4,45,9],[41,4,42,9],[35,4,36,9],[32,4,33,9],[29,4,30,9],[26,4,27,9],[11,1,12,9],[13,1,13,10],[50,4,51,9],[53,4,54,9],[15,1,15,10],[20,4,21,9],[17,4,18,9]]}
[]
[]
[]
[]
[]
[]
[]
[]
[]
[]
[]
[null,"WaterRF 4372: Real Loss Component Analysis: A Tool for Economic Water Loss Control"]
[]
[null,{"$f":"IF('Start Page'!$Y$37=\"\",\"\",IF('Start Page'!$K$37=\"Partial Audit Period\",\"Water Audit: \"&'Start Page'!$D$26&\", \"&'Start Page'!$H$26&\", \"&'Start Page'!$K$26&\", \"&'Start Page'!$Y$37,\"Water Audit: \"&'Start Page'!$D$26&\", \"&'Start Page'!$H$26&\", \"&'Start Page'!$K$26&\", \"&YEAR('Start Page'!$Y$37)))","v":""}]
[null,"MAIN MENU"]
[null,"Macros must be enabled to properly use the WaterRF 4372 Component Analysis Modeling Software"]
[]
[null,null,null,null,"Complete set of instuctions for the WaterRF Component Analysis Modeling Software"]
[]
[]
[null,null,null,null,"Enter the audit period and select reporting units "]
[]
[]
[null,null,null,null,"Summary of the water audit performance indicators and the results of the Real Losses Component Analysis"]
[]
[]
[null,null,null,null,"Enter the required data from the AWWA WLCC Free Water Audit Software: Reporting Sheet to populate the Water Audit"]
[]
[]
[null,null,null,null,"Select your desired water loss performance indicator to be displayed in comparison to a North American water utility data set"]
[]
[]
[null,null,null,null,"Carry out a Real Losses Component Analysis using this sheet"]
[]
[]
[null,null,null,null,"A chart summarizing the results in the Real Loss Component Analysis"]
[]
[]
[null,null,null,null,"Comparison of your utility's mains and service line failure frequencies against industry averages and targets"]
[]
[]
[null,null,null,null,"Use this sheet to evaluate if a reduction in location and repair times for reported and unreported leaks would provide an opportunity to reduce real losses"]
[]
[]
[null,null,null,null,"Use this sheet to establish a preliminary schedule for proactive leak detection surveys"]
[]
[]
[null,null,null,null,"Use this sheet to evaluate if pressure management and a reduction in average system pressure provides an opportunity to reduce real losses cost effectively "]
[]
[]
[null,null,null,null,"Glossary of all terms used in the WaterRF 4372 Component Analysis Model"]
[]
[]
[null,null,null,null,"License"]
[]
[]
[null,{"$f":"TODAY()","v":"2018-04-20"},null,null,null,null,null,null,null,null,"©2014 Water Research Foundation. ALL RIGHTS RESERVED."]

{"sheet":"Start Page","index":3,"n_rows":60,"n_cols":25,"rows_kept":60,"cut":false,"hidden":false,"merged":[[28,7,28,8],[0,1,1,13],[2,1,2,18],[43,3,48,13],[50,3,56,13],[4,1,4,16383],[5,2,7,15],[9,2,10,15],[36,10,36,11],[41,10,41,17],[25,3,25,5],[25,7,25,8],[25,10,25,11],[30,10,30,13],[32,10,32,13],[28,3,28,5],[28,10,28,11]]}
[null,"WaterRF 4372: Real Loss Component Analysis: A Tool for Economic Water Loss Control"]
[]
[null,{"$f":"IF($Y$37=\"\",\"\",IF($K$37=\"Partial Audit Period\",\"Water Audit: \"&$D$26&\", \"&$H$26&\", \"&$K$26&\", \"&$Y$37,\"Water Audit: \"&$D$26&\", \"&$H$26&\", \"&$K$26&\", \"&YEAR($Y$37)))","v":""}]
[null,"START PAGE"]
[null,"Macros must be enabled to properly use the WaterRF 4372 Component Analysis Modeling Software"]
[null,"PURPOSE: ","This spreadsheet based \"Model\" was designed to provide North American (NA) water utilities with a utility-tested software tool to undertake a leakage component analysis and to identify economic options for real loss reduction through improved speed and quality of leak repair, proactive leak detection and pressure management. This Model was also designed to assist NA water utilities in evaluating options for implementing efficient and sustainable leakage control programs. The models results should only be seen as a preliminary starting point for proactive management of Real Losses. The preliminary Real Loss control strategy needs to be refined as more results become available. "]
[]
[]
[]
[null,null,"The worksheets contained in this spreadsheet can be accessed by clicking on the tabs located at the bottom of the spreadsheet screen or by clicking the desired button in the Main Menu worksheet.  Definitions can be accessed by directly clicking the term or navigating to the 'Glossary' tab."]
[]
[]
[null,"CELL COLOR CODING:","Three cell colors have been used through out this spreadsheet based Model:"]
[]
[null,null,null,null,"Value to be entered by the user"]
[]
[null,null,null,null,"Value is automatically filled in/calculated by Model"]
[]
[null,null,null,null,"Recommended default value"]
[null,null,null,null,null,null,null,null,null,null,null,null,null,null,null,null,null,null,null,null,null,null,null,null,"Utility Name"]
[null,null,null,null,null,null,null,null,null,null,null,null,null,null,null,null,null,null,null,null,null,null,null,null,{"$f":"IF(D26=\"\",\"\",D26)","v":""}]
[]
[null,null,null,"WATER AUDIT AND COMPONENT ANALYSIS DETAILS"]
[]
[null,null,null,"Utility",null,null,null,"State/Province",null,null,"Country"]
[]
[]
[null,null,null,"System Description (e.g. Entire System, Zone A, etc.)",null,null,null,"Date of Data Entry",null,null,"Model User's Name (e.g. John Smith)"]
[]
[]
[null,null,null,"Audit and Component Analysis Period Start Date"]
[]
[null,null,null,"Audit and Component Analysis Period End Date"]
[null,null,null,null,null,null,null,null,null,null,{"$f":"IF(AND(ISBLANK(K31)=FALSE,ISBLANK(K33)=TRUE),\"DEFAULT COMPONENT ANALYSIS DURATION SET TO 365 DAYS\",\"\")","v":""}]
[null,null,null,"Audit and Component Analysis Period Duration",null,null,null,null,null,null,{"$f":"IF(K33=\"\",365,IF(K31=\"\",365,K33-K31+1))","v":365},"days"]
[null,null,null,null,null,null,null,null,null,null,null,null,null,null,null,null,null,null,null,null,null,null,null,null,1]
[null,null,null,"Audit and Component Analysis Year",null,null,null,null,null,null,{"$f":"IF(K33=\"\",\"\",IF(K35<365,\"Partial Audit Period\",K33))","v":""},null,null,null,null,null,null,null,null,null,null,null,null,null,{"$f":"IF(K37=\"\",\"\",K37)","v":""}]
[]
[null,null,null,"Select Preferred Volumetric Units for AWWA Water Balance Results ",null,null,null,null,null,null,null,null,null,null,null,null,null,null,null,null,null,null,null,1,"Million Gallons"]
[null,null,null,null,null,null,null,null,null,null,null,null,null,null,null,null,null,null,null,null,null,null,null,2,"Megalitres (thousand cubic metres)"]
[null,null,null,"Select Preferred Mains Length Units for AWWA Water Balance Results",null,null,null,null,null,null,null,null,null,null,null,null,null,null,null,null,null,null,null,3,"Acre-feet"]
[null,null,null,null,null,null,null,null,null,null,null,null,null,null,null,null,null,null,null,null,null,null,null,null,1]
[null,null,null,"Audit and Component Analysis Period Description:",null,null,null,null,null,null,null,null,null,null,null,null,null,null,null,null,null,null,null,1,"Miles"]
[null,null,null,null,null,null,null,null,null,null,null,null,null,null,null,null,null,null,null,null,null,null,null,2,"Kilometers"]
[]
[]
[]
[]
[]
[null,null,null,"Audit and Component Analysis Period Produced By:"]
[]
[]
[]
[]
[]
[]
[]
[]
[]
[null,{"$f":"IF($H$29=\"\",\"\",$H$29)","v":""},null,null,null,null,null,null,null,null,null,null,null,null,null,null,null,null,"©2014 Water Research Foundation. ALL RIGHTS RESERVED."]

{"sheet":"Summary","index":4,"n_rows":57,"n_cols":7,"rows_kept":57,"cut":false,"hidden":false,"merged":[[8,1,8,2],[9,1,9,2],[10,1,10,2],[11,1,11,2],[12,1,12,2],[56,0,56,1],[22,1,22,2],[25,1,25,5],[37,1,37,2],[41,1,41,3],[42,1,42,3],[52,1,52,3],[53,1,53,3],[47,1,47,3],[48,1,48,3],[49,1,49,3],[45,1,45,3],[43,1,43,3],[46,1,46,3],[0,0,1,5],[21,1,21,2],[32,1,32,4],[33,1,33,4],[38,1,38,2],[36,1,36,2],[18,1,18,2],[19,1,19,2],[16,1,16,2],[20,1,20,2],[2,0,2,6],[17,1,17,2],[5,1,5,5],[13,1,13,2],[14,1,14,2],[15,1,15,2]]}
["WaterRF 4372: Real Loss Component Analysis: A Tool for Economic Water Loss Control"]
[]
[{"$f":"IF('Start Page'!$Y$37=\"\",\"\",IF('Start Page'!$K$37=\"Partial Audit Period\",\"Water Audit: \"&'Start Page'!$D$26&\", \"&'Start Page'!$H$26&\", \"&'Start Page'!$K$26&\", \"&'Start Page'!$Y$37,\"Water Audit: \"&'Start Page'!$D$26&\", \"&'Start Page'!$H$26&\", \"&'Start Page'!$K$26&\", \"&YEAR('Start Page'!$Y$37)))","v":""}]
["WaterRF 4372 COMPONENT ANALYSIS MODEL SUMMARY"]
[]
[null,"As the input data is filled into the model, this sheet will populate with the results and recommendations from the Real Losses Component Analysis, A-L-R Times, Economic Intervention and Pressure Management tabs.  The performance indicators from the AWWA Free Water Audit Software have been added to show a brief review of the performance of the system being analyzed"]
[]
[]
[null,"WATER AUDIT PERFORMANCE INDICATORS"]
[null,"Financial"]
[null,"Non-revenue water as percent by volume of water supplied:",null,{"$f":"'AWWA-Water Balance Data Transf.'!D51","v":""}]
[null,"Non-revenue water as percent by cost of operating system:",null,{"$f":"'AWWA-Water Balance Data Transf.'!D52","v":""}]
[null,"Annual cost of Apparent Losses:",null,{"$f":"'AWWA-Water Balance Data Transf.'!D53","v":""}]
[null,"Annual cost of Real Losses:",null,{"$f":"'AWWA-Water Balance Data Transf.'!D54","v":""}]
[]
[null,"Operational Efficiency"]
[null,"Apparent Losses per service connection per day:",null,{"$f":"'AWWA-Water Balance Data Transf.'!D57","v":""},{"$f":"IF('Start Page'!$Y$36=1,\"gal/service conn/day\",IF('Start Page'!$Y$36=2,\"litres/service conn/day\", IF('Start Page'!$Y$36=3,\"gal/service conn/day\")))","v":"gal/service conn/day"}]
[null,"Real Losses per service connection per day*:",null,{"$f":"'AWWA-Water Balance Data Transf.'!D58","v":""},{"$f":"IF('Start Page'!$Y$36=1,\"gal/service conn/day\",IF('Start Page'!$Y$36=2,\"litres/service conn/day\", IF('Start Page'!$Y$36=3,\"gal/service conn/day\")))","v":"gal/service conn/day"}]
[null,"Real Losses per length of main per day:",null,{"$f":"'AWWA-Water Balance Data Transf.'!D59","v":""},{"$f":"INDEX('Unit Conversion Sheet'!$C$36:$D$38,MATCH('Start Page'!$Y$36,'Unit Conversion Sheet'!$A$36:$A$38,0),MATCH('Start Page'!$Y$42,'Unit Conversion Sheet'!$C$35:$D$35,0))","v":"gal/mi/day"}]
[null,{"$f":"\"Real Losses per service connection per day per \"&$F$47& \" pressure:\"","v":"Real Losses per service connection per day per PSI pressure:"},null,{"$f":"'AWWA-Water Balance Data Transf.'!D60","v":"N/A"},{"$f":"IF('Start Page'!$Y$36=1,\"gal/service conn/day/psi\",IF('Start Page'!$Y$36=2,\"litres/service conn/day/mH\", IF('Start Page'!$Y$36=3,\"gal/service conn/day/psi\")))","v":"gal/service conn/day/psi"}]
[null,"Unavoidable Annual Real Losses (UARL):",null,{"$f":"'AWWA-Water Balance Data Transf.'!D61","v":"N/A"},{"$f":"IF('Start Page'!$Y$36=1,\"MG/Yr\",IF('Start Page'!$Y$36=2,\"ML/Yr\", IF('Start Page'!$Y$36=3,\"Acre-feet/Yr\")))","v":"MG/Yr"}]
[null,"Current Annual Real Losses (CARL):",null,{"$f":"'AWWA-Water Balance Data Transf.'!D62","v":""},{"$f":"IF('Start Page'!$Y$36=1,\"MG/Yr\",IF('Start Page'!$Y$36=2,\"ML/Yr\", IF('Start Page'!$Y$36=3,\"Acre-feet/Yr\")))","v":"MG/Yr"}]
[null,"Infrastructure Leakage Index (ILI) [CARL/UARL]:",null,{"$f":"'AWWA-Water Balance Data Transf.'!D63","v":""}]
[null,{"$f":"IF(ISERROR(1/D21),\"\",IF(D22/D21>1,\"\",IF((D22/D21)<1,\"PLEASE CHEK DATA ENTRY - ILI SHOULD BE >1 - ALL OTHER PERFORMANCE INDICATORS ARE ALSO HIGHLY QUESTIONABLE\")))","v":""}]
[]
[null,"REAL LOSS COMPONENT ANALYSIS RESULTS"]
[null,"System Component","Background Leakage","Reported Failures","Unreported Failures","Total"]
[null,null,{"$f":"'Real Losses Component Analysis'!C11","v":"(MG)"},{"$f":"'Real Losses Component Analysis'!D11","v":"(MG)"},{"$f":"'Real Losses Component Analysis'!E11","v":"(MG)"},{"$f":"'Real Losses Component Analysis'!F11","v":"(MG)"}]
[null,{"$f":"'Real Losses Component Analysis'!B12","v":"Reservoirs"},{"$f":"'Real Losses Component Analysis'!C12","v":0},{"$f":"'Real Losses Component Analysis'!D12","v":0},{"$f":"'Real Losses Component Analysis'!E12","v":0},{"$f":"'Real Losses Component Analysis'!F12","v":0}]
[null,{"$f":"'Real Losses Component Analysis'!B13","v":"Mains and Appurtenances"},{"$f":"'Real Losses Component Analysis'!C13","v":0},{"$f":"'Real Losses Component Analysis'!D13","v":0},{"$f":"'Real Losses Component Analysis'!E13","v":0},{"$f":"'Real Losses Component Analysis'!F13","v":0}]
[null,{"$f":"'Real Losses Component Analysis'!B14","v":"Service Connections"},{"$f":"'Real Losses Component Analysis'!C14","v":0},{"$f":"'Real Losses Component Analysis'!D14","v":0},{"$f":"'Real Losses Component Analysis'!E14","v":0},{"$f":"'Real Losses Component Analysis'!F14","v":0}]
[null,{"$f":"'Real Losses Component Analysis'!B15","v":"Total Annual Real Loss"},{"$f":"'Real Losses Component Analysis'!C15","v":0},{"$f":"'Real Losses Component Analysis'!D15","v":0},{"$f":"'Real Losses Component Analysis'!E15","v":0},{"$f":"'Real Losses Component Analysis'!F15","v":0}]
[null,{"$f":"'Real Losses Component Analysis'!B16","v":"Real Losses as Calculated by Water Audit"},null,null,null,{"$f":"'Real Losses Component Analysis'!F16","v":0}]
[null,{"$f":"'Real Losses Component Analysis'!B17","v":"Hidden Losses/Unreported Leakage Currently Running Undetected"},null,null,null,{"$f":"'Real Losses Component Analysis'!F17","v":0}]
[]
[null,"AWARNESS, LOCATION AND REPAIR TIME REDUCTION RESULTS"]
[null,null,null,"Reported Failures","Unreported Failures"]
[null,"Total Potential Savings if Location and Repair Duration is Reduced as Simulated on the A-L-R Times Options Sheet",null,{"$f":"'A-L-R Times Options'!E50","v":0},{"$f":"'A-L-R Times Options'!F50","v":0},{"$f":"'A-L-R Times Options'!G50","v":"(MG)"}]
[null,"Total Potential Cost Savings if Location and Repair Duration is Reduced as Simulated on the A-L-R Times Options Sheet",null,{"$f":"'A-L-R Times Options'!E51","v":0},{"$f":"'A-L-R Times Options'!F51","v":0},{"$f":"'A-L-R Times Options'!G51","v":"Per Year"}]
[]
[null,"ECONOMIC INTERVENTION FREQUENCY FOR PROACTIVE LEAK DETECTION RESULTS"]
[null,"Percentage of the System to be Surveyed per Year",null,null,{"$f":"'Economic Intervention Frequency'!D38","v":""},{"$f":"'Economic Intervention Frequency'!E38","v":"%"}]
[null,"Average Annual Budget for Intervention (Proactive Leak Detection)",null,null,{"$f":"'Economic Intervention Frequency'!D40","v":""},{"$f":"'Economic Intervention Frequency'!E40","v":"$/year"}]
[null,"Potentially Recoverable Leakage",null,null,{"$f":"'Economic Intervention Frequency'!D46","v":""},{"$f":"'Economic Intervention Frequency'!E46","v":"MG/year"}]
[]
[null,"ALTERNATIVE PRESSURE MANAGEMENT SCENARIO RESULTS"]
[null,"User-Inputted Reduction in Average System Pressure",null,null,{"$f":"'Pressure Management Options'!D29","v":0},{"$f":"'AWWA-Water Balance Data Transf.'!E41","v":"PSI"}]
[null,"Assumed % Reduction in Average System Pressure",null,null,{"$f":"'Pressure Management Options'!D30","v":""}]
[null,"Estimated Real Loss Reduction from Pressure Management Program",null,null,{"$f":"'Pressure Management Options'!D31","v":""},"MG/Yr"]
[null,"Financial Savings from Pressure Management Program",null,null,{"$f":"'Pressure Management Options'!D32","v":""},"$/Year"]
[]
[]
[null,"User-Estimated Cost of Pressure Reduction",null,null,{"$f":"'Pressure Management Options'!D35","v":0},"$"]
[null,"Resulting Pressure Management Program Payback Period",null,null,{"$f":"'Pressure Management Options'!D36","v":""},"Years"]
[]
[]
[{"$f":"IF('Start Page'!$H$29=\"\",\"\",'Start Page'!$H$29)","v":""},null,null,null,null,null,"©2014 Water Research Foundation. ALL RIGHTS RESERVED."]

{"sheet":"AWWA-Water Balance Data Transf.","index":5,"n_rows":74,"n_cols":29,"rows_kept":74,"cut":false,"hidden":false,"merged":[[2,1,2,10],[21,1,21,2],[16,1,16,2],[9,1,9,2],[10,1,10,2],[11,1,11,2],[12,1,12,2],[13,1,13,2],[14,1,14,2],[15,1,15,2],[17,1,17,2],[18,1,18,2],[19,1,19,2],[20,1,20,2],[21,5,22,10],[22,1,22,2],[36,1,36,2],[37,1,37,2],[38,1,38,2],[39,1,39,2],[23,1,23,2],[24,1,24,2],[25,1,25,2],[26,1,26,2],[27,1,27,2],[31,1,31,2],[32,1,32,2],[33,1,33,2],[34,1,34,2],[35,1,35,2],[28,1,28,2],[60,1,60,2],[61,1,61,2],[62,1,62,2],[63,1,63,2],[47,1,47,2],[48,1,48,2],[49,1,49,2],[50,1,50,2],[51,1,51,2],[40,1,40,2],[29,1,29,2],[30,1,30,2],[68,3,70,8],[65,1,65,2],[66,1,66,2],[68,1,68,2],[69,1,69,2],[64,1,64,2],[53,1,53,2],[54,1,54,2],[55,1,55,2],[56,1,56,2],[57,1,57,2],[58,1,58,2],[59,1,59,2],[0,1,1,4],[27,5,28,8],[25,5,26,9],[66,3,67,9],[60,5,62,10],[41,3,42,8],[63,3,64,9],[52,1,52,2],[41,1,41,2],[42,1,42,2],[43,1,43,2],[44,1,44,2],[45,1,45,2],[46,1,46,2],[29,5,30,8],[31,5,32,9]]}
[null,"WaterRF 4372: Real Loss Component Analysis: A Tool for Economic Water Loss Control"]
[]
[null,{"$f":"IF('Start Page'!$Y$37=\"\",\"\",IF('Start Page'!$K$37=\"Partial Audit Period\",\"Water Audit: \"&'Start Page'!$D$26&\", \"&'Start Page'!$H$26&\", \"&'Start Page'!$K$26&\", \"&'Start Page'!$Y$37,\"Water Audit: \"&'Start Page'!$D$26&\", \"&'Start Page'!$H$26&\", \"&'Start Page'!$K$26&\", \"&YEAR('Start Page'!$Y$37)))","v":""}]
[null,"AWWA - WATER BALANCE DATA TRANSFER"]
[]
[null,"Instructions: ","Please enter the data in the blue cells below based on the AWWA WLCC Free Water Audit Software: Reporting Sheet."]
[null,null,"The white cells will be populated automatically. Note: all blue cells need to be populated - if no volume was registered enter zero. "]
[null,"Reporting Units:",{"$f":"IF('Start Page'!$Y$36=1,\"MG\",IF('Start Page'!$Y$36=2,\"ML\", IF('Start Page'!$Y$36=3,\"Acre-feet\")))","v":"MG"},null,null,null,null,null,null,null,null,null,null,null,null,null,null,null,null,null,null,null,null,"UARL"]
[null,null,null,null,null,null,null,null,null,null,null,null,null,null,null,null,null,null,null,null,null,null,null,"Miles",null,null,"km"]
[null,null,null,null,null,null,null,null,null,null,null,null,null,null,null,null,null,null,null,null,null,null,"Components","MG/yr","ML/yr","AF/yr","MG/yr","ML/yr","AF/yr"]
[null,"WATER SUPPLIED",null,null,null,null,null,null,null,null,null,null,null,null,null,null,null,null,null,null,null,null,"Mains",5.41,{"$f":"AB11*'Unit Conversion Sheet'!$C$7","v":28.968119999999999},{"$f":"X11","v":5.41},{"$f":"X11/'Unit Conversion Sheet'!$D$65","v":3.3616265052754546},18,{"$f":"AA11","v":3.3616265052754546}]
[null,null,null,null,null,null,null,null,null,null,null,null,null,null,null,null,null,null,null,null,null,null,"Service Con",0.15,0.8,{"$f":"X12","v":0.15},{"$f":"X12","v":0.15},0.8,{"$f":"AA12","v":0.15}]
[null,"WATER SUPPLIED:",null,0,{"$f":"IF('Start Page'!$Y$36=1,\"MG/Yr\",IF('Start Page'!$Y$36=2,\"ML/Yr\", IF('Start Page'!$Y$36=3,\"Acre-feet/Yr\")))","v":"MG/Yr"},null,null,null,null,null,null,null,null,null,null,{"$f":"COUNTBLANK(D13)","v":0},"Total System Input Count Blank",null,null,null,null,null,"Curb Stop",7.5,{"$f":"AB13*'Unit Conversion Sheet'!$C$7","v":40.233499999999999},{"$f":"X13","v":7.5},{"$f":"X13/'Unit Conversion Sheet'!$D$65","v":4.6602955248735505},25,{"$f":"AA13","v":4.6602955248735505}]
[null,null,null,null,null,null,null,null,null,null,null,null,null,null,null,null,null,null,null,null,null,null,"UARL",{"$f":"'Start Page'!K35*(X11*$D$37+X12*$D$38+X13*$D$40*$D$38/5280)*$D$41/10^6","v":0},{"$f":"'Start Page'!K35*(Y11*$D$37+Y12*$D$38+Y13*$D$40*$D$38/5280)*$D$41/10^6","v":0},{"$f":"'Start Page'!K35*'Unit Conversion Sheet'!$E$17*(Z11*$D$37+Z12*$D$38+Z13*$D$40*$D$38/5280)*$D$41/10^6","v":0},{"$f":"'Start Page'!K35*(AA11*$D$37+AA12*$D$38+AA13*$D$40*$D$38/1000)*$D$41/10^6","v":0},{"$f":"'Start Page'!K35*(AB11*$D$37+AB12*$D$38+AB13*$D$40*$D$38/1000)*$D$41/10^6","v":0},{"$f":"'Start Page'!K35*'Unit Conversion Sheet'!D17*(AC11*$D$37+AC12*$D$38+AC13*$D$40*$D$38/1000)*$D$41/10^6","v":0}]
[]
[null,"AUTHORIZED CONSUMPTION"]
[]
[null,"Billed Metered:",null,0,{"$f":"$E$13","v":"MG/Yr"},null,null,null,null,null,null,null,null,null,null,{"$f":"COUNTBLANK(D18)","v":0},"Billed Metered Count Blank"]
[null,"Billed Unmetered:",null,0,{"$f":"$E$13","v":"MG/Yr"},null,null,null,null,null,null,null,null,null,null,{"$f":"COUNTBLANK(D19)","v":0},"Billed Unmetered Count Blank"]
[null,"Unbilled Metered:",null,0,{"$f":"$E$13","v":"MG/Yr"},null,null,null,null,null,null,null,null,null,null,{"$f":"COUNTBLANK(D20)","v":0},"Billed Metered Count Blank"]
[null,"Unbilled Unmetered:",null,0,{"$f":"$E$13","v":"MG/Yr"},null,null,null,null,null,null,null,null,null,null,{"$f":"COUNTBLANK(D21)","v":0},"Unbilled Unmetered Count Blank"]
[null,null,null,null,null,{"$f":"IF(D23=\"\",\"\",IF(D23<=D13,\"\",IF(D23>D13,\"PLEASE CHECK DATA ENTRY - AUTHORIZED CONSUMPTION MUST BE LESS THAN SYSTEM INPUT VOLUME\",\"\")))","v":""},null,null,null,null,null,null,null,null,null,{"$f":"COUNTBLANK(D22)","v":1}]
[null,"AUTHORIZED CONSUMPTION:",null,{"$f":"IF(P23>0,\"\",SUM(D18:D21))","v":0},{"$f":"$E$13","v":"MG/Yr"},null,null,null,null,null,null,null,null,null,null,{"$f":"COUNTBLANK(D18:D21)","v":0},"Authorized Consumption Count Blank"]
[]
[]
[null,"WATER LOSSES:",null,{"$f":"IF(SUM(P23,P13)>0,\"\",D13-D23)","v":0},{"$f":"$E$13","v":"MG/Yr"},{"$f":"IF(D26>=0,\"\",IF(D26<0,\"PLEASE CHEK DATA ENTRY - WATER LOSSES NEED TO BE >0\",\"\"))","v":""},null,null,null,null,null,null,null,null,null,{"$f":"COUNTBLANK(D26)","v":0},"Water Losses Count Blank"]
[]
[null,"APPARENT LOSSES:",null,null,{"$f":"$E$13","v":"MG/Yr"},{"$f":"IF(D28>=0,\"\",IF(D28<=0,\"PLEASE CHEK DATA ENTRY - APPARENT LOSSES NEED TO BE >0\"))","v":""},null,null,null,null,null,null,null,null,null,{"$f":"COUNTBLANK(D28)","v":1},"Apparent Losses Count Blank"]
[]
[null,"REAL LOSSES:",null,{"$f":"IF(SUM(P28,P26)>0,\"\",D26-D28)","v":""},{"$f":"$E$13","v":"MG/Yr"},{"$f":"IF(D30>0,\"\",IF(D30<=0,\"PLEASE CHECK DATA ENTRY - REAL LOSSES NEED TO BE >0\"))","v":""},null,null,null,null,null,null,null,null,null,{"$f":"COUNTBLANK(D30)","v":1},"Real Losses Count Blank"]
[null,null,null,null,null,null,null,null,null,null,null,null,null,null,null,null,null,null,null,null,{"$f":"INDEX('Unit Conversion Sheet'!$C$11:$E$13,MATCH('Start Page'!$Y$36,'Unit Conversion Sheet'!$A$11:$A$13,0),MATCH('AWWA-Water Balance Data Transf.'!$V$43,'Unit Conversion Sheet'!$C$9:$E$9,0))","v":1000}]
[null,"NON REVENUE WATER:",null,{"$f":"IF(SUM(P20,P21,P28,P30)>0,\"\",D20+D21+D28+D30)","v":""},{"$f":"$E$13","v":"MG/Yr"},{"$f":"IF(D32>0,\"\",IF(D32<=0,\"PLEASE CHECK DATA ENTRY - NON REVENUE WATER NEEDS TO BE >0\"))","v":""},null,null,null,null,null,null,null,null,null,{"$f":"COUNTBLANK(D32)","v":1},"NRW Count Blank"]
[]
[]
[null,"SYSTEM DATA"]
[]
[null,"Length of mains:",null,0,{"$f":"IF('Start Page'!$Y$42=1,\"miles\",IF('Start Page'!$Y$42=2,\"kilometers\"))","v":"miles"},null,null,null,null,null,null,null,null,null,null,{"$f":"COUNTBLANK(D37)","v":0},"Length of mains Count Blank"]
[null,"Number of active AND inactive service connections: ",null,0,"service connections",null,null,null,null,null,null,null,null,null,null,{"$f":"COUNTBLANK(D38)","v":0},"Service Connections Count Blank"]
[null,"Service connection density:",null,{"$f":"IF(ISERROR(IF(P39>0,\"\",SUM(D38:D38)/D37)),\"\",IF(P39>0,\"\",SUM(D38:D38)/D37))","v":""},{"$f":"IF('Start Page'!$Y$42=1,\"conn./mile main\",IF('Start Page'!$Y$42=2,\"conn./kilometer main\"))","v":"conn./mile main"},null,null,null,null,null,null,null,null,null,null,{"$f":"COUNTBLANK(D37:D38)","v":0},"Connection density Count Blank"]
[null,"Average length of customer service line*:",null,0,{"$f":"IF('Start Page'!$Y$42=1,\"feet\",IF('Start Page'!$Y$42=2,\"metres\"))","v":"feet"},null,null,null,null,null,null,null,null,null,null,{"$f":"COUNTBLANK(D40)","v":0},"Avg service length Count Blank"]
[null,"Average operating pressure:",null,0,{"$f":"IF('Start Page'!$Y$36=1,\"PSI\",IF('Start Page'!$Y$36=2,\"metres (head)\", IF('Start Page'!$Y$36=3,\"PSI\")))","v":"PSI"},null,null,null,null,null,null,null,null,null,null,{"$f":"COUNTBLANK(D41)","v":0},"Avg operating pressure Count Blank",null,null,null,null,3]
[null,null,null,"*Note: pipe length between curb stop and customer meter or point of first use for un-metered service connections"]
[null,"COST DATA",null,null,null,null,null,null,null,null,null,null,null,null,null,null,null,null,null,null,"Control Index",2]
[]
[null,"Total annual cost of operating the water system:",null,null,{"$f":"IF('Start Page'!$Y$36=1,\"$/Year\",IF('Start Page'!$Y$36=2,\"$/Year\", IF('Start Page'!$Y$36=3,\"$/Year\")))","v":"$/Year"},null,null,null,null,null,null,null,null,null,null,{"$f":"COUNTBLANK(D45)","v":1},"Annual Cost Count Blank",null,null,1,"$/100 cubic feet (ccf)"]
[null,"Customer retail unit cost (applied to Apparent Losses):",null,0,null,null,null,null,null,null,null,null,null,null,null,{"$f":"COUNTBLANK(D46)","v":0},"Customer Retail Count Blank",null,null,2,"$/1,000 gallons (US)"]
[null,"Variable Production cost (applied to Real Losses):",null,0,{"$f":"IF('Start Page'!$Y$36=1,\"$/MG\",IF('Start Page'!$Y$36=2,\"$/ML\", IF('Start Page'!$Y$36=3,\"$/Acre-ft\")))","v":"$/MG"},null,null,null,null,null,null,null,null,null,null,{"$f":"COUNTBLANK(D47)","v":0},"Variable Production Count Blank",null,null,3,"$/1,000 litres"]
[]
[null,"PERFORMANCE INDICATORS"]
[null,"Financial"]
[null,"Non-revenue water as percent by volume of water supplied:",null,{"$f":"IF(ISERROR(IF(SUM(P32,P13)>0,\"\",D32/D13)),\"\",IF(SUM(P32,P13)>0,\"\",D32/D13))","v":""}]
[null,"Non-revenue water as percent by cost of operating system:",null,{"$f":"IF(ISERROR(IF(SUM(P45:P47,P30,P28,P21,P20)>0,\"\",IF(ISERROR(1/D45),\"\",(((D20+D21+D30)*D47)+(D28*D46*INDEX('Unit Conversion Sheet'!$C$11:$E$13,MATCH('Start Page'!$Y$36,'Unit Conversion Sheet'!$A$11:$A$13,0),MATCH('AWWA-Water Balance Data Transf.'!$V$43,'Unit Conversion Sheet'!$C$9:$E$9,0))))/'AWWA-Water Balance Data Transf.'!$D$45))),\"\",IF(SUM(P45:P47,P30,P28,P21,P20)>0,\"\",IF(ISERROR(1/D45),\"\",(((D20+D21+D30)*D47)+(D28*D46*INDEX('Unit Conversion Sheet'!$C$11:$E$13,MATCH('Start Page'!$Y$36,'Unit Conversion Sheet'!$A$11:$A$13,0),MATCH('AWWA-Water Balance Data Transf.'!$V$43,'Unit Conversion Sheet'!$C$9:$E$9,0))))/'AWWA-Water Balance Data Transf.'!$D$45)))","v":""}]
[null,"Annual cost of Apparent Losses:",null,{"$f":"IF(ISERROR(IF(SUM(P46,P28)>0,\"\",D28*D46*INDEX('Unit Conversion Sheet'!$C$11:$E$13,MATCH('Start Page'!$Y$36,'Unit Conversion Sheet'!$A$11:$A$13,0),MATCH('AWWA-Water Balance Data Transf.'!$V$43,'Unit Conversion Sheet'!$C$9:$E$9,0)))),\"\",IF(SUM(P46,P28)>0,\"\",D28*D46*INDEX('Unit Conversion Sheet'!$C$11:$E$13,MATCH('Start Page'!$Y$36,'Unit Conversion Sheet'!$A$11:$A$13,0),MATCH('AWWA-Water Balance Data Transf.'!$V$43,'Unit Conversion Sheet'!$C$9:$E$9,0))))","v":""}]
[null,"Annual cost of Real Losses:",null,{"$f":"IF(ISERROR(IF(SUM(P47,P30)>0,\"\",D30*D47)),\"\",IF(SUM(P47,P30)>0,\"\",D30*D47))","v":""}]
[]
[null,"Operational Efficiency"]
[null,"Apparent Losses per service connection per day:",null,{"$f":"IF(ISERROR(IF(SUM(P38,P28)>0,\"\",IF(D38=\"\",\"\",$D$28*CHOOSE('Start Page'!$Y$36,'Unit Conversion Sheet'!$D$24,'Unit Conversion Sheet'!$D$25,'Unit Conversion Sheet'!$D$26)/('Start Page'!$K$35*$D$38)))),\"\",IF(D28=\"\",\"\",IF(D38=\"\",\"\",$D$28*CHOOSE('Start Page'!$Y$36,'Unit Conversion Sheet'!$D$24,'Unit Conversion Sheet'!$D$25,'Unit Conversion Sheet'!$D$26)/('Start Page'!$K$35*$D$38))))","v":""},{"$f":"IF('Start Page'!$Y$36=1,\"gal/service conn/day\",IF('Start Page'!$Y$36=2,\"litres/service conn/day\", IF('Start Page'!$Y$36=3,\"gal/service conn/day\")))","v":"gal/service conn/day"},null,null,null,null,null,null,null,null,null,null,{"$f":"COUNTBLANK(D57)","v":1},"Ap Loss/serv con./day Count Blank"]
[null,"Real Losses per service connection per day*:",null,{"$f":"IF(ISERROR(IF(SUM(P39,P38,P30)>0,\"\",IF(D39<=32,\"N/A\",$D$30*CHOOSE('Start Page'!$Y$36,'Unit Conversion Sheet'!$D$24,'Unit Conversion Sheet'!$D$25,'Unit Conversion Sheet'!$D$26)/('Start Page'!$K$35*$D$38)))),\"\",IF(D39=\"\",\"\",IF(D39<=32,\"N/A\",$D$30*CHOOSE('Start Page'!$Y$36,'Unit Conversion Sheet'!$D$24,'Unit Conversion Sheet'!$D$25,'Unit Conversion Sheet'!$D$26)/('Start Page'!$K$35*$D$38))))","v":""},{"$f":"IF('Start Page'!$Y$36=1,\"gal/service conn/day\",IF('Start Page'!$Y$36=2,\"litres/service conn/day\", IF('Start Page'!$Y$36=3,\"gal/service conn/day\")))","v":"gal/service conn/day"},null,null,null,null,null,null,null,null,null,null,{"$f":"COUNTBLANK(D58)","v":1},"RL/serv con/day Count Blank"]
[null,"Real Losses per length of main per day:",null,{"$f":"IF(ISERROR(IF(SUM(P39,P30)>0,\"\",IF(D39>=32,\"N/A\",$D$30*CHOOSE('Start Page'!$Y$36,'Unit Conversion Sheet'!$D$24,'Unit Conversion Sheet'!$D$25,'Unit Conversion Sheet'!$D$26)/('Start Page'!$K$35*$D$37)))),\"\",IF(SUM(P39,P30)>0,\"\",IF(D39>=32,\"N/A\",$D$30*CHOOSE('Start Page'!$Y$36,'Unit Conversion Sheet'!$D$24,'Unit Conversion Sheet'!$D$25,'Unit Conversion Sheet'!$D$26)/('Start Page'!$K$35*$D$37))))","v":""},{"$f":"INDEX('Unit Conversion Sheet'!$C$36:$D$38,MATCH('Start Page'!$Y$36,'Unit Conversion Sheet'!$A$36:$A$38,0),MATCH('Start Page'!$Y$42,'Unit Conversion Sheet'!$C$35:$D$35,0))","v":"gal/mi/day"},null,null,null,null,null,null,null,null,null,null,{"$f":"COUNTBLANK(D59)","v":1},"RL/length main/day Count Blank"]
[null,{"$f":"\"Real Losses per service connection per day per \"&$E$41& \" pressure:\"","v":"Real Losses per service connection per day per PSI pressure:"},null,{"$f":"IF(SUM(P58,P41)>0,\"N/A\",IF(ISERROR(D58/D41),\"N/A\",D58/D41))","v":"N/A"},{"$f":"IF('Start Page'!$Y$36=1,\"gal/service conn/day/psi\",IF('Start Page'!$Y$36=2,\"litres/service conn/day/mH\", IF('Start Page'!$Y$36=3,\"gal/service conn/day/psi\")))","v":"gal/service conn/day/psi"},null,null,null,null,null,null,null,null,null,null,{"$f":"COUNTBLANK(D60)","v":0},"RL/serv con/day/psi Count Blank"]
[null,"Unavoidable Annual Real Losses (UARL):",null,{"$f":"IF('Start Page'!K35<365,\"N/A\",IF($D$38=\"\",\"\",IF(OR($D$38<3000,D39<16),\"N/A\",IF(ISERROR(IF(AND('Start Page'!$Y$36=1,'Start Page'!$Y$42=1),X14,IF(AND('Start Page'!$Y$36=2,'Start Page'!$Y$42=1),Y14,IF(AND('Start Page'!$Y$36=3,'Start Page'!$Y$42=1),Z14,IF(AND('Start Page'!$Y$36=1,'Start Page'!$Y$42=2),AA14,IF(AND('Start Page'!$Y$36=2,'Start Page'!$Y$42=2),AB14,IF(AND('Start Page'!$Y$36=3,'Start Page'!$Y$42=2),AC14,\"\"))))))),\"\",IF(AND('Start Page'!$Y$36=1,'Start Page'!$Y$42=1),X14,IF(AND('Start Page'!$Y$36=2,'Start Page'!$Y$42=1),Y14,IF(AND('Start Page'!$Y$36=3,'Start Page'!$Y$42=1),Z14,IF(AND('Start Page'!$Y$36=1,'Start Page'!$Y$42=2),AA14,IF(AND('Start Page'!$Y$36=2,'Start Page'!$Y$42=2),AB14,IF(AND('Start Page'!$Y$36=3,'Start Page'!$Y$42=2),AC14,\"\"))))))))))","v":"N/A"},{"$f":"IF('Start Page'!$Y$36=1,\"MG/Yr\",IF('Start Page'!$Y$36=2,\"ML/Yr\", IF('Start Page'!$Y$36=3,\"Acre-feet/Yr\")))","v":"MG/Yr"},{"$f":"IF(D13=0,\"\",IF(D13=\"\",\"\",IF('Start Page'!K35<365,\"UARL, CARL, & ILI ARE NOT CALCULATED BECAUSE UARL AND CARL CALCULATIONS SHOULD BE BASED ON AT LEAST A FULL AUDIT YEAR (365 days)\",IF(AND(D61=\"N/A\",OR(D39<16,D38<3000)), \"UARL CANNOT BE CALCULATED: NUMBER OF SERVICE CONNECTIONS, LENGTH OF MAINS OR AVERAGE PRESSURE MAY BE TOO SMALL\",\"\"))))","v":""},null,null,null,null,null,null,null,null,null,{"$f":"COUNTBLANK(D37:D41)","v":1},"UARL Count Blank"]
[null,"Current Annual Real Losses (CARL):",null,{"$f":"IF('Start Page'!K35<365,\"N/A\",IF(P62>0,\"\",D30))","v":""},{"$f":"IF('Start Page'!$Y$36=1,\"MG/Yr\",IF('Start Page'!$Y$36=2,\"ML/Yr\", IF('Start Page'!$Y$36=3,\"Acre-feet/Yr\")))","v":"MG/Yr"},null,null,null,null,null,null,null,null,null,null,{"$f":"COUNTBLANK(D30)","v":1},"CARL Count Blank"]
[null,"Infrastructure Leakage Index (ILI) [CARL/UARL]:",null,{"$f":"IF(AND(D61=\"N/A\",D62=\"N/A\"),\"N/A\",IF(ISERROR(IF(P63>0,\"\",D62/D61)),\"\",IF(P63>0,\"\",D62/D61)))","v":""},null,null,null,null,null,null,null,null,null,null,null,{"$f":"COUNTBLANK(D61:D62)","v":1},"ILI Count Blank"]
[null,null,null,{"$f":"IF(ISERROR(1/D61),\"\",IF(D62/D61>1,\"\",IF((D62/D61)<1,\"PLEASE CHEK DATA ENTRY - ILI SHOULD BE >1 - ALL OTHER PERFORMANCE INDICATORS ARE ALSO QUESTIONABLE\")))","v":""}]
[]
[null,"AWWA Water Audit Data Validity Score: "]
[null,null,null,"Please enter the Data Validity Score calculated by the AWWA Free Water Audit Software"]
[]
[null,"Note: ",null,"If the data validity of your AWWA Water Audit is less than 51 it is recommended to improve the data validity of your AWWA Water Audit data before any of the results of the following economic analysis are considered for implementation. "]
[]
[]
[]
[]
[null,{"$f":"IF('Start Page'!$H$29=\"\",\"\",'Start Page'!$H$29)","v":""},null,null,null,null,null,null,null,null,"©2014 Water Research Foundation. ALL RIGHTS RESERVED."]

{"sheet":"Performance Indicator Charts","index":6,"n_rows":339,"n_cols":29,"rows_kept":339,"cut":false,"hidden":false,"merged":[[5,2,5,9],[9,1,10,1],[86,3,86,5],[87,3,87,5],[61,3,61,5],[80,3,80,5],[81,3,81,5],[82,3,82,5],[83,3,83,5],[84,3,84,5],[85,3,85,5],[74,3,74,5],[75,3,75,5],[76,3,76,5],[77,3,77,5],[0,1,1,7],[78,3,78,5],[79,3,79,5],[73,3,73,5],[67,3,67,5],[62,3,62,5],[63,3,63,5],[64,3,64,5],[65,3,65,5],[66,3,66,5],[68,3,68,5],[69,3,69,5],[70,3,70,5],[71,3,71,5],[72,3,72,5],[2,1,2,9]]}
[null,"WaterRF 4372: Real Loss Component Analysis: A Tool for Economic Water Loss Control"]
[]
[null,{"$f":"IF('Start Page'!$Y$37=\"\",\"\",IF('Start Page'!$K$37=\"Partial Audit Period\",\"Water Audit: \"&'Start Page'!$D$26&\", \"&'Start Page'!$H$26&\", \"&'Start Page'!$K$26&\", \"&'Start Page'!$Y$37,\"Water Audit: \"&'Start Page'!$D$26&\", \"&'Start Page'!$H$26&\", \"&'Start Page'!$K$26&\", \"&YEAR('Start Page'!$Y$37)))","v":""}]
[null,"PERFORMANCE INDICATOR COMPARISON"]
[]
[null,"Instructions:","Please select a performance indicator from the drop-down box to compare your utility's performance against the AWWA North American Validated Water Audit Data for 2012*. The performance indicator graph also displays the 25th, 50th and 75th percentile of the performance indicators data set."]
[]
[null,"Utility Name:",{"$f":"'Start Page'!Y21","v":""},null,null,null,null,null,null,null,null,null,null,null,null,"Combo Reference ->",2]
[]
[null,"Performance Indicator:"]
[]
[null,null,null,null,null,null,null,null,null,null,null,null,null,null,null,null,"Chart Title",{"$f":"CONCATENATE(C8,\": \",R44)","v":": Performance Indicator: Non-revenue Water as Percent by Cost of Operating System (%)"},null,"Combo Headings"]
[null,null,null,null,null,null,null,null,null,null,null,null,null,null,null,"Chart Data Source",null,null,null,{"$f":"Y13","v":"Performance Indicator: Non-revenue Water as Percent by Volume of Water Supplied (%)"},null,null,null,null,"Performance Indicator: Non-revenue Water as Percent by Volume of Water Supplied (%)"]
[null,null,null,null,null,null,null,null,null,null,null,null,null,null,null,null,null,null,null,{"$f":"Y43","v":"Performance Indicator: Non-revenue Water as Percent by Cost of Operating System (%)"},null,null,null,null,"Utility","Original Values","Chart Values","Percentiles"]
[null,null,null,null,null,null,null,null,null,null,null,null,null,null,null,"Rank",{"$f":"CHOOSE(Q8,Y$44,Y$74,Y$103,Y$133,Y$163,Y$222,Y$252,Y$282,Y$312)","v":"Utility"},{"$f":"CHOOSE($Q$8,$Y$13,$Y$43,$Y$73,$Y$102,$Y$132,$Y$162,$Y$192,$Y$221,$Y$251,$Y$281,$Y$311)","v":"Performance Indicator: Non-revenue Water as Percent by Cost of Operating System (%)"},"Percentiles",{"$f":"Y73","v":"Financial Indicator: Annual cost of Apparent Losses ($)"},null,null,null,null,{"$f":"'Data 2012'!$D$6","v":"GCWW"},{"$f":"'Data 2012'!$D$49","v":0.20064562174177289},{"$f":"IF(ISERROR(Z15),\"\",Z15)","v":0.20064562174177289},0.25,{"$f":"PERCENTILE(AA15:AA41,AB15)","v":0.11317696468996172}]
[null,null,null,null,null,null,null,null,null,null,null,null,null,null,null,{"$f":"RANK(R16,$R$16:$R$42)","v":12},{"$f":"CHOOSE($Q$8,$Y15,$Y45,$Y75,$Y104,$Y134,$Y164,$Y193,$Y223,$Y253,$Y283,$Y313)","v":"GCWW"},{"$f":"CHOOSE(Q$8,$AA15,$AA45,$AA75,$AA104,$AA134,$AA164,$AA193,$AA223,$AA253,$AA283,$AA313)","v":7.4798189712390759E-2},{"$f":"CHOOSE(Q$8,$AC15,$AC45,$AC75,$AC104,$AC134,$AC164,$AC193,$AC223,$AC253,$AC283,$AC313)","v":3.5597814842702989E-2},{"$f":"Y102","v":"Financial Indicator: Annual Cost of Real Losses ($)"},null,null,null,null,{"$f":"'Data 2012'!$E$6","v":"SMW"},{"$f":"'Data 2012'!$E$49","v":9.8430922311519051E-2},{"$f":"IF(ISERROR(Z16),\"\",Z16)","v":9.8430922311519051E-2},0.5,{"$f":"PERCENTILE(AA16:AA42,AB16)","v":0.13540488160654321}]
[null,null,null,null,null,null,null,null,null,null,null,null,null,null,null,10,"SMW",0.10343609730267948,{"$f":"CHOOSE(Q$8,$AC16,$AC46,$AC76,$AC105,$AC135,$AC165,$AC194,$AC224,$AC254,$AC284,$AC314)","v":6.6826173260480251E-2},{"$f":"Y132","v":"Performance Indicator: Apparent Losses per Service Connection per Day [gal/service con./day]"},null,null,null,null,{"$f":"'Data 2012'!$F$6","v":"ABCWUA"},{"$f":"'Data 2012'!$F$49","v":0.10511802387420864},0.10511802387420864,0.75,0.25092569483384686]
[null,null,null,null,null,null,null,null,null,null,null,null,null,null,null,3,"ABCWUA",0.18346885466641644,0.12651994600600266,{"$f":"Y162","v":"Performance Indicator: Real Losses per Service Connection per Day [gal/service con./day]"},null,null,null,null,{"$f":"'Data 2012'!$G$6","v":"AquaWSC"},{"$f":"'Data 2012'!$G$49","v":0.19199387025370329},0.19199387025370329]
[null,null,null,null,null,null,null,null,null,null,null,null,null,null,null,19,"AquaWSC",3.7429608637880564E-2,null,{"$f":"Y192","v":"Performance Indicator: Real Losses per length of mains per day [gal/mi/day]"},null,null,null,null,{"$f":"'Data 2012'!$H$6","v":"AW"},{"$f":"'Data 2012'!$H$49","v":0.11031636801814795},0.11031636801814795]
[null,null,null,null,null,null,null,null,null,null,null,null,null,null,null,24,"AW",3.0108773415079341E-2,null,{"$f":"Y221","v":"Performance Indicator: Real Losses per Service Connections per PSI [gal/service con./day/PSI]"},null,null,null,null,{"$f":"'Data 2012'!$I$6","v":"BUD"},{"$f":"'Data 2012'!$I$49","v":0.30124840788179308},0.30124840788179308]
[null,null,null,null,null,null,null,null,null,null,null,null,null,null,null,13,"BUD",7.3848877396193613E-2,null,{"$f":"Y251","v":"System Characteristic: Unavoidable Annual Real Losses [MG/Yr]"},null,null,null,null,{"$f":"'Data 2012'!$J$6","v":"BWWB"},{"$f":"'Data 2012'!$J$49","v":0.28988261982505559},0.28988261982505559]
[null,null,null,null,null,null,null,null,null,null,null,null,null,null,null,11,"BWWB",8.0128098157713046E-2,null,{"$f":"Y281","v":"Performance Indicator: Current Annual Real Losses [MG/Yr]"},null,null,null,null,{"$f":"'Data 2012'!$K$6","v":"CW"},{"$f":"'Data 2012'!$K$49","v":0.13008329165002241},0.13008329165002241]
[null,null,null,null,null,null,null,null,null,null,null,null,null,null,null,21,"CW",3.5175922547414272E-2,null,{"$f":"Y311","v":"Performance Indicator: Infrastructure Leakage Index (ILI) [CARL/UARL]"},null,null,null,null,{"$f":"'Data 2012'!$L$6","v":"CCWSA"},{"$f":"'Data 2012'!$L$49","v":0.13540488160654321},0.13540488160654321]
[null,null,null,null,null,null,null,null,null,null,null,null,null,null,null,23,"CCWSA",3.1045186320174407E-2,null,null,null,null,null,null,{"$f":"'Data 2012'!$M$6","v":"CCWS"},{"$f":"'Data 2012'!$M$49","v":8.0401629623519363E-2},8.0401629623519363E-2]
[null,null,null,null,null,null,null,null,null,null,null,null,null,null,null,16,"CCWS",6.0467068781965269E-2,null,null,null,null,null,null,{"$f":"'Data 2012'!$N$6","v":"CBW"},{"$f":"'Data 2012'!$N$49","v":0.2379400531701106},0.2379400531701106]
[null,null,null,null,null,null,null,null,null,null,null,null,null,null,null,4,"CBW",0.1731120987115381,null,null,null,null,null,null,{"$f":"'Data 2012'!$O$6","v":"DUTIL"},{"$f":"'Data 2012'!$O$49","v":0.13443908111140193},0.13443908111140193]
[null,null,null,null,null,null,null,null,null,null,null,null,null,null,null,6,"DUTIL",0.1568100244972947,null,null,null,null,null,null,{"$f":"'Data 2012'!$P$6","v":"DCWATER"},{"$f":"'Data 2012'!$P$49","v":0.22676681879423363},0.22676681879423363]
[null,null,null,null,null,null,null,null,null,null,null,null,null,null,null,2,"DCWATER",0.2232320531939431,null,null,null,null,null,null,{"$f":"'Data 2012'!$Q$6","v":"HRWC"},{"$f":"'Data 2012'!$Q$49","v":0.1695040925845365},0.1695040925845365]
[null,null,null,null,null,null,null,null,null,null,null,null,null,null,null,26,"HRWC",1.8244232455823815E-2,null,null,null,null,null,null,{"$f":"'Data 2012'!$R$6","v":"JCW1"},{"$f":"'Data 2012'!$R$49","v":0.12175875470540304},0.12175875470540304]
[null,null,null,null,null,null,null,null,null,null,null,null,null,null,null,22,"JCW1",3.4245432844083046E-2,null,null,null,null,null,null,{"$f":"'Data 2012'!$S$6","v":"LVVWD"},{"$f":"'Data 2012'!$S$49","v":5.0773752487113806E-2},5.0773752487113806E-2]
[null,null,null,null,null,null,null,null,null,null,null,null,null,null,null,20,"LVVWD",3.5597814842702989E-2,null,null,null,null,null,null,{"$f":"'Data 2012'!$T$6","v":"LWCKY"},{"$f":"'Data 2012'!$T$49","v":0.2284719460697987},0.2284719460697987]
[null,null,null,null,null,null,null,null,null,null,null,null,null,null,null,9,"LWCKY",0.1176989963162906,null,null,null,null,null,null,{"$f":"'Data 2012'!$U$6","v":"OCFL"},{"$f":"'Data 2012'!$U$49","v":5.93108396099256E-2},5.93108396099256E-2]
[null,null,null,null,null,null,null,null,null,null,null,null,null,null,null,17,"OCFL",5.8586832845270831E-2,null,null,null,null,null,null,{"$f":"'Data 2012'!$V$6","v":"PAW"},{"$f":"'Data 2012'!$V$49","v":0.41342384544180349},0.41342384544180349]
[null,null,null,null,null,null,null,null,null,null,null,null,null,null,null,7,"PAW",0.13475518119316801,null,null,null,null,null,null,{"$f":"'Data 2012'!$W$6","v":"PWD"},{"$f":"'Data 2012'!$W$49","v":0.39694555916777352},0.39694555916777352]
[null,null,null,null,null,null,null,null,null,null,null,null,null,null,null,1,"PWD",0.2720345235354299,null,null,null,null,null,null,{"$f":"'Data 2012'!$X$6","v":"RRW"},{"$f":"'Data 2012'!$X$49","v":0.12762313496517905},0.12762313496517905]
[null,null,null,null,null,null,null,null,null,null,null,null,null,null,null,18,"RRW",3.9475060471348258E-2,null,null,null,null,null,null,{"$f":"'Data 2012'!$Y$6","v":"UI"},{"$f":"'Data 2012'!$Y$49","v":7.9869564033439491E-2},7.9869564033439491E-2]
[null,null,null,null,null,null,null,null,null,null,null,null,null,null,null,25,"UI",{"$f":"CHOOSE(Q$8,$AA36,$AA66,$AA96,$AA125,$AA155,$AA185,$AA214,$AA244,$AA274,$AA304,$AA334)","v":2.4846517858067945E-2},null,null,null,null,null,null,{"$f":"'Data 2012'!$Z$6","v":"WWU"},{"$f":"'Data 2012'!$Z$49","v":0.13468013468013468},0.13468013468013468]
[null,null,null,null,null,null,null,null,null,null,null,null,null,null,null,14,"WWU",6.8718418089471614E-2,null,null,null,null,null,null,{"$f":"'Data 2012'!$AA$6","v":"WCSA"},{"$f":"'Data 2012'!$AA$49","v":0.48681604431913944},0.48681604431913944]
[null,null,null,null,null,null,null,null,null,null,null,null,null,null,null,8,"WCSA",0.11828471081883732,null,null,null,null,null,null,{"$f":"'Data 2012'!$AB$6","v":"WDPW"},{"$f":"'Data 2012'!$AB$49","v":0.47280773485832506},0.47280773485832506]
[null,null,null,null,null,null,null,null,null,null,null,null,null,null,null,5,"WDPW",0.15958772958150386,null,null,null,null,null,null,{"$f":"'Data 2012'!$AC$6","v":"WWAWC"},{"$f":"'Data 2012'!$AC$49","v":0.1927222691873757},0.1927222691873757]
[null,null,null,null,null,null,null," ",null,null,null,null,null,null,null,15,"WWAWC",6.4933928431488888E-2,null,null,null,null,null,null,{"$f":"$C$8","v":""},{"$f":"'AWWA-Water Balance Data Transf.'!$D$51","v":""},{"$f":"Z41","v":""}]
[null,null,null,null,null,null,null,null,null,null,null,null,null,null,null,{"$error":"#VALUE!"},"",""]
[null,null,null,null,null,null,null,null,null,null,null,null,null,null,null,null,null,null,null,null,null,null,null,null,"Performance Indicator: Non-revenue Water as Percent by Cost of Operating System (%)"]
[null,null,null,null,null,null,null,null,null,null,null,null,null,null,null,"Ordered Chart Data","Y-Axis",{"$f":"R15","v":"Performance Indicator: Non-revenue Water as Percent by Cost of Operating System (%)"},null,null,null,null,null,null,"Utility","Original Values","Chart Values","Percentiles"]
[null,null,null,null,null,null,null,null,null,null,null,null,null,null,null,"Desired Order",null,null,null,null,"25th Percentile","50th Percentile","75th Percentile",null,{"$f":"'Data 2012'!$D$6","v":"GCWW"},{"$f":"'Data 2012'!$D$50","v":7.4798189712390759E-2},{"$f":"IF(ISERROR(Z45),\"\",Z45)","v":7.4798189712390759E-2},0.25,{"$f":"PERCENTILE(AA46:AA72,AB45)","v":3.5597814842702989E-2}]
[null,null,null,null,null,null,null,null,null,null,null,null,null,null,null,1,{"$f":"IF(ISERROR(VLOOKUP(P46,$P$16:$R$42,2,FALSE)),\"\",VLOOKUP(P46,$P$16:$R$42,2,FALSE))","v":"PWD"},{"$f":"IF(ISERROR(VLOOKUP($P46,$P$16:$R$42,3,FALSE)),\"\",VLOOKUP($P46,$P$16:$R$42,3,FALSE))","v":0.2720345235354299},{"$f":"IF(Q46=$Q$42,$R$42,0)","v":0},{"$f":"R46-S46","v":0.2720345235354299},{"$f":"$S$16","v":3.5597814842702989E-2},{"$f":"$S$17","v":6.6826173260480251E-2},{"$f":"$S$18","v":0.12651994600600266},null,{"$f":"'Data 2012'!$E$6","v":"SMW"},{"$f":"'Data 2012'!$E$50","v":0.10343609730267948},{"$f":"IF(ISERROR(Z46),\"\",Z46)","v":0.10343609730267948},0.5,{"$f":"PERCENTILE(AA47:AA73,AB46)","v":6.6826173260480251E-2}]
[null,null,null,null,null,null,null,null,null,null,null,null,null,null,null,2,{"$f":"IF(ISERROR(VLOOKUP(P47,$P$16:$R$42,2,FALSE)),\"\",VLOOKUP(P47,$P$16:$R$42,2,FALSE))","v":"DCWATER"},0.2232320531939431,0,{"$f":"R47-S47","v":0.2232320531939431},{"$f":"$S$16","v":3.5597814842702989E-2},{"$f":"$S$17","v":6.6826173260480251E-2},{"$f":"$S$18","v":0.12651994600600266},null,{"$f":"'Data 2012'!$F$6","v":"ABCWUA"},{"$f":"'Data 2012'!$F$50","v":0.18346885466641644},0.18346885466641644,0.75,{"$f":"PERCENTILE(AA48:AA74,AB47)","v":0.12651994600600266}]
[null,null,null,null,null,null,null,null,null,null,null,null,null,null,null,3,{"$f":"IF(ISERROR(VLOOKUP(P48,$P$16:$R$42,2,FALSE)),\"\",VLOOKUP(P48,$P$15:$R$42,2,FALSE))","v":"ABCWUA"},0.18346885466641644,0,0.18346885466641644,3.5597814842702989E-2,6.6826173260480251E-2,0.12651994600600266,null,{"$f":"'Data 2012'!$G$6","v":"AquaWSC"},{"$f":"'Data 2012'!$G$50","v":3.7429608637880564E-2},3.7429608637880564E-2]
[null,null,null,null,null,null,null,null,null,null,null,null,null,null,null,4,"CBW",0.1731120987115381,0,0.1731120987115381,3.5597814842702989E-2,6.6826173260480251E-2,0.12651994600600266,null,{"$f":"'Data 2012'!$H$6","v":"AW"},{"$f":"'Data 2012'!$H$50","v":3.0108773415079341E-2},3.0108773415079341E-2]
[null,null,null,null,null,null,null,null,null,null,null,null,null,null,null,5,"WDPW",0.15958772958150386,0,0.15958772958150386,3.5597814842702989E-2,6.6826173260480251E-2,0.12651994600600266,null,{"$f":"'Data 2012'!$I$6","v":"BUD"},{"$f":"'Data 2012'!$I$50","v":7.3848877396193613E-2},7.3848877396193613E-2]
[null,null,null,null,null,null,null,null,null,null,null,null,null,null,null,6,"DUTIL",0.1568100244972947,0,0.1568100244972947,3.5597814842702989E-2,6.6826173260480251E-2,0.12651994600600266,null,{"$f":"'Data 2012'!$J$6","v":"BWWB"},{"$f":"'Data 2012'!$J$50","v":8.0128098157713046E-2},8.0128098157713046E-2]
[null,null,null,null,null,null,null,null,null,null,null,null,null,null,null,7,"PAW",0.13475518119316801,0,0.13475518119316801,3.5597814842702989E-2,6.6826173260480251E-2,0.12651994600600266,null,{"$f":"'Data 2012'!$K$6","v":"CW"},{"$f":"'Data 2012'!$K$50","v":3.5175922547414272E-2},3.5175922547414272E-2]
[null,null,null,null,null,null,null,null,null,null,null,null,null,null,null,8,"WCSA",0.11828471081883732,0,0.11828471081883732,3.5597814842702989E-2,6.6826173260480251E-2,0.12651994600600266,null,{"$f":"'Data 2012'!$L$6","v":"CCWSA"},{"$f":"'Data 2012'!$L$50","v":3.1045186320174407E-2},3.1045186320174407E-2]
[null,null,null,null,null,null,null,null,null,null,null,null,null,null,null,9,"LWCKY",0.1176989963162906,0,0.1176989963162906,3.5597814842702989E-2,6.6826173260480251E-2,0.12651994600600266,null,{"$f":"'Data 2012'!$M$6","v":"CCWS"},{"$f":"'Data 2012'!$M$50","v":6.0467068781965269E-2},6.0467068781965269E-2]
[null,null,null,null,null,null,null,null,null,null,null,null,null,null,null,10,"SMW",0.10343609730267948,0,0.10343609730267948,3.5597814842702989E-2,6.6826173260480251E-2,0.12651994600600266,null,{"$f":"'Data 2012'!$N$6","v":"CBW"},{"$f":"'Data 2012'!$N$50","v":0.1731120987115381},0.1731120987115381]
[null,null,null,null,null,null,null,null,null,null,null,null,null,null,null,11,"BWWB",8.0128098157713046E-2,0,8.0128098157713046E-2,3.5597814842702989E-2,6.6826173260480251E-2,0.12651994600600266,null,{"$f":"'Data 2012'!$O$6","v":"DUTIL"},{"$f":"'Data 2012'!$O$50","v":0.1568100244972947},0.1568100244972947]
[null,null,null,null,null,null,null,null,null,null,null,null,null,null,null,12,"GCWW",7.4798189712390759E-2,0,7.4798189712390759E-2,3.5597814842702989E-2,6.6826173260480251E-2,0.12651994600600266,null,{"$f":"'Data 2012'!$P$6","v":"DCWATER"},{"$f":"'Data 2012'!$P$50","v":0.2232320531939431},0.2232320531939431]
[null,null,null,null,null,null,null,null,null,null,null,null,null,null,null,13,"BUD",7.3848877396193613E-2,0,7.3848877396193613E-2,3.5597814842702989E-2,6.6826173260480251E-2,0.12651994600600266,null,{"$f":"'Data 2012'!$Q$6","v":"HRWC"},{"$f":"'Data 2012'!$Q$50","v":1.8244232455823815E-2},1.8244232455823815E-2]
[null,null,null,null,null,null,null,null,null,null,null,null,null,null,null,14,"WWU",6.8718418089471614E-2,0,6.8718418089471614E-2,3.5597814842702989E-2,6.6826173260480251E-2,0.12651994600600266,null,{"$f":"'Data 2012'!$R$6","v":"JCW1"},{"$f":"'Data 2012'!$R$50","v":3.4245432844083046E-2},3.4245432844083046E-2]
[null,null,null,null,null,null,null,null,null,null,null,null,null,null,null,15,"WWAWC",6.4933928431488888E-2,0,6.4933928431488888E-2,3.5597814842702989E-2,6.6826173260480251E-2,0.12651994600600266,null,{"$f":"'Data 2012'!$S$6","v":"LVVWD"},{"$f":"'Data 2012'!$S$50","v":3.5597814842702989E-2},3.5597814842702989E-2]
[null,null,null,null,null,null,null,null,null,null,null,null,null,null,null,16,"CCWS",6.0467068781965269E-2,0,6.0467068781965269E-2,3.5597814842702989E-2,6.6826173260480251E-2,0.12651994600600266,null,{"$f":"'Data 2012'!$T$6","v":"LWCKY"},{"$f":"'Data 2012'!$T$50","v":0.1176989963162906},0.1176989963162906]
[null,null,"Abbreviation","Utility Name",null,null,"State or Province","Country","Audit Year",null,null,null,null,null,null,17,"OCFL",5.8586832845270831E-2,0,5.8586832845270831E-2,3.5597814842702989E-2,6.6826173260480251E-2,0.12651994600600266,null,{"$f":"'Data 2012'!$U$6","v":"OCFL"},{"$f":"'Data 2012'!$U$50","v":5.8586832845270831E-2},5.8586832845270831E-2]
[null,null,"GCWW","Greater Cincinnati Water Works",null,null,"Ohio","USA",2010,null,null,null,null,null,null,18,"RRW",3.9475060471348258E-2,0,3.9475060471348258E-2,3.5597814842702989E-2,6.6826173260480251E-2,0.12651994600600266,null,{"$f":"'Data 2012'!$V$6","v":"PAW"},{"$f":"'Data 2012'!$V$50","v":0.13475518119316801},0.13475518119316801]
[null,null,"SMW","City of Santa Monica",null,null,"California","USA",2010,null,null,null,null,null,null,19,"AquaWSC",3.7429608637880564E-2,0,3.7429608637880564E-2,3.5597814842702989E-2,6.6826173260480251E-2,0.12651994600600266,null,{"$f":"'Data 2012'!$W$6","v":"PWD"},{"$f":"'Data 2012'!$W$50","v":0.2720345235354299},0.2720345235354299]
[null,null,"ABCWUA","ALBUQUERQUE BERNALILLO COUNTY WATER UTILITY",null,null,"New Mexico","USA",2011,null,null,null,null,null,null,20,"LVVWD",3.5597814842702989E-2,0,3.5597814842702989E-2,3.5597814842702989E-2,6.6826173260480251E-2,0.12651994600600266,null,{"$f":"'Data 2012'!$X$6","v":"RRW"},{"$f":"'Data 2012'!$X$50","v":3.9475060471348258E-2},3.9475060471348258E-2]
[null,null,"AquaWSC","Aqua WSC",null,null,"Texas","USA",2011,null,null,null,null,null,null,21,"CW",3.5175922547414272E-2,0,3.5175922547414272E-2,3.5597814842702989E-2,6.6826173260480251E-2,0.12651994600600266,null,{"$f":"'Data 2012'!$Y$6","v":"UI"},{"$f":"'Data 2012'!$Y$50","v":2.4846517858067945E-2},2.4846517858067945E-2]
[null,null,"AW","Austin Water Utility",null,null,"Texas","USA",2011,null,null,null,null,null,null,22,"JCW1",3.4245432844083046E-2,0,3.4245432844083046E-2,3.5597814842702989E-2,6.6826173260480251E-2,0.12651994600600266,null,{"$f":"'Data 2012'!$Z$6","v":"WWU"},{"$f":"'Data 2012'!$Z$50","v":6.8718418089471614E-2},6.8718418089471614E-2]
[null,null,"BUD","City of Belmont",null,null,"North Carolina","USA",2011,null,null,null,null,null,null,23,"CCWSA",3.1045186320174407E-2,0,3.1045186320174407E-2,3.5597814842702989E-2,6.6826173260480251E-2,0.12651994600600266,null,{"$f":"'Data 2012'!$AA$6","v":"WCSA"},{"$f":"'Data 2012'!$AA$50","v":0.11828471081883732},0.11828471081883732]
[null,null,"BWWB","Birmingham Water Works Board",null,null,"Alabama","USA",2011,null,null,null,null,null,null,24,"AW",3.0108773415079341E-2,0,3.0108773415079341E-2,3.5597814842702989E-2,6.6826173260480251E-2,0.12651994600600266,null,{"$f":"'Data 2012'!$AB$6","v":"WDPW"},{"$f":"'Data 2012'!$AB$50","v":0.15958772958150386},0.15958772958150386]
[null,null,"CW","The City of Calgary",null,null,"Alberta","Canada",2011,null,null,null,null,null,null,25,"UI",2.4846517858067945E-2,0,2.4846517858067945E-2,3.5597814842702989E-2,6.6826173260480251E-2,0.12651994600600266,null,{"$f":"'Data 2012'!$AC$6","v":"WWAWC"},{"$f":"'Data 2012'!$AC$50","v":6.4933928431488888E-2},6.4933928431488888E-2]
[null,null,"CCWSA","Cherokee County Water & Sewerage Authority",null,null,"Georgia","USA",2011,null,null,null,null,null,null,26,"HRWC",1.8244232455823815E-2,0,1.8244232455823815E-2,3.5597814842702989E-2,6.6826173260480251E-2,0.12651994600600266,null,{"$f":"$C$8","v":""},{"$f":"'AWWA-Water Balance Data Transf.'!$D$52","v":""},{"$f":"'AWWA-Water Balance Data Transf.'!$D$52","v":""}]
[null,null,"CCWS","Cobb County Water System WSID 67003",null,null,"Georgia","USA",2001,null,null,null,null,null,null,27,"","","",{"$error":"#VALUE!"},3.5597814842702989E-2,6.6826173260480251E-2,0.12651994600600266]
[null,null,"CBW","City of Cranbrook, BC",null,null,"British Colombia","Canada",2011,null,null,null,null,null,null,null,null,null,null,null,null,null,null,null,"Financial Indicator: Annual cost of Apparent Losses ($)"]
[null,null,"DUTIL","Dalton Utilities",null,null,"Georgia","USA",2011,null,null,null,null,null,null,null,null,null,null,null,null,null,null,null,"Utility","Original Values","Chart Values","Percentiles"]
[null,null,"DCWATER","DC Water & Sewer Authority",null,null,"District of Colombia","USA",2011,null,null,null,null,null,null,null,null,null,null,null,null,null,null,null,{"$f":"'Data 2012'!$D$6","v":"GCWW"},{"$f":"'Data 2012'!$D$51","v":5110562.3600000003},{"$f":"Z75","v":5110562.3600000003},0.25,{"$f":"PERCENTILE(AA75:AA101,AB75)","v":225208.9025}]
[null,null,"HRWC","Halifax Regional Water Commission",null,null,"Nova Scotia","Canada",2010,null,null,null,null,null,null,null,null,null,null,null,null,null,null,null,{"$f":"'Data 2012'!$E$6","v":"SMW"},{"$f":"'Data 2012'!$E$51","v":716257.76},{"$f":"Z76","v":716257.76},0.5,{"$f":"PERCENTILE(AA76:AA102,AB76)","v":1255600.73}]
[null,null,"LVVWD","Las Vegas Valley Water District",null,null,"Nevada","USA",2011,null,null,null,null,null,null,null,null,null,null,null,null,null,null,null,{"$f":"'Data 2012'!$F$6","v":"ABCWUA"},{"$f":"'Data 2012'!$F$51","v":3054328.9},{"$f":"Z77","v":3054328.9},0.75,4402040.4400000004]
[null,null,"LWCKY","Louisville Water Company ",null,null,"Kentucky","USA",2011,null,null,null,null,null,null,null,null,null,null,null,null,null,null,null,{"$f":"'Data 2012'!$G$6","v":"AquaWSC"},{"$f":"'Data 2012'!$G$51","v":209241.62},{"$f":"Z78","v":209241.62}]
[null,null,"OCFL","Orange County Utilities Department",null,null,"California","USA",2011,null,null,null,null,null,null,null,null,null,null,null,null,null,null,null,{"$f":"'Data 2012'!$H$6","v":"AW"},{"$f":"'Data 2012'!$H$51","v":4376960.28},{"$f":"Z79","v":4376960.28}]
[null,null,"PAW","Pennsylvania American Water / Pittsburgh Division",null,null,"Pennsylvania","USA",2011,null,null,null,null,null,null,null,null,null,null,null,null,null,null,null,{"$f":"'Data 2012'!$I$6","v":"BUD"},{"$f":"'Data 2012'!$I$51","v":172820.97},172820.97]
[null,null,"PWD","Philadelphia Water Department",null,null,"Pennsylvania","USA",2011,null,null,null,null,null,null,null,null,null,null,null,null,null,null,null,{"$f":"'Data 2012'!$J$6","v":"BWWB"},{"$f":"'Data 2012'!$J$51","v":3787341.46},3787341.46]
[null,null,"RRW","City of Rio Rancho",null,null,"New Mexico","USA",2011,null,null,null,null,null,null,null,null,null,null,null,null,null,null,null,{"$f":"'Data 2012'!$K$6","v":"CW"},{"$f":"'Data 2012'!$K$51","v":4477280.92},4477280.92]
[null,null,"UI","Utilities Inc.",null,null,"South Carolina","USA",2011,null,null,null,null,null,null,null,null,null,null,null,null,null,null,null,{"$f":"'Data 2012'!$L$6","v":"CCWSA"},{"$f":"'Data 2012'!$L$51","v":790545.95},790545.95]
[null,null,"JCW1","Water District No. 1 of Johnson County",null,null,"Kansas","USA",2011,null,null,null,null,null,null,null,null,null,null,null,null,null,null,null,{"$f":"'Data 2012'!$M$6","v":"CCWS"},{"$f":"'Data 2012'!$M$51","v":1563003.33},1563003.33]
[null,null,"WWU","City of Wauwatosa Water Utility",null,null,"Wisconsin","USA",2011,null,null,null,null,null,null,null,null,null,null,null,null,null,null,null,{"$f":"'Data 2012'!$N$6","v":"CBW"},{"$f":"'Data 2012'!$N$51","v":0},0]
[null,null,"WCSA","Washington County Service Authority",null,null,"Virginia","USA",2011,null,null,null,null,null,null,null,null,null,null,null,null,null,null,null,{"$f":"'Data 2012'!$O$6","v":"DUTIL"},{"$f":"'Data 2012'!$O$51","v":1006521.93},1006521.93]
[null,null,"WDPW","City of Wilmington, Delaware",null,null,"Delaware","USA",2011,null,null,null,null,null,null,null,null,null,null,null,null,null,null,null,{"$f":"'Data 2012'!$P$6","v":"DCWATER"},{"$f":"'Data 2012'!$P$51","v":9872897.2599999998},9872897.2599999998]
[null,null,"WWAWC","Water & Wastewater Authority of Wilson County",null,null,"Tennessee","USA",2010,null,null,null,null,null,null,null,null,null,null,null,null,null,null,null,{"$f":"'Data 2012'!$Q$6","v":"HRWC"},{"$f":"'Data 2012'!$Q$51","v":250913.66},250913.66]
[null,null,"*The AWWA Validated Water Audit Data can be found at http://www.awwa.org/resources-tools/water-knowledge/water-loss-control.aspx",null,null,null,null,null,null,null,null,null,null,null,null,null,null,null,null,null,null,null,null,null,{"$f":"'Data 2012'!$R$6","v":"JCW1"},{"$f":"'Data 2012'!$R$51","v":1867161.43},1867161.43]
[null,{"$f":"IF('Start Page'!$H$29=\"\",\"\",'Start Page'!$H$29)","v":""},null,null,null,null,null,null,null,"©2014 Water Research Foundation. ALL RIGHTS RESERVED.",null,null,null,null,null,null,null,null,null,null,null,null,null,null,{"$f":"'Data 2012'!$S$6","v":"LVVWD"},{"$f":"'Data 2012'!$S$51","v":5522565.9900000002},5522565.9900000002]
[null,null,null,null,null,null,null,null,null,null,null,null,null,null,null,null,null,null,null,null,null,null,null,null,{"$f":"'Data 2012'!$T$6","v":"LWCKY"},{"$f":"'Data 2012'!$T$51","v":5986632.9400000004},5986632.9400000004]
[null,null,null,null,null,null,null,null,null,null,null,null,null,null,null,null,null,null,null,null,null,null,null,null,{"$f":"'Data 2012'!$U$6","v":"OCFL"},{"$f":"'Data 2012'!$U$51","v":1255600.73},1255600.73]
[null,null,null,null,null,null,null,null,null,null,null,null,null,null,null,null,null,null,null,null,null,null,null,null,{"$f":"'Data 2012'!$V$6","v":"PAW"},{"$f":"'Data 2012'!$V$51","v":6046889.9100000001},6046889.9100000001]
[null,null,null,null,null,null,null,null,null,null,null,null,null,null,null,null,null,null,null,null,null,null,null,null,{"$f":"'Data 2012'!$W$6","v":"PWD"},{"$f":"'Data 2012'!$W$51","v":54210000},54210000]
[null,null,null,null,null,null,null,null,null,null,null,null,null,null,null,null,null,null,null,null,null,null,null,null,{"$f":"'Data 2012'!$X$6","v":"RRW"},{"$f":"'Data 2012'!$X$51","v":454613.7},454613.7]
[null,null,null,null,null,null,null,null,null,null,null,null,null,null,null,null,null,null,null,null,null,null,null,null,{"$f":"'Data 2012'!$Y$6","v":"UI"},{"$f":"'Data 2012'!$Y$51","v":1030.54},1030.54]
[null,null,null,null,null,null,null,null,null,null,null,null,null,null,null,null,null,null,null,null,null,null,null,null,{"$f":"'Data 2012'!$Z$6","v":"WWU"},{"$f":"'Data 2012'!$Z$51","v":158242},158242]
[null,null,null,null,null,null,null,null,null,null,null,null,null,null,null,null,null,null,null,null,null,null,null,null,{"$f":"'Data 2012'!$AA$6","v":"WCSA"},{"$f":"'Data 2012'!$AA$51","v":216640.65},216640.65]
[null,null,null,null,null,null,null,null,null,null,null,null,null,null,null,null,null,null,null,null,null,null,null,null,{"$f":"'Data 2012'!$AB$6","v":"WDPW"},{"$f":"'Data 2012'!$AB$51","v":3323019.47},3323019.47]
[null,null,null,null,null,null,null,null,null,null,null,null,null,null,null,null,null,null,null,null,null,null,null,null,{"$f":"'Data 2012'!$AC$6","v":"WWAWC"},{"$f":"'Data 2012'!$AC$51","v":54662.82},54662.82]
[null,null,null,null,null,null,null,null,null,null,null,null,null,null,null,null,null,null,null,null,null,null,null,null,{"$f":"$C$8","v":""},{"$f":"'AWWA-Water Balance Data Transf.'!$D$53","v":""},{"$f":"'AWWA-Water Balance Data Transf.'!$D$53","v":""}]
[null,null,null,null,null,null,null,null,null,null,null,null,null,null,null,null,null,null,null,null,null,null,null,null,"Financial Indicator: Annual Cost of Real Losses ($)"]
[null,null,null,null,null,null,null,null,null,null,null,null,null,null,null,null,null,null,null,null,null,null,null,null,"Utility","Original Values","Chart Values","Percentiles"]
[null,null,null,null,null,null,null,null,null,null,null,null,null,null,null,null,null,null,null,null,null,null,null,null,{"$f":"'Data 2012'!$D$6","v":"GCWW"},{"$f":"'Data 2012'!$D$52","v":2320966.27},{"$f":"Z104","v":2320966.27},0.25,{"$f":"PERCENTILE(AA104:AA130,AB104)","v":182073.01250000001}]
[null,null,null,null,null,null,null,null,null,null,null,null,null,null,null,null,null,null,null,null,null,null,null,null,{"$f":"'Data 2012'!$E$6","v":"SMW"},{"$f":"'Data 2012'!$E$52","v":629688.84},{"$f":"Z105","v":629688.84},0.5,{"$f":"PERCENTILE(AA105:AA131,AB105)","v":629688.84}]
[null,null,null,null,null,null,null,null,null,null,null,null,null,null,null,null,null,null,null,null,null,null,null,null,{"$f":"'Data 2012'!$F$6","v":"ABCWUA"},{"$f":"'Data 2012'!$F$52","v":549835.67000000004},{"$f":"Z106","v":549835.67000000004},0.75,1892959.0649999999]
[null,null,null,null,null,null,null,null,null,null,null,null,null,null,null,null,null,null,null,null,null,null,null,null,{"$f":"'Data 2012'!$G$6","v":"AquaWSC"},{"$f":"'Data 2012'!$G$52","v":175014.88},{"$f":"Z107","v":175014.88}]
[null,null,null,null,null,null,null,null,null,null,null,null,null,null,null,null,null,null,null,null,null,null,null,null,{"$f":"'Data 2012'!$H$6","v":"AW"},{"$f":"'Data 2012'!$H$52","v":1429629.83},{"$f":"Z108","v":1429629.83}]
[null,null,null,null,null,null,null,null,null,null,null,null,null,null,null,null,null,null,null,null,null,null,null,null,{"$f":"'Data 2012'!$I$6","v":"BUD"},{"$f":"'Data 2012'!$I$52","v":34976.019999999997},34976.019999999997]
[null,null,null,null,null,null,null,null,null,null,null,null,null,null,null,null,null,null,null,null,null,null,null,null,{"$f":"'Data 2012'!$J$6","v":"BWWB"},{"$f":"'Data 2012'!$J$52","v":3078997.58},3078997.58]
[null,null,null,null,null,null,null,null,null,null,null,null,null,null,null,null,null,null,null,null,null,null,null,null,{"$f":"'Data 2012'!$K$6","v":"CW"},{"$f":"'Data 2012'!$K$52","v":1000041.28},1000041.28]
[null,null,null,null,null,null,null,null,null,null,null,null,null,null,null,null,null,null,null,null,null,null,null,null,{"$f":"'Data 2012'!$L$6","v":"CCWSA"},{"$f":"'Data 2012'!$L$52","v":145965.01999999999},145965.01999999999]
[null,null,null,null,null,null,null,null,null,null,null,null,null,null,null,null,null,null,null,null,null,null,null,null,{"$f":"'Data 2012'!$M$6","v":"CCWS"},{"$f":"'Data 2012'!$M$52","v":2819008.8},2819008.8]
[null,null,null,null,null,null,null,null,null,null,null,null,null,null,null,null,null,null,null,null,null,null,null,null,{"$f":"'Data 2012'!$N$6","v":"CBW"},{"$f":"'Data 2012'!$N$52","v":163921.22},163921.22]
[null,null,null,null,null,null,null,null,null,null,null,null,null,null,null,null,null,null,null,null,null,null,null,null,{"$f":"'Data 2012'!$O$6","v":"DUTIL"},{"$f":"'Data 2012'!$O$52","v":1584275.82},1584275.82]
[null,null,null,null,null,null,null,null,null,null,null,null,null,null,null,null,null,null,null,null,null,null,null,null,{"$f":"'Data 2012'!$P$6","v":"DCWATER"},{"$f":"'Data 2012'!$P$52","v":4226872},4226872]
[null,null,null,null,null,null,null,null,null,null,null,null,null,null,null,null,null,null,null,null,null,null,null,null,{"$f":"'Data 2012'!$Q$6","v":"HRWC"},{"$f":"'Data 2012'!$Q$52","v":361617.71},361617.71]
[null,null,null,null,null,null,null,null,null,null,null,null,null,null,null,null,null,null,null,null,null,null,null,null,{"$f":"'Data 2012'!$R$6","v":"JCW1"},{"$f":"'Data 2012'!$R$52","v":966285.98},966285.98]
[null,null,null,null,null,null,null,null,null,null,null,null,null,null,null,null,null,null,null,null,null,null,null,null,{"$f":"'Data 2012'!$S$6","v":"LVVWD"},{"$f":"'Data 2012'!$S$52","v":3328416.88},3328416.88]
[null,null,null,null,null,null,null,null,null,null,null,null,null,null,null,null,null,null,null,null,null,null,null,null,{"$f":"'Data 2012'!$T$6","v":"LWCKY"},{"$f":"'Data 2012'!$T$52","v":850824.65},850824.65]
[null,null,null,null,null,null,null,null,null,null,null,null,null,null,null,null,null,null,null,null,null,null,null,null,{"$f":"'Data 2012'!$U$6","v":"OCFL"},{"$f":"'Data 2012'!$U$52","v":162863.82999999999},162863.82999999999]
[null,null,null,null,null,null,null,null,null,null,null,null,null,null,null,null,null,null,null,null,null,null,null,null,{"$f":"'Data 2012'!$V$6","v":"PAW"},{"$f":"'Data 2012'!$V$52","v":3199885.79},3199885.79]
[null,null,null,null,null,null,null,null,null,null,null,null,null,null,null,null,null,null,null,null,null,null,null,null,{"$f":"'Data 2012'!$W$6","v":"PWD"},{"$f":"'Data 2012'!$W$52","v":6628223.0999999996},6628223.0999999996]
[null,null,null,null,null,null,null,null,null,null,null,null,null,null,null,null,null,null,null,null,null,null,null,null,{"$f":"'Data 2012'!$X$6","v":"RRW"},{"$f":"'Data 2012'!$X$52","v":203247.41},203247.41]
[null,null,null,null,null,null,null,null,null,null,null,null,null,null,null,null,null,null,null,null,null,null,null,null,{"$f":"'Data 2012'!$Y$6","v":"UI"},{"$f":"'Data 2012'!$Y$52","v":212.84},212.84]
[null,null,null,null,null,null,null,null,null,null,null,null,null,null,null,null,null,null,null,null,null,null,null,null,{"$f":"'Data 2012'!$Z$6","v":"WWU"},{"$f":"'Data 2012'!$Z$52","v":216332.77},216332.77]
[null,null,null,null,null,null,null,null,null,null,null,null,null,null,null,null,null,null,null,null,null,null,null,null,{"$f":"'Data 2012'!$AA$6","v":"WCSA"},{"$f":"'Data 2012'!$AA$52","v":880047.57},880047.57]
[null,null,null,null,null,null,null,null,null,null,null,null,null,null,null,null,null,null,null,null,null,null,null,null,{"$f":"'Data 2012'!$AB$6","v":"WDPW"},{"$f":"'Data 2012'!$AB$52","v":609208.59},609208.59]
[null,null,null,null,null,null,null,null,null,null,null,null,null,null,null,null,null,null,null,null,null,null,null,null,{"$f":"'Data 2012'!$AC$6","v":"WWAWC"},{"$f":"'Data 2012'!$AC$52","v":152350.04999999999},152350.04999999999]
[null,null,null,null,null,null,null,null,null,null,null,null,null,null,null,null,null,null,null,null,null,null,null,null,{"$f":"$C$8","v":""},{"$f":"'AWWA-Water Balance Data Transf.'!$D$54","v":""},{"$f":"'AWWA-Water Balance Data Transf.'!$D$54","v":""}]
[]
[null,null,null,null,null,null,null,null,null,null,null,null,null,null,null,null,null,null,null,null,null,null,null,null,{"$f":"IF('Start Page'!$Y$36=2,\"Performance Indicator: Apparent Losses per Service Connection per Day [litres/service con./day]\",\"Performance Indicator: Apparent Losses per Service Connection per Day [gal/service con./day]\")","v":"Performance Indicator: Apparent Losses per Service Connection per Day [gal/service con./day]"}]
[null,null,null,null,null,null,null,null,null,null,null,null,null,null,null,null,null,null,null,null,null,null,null,null,"Utility","Original Values","Chart Values","Percentiles"]
[null,null,null,null,null,null,null,null,null,null,null,null,null,null,null,null,null,null,null,null,null,null,null,null,{"$f":"'Data 2012'!$D$6","v":"GCWW"},{"$f":"'Data 2012'!$D$53","v":19.013006972268485},{"$f":"IF('Start Page'!$Y$36=2,Z134*VLOOKUP('Start Page'!$Y$36,'Unit Conversion Sheet'!$A$43:$C$45,3),Z134)","v":19.013006972268485},0.25,{"$f":"PERCENTILE(AA134:AA160,AB134)","v":6.5526417649492981}]
[null,null,null,null,null,null,null,null,null,null,null,null,null,null,null,null,null,null,null,null,null,null,null,null,{"$f":"'Data 2012'!$E$6","v":"SMW"},{"$f":"'Data 2012'!$E$53","v":13.708557504429798},{"$f":"IF('Start Page'!$Y$36=2,Z135*VLOOKUP('Start Page'!$Y$36,'Unit Conversion Sheet'!$A$43:$C$45,3),Z135)","v":13.708557504429798},0.5,{"$f":"PERCENTILE(AA135:AA161,AB135)","v":10.25712984199604}]
[null,null,null,null,null,null,null,null,null,null,null,null,null,null,null,null,null,null,null,null,null,null,null,null,{"$f":"'Data 2012'!$F$6","v":"ABCWUA"},{"$f":"'Data 2012'!$F$53","v":12.484608145078179},{"$f":"IF('Start Page'!$Y$36=2,Z136*VLOOKUP('Start Page'!$Y$36,'Unit Conversion Sheet'!$A$43:$C$45,3),Z136)","v":12.484608145078179},0.75,13.452741068917188]
[null,null,null,null,null,null,null,null,null,null,null,null,null,null,null,null,null,null,null,null,null,null,null,null,{"$f":"'Data 2012'!$G$6","v":"AquaWSC"},{"$f":"'Data 2012'!$G$53","v":7.9380712164277654},{"$f":"IF('Start Page'!$Y$36=2,Z137*VLOOKUP('Start Page'!$Y$36,'Unit Conversion Sheet'!$A$43:$C$45,3),Z137)","v":7.9380712164277654}]
[null,null,null,null,null,null,null,null,null,null,null,null,null,null,null,null,null,null,null,null,null,null,null,null,{"$f":"'Data 2012'!$H$6","v":"AW"},{"$f":"'Data 2012'!$H$53","v":13.742793603127614},{"$f":"IF('Start Page'!$Y$36=2,Z138*VLOOKUP('Start Page'!$Y$36,'Unit Conversion Sheet'!$A$43:$C$45,3),Z138)","v":13.742793603127614}]
[null,null,null,null,null,null,null,null,null,null,null,null,null,null,null,null,null,null,null,null,null,null,null,null,{"$f":"'Data 2012'!$I$6","v":"BUD"},{"$f":"'Data 2012'!$I$53","v":13.356056890847045},{"$f":"IF('Start Page'!$Y$36=2,Z139*VLOOKUP('Start Page'!$Y$36,'Unit Conversion Sheet'!$A$43:$C$45,3),Z139)","v":13.356056890847045}]
[null,null,null,null,null,null,null,null,null,null,null,null,null,null,null,null,null,null,null,null,null,null,null,null,{"$f":"'Data 2012'!$J$6","v":"BWWB"},{"$f":"'Data 2012'!$J$53","v":10.938176623343995},{"$f":"IF('Start Page'!$Y$36=2,Z140*VLOOKUP('Start Page'!$Y$36,'Unit Conversion Sheet'!$A$43:$C$45,3),Z140)","v":10.938176623343995}]
[null,null,null,null,null,null,null,null,null,null,null,null,null,null,null,null,null,null,null,null,null,null,null,null,{"$f":"'Data 2012'!$K$6","v":"CW"},{"$f":"'Data 2012'!$K$53","v":7.9761685398153999},{"$f":"IF('Start Page'!$Y$36=2,Z141*VLOOKUP('Start Page'!$Y$36,'Unit Conversion Sheet'!$A$43:$C$45,3),Z141)","v":7.9761685398153999}]
[null,null,null,null,null,null,null,null,null,null,null,null,null,null,null,null,null,null,null,null,null,null,null,null,{"$f":"'Data 2012'!$L$6","v":"CCWSA"},{"$f":"'Data 2012'!$L$53","v":5.9377429570525573},{"$f":"IF('Start Page'!$Y$36=2,Z142*VLOOKUP('Start Page'!$Y$36,'Unit Conversion Sheet'!$A$43:$C$45,3),Z142)","v":5.9377429570525573}]
[null,null,null,null,null,null,null,null,null,null,null,null,null,null,null,null,null,null,null,null,null,null,null,null,{"$f":"'Data 2012'!$M$6","v":"CCWS"},{"$f":"'Data 2012'!$M$53","v":5.2853077115783744},{"$f":"IF('Start Page'!$Y$36=2,Z143*VLOOKUP('Start Page'!$Y$36,'Unit Conversion Sheet'!$A$43:$C$45,3),Z143)","v":5.2853077115783744}]
[null,null,null,null,null,null,null,null,null,null,null,null,null,null,null,null,null,null,null,null,null,null,null,null,{"$f":"'Data 2012'!$N$6","v":"CBW"},{"$f":"'Data 2012'!$N$53","v":1.2415971904463314},{"$f":"IF('Start Page'!$Y$36=2,Z144*VLOOKUP('Start Page'!$Y$36,'Unit Conversion Sheet'!$A$43:$C$45,3),Z144)","v":1.2415971904463314}]
[null,null,null,null,null,null,null,null,null,null,null,null,null,null,null,null,null,null,null,null,null,null,null,null,{"$f":"'Data 2012'!$O$6","v":"DUTIL"},{"$f":"'Data 2012'!$O$53","v":18.429022346990074},{"$f":"IF('Start Page'!$Y$36=2,Z145*VLOOKUP('Start Page'!$Y$36,'Unit Conversion Sheet'!$A$43:$C$45,3),Z145)","v":18.429022346990074}]
[null,null,null,null,null,null,null,null,null,null,null,null,null,null,null,null,null,null,null,null,null,null,null,null,{"$f":"'Data 2012'!$P$6","v":"DCWATER"},{"$f":"'Data 2012'!$P$53","v":48.89230927094556},{"$f":"IF('Start Page'!$Y$36=2,Z146*VLOOKUP('Start Page'!$Y$36,'Unit Conversion Sheet'!$A$43:$C$45,3),Z146)","v":48.89230927094556}]
[null,null,null,null,null,null,null,null,null,null,null,null,null,null,null,null,null,null,null,null,null,null,null,null,{"$f":"'Data 2012'!$Q$6","v":"HRWC"},{"$f":"'Data 2012'!$Q$53","v":5.2402169917716819},{"$f":"IF('Start Page'!$Y$36=2,Z147*VLOOKUP('Start Page'!$Y$36,'Unit Conversion Sheet'!$A$43:$C$45,3),Z147)","v":5.2402169917716819}]
[null,null,null,null,null,null,null,null,null,null,null,null,null,null,null,null,null,null,null,null,null,null,null,null,{"$f":"'Data 2012'!$R$6","v":"JCW1"},{"$f":"'Data 2012'!$R$53","v":10.25712984199604},{"$f":"IF('Start Page'!$Y$36=2,Z148*VLOOKUP('Start Page'!$Y$36,'Unit Conversion Sheet'!$A$43:$C$45,3),Z148)","v":10.25712984199604}]
[null,null,null,null,null,null,null,null,null,null,null,null,null,null,null,null,null,null,null,null,null,null,null,null,{"$f":"'Data 2012'!$S$6","v":"LVVWD"},{"$f":"'Data 2012'!$S$53","v":11.01641256699587},{"$f":"IF('Start Page'!$Y$36=2,Z149*VLOOKUP('Start Page'!$Y$36,'Unit Conversion Sheet'!$A$43:$C$45,3),Z149)","v":11.01641256699587}]
[null,null,null,null,null,null,null,null,null,null,null,null,null,null,null,null,null,null,null,null,null,null,null,null,{"$f":"'Data 2012'!$T$6","v":"LWCKY"},{"$f":"'Data 2012'!$T$53","v":19.595045350556024},{"$f":"IF('Start Page'!$Y$36=2,Z150*VLOOKUP('Start Page'!$Y$36,'Unit Conversion Sheet'!$A$43:$C$45,3),Z150)","v":19.595045350556024}]
[null,null,null,null,null,null,null,null,null,null,null,null,null,null,null,null,null,null,null,null,null,null,null,null,{"$f":"'Data 2012'!$U$6","v":"OCFL"},{"$f":"'Data 2012'!$U$53","v":7.6630773319872096},{"$f":"IF('Start Page'!$Y$36=2,Z151*VLOOKUP('Start Page'!$Y$36,'Unit Conversion Sheet'!$A$43:$C$45,3),Z151)","v":7.6630773319872096}]
[null,null,null,null,null,null,null,null,null,null,null,null,null,null,null,null,null,null,null,null,null,null,null,null,{"$f":"'Data 2012'!$V$6","v":"PAW"},{"$f":"'Data 2012'!$V$53","v":7.4761709025543572},{"$f":"IF('Start Page'!$Y$36=2,Z152*VLOOKUP('Start Page'!$Y$36,'Unit Conversion Sheet'!$A$43:$C$45,3),Z152)","v":7.4761709025543572}]
[null,null,null,null,null,null,null,null,null,null,null,null,null,null,null,null,null,null,null,null,null,null,null,null,{"$f":"'Data 2012'!$W$6","v":"PWD"},{"$f":"'Data 2012'!$W$53","v":43.571221667832702},{"$f":"IF('Start Page'!$Y$36=2,Z153*VLOOKUP('Start Page'!$Y$36,'Unit Conversion Sheet'!$A$43:$C$45,3),Z153)","v":43.571221667832702}]
[null,null,null,null,null,null,null,null,null,null,null,null,null,null,null,null,null,null,null,null,null,null,null,null,{"$f":"'Data 2012'!$X$6","v":"RRW"},{"$f":"'Data 2012'!$X$53","v":12.193660908992545},{"$f":"IF('Start Page'!$Y$36=2,Z154*VLOOKUP('Start Page'!$Y$36,'Unit Conversion Sheet'!$A$43:$C$45,3),Z154)","v":12.193660908992545}]
[null,null,null,null,null,null,null,null,null,null,null,null,null,null,null,null,null,null,null,null,null,null,null,null,{"$f":"'Data 2012'!$Y$6","v":"UI"},{"$f":"'Data 2012'!$Y$53","v":3.7914817133060041},{"$f":"IF('Start Page'!$Y$36=2,Z155*VLOOKUP('Start Page'!$Y$36,'Unit Conversion Sheet'!$A$43:$C$45,3),Z155)","v":3.7914817133060041}]
[null,null,null,null,null,null,null,null,null,null,null,null,null,null,null,null,null,null,null,null,null,null,null,null,{"$f":"'Data 2012'!$Z$6","v":"WWU"},{"$f":"'Data 2012'!$Z$53","v":8.4709479019181906},{"$f":"IF('Start Page'!$Y$36=2,Z156*VLOOKUP('Start Page'!$Y$36,'Unit Conversion Sheet'!$A$43:$C$45,3),Z156)","v":8.4709479019181906}]
[null,null,null,null,null,null,null,null,null,null,null,null,null,null,null,null,null,null,null,null,null,null,null,null,{"$f":"'Data 2012'!$AA$6","v":"WCSA"},{"$f":"'Data 2012'!$AA$53","v":6.2447987190809444},{"$f":"IF('Start Page'!$Y$36=2,Z157*VLOOKUP('Start Page'!$Y$36,'Unit Conversion Sheet'!$A$43:$C$45,3),Z157)","v":6.2447987190809444}]
[null,null,null,null,null,null,null,null,null,null,null,null,null,null,null,null,null,null,null,null,null,null,null,null,{"$f":"'Data 2012'!$AB$6","v":"WDPW"},{"$f":"'Data 2012'!$AB$53","v":57.674596939769806},{"$f":"IF('Start Page'!$Y$36=2,Z158*VLOOKUP('Start Page'!$Y$36,'Unit Conversion Sheet'!$A$43:$C$45,3),Z158)","v":57.674596939769806}]
[null,null,null,null,null,null,null,null,null,null,null,null,null,null,null,null,null,null,null,null,null,null,null,null,{"$f":"'Data 2012'!$AC$6","v":"WWAWC"},{"$f":"'Data 2012'!$AC$53","v":2.5526723112872132},{"$f":"IF('Start Page'!$Y$36=2,Z159*VLOOKUP('Start Page'!$Y$36,'Unit Conversion Sheet'!$A$43:$C$45,3),Z159)","v":2.5526723112872132}]
[null,null,null,null,null,null,null,null,null,null,null,null,null,null,null,null,null,null,null,null,null,null,null,null,{"$f":"$C$8","v":""},{"$f":"'AWWA-Water Balance Data Transf.'!$D$57","v":""},{"$f":"'AWWA-Water Balance Data Transf.'!$D$57","v":""}]
[]
[null,null,null,null,null,null,null,null,null,null,null,null,null,null,null,null,null,null,null,null,null,null,null,null,{"$f":"IF('Start Page'!$Y$36=2,\"Performance Indicator: Real Losses per Service Connection per Day [litres/service con./day]\",\"Performance Indicator: Real Losses per Service Connection per Day [gal/service con./day]\")","v":"Performance Indicator: Real Losses per Service Connection per Day [gal/service con./day]"}]
[null,null,null,null,null,null,null,null,null,null,null,null,null,null,null,null,null,null,null,null,null,null,null,null,"Utility","Original Values","Chart Values","Percentiles"]
[null,null,null,null,null,null,null,null,null,null,null,null,null,null,null,null,null,null,null,null,null,null,null,null,{"$f":"'Data 2012'!$D$6","v":"GCWW"},{"$f":"'Data 2012'!$D$54","v":57.373271994254438},{"$f":"IF(ISERROR(IF('Start Page'!$Y$36=2,Z164*VLOOKUP('Start Page'!$Y$36,'Unit Conversion Sheet'!$A$43:$C$45,3),Z164)),\"\",IF('Start Page'!$Y$36=2,Z164*VLOOKUP('Start Page'!$Y$36,'Unit Conversion Sheet'!$A$43:$C$45,3),Z164))","v":57.373271994254438},0.25,{"$f":"PERCENTILE(AA164:AA190,AB164)","v":27.521738163899421}]
[null,null,null,null,null,null,null,null,null,null,null,null,null,null,null,null,null,null,null,null,null,null,null,null,{"$f":"'Data 2012'!$E$6","v":"SMW"},{"$f":"'Data 2012'!$E$54","v":42.450580707369731},{"$f":"IF(ISERROR(IF('Start Page'!$Y$36=2,Z165*VLOOKUP('Start Page'!$Y$36,'Unit Conversion Sheet'!$A$43:$C$45,3),Z165)),\"\",IF('Start Page'!$Y$36=2,Z165*VLOOKUP('Start Page'!$Y$36,'Unit Conversion Sheet'!$A$43:$C$45,3),Z165))","v":42.450580707369731},0.5,{"$f":"PERCENTILE(AA165:AA191,AB165)","v":42.319342992157402}]
[null,null,null,null,null,null,null,null,null,null,null,null,null,null,null,null,null,null,null,null,null,null,null,null,{"$f":"'Data 2012'!$F$6","v":"ABCWUA"},{"$f":"'Data 2012'!$F$54","v":24.054657480901277},{"$f":"IF(ISERROR(IF('Start Page'!$Y$36=2,Z166*VLOOKUP('Start Page'!$Y$36,'Unit Conversion Sheet'!$A$43:$C$45,3),Z166)),\"\",IF('Start Page'!$Y$36=2,Z166*VLOOKUP('Start Page'!$Y$36,'Unit Conversion Sheet'!$A$43:$C$45,3),Z166))","v":24.054657480901277},0.75,99.452214740962191]
[null,null,null,null,null,null,null,null,null,null,null,null,null,null,null,null,null,null,null,null,null,null,null,null,{"$f":"'Data 2012'!$G$6","v":"AquaWSC"},{"$f":"'Data 2012'!$G$54","v":"N/A"},{"$f":"IF(ISERROR(IF('Start Page'!$Y$36=2,Z167*VLOOKUP('Start Page'!$Y$36,'Unit Conversion Sheet'!$A$43:$C$45,3),Z167)),\"\",IF('Start Page'!$Y$36=2,Z167*VLOOKUP('Start Page'!$Y$36,'Unit Conversion Sheet'!$A$43:$C$45,3),Z167))","v":"N/A"}]
[null,null,null,null,null,null,null,null,null,null,null,null,null,null,null,null,null,null,null,null,null,null,null,null,{"$f":"'Data 2012'!$H$6","v":"AW"},{"$f":"'Data 2012'!$H$54","v":56.041441216634951},{"$f":"IF(ISERROR(IF('Start Page'!$Y$36=2,Z168*VLOOKUP('Start Page'!$Y$36,'Unit Conversion Sheet'!$A$43:$C$45,3),Z168)),\"\",IF('Start Page'!$Y$36=2,Z168*VLOOKUP('Start Page'!$Y$36,'Unit Conversion Sheet'!$A$43:$C$45,3),Z168))","v":56.041441216634951}]
[null,null,null,null,null,null,null,null,null,null,null,null,null,null,null,null,null,null,null,null,null,null,null,null,{"$f":"'Data 2012'!$I$6","v":"BUD"},{"$f":"'Data 2012'!$I$54","v":76.786317949115869},{"$f":"IF(ISERROR(IF('Start Page'!$Y$36=2,Z169*VLOOKUP('Start Page'!$Y$36,'Unit Conversion Sheet'!$A$43:$C$45,3),Z169)),\"\",IF('Start Page'!$Y$36=2,Z169*VLOOKUP('Start Page'!$Y$36,'Unit Conversion Sheet'!$A$43:$C$45,3),Z169))","v":76.786317949115869}]
[null,null,null,null,null,null,null,null,null,null,null,null,null,null,null,null,null,null,null,null,null,null,null,null,{"$f":"'Data 2012'!$J$6","v":"BWWB"},{"$f":"'Data 2012'!$J$54","v":109.38926119198554},{"$f":"IF(ISERROR(IF('Start Page'!$Y$36=2,Z170*VLOOKUP('Start Page'!$Y$36,'Unit Conversion Sheet'!$A$43:$C$45,3),Z170)),\"\",IF('Start Page'!$Y$36=2,Z170*VLOOKUP('Start Page'!$Y$36,'Unit Conversion Sheet'!$A$43:$C$45,3),Z170))","v":109.38926119198554}]
[null,null,null,null,null,null,null,null,null,null,null,null,null,null,null,null,null,null,null,null,null,null,null,null,{"$f":"'Data 2012'!$K$6","v":"CW"},{"$f":"'Data 2012'!$K$54","v":39.9632374327105},{"$f":"IF(ISERROR(IF('Start Page'!$Y$36=2,Z171*VLOOKUP('Start Page'!$Y$36,'Unit Conversion Sheet'!$A$43:$C$45,3),Z171)),\"\",IF('Start Page'!$Y$36=2,Z171*VLOOKUP('Start Page'!$Y$36,'Unit Conversion Sheet'!$A$43:$C$45,3),Z171))","v":39.9632374327105}]
[null,null,null,null,null,null,null,null,null,null,null,null,null,null,null,null,null,null,null,null,null,null,null,null,{"$f":"'Data 2012'!$L$6","v":"CCWSA"},{"$f":"'Data 2012'!$L$54","v":20.255208745248876},{"$f":"IF(ISERROR(IF('Start Page'!$Y$36=2,Z172*VLOOKUP('Start Page'!$Y$36,'Unit Conversion Sheet'!$A$43:$C$45,3),Z172)),\"\",IF('Start Page'!$Y$36=2,Z172*VLOOKUP('Start Page'!$Y$36,'Unit Conversion Sheet'!$A$43:$C$45,3),Z172))","v":20.255208745248876}]
[null,null,null,null,null,null,null,null,null,null,null,null,null,null,null,null,null,null,null,null,null,null,null,null,{"$f":"'Data 2012'!$M$6","v":"CCWS"},{"$f":"'Data 2012'!$M$54","v":20.163213855173197},{"$f":"IF(ISERROR(IF('Start Page'!$Y$36=2,Z173*VLOOKUP('Start Page'!$Y$36,'Unit Conversion Sheet'!$A$43:$C$45,3),Z173)),\"\",IF('Start Page'!$Y$36=2,Z173*VLOOKUP('Start Page'!$Y$36,'Unit Conversion Sheet'!$A$43:$C$45,3),Z173))","v":20.163213855173197}]
[null,null,null,null,null,null,null,null,null,null,null,null,null,null,null,null,null,null,null,null,null,null,null,null,{"$f":"'Data 2012'!$N$6","v":"CBW"},{"$f":"'Data 2012'!$N$54","v":110.72069746158603},{"$f":"IF(ISERROR(IF('Start Page'!$Y$36=2,Z174*VLOOKUP('Start Page'!$Y$36,'Unit Conversion Sheet'!$A$43:$C$45,3),Z174)),\"\",IF('Start Page'!$Y$36=2,Z174*VLOOKUP('Start Page'!$Y$36,'Unit Conversion Sheet'!$A$43:$C$45,3),Z174))","v":110.72069746158603}]
[null,null,null,null,null,null,null,null,null,null,null,null,null,null,null,null,null,null,null,null,null,null,null,null,{"$f":"'Data 2012'!$O$6","v":"DUTIL"},{"$f":"'Data 2012'!$O$54","v":48.267091373949185},{"$f":"IF(ISERROR(IF('Start Page'!$Y$36=2,Z175*VLOOKUP('Start Page'!$Y$36,'Unit Conversion Sheet'!$A$43:$C$45,3),Z175)),\"\",IF('Start Page'!$Y$36=2,Z175*VLOOKUP('Start Page'!$Y$36,'Unit Conversion Sheet'!$A$43:$C$45,3),Z175))","v":48.267091373949185}]
[null,null,null,null,null,null,null,null,null,null,null,null,null,null,null,null,null,null,null,null,null,null,null,null,{"$f":"'Data 2012'!$P$6","v":"DCWATER"},{"$f":"'Data 2012'!$P$54","v":111.78492637627615},{"$f":"IF(ISERROR(IF('Start Page'!$Y$36=2,Z176*VLOOKUP('Start Page'!$Y$36,'Unit Conversion Sheet'!$A$43:$C$45,3),Z176)),\"\",IF('Start Page'!$Y$36=2,Z176*VLOOKUP('Start Page'!$Y$36,'Unit Conversion Sheet'!$A$43:$C$45,3),Z176))","v":111.78492637627615}]
[null,null,null,null,null,null,null,null,null,null,null,null,null,null,null,null,null,null,null,null,null,null,null,null,{"$f":"'Data 2012'!$Q$6","v":"HRWC"},{"$f":"'Data 2012'!$Q$54","v":57.760502012363133},{"$f":"IF(ISERROR(IF('Start Page'!$Y$36=2,Z177*VLOOKUP('Start Page'!$Y$36,'Unit Conversion Sheet'!$A$43:$C$45,3),Z177)),\"\",IF('Start Page'!$Y$36=2,Z177*VLOOKUP('Start Page'!$Y$36,'Unit Conversion Sheet'!$A$43:$C$45,3),Z177))","v":57.760502012363133}]
[null,null,null,null,null,null,null,null,null,null,null,null,null,null,null,null,null,null,null,null,null,null,null,null,{"$f":"'Data 2012'!$R$6","v":"JCW1"},{"$f":"'Data 2012'!$R$54","v":38.79635366522335},{"$f":"IF(ISERROR(IF('Start Page'!$Y$36=2,Z178*VLOOKUP('Start Page'!$Y$36,'Unit Conversion Sheet'!$A$43:$C$45,3),Z178)),\"\",IF('Start Page'!$Y$36=2,Z178*VLOOKUP('Start Page'!$Y$36,'Unit Conversion Sheet'!$A$43:$C$45,3),Z178))","v":38.79635366522335}]
[null,null,null,null,null,null,null,null,null,null,null,null,null,null,null,null,null,null,null,null,null,null,null,null,{"$f":"'Data 2012'!$S$6","v":"LVVWD"},{"$f":"'Data 2012'!$S$54","v":25.030111370680359},{"$f":"IF(ISERROR(IF('Start Page'!$Y$36=2,Z179*VLOOKUP('Start Page'!$Y$36,'Unit Conversion Sheet'!$A$43:$C$45,3),Z179)),\"\",IF('Start Page'!$Y$36=2,Z179*VLOOKUP('Start Page'!$Y$36,'Unit Conversion Sheet'!$A$43:$C$45,3),Z179))","v":25.030111370680359}]
[null,null,null,null,null,null,null,null,null,null,null,null,null,null,null,null,null,null,null,null,null,null,null,null,{"$f":"'Data 2012'!$T$6","v":"LWCKY"},{"$f":"'Data 2012'!$T$54","v":42.188105276945066},{"$f":"IF(ISERROR(IF('Start Page'!$Y$36=2,Z180*VLOOKUP('Start Page'!$Y$36,'Unit Conversion Sheet'!$A$43:$C$45,3),Z180)),\"\",IF('Start Page'!$Y$36=2,Z180*VLOOKUP('Start Page'!$Y$36,'Unit Conversion Sheet'!$A$43:$C$45,3),Z180))","v":42.188105276945066}]
[null,null,null,null,null,null,null,null,null,null,null,null,null,null,null,null,null,null,null,null,null,null,null,null,{"$f":"'Data 2012'!$U$6","v":"OCFL"},{"$f":"'Data 2012'!$U$54","v":18.92532057844446},{"$f":"IF(ISERROR(IF('Start Page'!$Y$36=2,Z181*VLOOKUP('Start Page'!$Y$36,'Unit Conversion Sheet'!$A$43:$C$45,3),Z181)),\"\",IF('Start Page'!$Y$36=2,Z181*VLOOKUP('Start Page'!$Y$36,'Unit Conversion Sheet'!$A$43:$C$45,3),Z181))","v":18.92532057844446}]
[null,null,null,null,null,null,null,null,null,null,null,null,null,null,null,null,null,null,null,null,null,null,null,null,{"$f":"'Data 2012'!$V$6","v":"PAW"},{"$f":"'Data 2012'!$V$54","v":99.452214740962191},{"$f":"IF(ISERROR(IF('Start Page'!$Y$36=2,Z182*VLOOKUP('Start Page'!$Y$36,'Unit Conversion Sheet'!$A$43:$C$45,3),Z182)),\"\",IF('Start Page'!$Y$36=2,Z182*VLOOKUP('Start Page'!$Y$36,'Unit Conversion Sheet'!$A$43:$C$45,3),Z182))","v":99.452214740962191}]
[null,null,null,null,null,null,null,null,null,null,null,null,null,null,null,null,null,null,null,null,null,null,null,null,{"$f":"'Data 2012'!$W$6","v":"PWD"},{"$f":"'Data 2012'!$W$54","v":127.04824904160948},{"$f":"IF(ISERROR(IF('Start Page'!$Y$36=2,Z183*VLOOKUP('Start Page'!$Y$36,'Unit Conversion Sheet'!$A$43:$C$45,3),Z183)),\"\",IF('Start Page'!$Y$36=2,Z183*VLOOKUP('Start Page'!$Y$36,'Unit Conversion Sheet'!$A$43:$C$45,3),Z183))","v":127.04824904160948}]
[null,null,null,null,null,null,null,null,null,null,null,null,null,null,null,null,null,null,null,null,null,null,null,null,{"$f":"'Data 2012'!$X$6","v":"RRW"},{"$f":"'Data 2012'!$X$54","v":33.699967663860527},{"$f":"IF(ISERROR(IF('Start Page'!$Y$36=2,Z184*VLOOKUP('Start Page'!$Y$36,'Unit Conversion Sheet'!$A$43:$C$45,3),Z184)),\"\",IF('Start Page'!$Y$36=2,Z184*VLOOKUP('Start Page'!$Y$36,'Unit Conversion Sheet'!$A$43:$C$45,3),Z184))","v":33.699967663860527}]
[null,null,null,null,null,null,null,null,null,null,null,null,null,null,null,null,null,null,null,null,null,null,null,null,{"$f":"'Data 2012'!$Y$6","v":"UI"},{"$f":"'Data 2012'!$Y$54","v":8.2051845492712712},{"$f":"IF(ISERROR(IF('Start Page'!$Y$36=2,Z185*VLOOKUP('Start Page'!$Y$36,'Unit Conversion Sheet'!$A$43:$C$45,3),Z185)),\"\",IF('Start Page'!$Y$36=2,Z185*VLOOKUP('Start Page'!$Y$36,'Unit Conversion Sheet'!$A$43:$C$45,3),Z185))","v":8.2051845492712712}]
[null,null,null,null,null,null,null,null,null,null,null,null,null,null,null,null,null,null,null,null,null,null,null,null,{"$f":"'Data 2012'!$Z$6","v":"WWU"},{"$f":"'Data 2012'!$Z$54","v":30.013364957118483},{"$f":"IF(ISERROR(IF('Start Page'!$Y$36=2,Z186*VLOOKUP('Start Page'!$Y$36,'Unit Conversion Sheet'!$A$43:$C$45,3),Z186)),\"\",IF('Start Page'!$Y$36=2,Z186*VLOOKUP('Start Page'!$Y$36,'Unit Conversion Sheet'!$A$43:$C$45,3),Z186))","v":30.013364957118483}]
[null,null,null,null,null,null,null,null,null,null,null,null,null,null,null,null,null,null,null,null,null,null,null,null,{"$f":"'Data 2012'!$AA$6","v":"WCSA"},{"$f":"'Data 2012'!$AA$54","v":"N/A"},{"$f":"IF(ISERROR(IF('Start Page'!$Y$36=2,Z187*VLOOKUP('Start Page'!$Y$36,'Unit Conversion Sheet'!$A$43:$C$45,3),Z187)),\"\",IF('Start Page'!$Y$36=2,Z187*VLOOKUP('Start Page'!$Y$36,'Unit Conversion Sheet'!$A$43:$C$45,3),Z187))","v":"N/A"}]
[null,null,null,null,null,null,null,null,null,null,null,null,null,null,null,null,null,null,null,null,null,null,null,null,{"$f":"'Data 2012'!$AB$6","v":"WDPW"},{"$f":"'Data 2012'!$AB$54","v":156.07013888802095},{"$f":"IF(ISERROR(IF('Start Page'!$Y$36=2,Z188*VLOOKUP('Start Page'!$Y$36,'Unit Conversion Sheet'!$A$43:$C$45,3),Z188)),\"\",IF('Start Page'!$Y$36=2,Z188*VLOOKUP('Start Page'!$Y$36,'Unit Conversion Sheet'!$A$43:$C$45,3),Z188))","v":156.07013888802095}]
[null,null,null,null,null,null,null,null,null,null,null,null,null,null,null,null,null,null,null,null,null,null,null,null,{"$f":"'Data 2012'!$AC$6","v":"WWAWC"},{"$f":"'Data 2012'!$AC$54","v":"N/A"},{"$f":"IF(ISERROR(IF('Start Page'!$Y$36=2,Z189*VLOOKUP('Start Page'!$Y$36,'Unit Conversion Sheet'!$A$43:$C$45,3),Z189)),\"\",IF('Start Page'!$Y$36=2,Z189*VLOOKUP('Start Page'!$Y$36,'Unit Conversion Sheet'!$A$43:$C$45,3),Z189))","v":"N/A"}]
[null,null,null,null,null,null,null,null,null,null,null,null,null,null,null,null,null,null,null,null,null,null,null,null,{"$f":"$C$8","v":""},{"$f":"'AWWA-Water Balance Data Transf.'!$D$58","v":""},{"$f":"IF(ISERROR(IF('Start Page'!$Y$36=2,Z190*VLOOKUP('Start Page'!$Y$36,'Unit Conversion Sheet'!$A$43:$C$45,3),Z190)),\"\",IF('Start Page'!$Y$36=2,Z190*VLOOKUP('Start Page'!$Y$36,'Unit Conversion Sheet'!$A$43:$C$45,3),Z190))","v":""}]
[]
[null,null,null,null,null,null,null,null,null,null,null,null,null,null,null,null,null,null,null,null,null,null,null,null,{"$f":"INDEX('Unit Conversion Sheet'!$C$71:$D$73,MATCH('Start Page'!$Y$36,'Unit Conversion Sheet'!$A$36:$A$38,0),MATCH('Start Page'!$Y$42,'Unit Conversion Sheet'!$C$35:$D$35,0))","v":"Performance Indicator: Real Losses per length of mains per day [gal/mi/day]"},"Original Values","Chart Values","Percentiles"]
[null,null,null,null,null,null,null,null,null,null,null,null,null,null,null,null,null,null,null,null,null,null,null,null,{"$f":"'Data 2012'!$D$6","v":"GCWW"},{"$f":"'Data 2012'!$D$55","v":"N/A"},{"$f":"IF(ISERROR(Z193*INDEX('Unit Conversion Sheet'!$C$64:$D$67,MATCH('Start Page'!$Y$36,'Unit Conversion Sheet'!$A$36:$A$38,0),MATCH('Start Page'!$Y$42,'Unit Conversion Sheet'!$C$35:$D$35,0))),\"\",Z193*INDEX('Unit Conversion Sheet'!$C$64:$D$67,MATCH('Start Page'!$Y$36,'Unit Conversion Sheet'!$A$36:$A$38,0),MATCH('Start Page'!$Y$42,'Unit Conversion Sheet'!$C$35:$D$35,0)))","v":""},0.25,{"$f":"PERCENTILE(AA193:AA219,AB193)","v":641.56923735352075}]
[null,null,null,null,null,null,null,null,null,null,null,null,null,null,null,null,null,null,null,null,null,null,null,null,{"$f":"'Data 2012'!$E$6","v":"SMW"},{"$f":"'Data 2012'!$E$55","v":"N/A"},{"$f":"IF(ISERROR(Z194*INDEX('Unit Conversion Sheet'!$C$64:$D$67,MATCH('Start Page'!$Y$36,'Unit Conversion Sheet'!$A$36:$A$38,0),MATCH('Start Page'!$Y$42,'Unit Conversion Sheet'!$C$35:$D$35,0))),\"\",Z194*INDEX('Unit Conversion Sheet'!$C$64:$D$67,MATCH('Start Page'!$Y$36,'Unit Conversion Sheet'!$A$36:$A$38,0),MATCH('Start Page'!$Y$42,'Unit Conversion Sheet'!$C$35:$D$35,0)))","v":""},0.5,{"$f":"PERCENTILE(AA194:AA220,AB194)","v":709.32097688293265}]
[null,null,null,null,null,null,null,null,null,null,null,null,null,null,null,null,null,null,null,null,null,null,null,null,{"$f":"'Data 2012'!$F$6","v":"ABCWUA"},{"$f":"'Data 2012'!$F$55","v":"N/A"},{"$f":"IF(ISERROR(Z195*INDEX('Unit Conversion Sheet'!$C$64:$D$67,MATCH('Start Page'!$Y$36,'Unit Conversion Sheet'!$A$36:$A$38,0),MATCH('Start Page'!$Y$42,'Unit Conversion Sheet'!$C$35:$D$35,0))),\"\",Z195*INDEX('Unit Conversion Sheet'!$C$64:$D$67,MATCH('Start Page'!$Y$36,'Unit Conversion Sheet'!$A$36:$A$38,0),MATCH('Start Page'!$Y$42,'Unit Conversion Sheet'!$C$35:$D$35,0)))","v":""},0.75,2612.5835024025027]
[null,null,null,null,null,null,null,null,null,null,null,null,null,null,null,null,null,null,null,null,null,null,null,null,{"$f":"'Data 2012'!$G$6","v":"AquaWSC"},{"$f":"'Data 2012'!$G$55","v":709.32097688293265},{"$f":"IF(ISERROR(Z196*INDEX('Unit Conversion Sheet'!$C$64:$D$67,MATCH('Start Page'!$Y$36,'Unit Conversion Sheet'!$A$36:$A$38,0),MATCH('Start Page'!$Y$42,'Unit Conversion Sheet'!$C$35:$D$35,0))),\"\",Z196*INDEX('Unit Conversion Sheet'!$C$64:$D$67,MATCH('Start Page'!$Y$36,'Unit Conversion Sheet'!$A$36:$A$38,0),MATCH('Start Page'!$Y$42,'Unit Conversion Sheet'!$C$35:$D$35,0)))","v":709.32097688293265}]
[null,null,null,null,null,null,null,null,null,null,null,null,null,null,null,null,null,null,null,null,null,null,null,null,{"$f":"'Data 2012'!$H$6","v":"AW"},{"$f":"'Data 2012'!$H$55","v":"N/A"},{"$f":"IF(ISERROR(Z197*INDEX('Unit Conversion Sheet'!$C$64:$D$67,MATCH('Start Page'!$Y$36,'Unit Conversion Sheet'!$A$36:$A$38,0),MATCH('Start Page'!$Y$42,'Unit Conversion Sheet'!$C$35:$D$35,0))),\"\",Z197*INDEX('Unit Conversion Sheet'!$C$64:$D$67,MATCH('Start Page'!$Y$36,'Unit Conversion Sheet'!$A$36:$A$38,0),MATCH('Start Page'!$Y$42,'Unit Conversion Sheet'!$C$35:$D$35,0)))","v":""}]
[null,null,null,null,null,null,null,null,null,null,null,null,null,null,null,null,null,null,null,null,null,null,null,null,{"$f":"'Data 2012'!$I$6","v":"BUD"},{"$f":"'Data 2012'!$I$55","v":"N/A"},{"$f":"IF(ISERROR(Z198*INDEX('Unit Conversion Sheet'!$C$64:$D$67,MATCH('Start Page'!$Y$36,'Unit Conversion Sheet'!$A$36:$A$38,0),MATCH('Start Page'!$Y$42,'Unit Conversion Sheet'!$C$35:$D$35,0))),\"\",Z198*INDEX('Unit Conversion Sheet'!$C$64:$D$67,MATCH('Start Page'!$Y$36,'Unit Conversion Sheet'!$A$36:$A$38,0),MATCH('Start Page'!$Y$42,'Unit Conversion Sheet'!$C$35:$D$35,0)))","v":""}]
[null,null,null,null,null,null,null,null,null,null,null,null,null,null,null,null,null,null,null,null,null,null,null,null,{"$f":"'Data 2012'!$J$6","v":"BWWB"},{"$f":"'Data 2012'!$J$55","v":"N/A"},{"$f":"IF(ISERROR(Z199*INDEX('Unit Conversion Sheet'!$C$64:$D$67,MATCH('Start Page'!$Y$36,'Unit Conversion Sheet'!$A$36:$A$38,0),MATCH('Start Page'!$Y$42,'Unit Conversion Sheet'!$C$35:$D$35,0))),\"\",Z199*INDEX('Unit Conversion Sheet'!$C$64:$D$67,MATCH('Start Page'!$Y$36,'Unit Conversion Sheet'!$A$36:$A$38,0),MATCH('Start Page'!$Y$42,'Unit Conversion Sheet'!$C$35:$D$35,0)))","v":""}]
[null,null,null,null,null,null,null,null,null,null,null,null,null,null,null,null,null,null,null,null,null,null,null,null,{"$f":"'Data 2012'!$K$6","v":"CW"},{"$f":"'Data 2012'!$K$55","v":"N/A"},{"$f":"IF(ISERROR(Z200*INDEX('Unit Conversion Sheet'!$C$64:$D$67,MATCH('Start Page'!$Y$36,'Unit Conversion Sheet'!$A$36:$A$38,0),MATCH('Start Page'!$Y$42,'Unit Conversion Sheet'!$C$35:$D$35,0))),\"\",Z200*INDEX('Unit Conversion Sheet'!$C$64:$D$67,MATCH('Start Page'!$Y$36,'Unit Conversion Sheet'!$A$36:$A$38,0),MATCH('Start Page'!$Y$42,'Unit Conversion Sheet'!$C$35:$D$35,0)))","v":""}]
[null,null,null,null,null,null,null,null,null,null,null,null,null,null,null,null,null,null,null,null,null,null,null,null,{"$f":"'Data 2012'!$L$6","v":"CCWSA"},{"$f":"'Data 2012'!$L$55","v":"N/A"},{"$f":"IF(ISERROR(Z201*INDEX('Unit Conversion Sheet'!$C$64:$D$67,MATCH('Start Page'!$Y$36,'Unit Conversion Sheet'!$A$36:$A$38,0),MATCH('Start Page'!$Y$42,'Unit Conversion Sheet'!$C$35:$D$35,0))),\"\",Z201*INDEX('Unit Conversion Sheet'!$C$64:$D$67,MATCH('Start Page'!$Y$36,'Unit Conversion Sheet'!$A$36:$A$38,0),MATCH('Start Page'!$Y$42,'Unit Conversion Sheet'!$C$35:$D$35,0)))","v":""}]
[null,null,null,null,null,null,null,null,null,null,null,null,null,null,null,null,null,null,null,null,null,null,null,null,{"$f":"'Data 2012'!$M$6","v":"CCWS"},{"$f":"'Data 2012'!$M$55","v":"N/A"},{"$f":"IF(ISERROR(Z202*INDEX('Unit Conversion Sheet'!$C$64:$D$67,MATCH('Start Page'!$Y$36,'Unit Conversion Sheet'!$A$36:$A$38,0),MATCH('Start Page'!$Y$42,'Unit Conversion Sheet'!$C$35:$D$35,0))),\"\",Z202*INDEX('Unit Conversion Sheet'!$C$64:$D$67,MATCH('Start Page'!$Y$36,'Unit Conversion Sheet'!$A$36:$A$38,0),MATCH('Start Page'!$Y$42,'Unit Conversion Sheet'!$C$35:$D$35,0)))","v":""}]
[null,null,null,null,null,null,null,null,null,null,null,null,null,null,null,null,null,null,null,null,null,null,null,null,{"$f":"'Data 2012'!$N$6","v":"CBW"},{"$f":"'Data 2012'!$N$55","v":"N/A"},{"$f":"IF(ISERROR(Z203*INDEX('Unit Conversion Sheet'!$C$64:$D$67,MATCH('Start Page'!$Y$36,'Unit Conversion Sheet'!$A$36:$A$38,0),MATCH('Start Page'!$Y$42,'Unit Conversion Sheet'!$C$35:$D$35,0))),\"\",Z203*INDEX('Unit Conversion Sheet'!$C$64:$D$67,MATCH('Start Page'!$Y$36,'Unit Conversion Sheet'!$A$36:$A$38,0),MATCH('Start Page'!$Y$42,'Unit Conversion Sheet'!$C$35:$D$35,0)))","v":""}]
[null,null,null,null,null,null,null,null,null,null,null,null,null,null,null,null,null,null,null,null,null,null,null,null,{"$f":"'Data 2012'!$O$6","v":"DUTIL"},{"$f":"'Data 2012'!$O$55","v":"N/A"},{"$f":"IF(ISERROR(Z204*INDEX('Unit Conversion Sheet'!$C$64:$D$67,MATCH('Start Page'!$Y$36,'Unit Conversion Sheet'!$A$36:$A$38,0),MATCH('Start Page'!$Y$42,'Unit Conversion Sheet'!$C$35:$D$35,0))),\"\",Z204*INDEX('Unit Conversion Sheet'!$C$64:$D$67,MATCH('Start Page'!$Y$36,'Unit Conversion Sheet'!$A$36:$A$38,0),MATCH('Start Page'!$Y$42,'Unit Conversion Sheet'!$C$35:$D$35,0)))","v":""}]
[null,null,null,null,null,null,null,null,null,null,null,null,null,null,null,null,null,null,null,null,null,null,null,null,{"$f":"'Data 2012'!$P$6","v":"DCWATER"},{"$f":"'Data 2012'!$P$55","v":"N/A"},{"$f":"IF(ISERROR(Z205*INDEX('Unit Conversion Sheet'!$C$64:$D$67,MATCH('Start Page'!$Y$36,'Unit Conversion Sheet'!$A$36:$A$38,0),MATCH('Start Page'!$Y$42,'Unit Conversion Sheet'!$C$35:$D$35,0))),\"\",Z205*INDEX('Unit Conversion Sheet'!$C$64:$D$67,MATCH('Start Page'!$Y$36,'Unit Conversion Sheet'!$A$36:$A$38,0),MATCH('Start Page'!$Y$42,'Unit Conversion Sheet'!$C$35:$D$35,0)))","v":""}]
[null,null,null,null,null,null,null,null,null,null,null,null,null,null,null,null,null,null,null,null,null,null,null,null,{"$f":"'Data 2012'!$Q$6","v":"HRWC"},{"$f":"'Data 2012'!$Q$55","v":"N/A"},{"$f":"IF(ISERROR(Z206*INDEX('Unit Conversion Sheet'!$C$64:$D$67,MATCH('Start Page'!$Y$36,'Unit Conversion Sheet'!$A$36:$A$38,0),MATCH('Start Page'!$Y$42,'Unit Conversion Sheet'!$C$35:$D$35,0))),\"\",Z206*INDEX('Unit Conversion Sheet'!$C$64:$D$67,MATCH('Start Page'!$Y$36,'Unit Conversion Sheet'!$A$36:$A$38,0),MATCH('Start Page'!$Y$42,'Unit Conversion Sheet'!$C$35:$D$35,0)))","v":""}]
[null,null,null,null,null,null,null,null,null,null,null,null,null,null,null,null,null,null,null,null,null,null,null,null,{"$f":"'Data 2012'!$R$6","v":"JCW1"},{"$f":"'Data 2012'!$R$55","v":"N/A"},{"$f":"IF(ISERROR(Z207*INDEX('Unit Conversion Sheet'!$C$64:$D$67,MATCH('Start Page'!$Y$36,'Unit Conversion Sheet'!$A$36:$A$38,0),MATCH('Start Page'!$Y$42,'Unit Conversion Sheet'!$C$35:$D$35,0))),\"\",Z207*INDEX('Unit Conversion Sheet'!$C$64:$D$67,MATCH('Start Page'!$Y$36,'Unit Conversion Sheet'!$A$36:$A$38,0),MATCH('Start Page'!$Y$42,'Unit Conversion Sheet'!$C$35:$D$35,0)))","v":""}]
[null,null,null,null,null,null,null,null,null,null,null,null,null,null,null,null,null,null,null,null,null,null,null,null,{"$f":"'Data 2012'!$S$6","v":"LVVWD"},{"$f":"'Data 2012'!$S$55","v":"N/A"},{"$f":"IF(ISERROR(Z208*INDEX('Unit Conversion Sheet'!$C$64:$D$67,MATCH('Start Page'!$Y$36,'Unit Conversion Sheet'!$A$36:$A$38,0),MATCH('Start Page'!$Y$42,'Unit Conversion Sheet'!$C$35:$D$35,0))),\"\",Z208*INDEX('Unit Conversion Sheet'!$C$64:$D$67,MATCH('Start Page'!$Y$36,'Unit Conversion Sheet'!$A$36:$A$38,0),MATCH('Start Page'!$Y$42,'Unit Conversion Sheet'!$C$35:$D$35,0)))","v":""}]
[null,null,null,null,null,null,null,null,null,null,null,null,null,null,null,null,null,null,null,null,null,null,null,null,{"$f":"'Data 2012'!$T$6","v":"LWCKY"},{"$f":"'Data 2012'!$T$55","v":"N/A"},{"$f":"IF(ISERROR(Z209*INDEX('Unit Conversion Sheet'!$C$64:$D$67,MATCH('Start Page'!$Y$36,'Unit Conversion Sheet'!$A$36:$A$38,0),MATCH('Start Page'!$Y$42,'Unit Conversion Sheet'!$C$35:$D$35,0))),\"\",Z209*INDEX('Unit Conversion Sheet'!$C$64:$D$67,MATCH('Start Page'!$Y$36,'Unit Conversion Sheet'!$A$36:$A$38,0),MATCH('Start Page'!$Y$42,'Unit Conversion Sheet'!$C$35:$D$35,0)))","v":""}]
[null,null,null,null,null,null,null,null,null,null,null,null,null,null,null,null,null,null,null,null,null,null,null,null,{"$f":"'Data 2012'!$U$6","v":"OCFL"},{"$f":"'Data 2012'!$U$55","v":"N/A"},{"$f":"IF(ISERROR(Z210*INDEX('Unit Conversion Sheet'!$C$64:$D$67,MATCH('Start Page'!$Y$36,'Unit Conversion Sheet'!$A$36:$A$38,0),MATCH('Start Page'!$Y$42,'Unit Conversion Sheet'!$C$35:$D$35,0))),\"\",Z210*INDEX('Unit Conversion Sheet'!$C$64:$D$67,MATCH('Start Page'!$Y$36,'Unit Conversion Sheet'!$A$36:$A$38,0),MATCH('Start Page'!$Y$42,'Unit Conversion Sheet'!$C$35:$D$35,0)))","v":""}]
[null,null,null,null,null,null,null,null,null,null,null,null,null,null,null,null,null,null,null,null,null,null,null,null,{"$f":"'Data 2012'!$V$6","v":"PAW"},{"$f":"'Data 2012'!$V$55","v":"N/A"},{"$f":"IF(ISERROR(Z211*INDEX('Unit Conversion Sheet'!$C$64:$D$67,MATCH('Start Page'!$Y$36,'Unit Conversion Sheet'!$A$36:$A$38,0),MATCH('Start Page'!$Y$42,'Unit Conversion Sheet'!$C$35:$D$35,0))),\"\",Z211*INDEX('Unit Conversion Sheet'!$C$64:$D$67,MATCH('Start Page'!$Y$36,'Unit Conversion Sheet'!$A$36:$A$38,0),MATCH('Start Page'!$Y$42,'Unit Conversion Sheet'!$C$35:$D$35,0)))","v":""}]
[null,null,null,null,null,null,null,null,null,null,null,null,null,null,null,null,null,null,null,null,null,null,null,null,{"$f":"'Data 2012'!$W$6","v":"PWD"},{"$f":"'Data 2012'!$W$55","v":"N/A"},{"$f":"IF(ISERROR(Z212*INDEX('Unit Conversion Sheet'!$C$64:$D$67,MATCH('Start Page'!$Y$36,'Unit Conversion Sheet'!$A$36:$A$38,0),MATCH('Start Page'!$Y$42,'Unit Conversion Sheet'!$C$35:$D$35,0))),\"\",Z212*INDEX('Unit Conversion Sheet'!$C$64:$D$67,MATCH('Start Page'!$Y$36,'Unit Conversion Sheet'!$A$36:$A$38,0),MATCH('Start Page'!$Y$42,'Unit Conversion Sheet'!$C$35:$D$35,0)))","v":""}]
[null,null,null,null,null,null,null,null,null,null,null,null,null,null,null,null,null,null,null,null,null,null,null,null,{"$f":"'Data 2012'!$X$6","v":"RRW"},{"$f":"'Data 2012'!$X$55","v":"N/A"},{"$f":"IF(ISERROR(Z213*INDEX('Unit Conversion Sheet'!$C$64:$D$67,MATCH('Start Page'!$Y$36,'Unit Conversion Sheet'!$A$36:$A$38,0),MATCH('Start Page'!$Y$42,'Unit Conversion Sheet'!$C$35:$D$35,0))),\"\",Z213*INDEX('Unit Conversion Sheet'!$C$64:$D$67,MATCH('Start Page'!$Y$36,'Unit Conversion Sheet'!$A$36:$A$38,0),MATCH('Start Page'!$Y$42,'Unit Conversion Sheet'!$C$35:$D$35,0)))","v":""}]
[null,null,null,null,null,null,null,null,null,null,null,null,null,null,null,null,null,null,null,null,null,null,null,null,{"$f":"'Data 2012'!$Y$6","v":"UI"},{"$f":"'Data 2012'!$Y$55","v":"N/A"},{"$f":"IF(ISERROR(Z214*INDEX('Unit Conversion Sheet'!$C$64:$D$67,MATCH('Start Page'!$Y$36,'Unit Conversion Sheet'!$A$36:$A$38,0),MATCH('Start Page'!$Y$42,'Unit Conversion Sheet'!$C$35:$D$35,0))),\"\",Z214*INDEX('Unit Conversion Sheet'!$C$64:$D$67,MATCH('Start Page'!$Y$36,'Unit Conversion Sheet'!$A$36:$A$38,0),MATCH('Start Page'!$Y$42,'Unit Conversion Sheet'!$C$35:$D$35,0)))","v":""}]
[null,null,null,null,null,null,null,null,null,null,null,null,null,null,null,null,null,null,null,null,null,null,null,null,{"$f":"'Data 2012'!$Z$6","v":"WWU"},{"$f":"'Data 2012'!$Z$55","v":"N/A"},{"$f":"IF(ISERROR(Z215*INDEX('Unit Conversion Sheet'!$C$64:$D$67,MATCH('Start Page'!$Y$36,'Unit Conversion Sheet'!$A$36:$A$38,0),MATCH('Start Page'!$Y$42,'Unit Conversion Sheet'!$C$35:$D$35,0))),\"\",Z215*INDEX('Unit Conversion Sheet'!$C$64:$D$67,MATCH('Start Page'!$Y$36,'Unit Conversion Sheet'!$A$36:$A$38,0),MATCH('Start Page'!$Y$42,'Unit Conversion Sheet'!$C$35:$D$35,0)))","v":""}]
[null,null,null,null,null,null,null,null,null,null,null,null,null,null,null,null,null,null,null,null,null,null,null,null,{"$f":"'Data 2012'!$AA$6","v":"WCSA"},{"$f":"'Data 2012'!$AA$55","v":4515.8460279220726},{"$f":"IF(ISERROR(Z216*INDEX('Unit Conversion Sheet'!$C$64:$D$67,MATCH('Start Page'!$Y$36,'Unit Conversion Sheet'!$A$36:$A$38,0),MATCH('Start Page'!$Y$42,'Unit Conversion Sheet'!$C$35:$D$35,0))),\"\",Z216*INDEX('Unit Conversion Sheet'!$C$64:$D$67,MATCH('Start Page'!$Y$36,'Unit Conversion Sheet'!$A$36:$A$38,0),MATCH('Start Page'!$Y$42,'Unit Conversion Sheet'!$C$35:$D$35,0)))","v":4515.8460279220726}]
[null,null,null,null,null,null,null,null,null,null,null,null,null,null,null,null,null,null,null,null,null,null,null,null,{"$f":"'Data 2012'!$AB$6","v":"WDPW"},{"$f":"'Data 2012'!$AB$55","v":"N/A"},{"$f":"IF(ISERROR(Z217*INDEX('Unit Conversion Sheet'!$C$64:$D$67,MATCH('Start Page'!$Y$36,'Unit Conversion Sheet'!$A$36:$A$38,0),MATCH('Start Page'!$Y$42,'Unit Conversion Sheet'!$C$35:$D$35,0))),\"\",Z217*INDEX('Unit Conversion Sheet'!$C$64:$D$67,MATCH('Start Page'!$Y$36,'Unit Conversion Sheet'!$A$36:$A$38,0),MATCH('Start Page'!$Y$42,'Unit Conversion Sheet'!$C$35:$D$35,0)))","v":""}]
[null,null,null,null,null,null,null,null,null,null,null,null,null,null,null,null,null,null,null,null,null,null,null,null,{"$f":"'Data 2012'!$AC$6","v":"WWAWC"},{"$f":"'Data 2012'!$AC$55","v":573.81749782410884},{"$f":"IF(ISERROR(Z218*INDEX('Unit Conversion Sheet'!$C$64:$D$67,MATCH('Start Page'!$Y$36,'Unit Conversion Sheet'!$A$36:$A$38,0),MATCH('Start Page'!$Y$42,'Unit Conversion Sheet'!$C$35:$D$35,0))),\"\",Z218*INDEX('Unit Conversion Sheet'!$C$64:$D$67,MATCH('Start Page'!$Y$36,'Unit Conversion Sheet'!$A$36:$A$38,0),MATCH('Start Page'!$Y$42,'Unit Conversion Sheet'!$C$35:$D$35,0)))","v":573.81749782410884}]
[null,null,null,null,null,null,null,null,null,null,null,null,null,null,null,null,null,null,null,null,null,null,null,null,{"$f":"$C$8","v":""},{"$f":"'AWWA-Water Balance Data Transf.'!$D$59","v":""},{"$f":"'AWWA-Water Balance Data Transf.'!$D$59","v":""}]
[]
[null,null,null,null,null,null,null,null,null,null,null,null,null,null,null,null,null,null,null,null,null,null,null,null,{"$f":"IF('Start Page'!$Y$36=2,\"Performance Indicator: Real Losses per Service Connection per Meter Head [litres/service con./day/m]\",\"Performance Indicator: Real Losses per Service Connections per PSI [gal/service con./day/PSI]\")","v":"Performance Indicator: Real Losses per Service Connections per PSI [gal/service con./day/PSI]"}]
[null,null,null,null,null,null,null,null,null,null,null,null,null,null,null,null,null,null,null,null,null,null,null,null,"Utility","Original Values","Chart Values","Percentiles"]
[null,null,null,null,null,null,null,null,null,null,null,null,null,null,null,null,null,null,null,null,null,null,null,null,{"$f":"'Data 2012'!$D$6","v":"GCWW"},{"$f":"'Data 2012'!$D$56","v":0.60776771180354272},{"$f":"IF('Start Page'!$Y$36=2,Z223*VLOOKUP('Start Page'!$Y$36,'Unit Conversion Sheet'!$A$43:$C$45,3)*VLOOKUP('Start Page'!$Y$36,'Unit Conversion Sheet'!$A$48:$C$50,3),Z223)","v":0.60776771180354272},0.25,{"$f":"PERCENTILE(AA223:AA249,AB223)","v":0.3249432779142164}]
[null,null,null,null,null,null,null,null,null,null,null,null,null,null,null,null,null,null,null,null,null,null,null,null,{"$f":"'Data 2012'!$E$6","v":"SMW"},{"$f":"'Data 2012'!$E$56","v":0.70750967845616219},{"$f":"IF('Start Page'!$Y$36=2,Z224*VLOOKUP('Start Page'!$Y$36,'Unit Conversion Sheet'!$A$43:$C$45,3)*VLOOKUP('Start Page'!$Y$36,'Unit Conversion Sheet'!$A$48:$C$50,3),Z224)","v":0.70750967845616219},0.5,{"$f":"PERCENTILE(AA224:AA250,AB224)","v":0.54087314457621882}]
[null,null,null,null,null,null,null,null,null,null,null,null,null,null,null,null,null,null,null,null,null,null,null,null,{"$f":"'Data 2012'!$F$6","v":"ABCWUA"},{"$f":"'Data 2012'!$F$56","v":0.32072876641201703},{"$f":"IF('Start Page'!$Y$36=2,Z225*VLOOKUP('Start Page'!$Y$36,'Unit Conversion Sheet'!$A$43:$C$45,3)*VLOOKUP('Start Page'!$Y$36,'Unit Conversion Sheet'!$A$48:$C$50,3),Z225)","v":0.32072876641201703},0.75,0.92177705614399352]
[null,null,null,null,null,null,null,null,null,null,null,null,null,null,null,null,null,null,null,null,null,null,null,null,{"$f":"'Data 2012'!$G$6","v":"AquaWSC"},{"$f":"'Data 2012'!$G$56","v":0},{"$f":"IF('Start Page'!$Y$36=2,Z226*VLOOKUP('Start Page'!$Y$36,'Unit Conversion Sheet'!$A$43:$C$45,3)*VLOOKUP('Start Page'!$Y$36,'Unit Conversion Sheet'!$A$48:$C$50,3),Z226)","v":0}]
[null,null,null,null,null,null,null,null,null,null,null,null,null,null,null,null,null,null,null,null,null,null,null,null,{"$f":"'Data 2012'!$H$6","v":"AW"},{"$f":"'Data 2012'!$H$56","v":0.72498630293188815},{"$f":"IF('Start Page'!$Y$36=2,Z227*VLOOKUP('Start Page'!$Y$36,'Unit Conversion Sheet'!$A$43:$C$45,3)*VLOOKUP('Start Page'!$Y$36,'Unit Conversion Sheet'!$A$48:$C$50,3),Z227)","v":0.72498630293188815}]
[null,null,null,null,null,null,null,null,null,null,null,null,null,null,null,null,null,null,null,null,null,null,null,null,{"$f":"'Data 2012'!$I$6","v":"BUD"},{"$f":"'Data 2012'!$I$56","v":1.1813279684479365},{"$f":"IF('Start Page'!$Y$36=2,Z228*VLOOKUP('Start Page'!$Y$36,'Unit Conversion Sheet'!$A$43:$C$45,3)*VLOOKUP('Start Page'!$Y$36,'Unit Conversion Sheet'!$A$48:$C$50,3),Z228)","v":1.1813279684479365}]
[null,null,null,null,null,null,null,null,null,null,null,null,null,null,null,null,null,null,null,null,null,null,null,null,{"$f":"'Data 2012'!$J$6","v":"BWWB"},{"$f":"'Data 2012'!$J$56","v":0.97477509527700534},{"$f":"IF('Start Page'!$Y$36=2,Z229*VLOOKUP('Start Page'!$Y$36,'Unit Conversion Sheet'!$A$43:$C$45,3)*VLOOKUP('Start Page'!$Y$36,'Unit Conversion Sheet'!$A$48:$C$50,3),Z229)","v":0.97477509527700534}]
[null,null,null,null,null,null,null,null,null,null,null,null,null,null,null,null,null,null,null,null,null,null,null,null,{"$f":"'Data 2012'!$K$6","v":"CW"},{"$f":"'Data 2012'!$K$56","v":0.55403230308695772},{"$f":"IF('Start Page'!$Y$36=2,Z230*VLOOKUP('Start Page'!$Y$36,'Unit Conversion Sheet'!$A$43:$C$45,3)*VLOOKUP('Start Page'!$Y$36,'Unit Conversion Sheet'!$A$48:$C$50,3),Z230)","v":0.55403230308695772}]
[null,null,null,null,null,null,null,null,null,null,null,null,null,null,null,null,null,null,null,null,null,null,null,null,{"$f":"'Data 2012'!$L$6","v":"CCWSA"},{"$f":"'Data 2012'!$L$56","v":0.33758681242081462},{"$f":"IF('Start Page'!$Y$36=2,Z231*VLOOKUP('Start Page'!$Y$36,'Unit Conversion Sheet'!$A$43:$C$45,3)*VLOOKUP('Start Page'!$Y$36,'Unit Conversion Sheet'!$A$48:$C$50,3),Z231)","v":0.33758681242081462}]
[null,null,null,null,null,null,null,null,null,null,null,null,null,null,null,null,null,null,null,null,null,null,null,null,{"$f":"'Data 2012'!$M$6","v":"CCWS"},{"$f":"'Data 2012'!$M$56","v":0.25204017318966498},{"$f":"IF('Start Page'!$Y$36=2,Z232*VLOOKUP('Start Page'!$Y$36,'Unit Conversion Sheet'!$A$43:$C$45,3)*VLOOKUP('Start Page'!$Y$36,'Unit Conversion Sheet'!$A$48:$C$50,3),Z232)","v":0.25204017318966498}]
[null,null,null,null,null,null,null,null,null,null,null,null,null,null,null,null,null,null,null,null,null,null,null,null,{"$f":"'Data 2012'!$N$6","v":"CBW"},{"$f":"'Data 2012'!$N$56","v":1.4255407050444986},{"$f":"IF('Start Page'!$Y$36=2,Z233*VLOOKUP('Start Page'!$Y$36,'Unit Conversion Sheet'!$A$43:$C$45,3)*VLOOKUP('Start Page'!$Y$36,'Unit Conversion Sheet'!$A$48:$C$50,3),Z233)","v":1.4255407050444986}]
[null,null,null,null,null,null,null,null,null,null,null,null,null,null,null,null,null,null,null,null,null,null,null,null,{"$f":"'Data 2012'!$O$6","v":"DUTIL"},{"$f":"'Data 2012'!$O$56","v":0.46679972315231316},{"$f":"IF('Start Page'!$Y$36=2,Z234*VLOOKUP('Start Page'!$Y$36,'Unit Conversion Sheet'!$A$43:$C$45,3)*VLOOKUP('Start Page'!$Y$36,'Unit Conversion Sheet'!$A$48:$C$50,3),Z234)","v":0.46679972315231316}]
[null,null,null,null,null,null,null,null,null,null,null,null,null,null,null,null,null,null,null,null,null,null,null,null,{"$f":"'Data 2012'!$P$6","v":"DCWATER"},{"$f":"'Data 2012'!$P$56","v":1.5969275196610877},{"$f":"IF('Start Page'!$Y$36=2,Z235*VLOOKUP('Start Page'!$Y$36,'Unit Conversion Sheet'!$A$43:$C$45,3)*VLOOKUP('Start Page'!$Y$36,'Unit Conversion Sheet'!$A$48:$C$50,3),Z235)","v":1.5969275196610877}]
[null,null,null,null,null,null,null,null,null,null,null,null,null,null,null,null,null,null,null,null,null,null,null,null,{"$f":"'Data 2012'!$Q$6","v":"HRWC"},{"$f":"'Data 2012'!$Q$56","v":0.77631469726633096},{"$f":"IF('Start Page'!$Y$36=2,Z236*VLOOKUP('Start Page'!$Y$36,'Unit Conversion Sheet'!$A$43:$C$45,3)*VLOOKUP('Start Page'!$Y$36,'Unit Conversion Sheet'!$A$48:$C$50,3),Z236)","v":0.77631469726633096}]
[null,null,null,null,null,null,null,null,null,null,null,null,null,null,null,null,null,null,null,null,null,null,null,null,{"$f":"'Data 2012'!$R$6","v":"JCW1"},{"$f":"'Data 2012'!$R$56","v":0.4305921605463191},{"$f":"IF('Start Page'!$Y$36=2,Z237*VLOOKUP('Start Page'!$Y$36,'Unit Conversion Sheet'!$A$43:$C$45,3)*VLOOKUP('Start Page'!$Y$36,'Unit Conversion Sheet'!$A$48:$C$50,3),Z237)","v":0.4305921605463191}]
[null,null,null,null,null,null,null,null,null,null,null,null,null,null,null,null,null,null,null,null,null,null,null,null,{"$f":"'Data 2012'!$S$6","v":"LVVWD"},{"$f":"'Data 2012'!$S$56","v":0.35757301958114801},{"$f":"IF('Start Page'!$Y$36=2,Z238*VLOOKUP('Start Page'!$Y$36,'Unit Conversion Sheet'!$A$43:$C$45,3)*VLOOKUP('Start Page'!$Y$36,'Unit Conversion Sheet'!$A$48:$C$50,3),Z238)","v":0.35757301958114801}]
[null,null,null,null,null,null,null,null,null,null,null,null,null,null,null,null,null,null,null,null,null,null,null,null,{"$f":"'Data 2012'!$T$6","v":"LWCKY"},{"$f":"'Data 2012'!$T$56","v":0.54087314457621882},{"$f":"IF('Start Page'!$Y$36=2,Z239*VLOOKUP('Start Page'!$Y$36,'Unit Conversion Sheet'!$A$43:$C$45,3)*VLOOKUP('Start Page'!$Y$36,'Unit Conversion Sheet'!$A$48:$C$50,3),Z239)","v":0.54087314457621882}]
[null,null,null,null,null,null,null,null,null,null,null,null,null,null,null,null,null,null,null,null,null,null,null,null,{"$f":"'Data 2012'!$U$6","v":"OCFL"},{"$f":"'Data 2012'!$U$56","v":0.31542200964074102},{"$f":"IF('Start Page'!$Y$36=2,Z240*VLOOKUP('Start Page'!$Y$36,'Unit Conversion Sheet'!$A$43:$C$45,3)*VLOOKUP('Start Page'!$Y$36,'Unit Conversion Sheet'!$A$48:$C$50,3),Z240)","v":0.31542200964074102}]
[null,null,null,null,null,null,null,null,null,null,null,null,null,null,null,null,null,null,null,null,null,null,null,null,{"$f":"'Data 2012'!$V$6","v":"PAW"},{"$f":"'Data 2012'!$V$56","v":0.90411104309965629},{"$f":"IF('Start Page'!$Y$36=2,Z241*VLOOKUP('Start Page'!$Y$36,'Unit Conversion Sheet'!$A$43:$C$45,3)*VLOOKUP('Start Page'!$Y$36,'Unit Conversion Sheet'!$A$48:$C$50,3),Z241)","v":0.90411104309965629}]
[null,null,null,null,null,null,null,null,null,null,null,null,null,null,null,null,null,null,null,null,null,null,null,null,{"$f":"'Data 2012'!$W$6","v":"PWD"},{"$f":"'Data 2012'!$W$56","v":2.3099681643928998},{"$f":"IF('Start Page'!$Y$36=2,Z242*VLOOKUP('Start Page'!$Y$36,'Unit Conversion Sheet'!$A$43:$C$45,3)*VLOOKUP('Start Page'!$Y$36,'Unit Conversion Sheet'!$A$48:$C$50,3),Z242)","v":2.3099681643928998}]
[null,null,null,null,null,null,null,null,null,null,null,null,null,null,null,null,null,null,null,null,null,null,null,null,{"$f":"'Data 2012'!$X$6","v":"RRW"},{"$f":"'Data 2012'!$X$56","v":0.51846104098246959},{"$f":"IF('Start Page'!$Y$36=2,Z243*VLOOKUP('Start Page'!$Y$36,'Unit Conversion Sheet'!$A$43:$C$45,3)*VLOOKUP('Start Page'!$Y$36,'Unit Conversion Sheet'!$A$48:$C$50,3),Z243)","v":0.51846104098246959}]
[null,null,null,null,null,null,null,null,null,null,null,null,null,null,null,null,null,null,null,null,null,null,null,null,{"$f":"'Data 2012'!$Y$6","v":"UI"},{"$f":"'Data 2012'!$Y$56","v":0.13675307582118784},{"$f":"IF('Start Page'!$Y$36=2,Z244*VLOOKUP('Start Page'!$Y$36,'Unit Conversion Sheet'!$A$43:$C$45,3)*VLOOKUP('Start Page'!$Y$36,'Unit Conversion Sheet'!$A$48:$C$50,3),Z244)","v":0.13675307582118784}]
[null,null,null,null,null,null,null,null,null,null,null,null,null,null,null,null,null,null,null,null,null,null,null,null,{"$f":"'Data 2012'!$Z$6","v":"WWU"},{"$f":"'Data 2012'!$Z$56","v":0.60026729914236965},{"$f":"IF('Start Page'!$Y$36=2,Z245*VLOOKUP('Start Page'!$Y$36,'Unit Conversion Sheet'!$A$43:$C$45,3)*VLOOKUP('Start Page'!$Y$36,'Unit Conversion Sheet'!$A$48:$C$50,3),Z245)","v":0.60026729914236965}]
[null,null,null,null,null,null,null,null,null,null,null,null,null,null,null,null,null,null,null,null,null,null,null,null,{"$f":"'Data 2012'!$AA$6","v":"WCSA"},{"$f":"'Data 2012'!$AA$56","v":0},{"$f":"IF('Start Page'!$Y$36=2,Z246*VLOOKUP('Start Page'!$Y$36,'Unit Conversion Sheet'!$A$43:$C$45,3)*VLOOKUP('Start Page'!$Y$36,'Unit Conversion Sheet'!$A$48:$C$50,3),Z246)","v":0}]
[null,null,null,null,null,null,null,null,null,null,null,null,null,null,null,null,null,null,null,null,null,null,null,null,{"$f":"'Data 2012'!$AB$6","v":"WDPW"},{"$f":"'Data 2012'!$AB$56","v":3.121402777760419},{"$f":"IF('Start Page'!$Y$36=2,Z247*VLOOKUP('Start Page'!$Y$36,'Unit Conversion Sheet'!$A$43:$C$45,3)*VLOOKUP('Start Page'!$Y$36,'Unit Conversion Sheet'!$A$48:$C$50,3),Z247)","v":3.121402777760419}]
[null,null,null,null,null,null,null,null,null,null,null,null,null,null,null,null,null,null,null,null,null,null,null,null,{"$f":"'Data 2012'!$AC$6","v":"WWAWC"},{"$f":"'Data 2012'!$AC$56","v":0},{"$f":"IF('Start Page'!$Y$36=2,Z248*VLOOKUP('Start Page'!$Y$36,'Unit Conversion Sheet'!$A$43:$C$45,3)*VLOOKUP('Start Page'!$Y$36,'Unit Conversion Sheet'!$A$48:$C$50,3),Z248)","v":0}]
[null,null,null,null,null,null,null,null,null,null,null,null,null,null,null,null,null,null,null,null,null,null,null,null,{"$f":"$C$8","v":""},{"$f":"'AWWA-Water Balance Data Transf.'!$D$60","v":"N/A"},{"$f":"'AWWA-Water Balance Data Transf.'!$D$60","v":"N/A"}]
[]
[null,null,null,null,null,null,null,null,null,null,null,null,null,null,null,null,null,null,null,null,null,null,null,null,{"$f":"IF('Start Page'!$Y$36=1,\"System Characteristic: Unavoidable Annual Real Losses [MG/Yr]\",IF('Start Page'!$Y$36=2,\"System Characteristic: Unavoidable Annual Real Losses [ML/Yr]\", IF('Start Page'!$Y$36=3,\"Unavoidable Annual Real Losses [Acre-feet/Yr]\")))","v":"System Characteristic: Unavoidable Annual Real Losses [MG/Yr]"}]
[null,null,null,null,null,null,null,null,null,null,null,null,null,null,null,null,null,null,null,null,null,null,null,null,"Utility","Original Values","Chart Values","Percentiles"]
[null,null,null,null,null,null,null,null,null,null,null,null,null,null,null,null,null,null,null,null,null,null,null,null,{"$f":"'Data 2012'!$D$6","v":"GCWW"},{"$f":"'Data 2012'!$D$57","v":2182.3348364136368},{"$f":"IF(ISERROR(IF('Start Page'!$Y$36=1,Z253,Z253*VLOOKUP('Start Page'!$Y$36,'Unit Conversion Sheet'!$A$43:$C$45,3))),\"\",IF('Start Page'!$Y$36=1,Z253,Z253*VLOOKUP('Start Page'!$Y$36,'Unit Conversion Sheet'!$A$43:$C$45,3)))","v":2182.3348364136368},0.25,{"$f":"PERCENTILE(AA253:AA279,AB253)","v":162.56276676136363}]
[null,null,null,null,null,null,null,null,null,null,null,null,null,null,null,null,null,null,null,null,null,null,null,null,{"$f":"'Data 2012'!$E$6","v":"SMW"},{"$f":"'Data 2012'!$E$57","v":82.915589999999995},{"$f":"IF(ISERROR(IF('Start Page'!$Y$36=1,Z254,Z254*VLOOKUP('Start Page'!$Y$36,'Unit Conversion Sheet'!$A$43:$C$45,3))),\"\",IF('Start Page'!$Y$36=1,Z254,Z254*VLOOKUP('Start Page'!$Y$36,'Unit Conversion Sheet'!$A$43:$C$45,3)))","v":82.915589999999995},0.5,{"$f":"PERCENTILE(AA254:AA280,AB254)","v":538.81279359406722}]
[null,null,null,null,null,null,null,null,null,null,null,null,null,null,null,null,null,null,null,null,null,null,null,null,{"$f":"'Data 2012'!$F$6","v":"ABCWUA"},{"$f":"'Data 2012'!$F$57","v":1336.9558072125001},{"$f":"IF(ISERROR(IF('Start Page'!$Y$36=1,Z255,Z255*VLOOKUP('Start Page'!$Y$36,'Unit Conversion Sheet'!$A$43:$C$45,3))),\"\",IF('Start Page'!$Y$36=1,Z255,Z255*VLOOKUP('Start Page'!$Y$36,'Unit Conversion Sheet'!$A$43:$C$45,3)))","v":1336.9558072125001},0.75,1676.957920265]
[null,null,null,null,null,null,null,null,null,null,null,null,null,null,null,null,null,null,null,null,null,null,null,null,{"$f":"'Data 2012'!$G$6","v":"AquaWSC"},{"$f":"'Data 2012'!$G$57","v":225.85278374999999},{"$f":"IF(ISERROR(IF('Start Page'!$Y$36=1,Z256,Z256*VLOOKUP('Start Page'!$Y$36,'Unit Conversion Sheet'!$A$43:$C$45,3))),\"\",IF('Start Page'!$Y$36=1,Z256,Z256*VLOOKUP('Start Page'!$Y$36,'Unit Conversion Sheet'!$A$43:$C$45,3)))","v":225.85278374999999}]
[null,null,null,null,null,null,null,null,null,null,null,null,null,null,null,null,null,null,null,null,null,null,null,null,{"$f":"'Data 2012'!$H$6","v":"AW"},{"$f":"'Data 2012'!$H$57","v":1453.32155923},{"$f":"IF(ISERROR(IF('Start Page'!$Y$36=1,Z257,Z257*VLOOKUP('Start Page'!$Y$36,'Unit Conversion Sheet'!$A$43:$C$45,3))),\"\",IF('Start Page'!$Y$36=1,Z257,Z257*VLOOKUP('Start Page'!$Y$36,'Unit Conversion Sheet'!$A$43:$C$45,3)))","v":1453.32155923}]
[null,null,null,null,null,null,null,null,null,null,null,null,null,null,null,null,null,null,null,null,null,null,null,null,{"$f":"'Data 2012'!$I$6","v":"BUD"},{"$f":"'Data 2012'!$I$57","v":28.642006250000001},{"$f":"IF(ISERROR(IF('Start Page'!$Y$36=1,Z258,Z258*VLOOKUP('Start Page'!$Y$36,'Unit Conversion Sheet'!$A$43:$C$45,3))),\"\",IF('Start Page'!$Y$36=1,Z258,Z258*VLOOKUP('Start Page'!$Y$36,'Unit Conversion Sheet'!$A$43:$C$45,3)))","v":28.642006250000001}]
[null,null,null,null,null,null,null,null,null,null,null,null,null,null,null,null,null,null,null,null,null,null,null,null,{"$f":"'Data 2012'!$J$6","v":"BWWB"},{"$f":"'Data 2012'!$J$57","v":2275.7263934685693},{"$f":"IF(ISERROR(IF('Start Page'!$Y$36=1,Z259,Z259*VLOOKUP('Start Page'!$Y$36,'Unit Conversion Sheet'!$A$43:$C$45,3))),\"\",IF('Start Page'!$Y$36=1,Z259,Z259*VLOOKUP('Start Page'!$Y$36,'Unit Conversion Sheet'!$A$43:$C$45,3)))","v":2275.7263934685693}]
[null,null,null,null,null,null,null,null,null,null,null,null,null,null,null,null,null,null,null,null,null,null,null,null,{"$f":"'Data 2012'!$K$6","v":"CW"},{"$f":"'Data 2012'!$K$57","v":2022.2454638590914},{"$f":"IF(ISERROR(IF('Start Page'!$Y$36=1,Z260,Z260*VLOOKUP('Start Page'!$Y$36,'Unit Conversion Sheet'!$A$43:$C$45,3))),\"\",IF('Start Page'!$Y$36=1,Z260,Z260*VLOOKUP('Start Page'!$Y$36,'Unit Conversion Sheet'!$A$43:$C$45,3)))","v":2022.2454638590914}]
[null,null,null,null,null,null,null,null,null,null,null,null,null,null,null,null,null,null,null,null,null,null,null,null,{"$f":"'Data 2012'!$L$6","v":"CCWSA"},{"$f":"'Data 2012'!$L$57","v":346.79620169999998},{"$f":"IF(ISERROR(IF('Start Page'!$Y$36=1,Z261,Z261*VLOOKUP('Start Page'!$Y$36,'Unit Conversion Sheet'!$A$43:$C$45,3))),\"\",IF('Start Page'!$Y$36=1,Z261,Z261*VLOOKUP('Start Page'!$Y$36,'Unit Conversion Sheet'!$A$43:$C$45,3)))","v":346.79620169999998}]
[null,null,null,null,null,null,null,null,null,null,null,null,null,null,null,null,null,null,null,null,null,null,null,null,{"$f":"'Data 2012'!$M$6","v":"CCWS"},{"$f":"'Data 2012'!$M$57","v":1233.6284599999999},{"$f":"IF(ISERROR(IF('Start Page'!$Y$36=1,Z262,Z262*VLOOKUP('Start Page'!$Y$36,'Unit Conversion Sheet'!$A$43:$C$45,3))),\"\",IF('Start Page'!$Y$36=1,Z262,Z262*VLOOKUP('Start Page'!$Y$36,'Unit Conversion Sheet'!$A$43:$C$45,3)))","v":1233.6284599999999}]
[null,null,null,null,null,null,null,null,null,null,null,null,null,null,null,null,null,null,null,null,null,null,null,null,{"$f":"'Data 2012'!$N$6","v":"CBW"},{"$f":"'Data 2012'!$N$57","v":53.477021344898937},{"$f":"IF(ISERROR(IF('Start Page'!$Y$36=1,Z263,Z263*VLOOKUP('Start Page'!$Y$36,'Unit Conversion Sheet'!$A$43:$C$45,3))),\"\",IF('Start Page'!$Y$36=1,Z263,Z263*VLOOKUP('Start Page'!$Y$36,'Unit Conversion Sheet'!$A$43:$C$45,3)))","v":53.477021344898937}]
[null,null,null,null,null,null,null,null,null,null,null,null,null,null,null,null,null,null,null,null,null,null,null,null,{"$f":"'Data 2012'!$O$6","v":"DUTIL"},{"$f":"'Data 2012'!$O$57","v":487.91223998769999},{"$f":"IF(ISERROR(IF('Start Page'!$Y$36=1,Z264,Z264*VLOOKUP('Start Page'!$Y$36,'Unit Conversion Sheet'!$A$43:$C$45,3))),\"\",IF('Start Page'!$Y$36=1,Z264,Z264*VLOOKUP('Start Page'!$Y$36,'Unit Conversion Sheet'!$A$43:$C$45,3)))","v":487.91223998769999}]
[null,null,null,null,null,null,null,null,null,null,null,null,null,null,null,null,null,null,null,null,null,null,null,null,{"$f":"'Data 2012'!$P$6","v":"DCWATER"},{"$f":"'Data 2012'!$P$57","v":761.22900596590898},{"$f":"IF(ISERROR(IF('Start Page'!$Y$36=1,Z265,Z265*VLOOKUP('Start Page'!$Y$36,'Unit Conversion Sheet'!$A$43:$C$45,3))),\"\",IF('Start Page'!$Y$36=1,Z265,Z265*VLOOKUP('Start Page'!$Y$36,'Unit Conversion Sheet'!$A$43:$C$45,3)))","v":761.22900596590898}]
[null,null,null,null,null,null,null,null,null,null,null,null,null,null,null,null,null,null,null,null,null,null,null,null,{"$f":"'Data 2012'!$Q$6","v":"HRWC"},{"$f":"'Data 2012'!$Q$57","v":566.05407018813457},{"$f":"IF(ISERROR(IF('Start Page'!$Y$36=1,Z266,Z266*VLOOKUP('Start Page'!$Y$36,'Unit Conversion Sheet'!$A$43:$C$45,3))),\"\",IF('Start Page'!$Y$36=1,Z266,Z266*VLOOKUP('Start Page'!$Y$36,'Unit Conversion Sheet'!$A$43:$C$45,3)))","v":566.05407018813457}]
[null,null,null,null,null,null,null,null,null,null,null,null,null,null,null,null,null,null,null,null,null,null,null,null,{"$f":"'Data 2012'!$R$6","v":"JCW1"},{"$f":"'Data 2012'!$R$57","v":1136.4788083785002},{"$f":"IF(ISERROR(IF('Start Page'!$Y$36=1,Z267,Z267*VLOOKUP('Start Page'!$Y$36,'Unit Conversion Sheet'!$A$43:$C$45,3))),\"\",IF('Start Page'!$Y$36=1,Z267,Z267*VLOOKUP('Start Page'!$Y$36,'Unit Conversion Sheet'!$A$43:$C$45,3)))","v":1136.4788083785002}]
[null,null,null,null,null,null,null,null,null,null,null,null,null,null,null,null,null,null,null,null,null,null,null,null,{"$f":"'Data 2012'!$S$6","v":"LVVWD"},{"$f":"'Data 2012'!$S$57","v":2133.1861075000002},{"$f":"IF(ISERROR(IF('Start Page'!$Y$36=1,Z268,Z268*VLOOKUP('Start Page'!$Y$36,'Unit Conversion Sheet'!$A$43:$C$45,3))),\"\",IF('Start Page'!$Y$36=1,Z268,Z268*VLOOKUP('Start Page'!$Y$36,'Unit Conversion Sheet'!$A$43:$C$45,3)))","v":2133.1861075000002}]
[null,null,null,null,null,null,null,null,null,null,null,null,null,null,null,null,null,null,null,null,null,null,null,null,{"$f":"'Data 2012'!$T$6","v":"LWCKY"},{"$f":"'Data 2012'!$T$57","v":1900.5942812999999},{"$f":"IF(ISERROR(IF('Start Page'!$Y$36=1,Z269,Z269*VLOOKUP('Start Page'!$Y$36,'Unit Conversion Sheet'!$A$43:$C$45,3))),\"\",IF('Start Page'!$Y$36=1,Z269,Z269*VLOOKUP('Start Page'!$Y$36,'Unit Conversion Sheet'!$A$43:$C$45,3)))","v":1900.5942812999999}]
[null,null,null,null,null,null,null,null,null,null,null,null,null,null,null,null,null,null,null,null,null,null,null,null,{"$f":"'Data 2012'!$U$6","v":"OCFL"},{"$f":"'Data 2012'!$U$57","v":511.57151699999997},{"$f":"IF(ISERROR(IF('Start Page'!$Y$36=1,Z270,Z270*VLOOKUP('Start Page'!$Y$36,'Unit Conversion Sheet'!$A$43:$C$45,3))),\"\",IF('Start Page'!$Y$36=1,Z270,Z270*VLOOKUP('Start Page'!$Y$36,'Unit Conversion Sheet'!$A$43:$C$45,3)))","v":511.57151699999997}]
[null,null,null,null,null,null,null,null,null,null,null,null,null,null,null,null,null,null,null,null,null,null,null,null,{"$f":"'Data 2012'!$V$6","v":"PAW"},{"$f":"'Data 2012'!$V$57","v":2670.3403794631254},{"$f":"IF(ISERROR(IF('Start Page'!$Y$36=1,Z271,Z271*VLOOKUP('Start Page'!$Y$36,'Unit Conversion Sheet'!$A$43:$C$45,3))),\"\",IF('Start Page'!$Y$36=1,Z271,Z271*VLOOKUP('Start Page'!$Y$36,'Unit Conversion Sheet'!$A$43:$C$45,3)))","v":2670.3403794631254}]
[null,null,null,null,null,null,null,null,null,null,null,null,null,null,null,null,null,null,null,null,null,null,null,null,{"$f":"'Data 2012'!$W$6","v":"PWD"},{"$f":"'Data 2012'!$W$57","v":2101.6717839375001},{"$f":"IF(ISERROR(IF('Start Page'!$Y$36=1,Z272,Z272*VLOOKUP('Start Page'!$Y$36,'Unit Conversion Sheet'!$A$43:$C$45,3))),\"\",IF('Start Page'!$Y$36=1,Z272,Z272*VLOOKUP('Start Page'!$Y$36,'Unit Conversion Sheet'!$A$43:$C$45,3)))","v":2101.6717839375001}]
[null,null,null,null,null,null,null,null,null,null,null,null,null,null,null,null,null,null,null,null,null,null,null,null,{"$f":"'Data 2012'!$X$6","v":"RRW"},{"$f":"'Data 2012'!$X$57","v":161.57270674999998},{"$f":"IF(ISERROR(IF('Start Page'!$Y$36=1,Z273,Z273*VLOOKUP('Start Page'!$Y$36,'Unit Conversion Sheet'!$A$43:$C$45,3))),\"\",IF('Start Page'!$Y$36=1,Z273,Z273*VLOOKUP('Start Page'!$Y$36,'Unit Conversion Sheet'!$A$43:$C$45,3)))","v":161.57270674999998}]
[null,null,null,null,null,null,null,null,null,null,null,null,null,null,null,null,null,null,null,null,null,null,null,null,{"$f":"'Data 2012'!$Y$6","v":"UI"},{"$f":"'Data 2012'!$Y$57","v":"Not Valid"},{"$f":"IF(ISERROR(IF('Start Page'!$Y$36=1,Z274,Z274*VLOOKUP('Start Page'!$Y$36,'Unit Conversion Sheet'!$A$43:$C$45,3))),\"\",IF('Start Page'!$Y$36=1,Z274,Z274*VLOOKUP('Start Page'!$Y$36,'Unit Conversion Sheet'!$A$43:$C$45,3)))","v":"Not Valid"}]
[null,null,null,null,null,null,null,null,null,null,null,null,null,null,null,null,null,null,null,null,null,null,null,null,{"$f":"'Data 2012'!$Z$6","v":"WWU"},{"$f":"'Data 2012'!$Z$57","v":78.260066431818188},{"$f":"IF(ISERROR(IF('Start Page'!$Y$36=1,Z275,Z275*VLOOKUP('Start Page'!$Y$36,'Unit Conversion Sheet'!$A$43:$C$45,3))),\"\",IF('Start Page'!$Y$36=1,Z275,Z275*VLOOKUP('Start Page'!$Y$36,'Unit Conversion Sheet'!$A$43:$C$45,3)))","v":78.260066431818188}]
[null,null,null,null,null,null,null,null,null,null,null,null,null,null,null,null,null,null,null,null,null,null,null,null,{"$f":"'Data 2012'!$AA$6","v":"WCSA"},{"$f":"'Data 2012'!$AA$57","v":286.24614000000003},{"$f":"IF(ISERROR(IF('Start Page'!$Y$36=1,Z276,Z276*VLOOKUP('Start Page'!$Y$36,'Unit Conversion Sheet'!$A$43:$C$45,3))),\"\",IF('Start Page'!$Y$36=1,Z276,Z276*VLOOKUP('Start Page'!$Y$36,'Unit Conversion Sheet'!$A$43:$C$45,3)))","v":286.24614000000003}]
[null,null,null,null,null,null,null,null,null,null,null,null,null,null,null,null,null,null,null,null,null,null,null,null,{"$f":"'Data 2012'!$AB$6","v":"WDPW"},{"$f":"'Data 2012'!$AB$57","v":162.56276676136363},{"$f":"IF(ISERROR(IF('Start Page'!$Y$36=1,Z277,Z277*VLOOKUP('Start Page'!$Y$36,'Unit Conversion Sheet'!$A$43:$C$45,3))),\"\",IF('Start Page'!$Y$36=1,Z277,Z277*VLOOKUP('Start Page'!$Y$36,'Unit Conversion Sheet'!$A$43:$C$45,3)))","v":162.56276676136363}]
[null,null,null,null,null,null,null,null,null,null,null,null,null,null,null,null,null,null,null,null,null,null,null,null,{"$f":"'Data 2012'!$AC$6","v":"WWAWC"},{"$f":"'Data 2012'!$AC$57","v":61.148523000000004},{"$f":"IF(ISERROR(IF('Start Page'!$Y$36=1,Z278,Z278*VLOOKUP('Start Page'!$Y$36,'Unit Conversion Sheet'!$A$43:$C$45,3))),\"\",IF('Start Page'!$Y$36=1,Z278,Z278*VLOOKUP('Start Page'!$Y$36,'Unit Conversion Sheet'!$A$43:$C$45,3)))","v":61.148523000000004}]
[null,null,null,null,null,null,null,null,null,null,null,null,null,null,null,null,null,null,null,null,null,null,null,null,{"$f":"$C$8","v":""},{"$f":"'AWWA-Water Balance Data Transf.'!$D$61","v":"N/A"},{"$f":"'AWWA-Water Balance Data Transf.'!$D$61","v":"N/A"}]
[]
[null,null,null,null,null,null,null,null,null,null,null,null,null,null,null,null,null,null,null,null,null,null,null,null,{"$f":"IF('Start Page'!$Y$36=1,\"Performance Indicator: Current Annual Real Losses [MG/Yr]\",IF('Start Page'!$Y$36=2,\"Performance Indicator: Current Annual Real Losses [ML/Yr]\", IF('Start Page'!$Y$36=3,\"Current Annual Real Losses [Acre-feet/Yr]\")))","v":"Performance Indicator: Current Annual Real Losses [MG/Yr]"}]
[null,null,null,null,null,null,null,null,null,null,null,null,null,null,null,null,null,null,null,null,null,null,null,null,"Utility","Original Values","Chart Values","Percentiles"]
[null,null,null,null,null,null,null,null,null,null,null,null,null,null,null,null,null,null,null,null,null,null,null,null,{"$f":"'Data 2012'!$D$6","v":"GCWW"},{"$f":"'Data 2012'!$D$35","v":5157.7028181818096},{"$f":"IF('Start Page'!$Y$36=1,Z283,Z283*VLOOKUP('Start Page'!$Y$36,'Unit Conversion Sheet'!$A$43:$C$45,3))","v":5157.7028181818096},0.25,{"$f":"PERCENTILE(AA283:AA309,AB283)","v":389.33355002989401}]
[null,null,null,null,null,null,null,null,null,null,null,null,null,null,null,null,null,null,null,null,null,null,null,null,{"$f":"'Data 2012'!$E$6","v":"SMW"},{"$f":"'Data 2012'!$E$35","v":276.5296625678161},{"$f":"IF('Start Page'!$Y$36=1,Z284,Z284*VLOOKUP('Start Page'!$Y$36,'Unit Conversion Sheet'!$A$43:$C$45,3))","v":276.5296625678161},0.5,{"$f":"PERCENTILE(AA284:AA310,AB284)","v":1369.7238379591834}]
[null,null,null,null,null,null,null,null,null,null,null,null,null,null,null,null,null,null,null,null,null,null,null,null,{"$f":"'Data 2012'!$F$6","v":"ABCWUA"},{"$f":"'Data 2012'!$F$35","v":1790.995656678162},{"$f":"IF('Start Page'!$Y$36=1,Z285,Z285*VLOOKUP('Start Page'!$Y$36,'Unit Conversion Sheet'!$A$43:$C$45,3))","v":1790.995656678162},0.75,4303.7482513045106]
[null,null,null,null,null,null,null,null,null,null,null,null,null,null,null,null,null,null,null,null,null,null,null,null,{"$f":"'Data 2012'!$G$6","v":"AquaWSC"},{"$f":"'Data 2012'!$G$35","v":411.65442893400996},{"$f":"IF('Start Page'!$Y$36=1,Z286,Z286*VLOOKUP('Start Page'!$Y$36,'Unit Conversion Sheet'!$A$43:$C$45,3))","v":411.65442893400996}]
[null,null,null,null,null,null,null,null,null,null,null,null,null,null,null,null,null,null,null,null,null,null,null,null,{"$f":"'Data 2012'!$H$6","v":"AW"},{"$f":"'Data 2012'!$H$35","v":4332.2116000000024},{"$f":"IF('Start Page'!$Y$36=1,Z287,Z287*VLOOKUP('Start Page'!$Y$36,'Unit Conversion Sheet'!$A$43:$C$45,3))","v":4332.2116000000024}]
[null,null,null,null,null,null,null,null,null,null,null,null,null,null,null,null,null,null,null,null,null,null,null,null,{"$f":"'Data 2012'!$I$6","v":"BUD"},{"$f":"'Data 2012'!$I$35","v":129.54082196969694},{"$f":"IF('Start Page'!$Y$36=1,Z288,Z288*VLOOKUP('Start Page'!$Y$36,'Unit Conversion Sheet'!$A$43:$C$45,3))","v":129.54082196969694}]
[null,null,null,null,null,null,null,null,null,null,null,null,null,null,null,null,null,null,null,null,null,null,null,null,{"$f":"'Data 2012'!$J$6","v":"BWWB"},{"$f":"'Data 2012'!$J$35","v":9052.1478723271357},{"$f":"IF('Start Page'!$Y$36=1,Z289,Z289*VLOOKUP('Start Page'!$Y$36,'Unit Conversion Sheet'!$A$43:$C$45,3))","v":9052.1478723271357}]
[null,null,null,null,null,null,null,null,null,null,null,null,null,null,null,null,null,null,null,null,null,null,null,null,{"$f":"'Data 2012'!$K$6","v":"CW"},{"$f":"'Data 2012'!$K$35","v":4294.2604684060134},{"$f":"IF('Start Page'!$Y$36=1,Z290,Z290*VLOOKUP('Start Page'!$Y$36,'Unit Conversion Sheet'!$A$43:$C$45,3))","v":4294.2604684060134}]
[null,null,null,null,null,null,null,null,null,null,null,null,null,null,null,null,null,null,null,null,null,null,null,null,{"$f":"'Data 2012'!$L$6","v":"CCWSA"},{"$f":"'Data 2012'!$L$35","v":453.23713382653114},{"$f":"IF('Start Page'!$Y$36=1,Z291,Z291*VLOOKUP('Start Page'!$Y$36,'Unit Conversion Sheet'!$A$43:$C$45,3))","v":453.23713382653114}]
[null,null,null,null,null,null,null,null,null,null,null,null,null,null,null,null,null,null,null,null,null,null,null,null,{"$f":"'Data 2012'!$M$6","v":"CCWS"},{"$f":"'Data 2012'!$M$35","v":1299.0823977538093},{"$f":"IF('Start Page'!$Y$36=1,Z292,Z292*VLOOKUP('Start Page'!$Y$36,'Unit Conversion Sheet'!$A$43:$C$45,3))","v":1299.0823977538093}]
[null,null,null,null,null,null,null,null,null,null,null,null,null,null,null,null,null,null,null,null,null,null,null,null,{"$f":"'Data 2012'!$N$6","v":"CBW"},{"$f":"'Data 2012'!$N$35","v":270.64622647858823},{"$f":"IF('Start Page'!$Y$36=1,Z293,Z293*VLOOKUP('Start Page'!$Y$36,'Unit Conversion Sheet'!$A$43:$C$45,3))","v":270.64622647858823}]
[null,null,null,null,null,null,null,null,null,null,null,null,null,null,null,null,null,null,null,null,null,null,null,null,{"$f":"'Data 2012'!$O$6","v":"DUTIL"},{"$f":"'Data 2012'!$O$35","v":718.30023506700945},{"$f":"IF('Start Page'!$Y$36=1,Z294,Z294*VLOOKUP('Start Page'!$Y$36,'Unit Conversion Sheet'!$A$43:$C$45,3))","v":718.30023506700945}]
[null,null,null,null,null,null,null,null,null,null,null,null,null,null,null,null,null,null,null,null,null,null,null,null,{"$f":"'Data 2012'!$P$6","v":"DCWATER"},{"$f":"'Data 2012'!$P$35","v":5446.9999999999964},{"$f":"IF('Start Page'!$Y$36=1,Z295,Z295*VLOOKUP('Start Page'!$Y$36,'Unit Conversion Sheet'!$A$43:$C$45,3))","v":5446.9999999999964}]
[null,null,null,null,null,null,null,null,null,null,null,null,null,null,null,null,null,null,null,null,null,null,null,null,{"$f":"'Data 2012'!$Q$6","v":"HRWC"},{"$f":"'Data 2012'!$Q$35","v":1769.0606417911822},{"$f":"IF('Start Page'!$Y$36=1,Z296,Z296*VLOOKUP('Start Page'!$Y$36,'Unit Conversion Sheet'!$A$43:$C$45,3))","v":1769.0606417911822}]
[null,null,null,null,null,null,null,null,null,null,null,null,null,null,null,null,null,null,null,null,null,null,null,null,{"$f":"'Data 2012'!$R$6","v":"JCW1"},{"$f":"'Data 2012'!$R$35","v":1924.3358043492917},{"$f":"IF('Start Page'!$Y$36=1,Z297,Z297*VLOOKUP('Start Page'!$Y$36,'Unit Conversion Sheet'!$A$43:$C$45,3))","v":1924.3358043492917}]
[null,null,null,null,null,null,null,null,null,null,null,null,null,null,null,null,null,null,null,null,null,null,null,null,{"$f":"'Data 2012'!$S$6","v":"LVVWD"},{"$f":"'Data 2012'!$S$35","v":3605.6557499999908},{"$f":"IF('Start Page'!$Y$36=1,Z298,Z298*VLOOKUP('Start Page'!$Y$36,'Unit Conversion Sheet'!$A$43:$C$45,3))","v":3605.6557499999908}]
[null,null,null,null,null,null,null,null,null,null,null,null,null,null,null,null,null,null,null,null,null,null,null,null,{"$f":"'Data 2012'!$T$6","v":"LWCKY"},{"$f":"'Data 2012'!$T$35","v":4554.4919999999984},{"$f":"IF('Start Page'!$Y$36=1,Z299,Z299*VLOOKUP('Start Page'!$Y$36,'Unit Conversion Sheet'!$A$43:$C$45,3))","v":4554.4919999999984}]
[null,null,null,null,null,null,null,null,null,null,null,null,null,null,null,null,null,null,null,null,null,null,null,null,{"$f":"'Data 2012'!$U$6","v":"OCFL"},{"$f":"'Data 2012'!$U$35","v":651.45533358585817},{"$f":"IF('Start Page'!$Y$36=1,Z300,Z300*VLOOKUP('Start Page'!$Y$36,'Unit Conversion Sheet'!$A$43:$C$45,3))","v":651.45533358585817}]
[null,null,null,null,null,null,null,null,null,null,null,null,null,null,null,null,null,null,null,null,null,null,null,null,{"$f":"'Data 2012'!$V$6","v":"PAW"},{"$f":"'Data 2012'!$V$35","v":8839.4635162820505},{"$f":"IF('Start Page'!$Y$36=1,Z301,Z301*VLOOKUP('Start Page'!$Y$36,'Unit Conversion Sheet'!$A$43:$C$45,3))","v":8839.4635162820505}]
[null,null,null,null,null,null,null,null,null,null,null,null,null,null,null,null,null,null,null,null,null,null,null,null,{"$f":"'Data 2012'!$W$6","v":"PWD"},{"$f":"'Data 2012'!$W$35","v":24318.400000000009},{"$f":"IF('Start Page'!$Y$36=1,Z302,Z302*VLOOKUP('Start Page'!$Y$36,'Unit Conversion Sheet'!$A$43:$C$45,3))","v":24318.400000000009}]
[null,null,null,null,null,null,null,null,null,null,null,null,null,null,null,null,null,null,null,null,null,null,null,null,{"$f":"'Data 2012'!$X$6","v":"RRW"},{"$f":"'Data 2012'!$X$35","v":381.89325706185537},{"$f":"IF('Start Page'!$Y$36=1,Z303,Z303*VLOOKUP('Start Page'!$Y$36,'Unit Conversion Sheet'!$A$43:$C$45,3))","v":381.89325706185537}]
[null,null,null,null,null,null,null,null,null,null,null,null,null,null,null,null,null,null,null,null,null,null,null,null,{"$f":"'Data 2012'!$Y$6","v":"UI"},{"$f":"'Data 2012'!$Y$35","v":0.33842283673469353},{"$f":"IF('Start Page'!$Y$36=1,Z304,Z304*VLOOKUP('Start Page'!$Y$36,'Unit Conversion Sheet'!$A$43:$C$45,3))","v":0.33842283673469353}]
[null,null,null,null,null,null,null,null,null,null,null,null,null,null,null,null,null,null,null,null,null,null,null,null,{"$f":"'Data 2012'!$Z$6","v":"WWU"},{"$f":"'Data 2012'!$Z$35","v":169.80061224489782},{"$f":"IF('Start Page'!$Y$36=1,Z305,Z305*VLOOKUP('Start Page'!$Y$36,'Unit Conversion Sheet'!$A$43:$C$45,3))","v":169.80061224489782}]
[null,null,null,null,null,null,null,null,null,null,null,null,null,null,null,null,null,null,null,null,null,null,null,null,{"$f":"'Data 2012'!$AA$6","v":"WCSA"},{"$f":"'Data 2012'!$AA$35","v":1369.7238379591834},{"$f":"IF('Start Page'!$Y$36=1,Z306,Z306*VLOOKUP('Start Page'!$Y$36,'Unit Conversion Sheet'!$A$43:$C$45,3))","v":1369.7238379591834}]
[null,null,null,null,null,null,null,null,null,null,null,null,null,null,null,null,null,null,null,null,null,null,null,null,{"$f":"'Data 2012'!$AB$6","v":"WDPW"},{"$f":"'Data 2012'!$AB$35","v":2135.9251980263161},{"$f":"IF('Start Page'!$Y$36=1,Z307,Z307*VLOOKUP('Start Page'!$Y$36,'Unit Conversion Sheet'!$A$43:$C$45,3))","v":2135.9251980263161}]
[null,null,null,null,null,null,null,null,null,null,null,null,null,null,null,null,null,null,null,null,null,null,null,null,{"$f":"'Data 2012'!$AC$6","v":"WWAWC"},{"$f":"'Data 2012'!$AC$35","v":67.440770519267517},{"$f":"IF('Start Page'!$Y$36=1,Z308,Z308*VLOOKUP('Start Page'!$Y$36,'Unit Conversion Sheet'!$A$43:$C$45,3))","v":67.440770519267517}]
[null,null,null,null,null,null,null,null,null,null,null,null,null,null,null,null,null,null,null,null,null,null,null,null,{"$f":"$C$8","v":""},{"$f":"'AWWA-Water Balance Data Transf.'!$D$62","v":""},{"$f":"'AWWA-Water Balance Data Transf.'!$D$62","v":""}]
[]
[null,null,null,null,null,null,null,null,null,null,null,null,null,null,null,null,null,null,null,null,null,null,null,null,"Performance Indicator: Infrastructure Leakage Index (ILI) [CARL/UARL]"]
[null,null,null,null,null,null,null,null,null,null,null,null,null,null,null,null,null,null,null,null,null,null,null,null,"Utility","Original Values","Chart Values","Percentiles"]
[null,null,null,null,null,null,null,null,null,null,null,null,null,null,null,null,null,null,null,null,null,null,null,null,{"$f":"'Data 2012'!$D$6","v":"GCWW"},{"$f":"'Data 2012'!$D$58","v":2.363387474791804},{"$f":"Z313","v":2.363387474791804},0.25,{"$f":"PERCENTILE(AA313:AA339,AB313)","v":1.5267105437099182}]
[null,null,null,null,null,null,null,null,null,null,null,null,null,null,null,null,null,null,null,null,null,null,null,null,{"$f":"'Data 2012'!$E$6","v":"SMW"},{"$f":"'Data 2012'!$E$58","v":3.3350744120353739},{"$f":"Z314","v":3.3350744120353739},0.5,{"$f":"PERCENTILE(AA314:AA340,AB314)","v":2.363600045722793}]
[null,null,null,null,null,null,null,null,null,null,null,null,null,null,null,null,null,null,null,null,null,null,null,null,{"$f":"'Data 2012'!$F$6","v":"ABCWUA"},{"$f":"'Data 2012'!$F$58","v":1.3396072233773508},{"$f":"Z315","v":1.3396072233773508},0.75,4.113961175648452]
[null,null,null,null,null,null,null,null,null,null,null,null,null,null,null,null,null,null,null,null,null,null,null,null,{"$f":"'Data 2012'!$G$6","v":"AquaWSC"},{"$f":"'Data 2012'!$G$58","v":1.8226670581562401},{"$f":"Z316","v":1.8226670581562401}]
[null,null,null,null,null,null,null,null,null,null,null,null,null,null,null,null,null,null,null,null,null,null,null,null,{"$f":"'Data 2012'!$H$6","v":"AW"},{"$f":"'Data 2012'!$H$58","v":2.9809036909184075},{"$f":"Z317","v":2.9809036909184075}]
[null,null,null,null,null,null,null,null,null,null,null,null,null,null,null,null,null,null,null,null,null,null,null,null,{"$f":"'Data 2012'!$I$6","v":"BUD"},{"$f":"'Data 2012'!$I$58","v":4.5227565708563775},4.5227565708563775]
[null,null,null,null,null,null,null,null,null,null,null,null,null,null,null,null,null,null,null,null,null,null,null,null,{"$f":"'Data 2012'!$J$6","v":"BWWB"},{"$f":"'Data 2012'!$J$58","v":3.9776960439124762},3.9776960439124762]
[null,null,null,null,null,null,null,null,null,null,null,null,null,null,null,null,null,null,null,null,null,null,null,null,{"$f":"'Data 2012'!$K$6","v":"CW"},{"$f":"'Data 2012'!$K$58","v":2.1235109907039624},2.1235109907039624]
[null,null,null,null,null,null,null,null,null,null,null,null,null,null,null,null,null,null,null,null,null,null,null,null,{"$f":"'Data 2012'!$L$6","v":"CCWSA"},{"$f":"'Data 2012'!$L$58","v":1.3069264646058871},1.3069264646058871]
[null,null,null,null,null,null,null,null,null,null,null,null,null,null,null,null,null,null,null,null,null,null,null,null,{"$f":"'Data 2012'!$M$6","v":"CCWS"},{"$f":"'Data 2012'!$M$58","v":1.0530580639764175},1.0530580639764175]
[null,null,null,null,null,null,null,null,null,null,null,null,null,null,null,null,null,null,null,null,null,null,null,null,{"$f":"'Data 2012'!$N$6","v":"CBW"},{"$f":"'Data 2012'!$N$58","v":5.0609817015248666},5.0609817015248666]
[null,null,null,null,null,null,null,null,null,null,null,null,null,null,null,null,null,null,null,null,null,null,null,null,{"$f":"'Data 2012'!$O$6","v":"DUTIL"},{"$f":"'Data 2012'!$O$58","v":1.4721914643607166},1.4721914643607166]
[null,null,null,null,null,null,null,null,null,null,null,null,null,null,null,null,null,null,null,null,null,null,null,null,{"$f":"'Data 2012'!$P$6","v":"DCWATER"},{"$f":"'Data 2012'!$P$58","v":7.1555339553678747},7.1555339553678747]
[null,null,null,null,null,null,null,null,null,null,null,null,null,null,null,null,null,null,null,null,null,null,null,null,{"$f":"'Data 2012'!$Q$6","v":"HRWC"},{"$f":"'Data 2012'!$Q$58","v":3.1252502807783267},3.1252502807783267]
[null,null,null,null,null,null,null,null,null,null,null,null,null,null,null,null,null,null,null,null,null,null,null,null,{"$f":"'Data 2012'!$R$6","v":"JCW1"},{"$f":"'Data 2012'!$R$58","v":1.6932438952336353},1.6932438952336353]
[null,null,null,null,null,null,null,null,null,null,null,null,null,null,null,null,null,null,null,null,null,null,null,null,{"$f":"'Data 2012'!$S$6","v":"LVVWD"},{"$f":"'Data 2012'!$S$58","v":1.6902677817575233},1.6902677817575233]
[null,null,null,null,null,null,null,null,null,null,null,null,null,null,null,null,null,null,null,null,null,null,null,null,{"$f":"'Data 2012'!$T$6","v":"LWCKY"},{"$f":"'Data 2012'!$T$58","v":2.3963515226851793},2.3963515226851793]
[null,null,null,null,null,null,null,null,null,null,null,null,null,null,null,null,null,null,null,null,null,null,null,null,{"$f":"'Data 2012'!$U$6","v":"OCFL"},{"$f":"'Data 2012'!$U$58","v":1.2734394154822701},1.2734394154822701]
[null,null,null,null,null,null,null,null,null,null,null,null,null,null,null,null,null,null,null,null,null,null,null,null,{"$f":"'Data 2012'!$V$6","v":"PAW"},{"$f":"'Data 2012'!$V$58","v":3.3102384940376903},3.3102384940376903]
[null,null,null,null,null,null,null,null,null,null,null,null,null,null,null,null,null,null,null,null,null,null,null,null,{"$f":"'Data 2012'!$W$6","v":"PWD"},{"$f":"'Data 2012'!$W$58","v":11.570978963441798},11.570978963441798]
[null,null,null,null,null,null,null,null,null,null,null,null,null,null,null,null,null,null,null,null,null,null,null,null,{"$f":"'Data 2012'!$X$6","v":"RRW"},{"$f":"'Data 2012'!$X$58","v":2.363600045722793},2.363600045722793]
[null,null,null,null,null,null,null,null,null,null,null,null,null,null,null,null,null,null,null,null,null,null,null,null,{"$f":"'Data 2012'!$Y$6","v":"UI"},{"$f":"'Data 2012'!$Y$58","v":0},0]
[null,null,null,null,null,null,null,null,null,null,null,null,null,null,null,null,null,null,null,null,null,null,null,null,{"$f":"'Data 2012'!$Z$6","v":"WWU"},{"$f":"'Data 2012'!$Z$58","v":2.1696967557883644},2.1696967557883644]
[null,null,null,null,null,null,null,null,null,null,null,null,null,null,null,null,null,null,null,null,null,null,null,null,{"$f":"'Data 2012'!$AA$6","v":"WCSA"},{"$f":"'Data 2012'!$AA$58","v":4.7851259687176331},4.7851259687176331]
[null,null,null,null,null,null,null,null,null,null,null,null,null,null,null,null,null,null,null,null,null,null,null,null,{"$f":"'Data 2012'!$AB$6","v":"WDPW"},{"$f":"'Data 2012'!$AB$58","v":13.139080003244398},13.139080003244398]
[null,null,null,null,null,null,null,null,null,null,null,null,null,null,null,null,null,null,null,null,null,null,null,null,{"$f":"'Data 2012'!$AC$6","v":"WWAWC"},{"$f":"'Data 2012'!$AC$58","v":1.1029010548507854},1.1029010548507854]
[null,null,null,null,null,null,null,null,null,null,null,null,null,null,null,null,null,null,null,null,null,null,null,null,{"$f":"$C$8","v":""},{"$f":"'AWWA-Water Balance Data Transf.'!$D$63","v":""},{"$f":"'AWWA-Water Balance Data Transf.'!$D$63","v":""}]

{"sheet":"Real Losses Component Analysis","index":7,"n_rows":179,"n_cols":36,"rows_kept":179,"cut":false,"hidden":false,"merged":[[2,1,2,17],[33,2,33,17],[3,1,3,5],[109,1,109,4],[88,15,88,16],[76,15,76,16],[54,3,55,3],[82,2,83,2],[82,3,83,3],[82,6,83,6],[82,7,83,7],[82,12,83,12],[82,13,83,13],[82,16,84,16],[82,15,84,15],[60,9,60,10],[66,9,66,10],[76,9,76,10],[74,9,74,10],[75,9,75,10],[80,2,80,17],[94,2,95,2],[36,7,37,7],[54,2,55,2],[16,6,17,15],[31,1,31,7],[105,1,105,5],[94,3,95,3],[94,6,95,6],[94,7,95,7],[94,8,94,11],[8,1,8,5],[67,9,67,10],[85,9,85,10],[86,9,86,10],[87,9,87,10],[88,9,88,10],[83,9,83,10],[84,9,84,10],[41,1,41,7],[28,1,28,5],[16,1,16,4],[15,1,15,4],[36,5,37,5],[90,1,90,5],[54,7,55,7],[54,6,55,6],[21,2,21,17],[141,12,142,12],[141,13,142,13],[153,13,154,13],[153,12,154,12],[153,2,154,2],[153,3,154,3],[153,7,154,7],[154,9,154,10],[65,9,65,10],[114,9,114,10],[95,9,95,10],[96,9,96,10],[97,9,97,10],[98,9,98,10],[113,2,114,2],[113,3,114,3],[113,6,114,6],[113,7,114,7],[113,12,114,12],[125,9,125,10],[126,9,126,10],[127,9,127,10],[128,9,128,10],[135,9,135,10],[36,11,36,17],[92,2,92,17],[35,7,35,8],[54,8,54,11],[56,9,56,10],[46,1,46,4],[57,9,57,10],[58,9,58,10],[59,9,59,10],[55,9,55,10],[54,12,55,12],[54,13,55,13],[48,2,48,17],[52,2,52,17],[54,16,56,16],[54,15,56,15],[50,1,50,5],[71,9,71,10],[157,9,157,10],[142,9,142,10],[143,9,143,10],[144,9,144,10],[145,9,145,10],[146,9,146,10],[147,9,147,10],[155,9,155,10],[156,9,156,10],[153,8,153,11],[153,6,154,6],[94,13,95,13],[94,12,95,12],[116,9,116,10],[130,9,130,10],[131,9,131,10],[132,9,132,10],[115,9,115,10],[113,8,113,11],[141,7,142,7],[104,1,104,17],[149,1,149,4],[117,9,117,10],[141,6,142,6],[122,9,122,10],[123,9,123,10],[141,8,141,11],[133,9,133,10],[129,9,129,10],[141,2,142,2],[141,3,142,3],[137,1,137,7],[120,9,120,10],[121,9,121,10],[141,35,142,35],[118,9,118,10],[119,9,119,10],[134,9,134,10],[54,33,55,33],[54,34,55,34],[54,35,55,35],[54,27,55,27],[82,33,83,33],[82,34,83,34],[82,35,83,35],[94,33,95,33],[94,34,95,34],[94,35,95,35],[54,28,55,28],[54,29,55,31],[80,27,83,27],[94,27,95,27],[81,28,83,28],[81,29,83,31],[94,28,96,28],[94,29,96,31],[124,9,124,10],[113,13,114,13],[113,34,114,34],[72,9,72,10],[73,9,73,10],[64,9,64,10],[153,33,154,33],[153,34,154,34],[153,35,154,35],[135,15,135,16],[147,15,147,16],[113,33,114,33],[153,15,155,15],[153,16,155,16],[113,27,114,27],[140,27,142,27],[152,27,154,27],[113,28,114,28],[113,29,114,31],[140,28,142,28],[140,29,142,31],[153,28,155,28],[153,29,155,31],[113,35,114,35],[141,33,142,33],[141,34,142,34],[161,1,178,1],[0,1,1,10],[160,2,176,16],[43,15,45,16],[9,7,10,12],[78,1,78,6],[5,1,5,5],[107,2,107,17],[111,2,111,17],[139,2,139,17],[151,2,151,17],[94,15,96,15],[94,16,96,16],[113,15,115,15],[113,16,115,16],[141,15,143,15],[141,16,143,16],[82,8,82,11],[61,9,61,10],[62,9,62,10],[63,9,63,10],[68,9,68,10],[69,9,69,10],[70,9,70,10]]}
[null,"WaterRF 4372: Real Loss Component Analysis: A Tool for Economic Water Loss Control"]
[]
[null,{"$f":"IF('Start Page'!$Y$37=\"\",\"\",IF('Start Page'!$K$37=\"Partial Audit Period\",\"Water Audit: \"&'Start Page'!$D$26&\", \"&'Start Page'!$H$26&\", \"&'Start Page'!$K$26&\", \"&'Start Page'!$Y$37,\"Water Audit: \"&'Start Page'!$D$26&\", \"&'Start Page'!$H$26&\", \"&'Start Page'!$K$26&\", \"&YEAR('Start Page'!$Y$37)))","v":""}]
[null,"REAL LOSSES COMPONENT ANALYSIS"]
[]
[null,"SUMMARY: REAL LOSS COMPONENT ANALYSIS"]
[]
[null,"Instructions: ","Follow the instructions provided below in Step 1 to Step 4 to calculate the real loss volumes stemming from background leakage, reported leaks and unreported leaks "]
[]
[null,"System Component","Background Leakage","Reported Failures","Unreported Failures","Total",null,"Note: To the left you have the summary table of the real loss component analysis. Please enter the data in step 1 through 4 for the summary table to be populated. "]
[null,null,{"$f":"IF('Start Page'!$Y$36=1,\"(MG)\",IF('Start Page'!$Y$36=2,\"(ML)\",IF('Start Page'!$Y$36=3,\"(Acre-feet)\")))","v":"(MG)"},{"$f":"IF('Start Page'!$Y$36=1,\"(MG)\",IF('Start Page'!$Y$36=2,\"(ML)\",IF('Start Page'!$Y$36=3,\"(Acre-feet)\")))","v":"(MG)"},{"$f":"IF('Start Page'!$Y$36=1,\"(MG)\",IF('Start Page'!$Y$36=2,\"(ML)\",IF('Start Page'!$Y$36=3,\"(Acre-feet)\")))","v":"(MG)"},{"$f":"IF('Start Page'!$Y$36=1,\"(MG)\",IF('Start Page'!$Y$36=2,\"(ML)\",IF('Start Page'!$Y$36=3,\"(Acre-feet)\")))","v":"(MG)"}]
[null,"Reservoirs",{"$f":"G29","v":0},{"$f":"G27","v":0},{"$f":"G28","v":0},{"$f":"SUM(C12:E12)","v":0}]
[null,"Mains and Appurtenances",{"$f":"I39","v":0},{"$f":"N78+N90","v":0},{"$f":"N137+N149","v":0},{"$f":"SUM(C13:E13)","v":0}]
[null,"Service Connections",{"$f":"I40+I41","v":0},{"$f":"N100","v":0},{"$f":"N159","v":0},{"$f":"SUM(C14:E14)","v":0}]
[null,"Total Annual Real Loss",{"$f":"C12+C13+C14","v":0},{"$f":"D12+D13+D14","v":0},{"$f":"E12+E13+E14","v":0},{"$f":"SUM(C15:E15)","v":0}]
[null,"Real Losses as Calculated by Water Audit",null,null,null,{"$f":"IF('AWWA-Water Balance Data Transf.'!D30=\"\",0,'AWWA-Water Balance Data Transf.'!D30)","v":0}]
[null,"Hidden Losses/Unreported Leakage Currently Running Undetected",null,null,null,{"$f":"F16-F15","v":0},{"$f":"IF(F17<0, \"BALANCING ERROR NEEDS TO BE >0 - CHECK WATER BALANCE DATA, COMPONENT ANALYSIS RESULTS, ICF USED MIGHT BE TOO HIGH\",\"\")","v":""}]
[]
[]
[null,"Step 1: BACKGROUND LEAKAGE, REPORTED LEAKAGE AND UNREPORTED LEAKAGE FROM RESERVOIRS"]
[]
[null,"Instructions: ","First enter the capacity of all distribution system reservoirs and tanks in use during the audit period. In case the system input volume is based on raw water meters located upstream of the Water Treatment Plant (WTP) then also include the capacity of the WTP reservoirs. Next select a reservoir background leakage rate - either the default value provided by the model or a utility specific flow rate. If reservoirs and tanks are well maintained and the utility does not suspect any background leakage from the reservoirs and tanks then enter zero as the utility specific flow rate.  In case a reservoir or tank was reported leaking or has overflowed, enter the estimated volume in cell G27 . If a proactive investigation/inspection of the system reservoirs and tanks has discovered a leaking reservoir or tank then enter the estimated annual volume lost in cell G28. "]
[null,null,null,null,null,null,null,null,null,null,null,null,null," "]
[null,null,null,null,"Capacity","Background Leakage Rate","Annual Volume"]
[null,null,null,null,{"$f":"IF('Start Page'!$Y$36=1,\"(MG)\",IF('Start Page'!$Y$36=2,\"(ML)\",IF('Start Page'!$Y$36=3,\"(MG)\")))","v":"(MG)"},{"$f":"IF('Start Page'!$Y$36=1,\"(gpm/MG)\",IF('Start Page'!$Y$36=2,\"(l/min/ML)\",IF('Start Page'!$Y$36=3,\"(gpm/MG)\")))","v":"(gpm/MG)"},{"$f":"IF('Start Page'!$Y$36=1,\"(MG)\",IF('Start Page'!$Y$36=2,\"(ML)\",IF('Start Page'!$Y$36=3,\"(Acre-feet)\")))","v":"(MG)"},null,null,null,0.25,{"$f":"F25","v":"(gpm/MG)"}]
[null,"Total Reservoir/Tank Capacity ",null,null,null,{"$f":"IF(S26=1,K25,IF(S26=2,K28))","v":0.25},{"$f":"IF('Start Page'!$Y$36 = 3,'Unit Conversion Sheet'!E17*E26*F26*60*24*'Start Page'!K35/10^6,E26*F26*60*24*'Start Page'!K35/10^6)","v":0},null,null,null,null,null,null,null,null,null,null,null,1,"cell reference for group box"]
[null,"Reported Reservoir Leakage and any recorded Reservoir and Tank Overflows"]
[null,"Unreported Reservoir Leakage",null,null,null,null,null,null,null,null,0,{"$f":"F25","v":"(gpm/MG)"}]
[null,"Total Background Leakage, Reported and Unreported leakage from Reservoirs",null,null,null,null,{"$f":"SUM(G26:G28)","v":0}]
[null,{"$f":"IF('Start Page'!Y36=3,\"SYSTEM INPUT VOLUME REPORTED IN ACRE-FEET, BACKGROUND LEAKAGE THEREFORE SHOWN IN ACRE-FEET\",\"\")","v":""}]
[]
[null,"Step 2: BACKGROUND LEAKAGE ON MAINS AND SERVICES"]
[]
[null,"Instructions: ","The background leakage volume from mains and service connections will be automatically calculated after selecting one of the default Infrastructure Condition Factors (ICF) based on infrastructure age or after a utility specific ICF has been selected and entered in cell P43. The level of background leakage tends to increase with infrastructure age and is higher for systems with higher pressure. The volume of background losses is generally a significant component of the total real loss volume, at times up to 50% of the total volume of real losses. Overestimating (ICF used in model is too high) or underestimating (ICF used in model is too low) the background leakage volume might lead to a real loss control strategy that is not truly optimized. Selecting the ICF based on general age of the distribution network should only be seen as a starting point. It is strongly recommended that over time a utility specific ICF is assessed and confirmed through field tests using one of the recommended approaches outlined in the AWWA M36 manual.  "]
[]
[null,null,null,null,null,null,null,"Pressure Corrected Calculation",null,null,null,null,null,null,null,null,null,null,null,null,null,null,null,"UARL Background Leakage Values - at 70PSI  -- 49.2 meters head"]
[null,"System Component","Units","Quantity","Component UARL Values","Infrastructure Condition Factor","Average Pressure","N1 (Leakage-Pressure Exponent) Value","Annual Volume",null,null,"Select Infrastructure Condition Factor (ICF) based on age of distribution network",null,null,null,null,null,null,null,null,null,null,null,null,"Component UARL Values","Component UARL Values",null,"For Pressure Correction"]
[null,null,null,null,{"$f":"IF('Start Page'!$Y$36=1,\"(g/unit/d/psi)\",IF('Start Page'!$Y$36=2,\"(l/unit/d/mH)\", IF('Start Page'!$Y$36=3,\"(g/unit/d/psi)\")))","v":"(g/unit/d/psi)"},null,{"$f":"IF('Start Page'!$Y$36=1,\"(psi)\",IF('Start Page'!$Y$36=2,\"mH\", IF('Start Page'!$Y$36=3,\"(psi)\")))","v":"(psi)"},null,{"$f":"IF('Start Page'!$Y$36=1,\"(MG)\",IF('Start Page'!$Y$36=2,\"(ML)\",IF('Start Page'!$Y$36=3,\"Acre-feet\")))","v":"(MG)"},null,null,null,null,null,null,1,null,null,1,"cell reference for group box",null,null,null,null,"g/unit/d/psi","(l/unit/d/metres (head))",null,"g/unit/d/psi","(l/unit/d/metres (head))"]
[null,"Mains",{"$f":"IF('Start Page'!$Y$42=1,\"miles\",IF('Start Page'!$Y$42=2,\"kilometers\"))","v":"miles"},{"$f":"'AWWA-Water Balance Data Transf.'!D37","v":0},{"$f":"IF(AND('Start Page'!$Y$36=1,'Start Page'!$Y$42=2),Y44,IF(AND('Start Page'!$Y$36=2,'Start Page'!$Y$42=2),Z39,IF(AND('Start Page'!$Y$36=3,'Start Page'!$Y$42=2),Y44,IF(AND('Start Page'!$Y$36=1,'Start Page'!$Y$42=1),Y39,IF(AND('Start Page'!$Y$36=2,'Start Page'!$Y$42=1),Z44,IF(AND('Start Page'!$Y$36=3,'Start Page'!$Y$42=1),Y39))))))","v":2.87},{"$f":"IF($S$38=1,$P$38,IF($S$38=2,$P$39,IF($S$38=3,$P$40,IF($S$38=4,$P$43))))","v":1},{"$f":"'AWWA-Water Balance Data Transf.'!$D$41","v":0},1.5,{"$f":"IF('Start Page'!$Y$36=1,($E39*$D39*'Start Page'!$K$35*$AB$39*$F39/10^6)*(($G39/$AB$39)^$H39),IF('Start Page'!$Y$36=2,($E39*$D39*'Start Page'!$K$35*$AC$39*$F39/10^6)*(($G39/$AC$39)^$H39),IF('Start Page'!$Y$36=3,('Unit Conversion Sheet'!E17*$E39*$D39*'Start Page'!$K$35*$AB$39*$F39/10^6)*(($G39/$AB$39)^$H39))))","v":0},null,null,null,null,null,null,1.5,null,null,null,null,null,null,null,"Mains",2.87,9.6,null,70,49.2]
[null,"Services - Main to Curb-Stop","number",{"$f":"'AWWA-Water Balance Data Transf.'!D38","v":0},{"$f":"IF(AND('Start Page'!$Y$36=1,'Start Page'!$Y$42=2),Y45,IF(AND('Start Page'!$Y$36=2,'Start Page'!$Y$42=2),Z40,IF(AND('Start Page'!$Y$36=3,'Start Page'!$Y$42=2),Y45,IF(AND('Start Page'!$Y$36=1,'Start Page'!$Y$42=1),Y40,IF(AND('Start Page'!$Y$36=2,'Start Page'!$Y$42=1),Z45,IF(AND('Start Page'!$Y$36=3,'Start Page'!$Y$42=1),Y40))))))","v":0.112},{"$f":"IF($S$38=1,$P$38,IF($S$38=2,$P$39,IF($S$38=3,$P$40,IF($S$38=4,$P$43))))","v":1},{"$f":"'AWWA-Water Balance Data Transf.'!$D$41","v":0},1.5,{"$f":"IF('Start Page'!$Y$36=1,($E40*$D40*'Start Page'!$K$35*$AB$39*$F40/10^6)*(($G40/$AB$39)^$H40),IF('Start Page'!$Y$36=2,($E40*$D40*'Start Page'!$K$35*$AC$39*$F40/10^6)*(($G40/$AC$39)^$H40),IF('Start Page'!$Y$36=3,('Unit Conversion Sheet'!E17*$E40*$D40*'Start Page'!$K$35*$AB$39*$F40/10^6)*(($G40/$AB$39)^$H40))))","v":0},null,null,null,null,null,null,2.5,null,null,null,null,null,null,null,"Services - Main to Curb-Stop",0.112,0.6]
[null,"Services - Curb-Stop to Meter",{"$f":"IF('Start Page'!$Y$42=1,\"miles\",IF('Start Page'!$Y$42=2,\"kilometers\"))","v":"miles"},{"$f":"IF('Start Page'!Y42=1,'AWWA-Water Balance Data Transf.'!D38*'AWWA-Water Balance Data Transf.'!D40/5280,IF('Start Page'!Y42=2,'AWWA-Water Balance Data Transf.'!D38*'AWWA-Water Balance Data Transf.'!D40/1000))","v":0},{"$f":"IF(AND('Start Page'!$Y$36=1,'Start Page'!$Y$42=2),Y46,IF(AND('Start Page'!$Y$36=2,'Start Page'!$Y$42=2),Z41,IF(AND('Start Page'!$Y$36=3,'Start Page'!$Y$42=2),Y46,IF(AND('Start Page'!$Y$36=1,'Start Page'!$Y$42=1),Y41,IF(AND('Start Page'!$Y$36=2,'Start Page'!$Y$42=1),Z46,IF(AND('Start Page'!$Y$36=3,'Start Page'!$Y$42=1),Y41))))))","v":4.78},{"$f":"IF($S$38=1,$P$38,IF($S$38=2,$P$39,IF($S$38=3,$P$40,IF($S$38=4,$P$43))))","v":1},{"$f":"'AWWA-Water Balance Data Transf.'!$D$41","v":0},1.5,{"$f":"IF('Start Page'!$Y$36=1,($E41*$D41*'Start Page'!$K$35*$AB$39*$F41/10^6)*(($G41/$AB$39)^$H41),IF('Start Page'!$Y$36=2,($E41*$D41*'Start Page'!$K$35*$AC$39*$F41/10^6)*(($G41/$AC$39)^$H41),IF('Start Page'!$Y$36=3,('Unit Conversion Sheet'!E17*$E41*$D41*'Start Page'!$K$35*$AB$39*$F41/10^6)*(($G41/$AB$39)^$H41))))","v":0},null,null,null,null,null,null,null,null,null,null,null,null,null,null,"Services - Curb-Stop to Meter",4.78,16]
[null,"Total Background Leakage on Mains and Services",null,null,null,null,null,null,{"$f":"SUM(I39:I41)","v":0},null,null,null,null,null,null,null,null,null,null,null,null,null,null,null,"Component UARL Values","Component UARL Values"]
[null,null,null,null,null,null,null,null,null,null,null,null,null,null,null,null,null,null,null,null,null,null,null,null,"g/unit/d/psi","(l/unit/d/metres (head))"]
[null,null,null,null,null,null,null,null,null,null,null,null,null,null,null,{"$f":"IF(AND(S38=4,P43<1),\"ICF VALUE MUST BE GREATER THAN 1.0\",\"\")","v":""},null,null,null,null,null,null,null,"Mains",{"$f":"Y39/1.60934","v":1.7833397541849454},{"$f":"Z39*1.60934","v":15.449663999999999}]
[null,null,null,null,null,null,null,null,null,null,null,null,null,null,null,null,null,null,null,null,null,null,null,"Services - Main to Curb-Stop",{"$f":"Y40","v":0.112},{"$f":"Z40","v":0.6},null,{"$f":"AB39 & \"psi\"","v":"70psi"}]
[null,null,null,null,null,null,null,null,null,null,null,null,null,null,null,null,null,null,null,null,null,null,null,"Services - Curb-Stop to Meter",{"$f":"Y41/1.60934","v":2.9701616811860765},{"$f":"Z41*1.60934","v":25.74944}]
[null,"STEP 3: REPORTED FAILURES",null,null,null,null,null,null,null,null,null,null,null,null,null,null,null,null,null,null,null,null,null,null,"g/km","l/mi"]
[]
[null,"Instructions: ","Drinking water utilities supply water through underground piping systems.  Such systems - sooner or later - will incur failures in the form of leaks and breaks (ruptures) in distribution piping. Failures are categorized into three broad types: failures that occur on the primary water main piping , failures on customer service connection piping, and failures on appurtenances attached to water mains; including fire hydrants, valves and air valves or taps. This section \"REPORTED FAILURES\" of the model features a standardized calculation of the real loss volume stemming from failure events reported to the utility. Reported leaks and breaks (failure events) are defined as events that are brought to the attention of the water utility by the general public or other parties as a result of either water showing on the ground surface or other visible places, or of customer complaints. Follow Steps 3A,3B and 3C to calculate the real loss volume stemming from reported leaks and breaks."]
[]
[null,"STEP 3A: REPORTED FAILURES ON MAINS"]
[]
[null,"Instructions: ","Enter the total number of failures by main size that were reported to and repaired by the water utility during the audit period in cells C58 to C77. Next enter the total length of mains for each mains size group in cells D58 to D77  (Note: this information is not required for the real loss component analysis but serves to calculate failure frequencies by mains size). Next enter the average awareness duration for reported failure events by mains size in cells I58 to I77 (Awareness duration is the average time from the occurrence of the failure event until the water utility becomes aware of its existence). Next enter the average duration of locating and containing reported failure events by mains size in cells K58 to K77. Next select either the default average leak flow rate provided by the model in cells P58 to P77 or select and enter your own utility specific average leakage flow rates in cells Q58 to R77. Average failure flow rates are based on AWWA M36 recommended flow rates and flow rates collected by the research team."]
[]
[null,"Mains by Size","Number of Leaks & Failures per Year","Length of Main","Failure Frequency","Average Failure Flow Rate @ ","Average Pressure","N1 (Leakage-Pressure Exponent) Value","Average Failure Duration",null,null,null,"Average Annual Loss per Failure","Total Annual Loss",null,"Use Default Average Failure Flow Rate","Use Utility Specific Average Failure Flow Rate ","Average Failure Flow Rate @",null,null,null,null,null,null,null,null,null,"Based on Select Preferred Volumetric Units for Audit and Component Analysis","Sum for whether F56 states that its at 70/49.2 pressure or at system specific pressure)","Pressure for average leak flow rate depending on whether user utilized default flow rate or utility specific flow rate (which does not need to be pressure corrected)",null,null,null,"Number of Leaks times Location and Repair Duration ","Real Loss Volume per Leak Stemming From Location and Repair Duration","Total Annual Real Loss Volume Stemming From Location and Repair Duration"]
[null,null,null,null,{"$f":"IF('Start Page'!$Y$42=1,\"(number / 100miles / yr)\",IF('Start Page'!$Y$42=2,\"(number /100kilometers / yr)\"))","v":"(number / 100miles / yr)"},{"$f":"IF(AC58=19,IF('Start Page'!$Y$36=1,$AB$39 & \"psi\",IF('Start Page'!$Y$36=2,$AC$39 & \"metres head\",IF('Start Page'!$Y$36=3,$AB$39 & \"psi\"))),(\"Average System Pressure\"))","v":"70psi"},null,null,"Average Awareness Duration","Average Duration for Location and Repair/Shutoff Failure",null,"Total Duration",null,null,null,null,null,{"$f":"\"Average System Pressure\"","v":"Average System Pressure"}]
[null,null,null,{"$f":"$C$39","v":"miles"},null,{"$f":"IF('Start Page'!$Y$36=1,\"(gpm)\",IF('Start Page'!$Y$36=2,\"(lpm)\", IF('Start Page'!$Y$36=3,\"(gpm)\")))","v":"(gpm)"},{"$f":"$G$38","v":"(psi)"},null,"(days)","(days)",null,"(days)",{"$f":"$I$38","v":"(MG)"},{"$f":"$I$38","v":"(MG)"},null,null,null,{"$f":"$F$57","v":"(gpm)"},null,null,null,null,null,null,"gpm","lpm",null,{"$f":"$F$57","v":"(gpm)"},null,null,null,null,null,"days",{"$f":"$N$57","v":"(MG)"},{"$f":"$N$57","v":"(MG)"}]
[null,{"$f":"IF('Start Page'!$Y$36=2,\"DN 50\",\"Diameter 2''\")","v":"Diameter 2''"},0,0,{"$f":"IF(D58=0,0,C58/D58*100)","v":0},{"$f":"IF(S58=1,AB58,R58)","v":13.9},{"$f":"'AWWA-Water Balance Data Transf.'!$D$41","v":0},1,0,0,null,{"$f":"IF(ISERROR(IF(SUM(I58:K58)>'Start Page'!$K$35,'Start Page'!$K$35,SUM(I58:K58))),\"\",IF(SUM(I58:K58)>'Start Page'!$K$35,'Start Page'!$K$35,SUM(I58:K58)))","v":0},{"$f":"IF(ISERROR(IF(C58=0,0,IF('Start Page'!$Y$36=1,($F58*60*24*$L58)*(($G58/AD58)^$H58)/10^6,IF('Start Page'!$Y$36=2,($F58*60*24*$L58)*(($G58/AD58)^$H58)/10^6,IF('Start Page'!$Y$36=3,('Unit Conversion Sheet'!$E$17*$F58*60*24*$L58)*(($G58/AD58)^$H58)/10^6))))),0,IF(C58=0,0,IF('Start Page'!$Y$36=1,($F58*60*24*$L58)*(($G58/AD58)^$H58)/10^6,IF('Start Page'!$Y$36=2,($F58*60*24*$L58)*(($G58/AD58)^$H58)/10^6,IF('Start Page'!$Y$36=3,('Unit Conversion Sheet'!$E$17*$F58*60*24*$L58)*(($G58/AD58)^$H58)/10^6)))))","v":0},{"$f":"IF(C58=0,0,M58*C58)","v":0},null,null,null,0,1,"provide option for default flow are or individual flow rate",null,null,null,null,13.9,{"$f":"Y58*'Unit Conversion Sheet'!$C$5","v":52.617224020000002},null,{"$f":"IF('Start Page'!$Y$36=1,Y58,IF('Start Page'!$Y$36=2,Z58,IF('Start Page'!$Y$36=3,Y58)))","v":13.9},{"$f":"SUM(S58:S76)","v":19},{"$f":"IF(S58=1,(IF('Start Page'!$Y$36=1,$AB$39,IF('Start Page'!$Y$36=2,$AC$39,IF('Start Page'!$Y$36=3,$AB$39)))),'AWWA-Water Balance Data Transf.'!$D$41)","v":70},{"$f":"'AWWA-Water Balance Data Transf.'!$E$41","v":"PSI"},null,null,{"$f":"IF(C58=0,\"\",C58*J58)","v":""},{"$f":"IF(C58=0,\"\",IF('Start Page'!$Y$36=1,($F58*60*24*J58)*(($G58/$AB$39)^$H58)/10^6,IF('Start Page'!$Y$36=2,($F58*60*24*J58)*(($G58/$AC$39)^$H58)/10^6,IF('Start Page'!$Y$36=3,('Unit Conversion Sheet'!$E$17*$F58*60*24*J58)*(($G58/$AB$39)^$H58)/10^6))))","v":""},{"$f":"IF(C58=0,\"\",AI58*C58)","v":""}]
[null,{"$f":"IF('Start Page'!$Y$36=2,\"DN 80\",\"Diameter 3''\")","v":"Diameter 3''"},0,0,{"$f":"IF(D59=0,0,C59/D59*100)","v":0},{"$f":"IF(S59=1,AB59,R59)","v":13.9},{"$f":"'AWWA-Water Balance Data Transf.'!$D$41","v":0},1,0,0,null,{"$f":"IF(ISERROR(IF(SUM(I59:K59)>'Start Page'!$K$35,'Start Page'!$K$35,SUM(I59:K59))),\"\",IF(SUM(I59:K59)>'Start Page'!$K$35,'Start Page'!$K$35,SUM(I59:K59)))","v":0},{"$f":"IF(ISERROR(IF(C59=0,0,IF('Start Page'!$Y$36=1,($F59*60*24*$L59)*(($G59/AD59)^$H59)/10^6,IF('Start Page'!$Y$36=2,($F59*60*24*$L59)*(($G59/AD59)^$H59)/10^6,IF('Start Page'!$Y$36=3,('Unit Conversion Sheet'!$E$17*$F59*60*24*$L59)*(($G59/AD59)^$H59)/10^6))))),0,IF(C59=0,0,IF('Start Page'!$Y$36=1,($F59*60*24*$L59)*(($G59/AD59)^$H59)/10^6,IF('Start Page'!$Y$36=2,($F59*60*24*$L59)*(($G59/AD59)^$H59)/10^6,IF('Start Page'!$Y$36=3,('Unit Conversion Sheet'!$E$17*$F59*60*24*$L59)*(($G59/AD59)^$H59)/10^6)))))","v":0},{"$f":"IF(C59=0,0,M59*C59)","v":0},null,null,null,0,1,null,null,null,null,null,13.9,{"$f":"Y59*'Unit Conversion Sheet'!$C$5","v":52.617224020000002},null,{"$f":"IF('Start Page'!$Y$36=1,Y59,IF('Start Page'!$Y$36=2,Z59,IF('Start Page'!$Y$36=3,Y59)))","v":13.9},null,{"$f":"IF(S59=1,(IF('Start Page'!$Y$36=1,$AB$39,IF('Start Page'!$Y$36=2,$AC$39,IF('Start Page'!$Y$36=3,$AB$39)))),'AWWA-Water Balance Data Transf.'!$D$41)","v":70},{"$f":"'AWWA-Water Balance Data Transf.'!$E$41","v":"PSI"},null,null,{"$f":"IF(C59=0,\"\",C59*J59)","v":""},{"$f":"IF(C59=0,\"\",IF('Start Page'!$Y$36=1,($F59*60*24*J59)*(($G59/$AB$39)^$H59)/10^6,IF('Start Page'!$Y$36=2,($F59*60*24*J59)*(($G59/$AC$39)^$H59)/10^6,IF('Start Page'!$Y$36=3,('Unit Conversion Sheet'!$E$17*$F59*60*24*J59)*(($G59/$AB$39)^$H59)/10^6))))","v":""},{"$f":"IF(C59=0,\"\",AI59*C59)","v":""}]
[null,{"$f":"IF('Start Page'!$Y$36=2,\"DN 100\",\"Diameter 4''\")","v":"Diameter 4''"},0,0,0,44,{"$f":"'AWWA-Water Balance Data Transf.'!$D$41","v":0},1,0,0,null,{"$f":"IF(ISERROR(IF(SUM(I60:K60)>'Start Page'!$K$35,'Start Page'!$K$35,SUM(I60:K60))),\"\",IF(SUM(I60:K60)>'Start Page'!$K$35,'Start Page'!$K$35,SUM(I60:K60)))","v":0},{"$f":"IF(ISERROR(IF(C60=0,0,IF('Start Page'!$Y$36=1,($F60*60*24*$L60)*(($G60/AD60)^$H60)/10^6,IF('Start Page'!$Y$36=2,($F60*60*24*$L60)*(($G60/AD60)^$H60)/10^6,IF('Start Page'!$Y$36=3,('Unit Conversion Sheet'!$E$17*$F60*60*24*$L60)*(($G60/AD60)^$H60)/10^6))))),0,IF(C60=0,0,IF('Start Page'!$Y$36=1,($F60*60*24*$L60)*(($G60/AD60)^$H60)/10^6,IF('Start Page'!$Y$36=2,($F60*60*24*$L60)*(($G60/AD60)^$H60)/10^6,IF('Start Page'!$Y$36=3,('Unit Conversion Sheet'!$E$17*$F60*60*24*$L60)*(($G60/AD60)^$H60)/10^6)))))","v":0},0,null,null,null,0,1,null,null,null,null,null,{"$f":"22*2","v":44},{"$f":"Y60*'Unit Conversion Sheet'!$C$5","v":166.55811919999999},null,{"$f":"IF('Start Page'!$Y$36=1,Y60,IF('Start Page'!$Y$36=2,Z60,IF('Start Page'!$Y$36=3,Y60)))","v":44},null,{"$f":"IF(S60=1,(IF('Start Page'!$Y$36=1,$AB$39,IF('Start Page'!$Y$36=2,$AC$39,IF('Start Page'!$Y$36=3,$AB$39)))),'AWWA-Water Balance Data Transf.'!$D$41)","v":70},{"$f":"'AWWA-Water Balance Data Transf.'!$E$41","v":"PSI"},null,null,"",{"$f":"IF(C60=0,\"\",IF('Start Page'!$Y$36=1,($F60*60*24*J60)*(($G60/$AB$39)^$H60)/10^6,IF('Start Page'!$Y$36=2,($F60*60*24*J60)*(($G60/$AC$39)^$H60)/10^6,IF('Start Page'!$Y$36=3,('Unit Conversion Sheet'!$E$17*$F60*60*24*J60)*(($G60/$AB$39)^$H60)/10^6))))","v":""},""]
[null,{"$f":"IF('Start Page'!$Y$36=2,\"DN 150\",\"Diameter 6''\")","v":"Diameter 6''"},0,0,0,92,{"$f":"'AWWA-Water Balance Data Transf.'!$D$41","v":0},1,0,0,null,{"$f":"IF(ISERROR(IF(SUM(I61:K61)>'Start Page'!$K$35,'Start Page'!$K$35,SUM(I61:K61))),\"\",IF(SUM(I61:K61)>'Start Page'!$K$35,'Start Page'!$K$35,SUM(I61:K61)))","v":0},{"$f":"IF(ISERROR(IF(C61=0,0,IF('Start Page'!$Y$36=1,($F61*60*24*$L61)*(($G61/AD61)^$H61)/10^6,IF('Start Page'!$Y$36=2,($F61*60*24*$L61)*(($G61/AD61)^$H61)/10^6,IF('Start Page'!$Y$36=3,('Unit Conversion Sheet'!$E$17*$F61*60*24*$L61)*(($G61/AD61)^$H61)/10^6))))),0,IF(C61=0,0,IF('Start Page'!$Y$36=1,($F61*60*24*$L61)*(($G61/AD61)^$H61)/10^6,IF('Start Page'!$Y$36=2,($F61*60*24*$L61)*(($G61/AD61)^$H61)/10^6,IF('Start Page'!$Y$36=3,('Unit Conversion Sheet'!$E$17*$F61*60*24*$L61)*(($G61/AD61)^$H61)/10^6)))))","v":0},0,null,null,null,0,1,null,null,null,null,null,{"$f":"46*2","v":92},{"$f":"Y61*'Unit Conversion Sheet'!$C$5","v":348.25788560000001},null,{"$f":"IF('Start Page'!$Y$36=1,Y61,IF('Start Page'!$Y$36=2,Z61,IF('Start Page'!$Y$36=3,Y61)))","v":92},null,{"$f":"IF(S61=1,(IF('Start Page'!$Y$36=1,$AB$39,IF('Start Page'!$Y$36=2,$AC$39,IF('Start Page'!$Y$36=3,$AB$39)))),'AWWA-Water Balance Data Transf.'!$D$41)","v":70},{"$f":"'AWWA-Water Balance Data Transf.'!$E$41","v":"PSI"},null,null,"",{"$f":"IF(C61=0,\"\",IF('Start Page'!$Y$36=1,($F61*60*24*J61)*(($G61/$AB$39)^$H61)/10^6,IF('Start Page'!$Y$36=2,($F61*60*24*J61)*(($G61/$AC$39)^$H61)/10^6,IF('Start Page'!$Y$36=3,('Unit Conversion Sheet'!$E$17*$F61*60*24*J61)*(($G61/$AB$39)^$H61)/10^6))))","v":""},""]
[null,{"$f":"IF('Start Page'!$Y$36=2,\"DN 200\",\"Diameter 8''\")","v":"Diameter 8''"},0,0,0,92,{"$f":"'AWWA-Water Balance Data Transf.'!$D$41","v":0},1,0,0,null,{"$f":"IF(ISERROR(IF(SUM(I62:K62)>'Start Page'!$K$35,'Start Page'!$K$35,SUM(I62:K62))),\"\",IF(SUM(I62:K62)>'Start Page'!$K$35,'Start Page'!$K$35,SUM(I62:K62)))","v":0},{"$f":"IF(ISERROR(IF(C62=0,0,IF('Start Page'!$Y$36=1,($F62*60*24*$L62)*(($G62/AD62)^$H62)/10^6,IF('Start Page'!$Y$36=2,($F62*60*24*$L62)*(($G62/AD62)^$H62)/10^6,IF('Start Page'!$Y$36=3,('Unit Conversion Sheet'!$E$17*$F62*60*24*$L62)*(($G62/AD62)^$H62)/10^6))))),0,IF(C62=0,0,IF('Start Page'!$Y$36=1,($F62*60*24*$L62)*(($G62/AD62)^$H62)/10^6,IF('Start Page'!$Y$36=2,($F62*60*24*$L62)*(($G62/AD62)^$H62)/10^6,IF('Start Page'!$Y$36=3,('Unit Conversion Sheet'!$E$17*$F62*60*24*$L62)*(($G62/AD62)^$H62)/10^6)))))","v":0},0,null,null,null,0,1,null,null,null,null,null,{"$f":"46*2","v":92},{"$f":"Y62*'Unit Conversion Sheet'!$C$5","v":348.25788560000001},null,{"$f":"IF('Start Page'!$Y$36=1,Y62,IF('Start Page'!$Y$36=2,Z62,IF('Start Page'!$Y$36=3,Y62)))","v":92},null,{"$f":"IF(S62=1,(IF('Start Page'!$Y$36=1,$AB$39,IF('Start Page'!$Y$36=2,$AC$39,IF('Start Page'!$Y$36=3,$AB$39)))),'AWWA-Water Balance Data Transf.'!$D$41)","v":70},{"$f":"'AWWA-Water Balance Data Transf.'!$E$41","v":"PSI"},null,null,"",{"$f":"IF(C62=0,\"\",IF('Start Page'!$Y$36=1,($F62*60*24*J62)*(($G62/$AB$39)^$H62)/10^6,IF('Start Page'!$Y$36=2,($F62*60*24*J62)*(($G62/$AC$39)^$H62)/10^6,IF('Start Page'!$Y$36=3,('Unit Conversion Sheet'!$E$17*$F62*60*24*J62)*(($G62/$AB$39)^$H62)/10^6))))","v":""},""]
[null,{"$f":"IF('Start Page'!$Y$36=2,\"DN 250\",\"Diameter 10''\")","v":"Diameter 10''"},0,0,0,92,{"$f":"'AWWA-Water Balance Data Transf.'!$D$41","v":0},1,0,0,null,{"$f":"IF(ISERROR(IF(SUM(I63:K63)>'Start Page'!$K$35,'Start Page'!$K$35,SUM(I63:K63))),\"\",IF(SUM(I63:K63)>'Start Page'!$K$35,'Start Page'!$K$35,SUM(I63:K63)))","v":0},{"$f":"IF(ISERROR(IF(C63=0,0,IF('Start Page'!$Y$36=1,($F63*60*24*$L63)*(($G63/AD63)^$H63)/10^6,IF('Start Page'!$Y$36=2,($F63*60*24*$L63)*(($G63/AD63)^$H63)/10^6,IF('Start Page'!$Y$36=3,('Unit Conversion Sheet'!$E$17*$F63*60*24*$L63)*(($G63/AD63)^$H63)/10^6))))),0,IF(C63=0,0,IF('Start Page'!$Y$36=1,($F63*60*24*$L63)*(($G63/AD63)^$H63)/10^6,IF('Start Page'!$Y$36=2,($F63*60*24*$L63)*(($G63/AD63)^$H63)/10^6,IF('Start Page'!$Y$36=3,('Unit Conversion Sheet'!$E$17*$F63*60*24*$L63)*(($G63/AD63)^$H63)/10^6)))))","v":0},0,null,null,null,0,1,null,null,null,null,null,{"$f":"46*2","v":92},{"$f":"Y63*'Unit Conversion Sheet'!$C$5","v":348.25788560000001},null,{"$f":"IF('Start Page'!$Y$36=1,Y63,IF('Start Page'!$Y$36=2,Z63,IF('Start Page'!$Y$36=3,Y63)))","v":92},null,{"$f":"IF(S63=1,(IF('Start Page'!$Y$36=1,$AB$39,IF('Start Page'!$Y$36=2,$AC$39,IF('Start Page'!$Y$36=3,$AB$39)))),'AWWA-Water Balance Data Transf.'!$D$41)","v":70},{"$f":"'AWWA-Water Balance Data Transf.'!$E$41","v":"PSI"},null,null,"",{"$f":"IF(C63=0,\"\",IF('Start Page'!$Y$36=1,($F63*60*24*J63)*(($G63/$AB$39)^$H63)/10^6,IF('Start Page'!$Y$36=2,($F63*60*24*J63)*(($G63/$AC$39)^$H63)/10^6,IF('Start Page'!$Y$36=3,('Unit Conversion Sheet'!$E$17*$F63*60*24*J63)*(($G63/$AB$39)^$H63)/10^6))))","v":""},""]
[null,{"$f":"IF('Start Page'!$Y$36=2,\"DN 300\",\"Diameter 12''\")","v":"Diameter 12''"},0,0,0,222,{"$f":"'AWWA-Water Balance Data Transf.'!$D$41","v":0},1,0,0,null,{"$f":"IF(ISERROR(IF(SUM(I64:K64)>'Start Page'!$K$35,'Start Page'!$K$35,SUM(I64:K64))),\"\",IF(SUM(I64:K64)>'Start Page'!$K$35,'Start Page'!$K$35,SUM(I64:K64)))","v":0},{"$f":"IF(ISERROR(IF(C64=0,0,IF('Start Page'!$Y$36=1,($F64*60*24*$L64)*(($G64/AD64)^$H64)/10^6,IF('Start Page'!$Y$36=2,($F64*60*24*$L64)*(($G64/AD64)^$H64)/10^6,IF('Start Page'!$Y$36=3,('Unit Conversion Sheet'!$E$17*$F64*60*24*$L64)*(($G64/AD64)^$H64)/10^6))))),0,IF(C64=0,0,IF('Start Page'!$Y$36=1,($F64*60*24*$L64)*(($G64/AD64)^$H64)/10^6,IF('Start Page'!$Y$36=2,($F64*60*24*$L64)*(($G64/AD64)^$H64)/10^6,IF('Start Page'!$Y$36=3,('Unit Conversion Sheet'!$E$17*$F64*60*24*$L64)*(($G64/AD64)^$H64)/10^6)))))","v":0},0,null,null,null,0,1,null,null,null,null,null,{"$f":"111*2","v":222},{"$f":"Y64*'Unit Conversion Sheet'!$C$5","v":840.36141959999998},null,{"$f":"IF('Start Page'!$Y$36=1,Y64,IF('Start Page'!$Y$36=2,Z64,IF('Start Page'!$Y$36=3,Y64)))","v":222},null,{"$f":"IF(S64=1,(IF('Start Page'!$Y$36=1,$AB$39,IF('Start Page'!$Y$36=2,$AC$39,IF('Start Page'!$Y$36=3,$AB$39)))),'AWWA-Water Balance Data Transf.'!$D$41)","v":70},{"$f":"'AWWA-Water Balance Data Transf.'!$E$41","v":"PSI"},null,null,"",{"$f":"IF(C64=0,\"\",IF('Start Page'!$Y$36=1,($F64*60*24*J64)*(($G64/$AB$39)^$H64)/10^6,IF('Start Page'!$Y$36=2,($F64*60*24*J64)*(($G64/$AC$39)^$H64)/10^6,IF('Start Page'!$Y$36=3,('Unit Conversion Sheet'!$E$17*$F64*60*24*J64)*(($G64/$AB$39)^$H64)/10^6))))","v":""},""]
[null,{"$f":"IF('Start Page'!$Y$36=2,\"DN 350\",\"Diameter 14''\")","v":"Diameter 14''"},0,0,0,222,{"$f":"'AWWA-Water Balance Data Transf.'!$D$41","v":0},1,0,0,null,{"$f":"IF(ISERROR(IF(SUM(I65:K65)>'Start Page'!$K$35,'Start Page'!$K$35,SUM(I65:K65))),\"\",IF(SUM(I65:K65)>'Start Page'!$K$35,'Start Page'!$K$35,SUM(I65:K65)))","v":0},{"$f":"IF(ISERROR(IF(C65=0,0,IF('Start Page'!$Y$36=1,($F65*60*24*$L65)*(($G65/AD65)^$H65)/10^6,IF('Start Page'!$Y$36=2,($F65*60*24*$L65)*(($G65/AD65)^$H65)/10^6,IF('Start Page'!$Y$36=3,('Unit Conversion Sheet'!$E$17*$F65*60*24*$L65)*(($G65/AD65)^$H65)/10^6))))),0,IF(C65=0,0,IF('Start Page'!$Y$36=1,($F65*60*24*$L65)*(($G65/AD65)^$H65)/10^6,IF('Start Page'!$Y$36=2,($F65*60*24*$L65)*(($G65/AD65)^$H65)/10^6,IF('Start Page'!$Y$36=3,('Unit Conversion Sheet'!$E$17*$F65*60*24*$L65)*(($G65/AD65)^$H65)/10^6)))))","v":0},0,null,null,null,0,1,null,null,null,null,null,{"$f":"111*2","v":222},{"$f":"Y65*'Unit Conversion Sheet'!$C$5","v":840.36141959999998},null,{"$f":"IF('Start Page'!$Y$36=1,Y65,IF('Start Page'!$Y$36=2,Z65,IF('Start Page'!$Y$36=3,Y65)))","v":222},null,{"$f":"IF(S65=1,(IF('Start Page'!$Y$36=1,$AB$39,IF('Start Page'!$Y$36=2,$AC$39,IF('Start Page'!$Y$36=3,$AB$39)))),'AWWA-Water Balance Data Transf.'!$D$41)","v":70},{"$f":"'AWWA-Water Balance Data Transf.'!$E$41","v":"PSI"},null,null,"",{"$f":"IF(C65=0,\"\",IF('Start Page'!$Y$36=1,($F65*60*24*J65)*(($G65/$AB$39)^$H65)/10^6,IF('Start Page'!$Y$36=2,($F65*60*24*J65)*(($G65/$AC$39)^$H65)/10^6,IF('Start Page'!$Y$36=3,('Unit Conversion Sheet'!$E$17*$F65*60*24*J65)*(($G65/$AB$39)^$H65)/10^6))))","v":""},""]
[null,{"$f":"IF('Start Page'!$Y$36=2,\"DN 400\",\"Diameter 16''\")","v":"Diameter 16''"},0,0,0,222,{"$f":"'AWWA-Water Balance Data Transf.'!$D$41","v":0},1,0,0,null,{"$f":"IF(ISERROR(IF(SUM(I66:K66)>'Start Page'!$K$35,'Start Page'!$K$35,SUM(I66:K66))),\"\",IF(SUM(I66:K66)>'Start Page'!$K$35,'Start Page'!$K$35,SUM(I66:K66)))","v":0},{"$f":"IF(ISERROR(IF(C66=0,0,IF('Start Page'!$Y$36=1,($F66*60*24*$L66)*(($G66/AD66)^$H66)/10^6,IF('Start Page'!$Y$36=2,($F66*60*24*$L66)*(($G66/AD66)^$H66)/10^6,IF('Start Page'!$Y$36=3,('Unit Conversion Sheet'!$E$17*$F66*60*24*$L66)*(($G66/AD66)^$H66)/10^6))))),0,IF(C66=0,0,IF('Start Page'!$Y$36=1,($F66*60*24*$L66)*(($G66/AD66)^$H66)/10^6,IF('Start Page'!$Y$36=2,($F66*60*24*$L66)*(($G66/AD66)^$H66)/10^6,IF('Start Page'!$Y$36=3,('Unit Conversion Sheet'!$E$17*$F66*60*24*$L66)*(($G66/AD66)^$H66)/10^6)))))","v":0},0,null,null,null,0,1,null,null,null,null,null,222,{"$f":"Y66*'Unit Conversion Sheet'!$C$5","v":840.36141959999998},null,{"$f":"IF('Start Page'!$Y$36=1,Y66,IF('Start Page'!$Y$36=2,Z66,IF('Start Page'!$Y$36=3,Y66)))","v":222},null,{"$f":"IF(S66=1,(IF('Start Page'!$Y$36=1,$AB$39,IF('Start Page'!$Y$36=2,$AC$39,IF('Start Page'!$Y$36=3,$AB$39)))),'AWWA-Water Balance Data Transf.'!$D$41)","v":70},{"$f":"'AWWA-Water Balance Data Transf.'!$E$41","v":"PSI"},null,null,"",{"$f":"IF(C66=0,\"\",IF('Start Page'!$Y$36=1,($F66*60*24*J66)*(($G66/$AB$39)^$H66)/10^6,IF('Start Page'!$Y$36=2,($F66*60*24*J66)*(($G66/$AC$39)^$H66)/10^6,IF('Start Page'!$Y$36=3,('Unit Conversion Sheet'!$E$17*$F66*60*24*J66)*(($G66/$AB$39)^$H66)/10^6))))","v":""},""]
[null,{"$f":"IF('Start Page'!$Y$36=2,\"DN 450\",\"Diameter 18''\")","v":"Diameter 18''"},0,0,0,222,{"$f":"'AWWA-Water Balance Data Transf.'!$D$41","v":0},1,0,0,null,{"$f":"IF(ISERROR(IF(SUM(I67:K67)>'Start Page'!$K$35,'Start Page'!$K$35,SUM(I67:K67))),\"\",IF(SUM(I67:K67)>'Start Page'!$K$35,'Start Page'!$K$35,SUM(I67:K67)))","v":0},{"$f":"IF(ISERROR(IF(C67=0,0,IF('Start Page'!$Y$36=1,($F67*60*24*$L67)*(($G67/AD67)^$H67)/10^6,IF('Start Page'!$Y$36=2,($F67*60*24*$L67)*(($G67/AD67)^$H67)/10^6,IF('Start Page'!$Y$36=3,('Unit Conversion Sheet'!$E$17*$F67*60*24*$L67)*(($G67/AD67)^$H67)/10^6))))),0,IF(C67=0,0,IF('Start Page'!$Y$36=1,($F67*60*24*$L67)*(($G67/AD67)^$H67)/10^6,IF('Start Page'!$Y$36=2,($F67*60*24*$L67)*(($G67/AD67)^$H67)/10^6,IF('Start Page'!$Y$36=3,('Unit Conversion Sheet'!$E$17*$F67*60*24*$L67)*(($G67/AD67)^$H67)/10^6)))))","v":0},0,null,null,null,0,1,null,null,null,null,null,222,{"$f":"Y67*'Unit Conversion Sheet'!$C$5","v":840.36141959999998},null,{"$f":"IF('Start Page'!$Y$36=1,Y67,IF('Start Page'!$Y$36=2,Z67,IF('Start Page'!$Y$36=3,Y67)))","v":222},null,{"$f":"IF(S67=1,(IF('Start Page'!$Y$36=1,$AB$39,IF('Start Page'!$Y$36=2,$AC$39,IF('Start Page'!$Y$36=3,$AB$39)))),'AWWA-Water Balance Data Transf.'!$D$41)","v":70},{"$f":"'AWWA-Water Balance Data Transf.'!$E$41","v":"PSI"},null,null,"",{"$f":"IF(C67=0,\"\",IF('Start Page'!$Y$36=1,($F67*60*24*J67)*(($G67/$AB$39)^$H67)/10^6,IF('Start Page'!$Y$36=2,($F67*60*24*J67)*(($G67/$AC$39)^$H67)/10^6,IF('Start Page'!$Y$36=3,('Unit Conversion Sheet'!$E$17*$F67*60*24*J67)*(($G67/$AB$39)^$H67)/10^6))))","v":""},""]
[null,{"$f":"IF('Start Page'!$Y$36=2,\"DN 500\",\"Diameter 20''\")","v":"Diameter 20''"},0,0,0,222,{"$f":"'AWWA-Water Balance Data Transf.'!$D$41","v":0},1,0,0,null,{"$f":"IF(ISERROR(IF(SUM(I68:K68)>'Start Page'!$K$35,'Start Page'!$K$35,SUM(I68:K68))),\"\",IF(SUM(I68:K68)>'Start Page'!$K$35,'Start Page'!$K$35,SUM(I68:K68)))","v":0},{"$f":"IF(ISERROR(IF(C68=0,0,IF('Start Page'!$Y$36=1,($F68*60*24*$L68)*(($G68/AD68)^$H68)/10^6,IF('Start Page'!$Y$36=2,($F68*60*24*$L68)*(($G68/AD68)^$H68)/10^6,IF('Start Page'!$Y$36=3,('Unit Conversion Sheet'!$E$17*$F68*60*24*$L68)*(($G68/AD68)^$H68)/10^6))))),0,IF(C68=0,0,IF('Start Page'!$Y$36=1,($F68*60*24*$L68)*(($G68/AD68)^$H68)/10^6,IF('Start Page'!$Y$36=2,($F68*60*24*$L68)*(($G68/AD68)^$H68)/10^6,IF('Start Page'!$Y$36=3,('Unit Conversion Sheet'!$E$17*$F68*60*24*$L68)*(($G68/AD68)^$H68)/10^6)))))","v":0},0,null,null,null,0,1,null,null,null,null,null,222,{"$f":"Y68*'Unit Conversion Sheet'!$C$5","v":840.36141959999998},null,{"$f":"IF('Start Page'!$Y$36=1,Y68,IF('Start Page'!$Y$36=2,Z68,IF('Start Page'!$Y$36=3,Y68)))","v":222},null,{"$f":"IF(S68=1,(IF('Start Page'!$Y$36=1,$AB$39,IF('Start Page'!$Y$36=2,$AC$39,IF('Start Page'!$Y$36=3,$AB$39)))),'AWWA-Water Balance Data Transf.'!$D$41)","v":70},{"$f":"'AWWA-Water Balance Data Transf.'!$E$41","v":"PSI"},null,null,"",{"$f":"IF(C68=0,\"\",IF('Start Page'!$Y$36=1,($F68*60*24*J68)*(($G68/$AB$39)^$H68)/10^6,IF('Start Page'!$Y$36=2,($F68*60*24*J68)*(($G68/$AC$39)^$H68)/10^6,IF('Start Page'!$Y$36=3,('Unit Conversion Sheet'!$E$17*$F68*60*24*J68)*(($G68/$AB$39)^$H68)/10^6))))","v":""},""]
[null,{"$f":"IF('Start Page'!$Y$36=2,\"DN 600\",\"Diameter 24''\")","v":"Diameter 24''"},0,0,0,222,{"$f":"'AWWA-Water Balance Data Transf.'!$D$41","v":0},1,0,0,null,{"$f":"IF(ISERROR(IF(SUM(I69:K69)>'Start Page'!$K$35,'Start Page'!$K$35,SUM(I69:K69))),\"\",IF(SUM(I69:K69)>'Start Page'!$K$35,'Start Page'!$K$35,SUM(I69:K69)))","v":0},{"$f":"IF(ISERROR(IF(C69=0,0,IF('Start Page'!$Y$36=1,($F69*60*24*$L69)*(($G69/AD69)^$H69)/10^6,IF('Start Page'!$Y$36=2,($F69*60*24*$L69)*(($G69/AD69)^$H69)/10^6,IF('Start Page'!$Y$36=3,('Unit Conversion Sheet'!$E$17*$F69*60*24*$L69)*(($G69/AD69)^$H69)/10^6))))),0,IF(C69=0,0,IF('Start Page'!$Y$36=1,($F69*60*24*$L69)*(($G69/AD69)^$H69)/10^6,IF('Start Page'!$Y$36=2,($F69*60*24*$L69)*(($G69/AD69)^$H69)/10^6,IF('Start Page'!$Y$36=3,('Unit Conversion Sheet'!$E$17*$F69*60*24*$L69)*(($G69/AD69)^$H69)/10^6)))))","v":0},0,null,null,null,0,1,null,null,null,null,null,222,{"$f":"Y69*'Unit Conversion Sheet'!$C$5","v":840.36141959999998},null,{"$f":"IF('Start Page'!$Y$36=1,Y69,IF('Start Page'!$Y$36=2,Z69,IF('Start Page'!$Y$36=3,Y69)))","v":222},null,{"$f":"IF(S69=1,(IF('Start Page'!$Y$36=1,$AB$39,IF('Start Page'!$Y$36=2,$AC$39,IF('Start Page'!$Y$36=3,$AB$39)))),'AWWA-Water Balance Data Transf.'!$D$41)","v":70},{"$f":"'AWWA-Water Balance Data Transf.'!$E$41","v":"PSI"},null,null,"",{"$f":"IF(C69=0,\"\",IF('Start Page'!$Y$36=1,($F69*60*24*J69)*(($G69/$AB$39)^$H69)/10^6,IF('Start Page'!$Y$36=2,($F69*60*24*J69)*(($G69/$AC$39)^$H69)/10^6,IF('Start Page'!$Y$36=3,('Unit Conversion Sheet'!$E$17*$F69*60*24*J69)*(($G69/$AB$39)^$H69)/10^6))))","v":""},""]
[null,{"$f":"IF('Start Page'!$Y$36=2,\"DN 750\",\"Diameter 30''\")","v":"Diameter 30''"},0,0,0,222,{"$f":"'AWWA-Water Balance Data Transf.'!$D$41","v":0},1,0,0,null,{"$f":"IF(ISERROR(IF(SUM(I70:K70)>'Start Page'!$K$35,'Start Page'!$K$35,SUM(I70:K70))),\"\",IF(SUM(I70:K70)>'Start Page'!$K$35,'Start Page'!$K$35,SUM(I70:K70)))","v":0},{"$f":"IF(ISERROR(IF(C70=0,0,IF('Start Page'!$Y$36=1,($F70*60*24*$L70)*(($G70/AD70)^$H70)/10^6,IF('Start Page'!$Y$36=2,($F70*60*24*$L70)*(($G70/AD70)^$H70)/10^6,IF('Start Page'!$Y$36=3,('Unit Conversion Sheet'!$E$17*$F70*60*24*$L70)*(($G70/AD70)^$H70)/10^6))))),0,IF(C70=0,0,IF('Start Page'!$Y$36=1,($F70*60*24*$L70)*(($G70/AD70)^$H70)/10^6,IF('Start Page'!$Y$36=2,($F70*60*24*$L70)*(($G70/AD70)^$H70)/10^6,IF('Start Page'!$Y$36=3,('Unit Conversion Sheet'!$E$17*$F70*60*24*$L70)*(($G70/AD70)^$H70)/10^6)))))","v":0},0,null,null,null,0,1,null,null,null,null,null,222,{"$f":"Y70*'Unit Conversion Sheet'!$C$5","v":840.36141959999998},null,{"$f":"IF('Start Page'!$Y$36=1,Y70,IF('Start Page'!$Y$36=2,Z70,IF('Start Page'!$Y$36=3,Y70)))","v":222},null,{"$f":"IF(S70=1,(IF('Start Page'!$Y$36=1,$AB$39,IF('Start Page'!$Y$36=2,$AC$39,IF('Start Page'!$Y$36=3,$AB$39)))),'AWWA-Water Balance Data Transf.'!$D$41)","v":70},{"$f":"'AWWA-Water Balance Data Transf.'!$E$41","v":"PSI"},null,null,"",{"$f":"IF(C70=0,\"\",IF('Start Page'!$Y$36=1,($F70*60*24*J70)*(($G70/$AB$39)^$H70)/10^6,IF('Start Page'!$Y$36=2,($F70*60*24*J70)*(($G70/$AC$39)^$H70)/10^6,IF('Start Page'!$Y$36=3,('Unit Conversion Sheet'!$E$17*$F70*60*24*J70)*(($G70/$AB$39)^$H70)/10^6))))","v":""},""]
[null,{"$f":"IF('Start Page'!$Y$36=2,\"DN 900\",\"Diameter 36''\")","v":"Diameter 36''"},0,0,0,222,{"$f":"'AWWA-Water Balance Data Transf.'!$D$41","v":0},1,0,0,null,{"$f":"IF(ISERROR(IF(SUM(I71:K71)>'Start Page'!$K$35,'Start Page'!$K$35,SUM(I71:K71))),\"\",IF(SUM(I71:K71)>'Start Page'!$K$35,'Start Page'!$K$35,SUM(I71:K71)))","v":0},{"$f":"IF(ISERROR(IF(C71=0,0,IF('Start Page'!$Y$36=1,($F71*60*24*$L71)*(($G71/AD71)^$H71)/10^6,IF('Start Page'!$Y$36=2,($F71*60*24*$L71)*(($G71/AD71)^$H71)/10^6,IF('Start Page'!$Y$36=3,('Unit Conversion Sheet'!$E$17*$F71*60*24*$L71)*(($G71/AD71)^$H71)/10^6))))),0,IF(C71=0,0,IF('Start Page'!$Y$36=1,($F71*60*24*$L71)*(($G71/AD71)^$H71)/10^6,IF('Start Page'!$Y$36=2,($F71*60*24*$L71)*(($G71/AD71)^$H71)/10^6,IF('Start Page'!$Y$36=3,('Unit Conversion Sheet'!$E$17*$F71*60*24*$L71)*(($G71/AD71)^$H71)/10^6)))))","v":0},0,null,null,null,0,1,null,null,null,null,null,222,{"$f":"Y71*'Unit Conversion Sheet'!$C$5","v":840.36141959999998},null,{"$f":"IF('Start Page'!$Y$36=1,Y71,IF('Start Page'!$Y$36=2,Z71,IF('Start Page'!$Y$36=3,Y71)))","v":222},null,{"$f":"IF(S71=1,(IF('Start Page'!$Y$36=1,$AB$39,IF('Start Page'!$Y$36=2,$AC$39,IF('Start Page'!$Y$36=3,$AB$39)))),'AWWA-Water Balance Data Transf.'!$D$41)","v":70},{"$f":"'AWWA-Water Balance Data Transf.'!$E$41","v":"PSI"},null,null,"",{"$f":"IF(C71=0,\"\",IF('Start Page'!$Y$36=1,($F71*60*24*J71)*(($G71/$AB$39)^$H71)/10^6,IF('Start Page'!$Y$36=2,($F71*60*24*J71)*(($G71/$AC$39)^$H71)/10^6,IF('Start Page'!$Y$36=3,('Unit Conversion Sheet'!$E$17*$F71*60*24*J71)*(($G71/$AB$39)^$H71)/10^6))))","v":""},""]
[null,{"$f":"IF('Start Page'!$Y$36=2,\"DN 1050\",\"Diameter 42''\")","v":"Diameter 42''"},0,0,0,222,{"$f":"'AWWA-Water Balance Data Transf.'!$D$41","v":0},1,0,0,null,{"$f":"IF(ISERROR(IF(SUM(I72:K72)>'Start Page'!$K$35,'Start Page'!$K$35,SUM(I72:K72))),\"\",IF(SUM(I72:K72)>'Start Page'!$K$35,'Start Page'!$K$35,SUM(I72:K72)))","v":0},{"$f":"IF(ISERROR(IF(C72=0,0,IF('Start Page'!$Y$36=1,($F72*60*24*$L72)*(($G72/AD72)^$H72)/10^6,IF('Start Page'!$Y$36=2,($F72*60*24*$L72)*(($G72/AD72)^$H72)/10^6,IF('Start Page'!$Y$36=3,('Unit Conversion Sheet'!$E$17*$F72*60*24*$L72)*(($G72/AD72)^$H72)/10^6))))),0,IF(C72=0,0,IF('Start Page'!$Y$36=1,($F72*60*24*$L72)*(($G72/AD72)^$H72)/10^6,IF('Start Page'!$Y$36=2,($F72*60*24*$L72)*(($G72/AD72)^$H72)/10^6,IF('Start Page'!$Y$36=3,('Unit Conversion Sheet'!$E$17*$F72*60*24*$L72)*(($G72/AD72)^$H72)/10^6)))))","v":0},0,null,null,null,0,1,null,null,null,null,null,222,{"$f":"Y72*'Unit Conversion Sheet'!$C$5","v":840.36141959999998},null,{"$f":"IF('Start Page'!$Y$36=1,Y72,IF('Start Page'!$Y$36=2,Z72,IF('Start Page'!$Y$36=3,Y72)))","v":222},null,{"$f":"IF(S72=1,(IF('Start Page'!$Y$36=1,$AB$39,IF('Start Page'!$Y$36=2,$AC$39,IF('Start Page'!$Y$36=3,$AB$39)))),'AWWA-Water Balance Data Transf.'!$D$41)","v":70},{"$f":"'AWWA-Water Balance Data Transf.'!$E$41","v":"PSI"},null,null,"",{"$f":"IF(C72=0,\"\",IF('Start Page'!$Y$36=1,($F72*60*24*J72)*(($G72/$AB$39)^$H72)/10^6,IF('Start Page'!$Y$36=2,($F72*60*24*J72)*(($G72/$AC$39)^$H72)/10^6,IF('Start Page'!$Y$36=3,('Unit Conversion Sheet'!$E$17*$F72*60*24*J72)*(($G72/$AB$39)^$H72)/10^6))))","v":""},""]
[null,{"$f":"IF('Start Page'!$Y$36=2,\"DN 1200\",\"Diameter 48''\")","v":"Diameter 48''"},0,0,0,222,{"$f":"'AWWA-Water Balance Data Transf.'!$D$41","v":0},1,0,0,null,{"$f":"IF(ISERROR(IF(SUM(I73:K73)>'Start Page'!$K$35,'Start Page'!$K$35,SUM(I73:K73))),\"\",IF(SUM(I73:K73)>'Start Page'!$K$35,'Start Page'!$K$35,SUM(I73:K73)))","v":0},{"$f":"IF(ISERROR(IF(C73=0,0,IF('Start Page'!$Y$36=1,($F73*60*24*$L73)*(($G73/AD73)^$H73)/10^6,IF('Start Page'!$Y$36=2,($F73*60*24*$L73)*(($G73/AD73)^$H73)/10^6,IF('Start Page'!$Y$36=3,('Unit Conversion Sheet'!$E$17*$F73*60*24*$L73)*(($G73/AD73)^$H73)/10^6))))),0,IF(C73=0,0,IF('Start Page'!$Y$36=1,($F73*60*24*$L73)*(($G73/AD73)^$H73)/10^6,IF('Start Page'!$Y$36=2,($F73*60*24*$L73)*(($G73/AD73)^$H73)/10^6,IF('Start Page'!$Y$36=3,('Unit Conversion Sheet'!$E$17*$F73*60*24*$L73)*(($G73/AD73)^$H73)/10^6)))))","v":0},0,null,null,null,0,1,null,null,null,null,null,222,{"$f":"Y73*'Unit Conversion Sheet'!$C$5","v":840.36141959999998},null,{"$f":"IF('Start Page'!$Y$36=1,Y73,IF('Start Page'!$Y$36=2,Z73,IF('Start Page'!$Y$36=3,Y73)))","v":222},null,{"$f":"IF(S73=1,(IF('Start Page'!$Y$36=1,$AB$39,IF('Start Page'!$Y$36=2,$AC$39,IF('Start Page'!$Y$36=3,$AB$39)))),'AWWA-Water Balance Data Transf.'!$D$41)","v":70},{"$f":"'AWWA-Water Balance Data Transf.'!$E$41","v":"PSI"},null,null,"",{"$f":"IF(C73=0,\"\",IF('Start Page'!$Y$36=1,($F73*60*24*J73)*(($G73/$AB$39)^$H73)/10^6,IF('Start Page'!$Y$36=2,($F73*60*24*J73)*(($G73/$AC$39)^$H73)/10^6,IF('Start Page'!$Y$36=3,('Unit Conversion Sheet'!$E$17*$F73*60*24*J73)*(($G73/$AB$39)^$H73)/10^6))))","v":""},""]
[null,{"$f":"IF('Start Page'!$Y$36=2,\"DN 1350\",\"Diameter 54''\")","v":"Diameter 54''"},0,0,0,222,{"$f":"'AWWA-Water Balance Data Transf.'!$D$41","v":0},1,0,0,null,{"$f":"IF(ISERROR(IF(SUM(I74:K74)>'Start Page'!$K$35,'Start Page'!$K$35,SUM(I74:K74))),\"\",IF(SUM(I74:K74)>'Start Page'!$K$35,'Start Page'!$K$35,SUM(I74:K74)))","v":0},{"$f":"IF(ISERROR(IF(C74=0,0,IF('Start Page'!$Y$36=1,($F74*60*24*$L74)*(($G74/AD74)^$H74)/10^6,IF('Start Page'!$Y$36=2,($F74*60*24*$L74)*(($G74/AD74)^$H74)/10^6,IF('Start Page'!$Y$36=3,('Unit Conversion Sheet'!$E$17*$F74*60*24*$L74)*(($G74/AD74)^$H74)/10^6))))),0,IF(C74=0,0,IF('Start Page'!$Y$36=1,($F74*60*24*$L74)*(($G74/AD74)^$H74)/10^6,IF('Start Page'!$Y$36=2,($F74*60*24*$L74)*(($G74/AD74)^$H74)/10^6,IF('Start Page'!$Y$36=3,('Unit Conversion Sheet'!$E$17*$F74*60*24*$L74)*(($G74/AD74)^$H74)/10^6)))))","v":0},0,null,null,null,0,1,null,null,null,null,null,222,{"$f":"Y74*'Unit Conversion Sheet'!$C$5","v":840.36141959999998},null,{"$f":"IF('Start Page'!$Y$36=1,Y74,IF('Start Page'!$Y$36=2,Z74,IF('Start Page'!$Y$36=3,Y74)))","v":222},null,{"$f":"IF(S74=1,(IF('Start Page'!$Y$36=1,$AB$39,IF('Start Page'!$Y$36=2,$AC$39,IF('Start Page'!$Y$36=3,$AB$39)))),'AWWA-Water Balance Data Transf.'!$D$41)","v":70},{"$f":"'AWWA-Water Balance Data Transf.'!$E$41","v":"PSI"},null,null,"",{"$f":"IF(C74=0,\"\",IF('Start Page'!$Y$36=1,($F74*60*24*J74)*(($G74/$AB$39)^$H74)/10^6,IF('Start Page'!$Y$36=2,($F74*60*24*J74)*(($G74/$AC$39)^$H74)/10^6,IF('Start Page'!$Y$36=3,('Unit Conversion Sheet'!$E$17*$F74*60*24*J74)*(($G74/$AB$39)^$H74)/10^6))))","v":""},""]
[null,{"$f":"IF('Start Page'!$Y$36=2,\"DN 1500\",\"Diameter 60''\")","v":"Diameter 60''"},0,0,0,222,{"$f":"'AWWA-Water Balance Data Transf.'!$D$41","v":0},1,0,0,null,{"$f":"IF(ISERROR(IF(SUM(I75:K75)>'Start Page'!$K$35,'Start Page'!$K$35,SUM(I75:K75))),\"\",IF(SUM(I75:K75)>'Start Page'!$K$35,'Start Page'!$K$35,SUM(I75:K75)))","v":0},{"$f":"IF(ISERROR(IF(C75=0,0,IF('Start Page'!$Y$36=1,($F75*60*24*$L75)*(($G75/AD75)^$H75)/10^6,IF('Start Page'!$Y$36=2,($F75*60*24*$L75)*(($G75/AD75)^$H75)/10^6,IF('Start Page'!$Y$36=3,('Unit Conversion Sheet'!$E$17*$F75*60*24*$L75)*(($G75/AD75)^$H75)/10^6))))),0,IF(C75=0,0,IF('Start Page'!$Y$36=1,($F75*60*24*$L75)*(($G75/AD75)^$H75)/10^6,IF('Start Page'!$Y$36=2,($F75*60*24*$L75)*(($G75/AD75)^$H75)/10^6,IF('Start Page'!$Y$36=3,('Unit Conversion Sheet'!$E$17*$F75*60*24*$L75)*(($G75/AD75)^$H75)/10^6)))))","v":0},0,null,null,null,0,1,null,null,null,null,null,222,{"$f":"Y75*'Unit Conversion Sheet'!$C$5","v":840.36141959999998},null,{"$f":"IF('Start Page'!$Y$36=1,Y75,IF('Start Page'!$Y$36=2,Z75,IF('Start Page'!$Y$36=3,Y75)))","v":222},null,{"$f":"IF(S75=1,(IF('Start Page'!$Y$36=1,$AB$39,IF('Start Page'!$Y$36=2,$AC$39,IF('Start Page'!$Y$36=3,$AB$39)))),'AWWA-Water Balance Data Transf.'!$D$41)","v":70},{"$f":"'AWWA-Water Balance Data Transf.'!$E$41","v":"PSI"},null,null,"",{"$f":"IF(C75=0,\"\",IF('Start Page'!$Y$36=1,($F75*60*24*J75)*(($G75/$AB$39)^$H75)/10^6,IF('Start Page'!$Y$36=2,($F75*60*24*J75)*(($G75/$AC$39)^$H75)/10^6,IF('Start Page'!$Y$36=3,('Unit Conversion Sheet'!$E$17*$F75*60*24*J75)*(($G75/$AB$39)^$H75)/10^6))))","v":""},""]
[null,{"$f":"IF('Start Page'!$Y$36=2,\"> DN 1500\",\"Diameter >60''\")","v":"Diameter >60''"},0,0,0,{"$f":"IF(S76=1,AB76,R76)","v":222},{"$f":"'AWWA-Water Balance Data Transf.'!$D$41","v":0},1,0,0,null,{"$f":"IF(ISERROR(IF(SUM(I76:K76)>'Start Page'!$K$35,'Start Page'!$K$35,SUM(I76:K76))),\"\",IF(SUM(I76:K76)>'Start Page'!$K$35,'Start Page'!$K$35,SUM(I76:K76)))","v":0},{"$f":"IF(ISERROR(IF(C76=0,0,IF('Start Page'!$Y$36=1,($F76*60*24*$L76)*(($G76/AD76)^$H76)/10^6,IF('Start Page'!$Y$36=2,($F76*60*24*$L76)*(($G76/AD76)^$H76)/10^6,IF('Start Page'!$Y$36=3,('Unit Conversion Sheet'!$E$17*$F76*60*24*$L76)*(($G76/AD76)^$H76)/10^6))))),0,IF(C76=0,0,IF('Start Page'!$Y$36=1,($F76*60*24*$L76)*(($G76/AD76)^$H76)/10^6,IF('Start Page'!$Y$36=2,($F76*60*24*$L76)*(($G76/AD76)^$H76)/10^6,IF('Start Page'!$Y$36=3,('Unit Conversion Sheet'!$E$17*$F76*60*24*$L76)*(($G76/AD76)^$H76)/10^6)))))","v":0},0,null,null,null,0,1,null,null,null,null,null,222,{"$f":"Y76*'Unit Conversion Sheet'!$C$5","v":840.36141959999998},null,{"$f":"IF('Start Page'!$Y$36=1,Y76,IF('Start Page'!$Y$36=2,Z76,IF('Start Page'!$Y$36=3,Y76)))","v":222},null,{"$f":"IF(S76=1,(IF('Start Page'!$Y$36=1,$AB$39,IF('Start Page'!$Y$36=2,$AC$39,IF('Start Page'!$Y$36=3,$AB$39)))),'AWWA-Water Balance Data Transf.'!$D$41)","v":70},{"$f":"'AWWA-Water Balance Data Transf.'!$E$41","v":"PSI"},null,null,"",{"$f":"IF(C76=0,\"\",IF('Start Page'!$Y$36=1,($F76*60*24*J76)*(($G76/$AB$39)^$H76)/10^6,IF('Start Page'!$Y$36=2,($F76*60*24*J76)*(($G76/$AC$39)^$H76)/10^6,IF('Start Page'!$Y$36=3,('Unit Conversion Sheet'!$E$17*$F76*60*24*J76)*(($G76/$AB$39)^$H76)/10^6))))","v":""},""]
[null,"Other Diameter",0,0,0,{"$f":"R77","v":0},{"$f":"'AWWA-Water Balance Data Transf.'!$D$41","v":0},1,0,0,null,{"$f":"IF(ISERROR(IF(SUM(I77:K77)>'Start Page'!$K$35,'Start Page'!$K$35,SUM(I77:K77))),\"\",IF(SUM(I77:K77)>'Start Page'!$K$35,'Start Page'!$K$35,SUM(I77:K77)))","v":0},{"$f":"IF(ISERROR(IF(C77=0,0,IF('Start Page'!$Y$36=1,($F77*60*24*$L77)*(($G77/AD77)^$H77)/10^6,IF('Start Page'!$Y$36=2,($F77*60*24*$L77)*(($G77/AD77)^$H77)/10^6,IF('Start Page'!$Y$36=3,('Unit Conversion Sheet'!$E$17*$F77*60*24*$L77)*(($G77/AD77)^$H77)/10^6))))),0,IF(C77=0,0,IF('Start Page'!$Y$36=1,($F77*60*24*$L77)*(($G77/AD77)^$H77)/10^6,IF('Start Page'!$Y$36=2,($F77*60*24*$L77)*(($G77/AD77)^$H77)/10^6,IF('Start Page'!$Y$36=3,('Unit Conversion Sheet'!$E$17*$F77*60*24*$L77)*(($G77/AD77)^$H77)/10^6)))))","v":0},0,null,"Enter avg flow rate",null,0,null,null,null,null,null,null,null,null,null,null,null,{"$f":"'AWWA-Water Balance Data Transf.'!$D$41","v":0},{"$f":"'AWWA-Water Balance Data Transf.'!$E$41","v":"PSI"},null,null,"",{"$f":"IF(C77=0,\"\",IF('Start Page'!$Y$36=1,($F77*60*24*J77)*(($G77/$AB$39)^$H77)/10^6,IF('Start Page'!$Y$36=2,($F77*60*24*J77)*(($G77/$AC$39)^$H77)/10^6,IF('Start Page'!$Y$36=3,('Unit Conversion Sheet'!$E$17*$F77*60*24*J77)*(($G77/$AB$39)^$H77)/10^6))))","v":""},""]
[null,{"$f":"IF(C77=0,\"\",IF(C77=\"\",\"\",IF(R77=0,\"PLEASE ENTER FLOW RATE FOR OTHER DIAMETER LEAKS IN CELL R77\",IF(R77=\"\",\"PLEASE ENTER FLOW RATE FOR OTHER DIAMETER LEAKS IN CELL R77\",\"\"))))","v":""},null,null,null,null,null,null,null,null,null,null,"SUB-TOTAL REPORTED FAILURES ON  MAINS",{"$f":"SUM(N58:N77)","v":0},null,null,null,null,null,null,null,null,null,null,null,null,null,null,null,null,null,null,"Sum",{"$f":"SUM(AH58:AH77)","v":0},{"$f":"SUM(AI58:AI77)","v":0},{"$f":"SUM(AJ58:AJ77)","v":0}]
[null,"STEP 3B: REPORTED FAILURES ON DISTRIBUTION SYSTEM APPURTENANCES"]
[]
[null,"Instructions: ","Enter the total number of failures by distribution system appurtenance type that were reported to and repaired by the water utility during the audit period in cells C86 to C89. Next enter the total number of appurtenances for each system appurtenance group in cells D86 to D89  (Note: this information is not required for the real loss component analysis but serves to calculate failure frequencies by appurtenance type). Next enter the average awareness duration for reported failure events by system appurtenance type in cells I86 to I89 (Awareness duration is the average time from the occurrence of the failure event until the water utility becomes aware of its existence). Next enter the average duration of locating and containing reported failure events by system appurtenance type in cells K86 to K89. Next select either the default average leak flow rate provided by the model in cells P86 to P89 or select and enter your own utility specific average leakage flow rates in cells Q86 to R89. Average failure flow rates are based on AWWA M36 recommended flow rates and flow rates collected by the research team.",null,null,null,null,null,null,null,null,null,null,null,null,null,null,null,null,null,null,null,null,null,null,null,null,"Based on Select Preferred Volumetric Units for Audit and Component Analysis"]
[null,null,null,null,null,null,null,null,null,null,null,null,null,null,null,null,null,null,null,null,null,null,null,null,null,null,null,null,"Sum for whether F56 states that its at 70/49.2 pressure or at system specific pressure)","Pressure for average leak flow rate depending on whether user utilized default flow rate or utility specific flow rate (which does not need to be pressure corrected)"]
[null,"System Appurtenances by Type","Number of Failures per Year","Total Number of Appurtenances","Failure Frequency","Average Failure Flow Rate @ ","Average Pressure","N1 (Leakage-Pressure Exponent) Value","Average Failure Duration",null,null,null,"Average Annual Loss per Failure","Total Annual Loss",null,"Use Default Average Failure Flow Rate","Use Utility Specific Average Failure Flow Rate ","Average Failure Flow Rate @",null,null,null,null,null,null,null,null,null,null,null,null,null,null,null,"Number of Leaks times Location and Repair Duration ","Real Loss Volume per Leak Stemming From Location and Repair Duration","Total Annual Real Loss Volume Stemming From Location and Repair Duration"]
[null,null,null,null,"Number of Failures per 1000 Appurtenances",{"$f":"IF(AC86=3,IF('Start Page'!$Y$36=1,$AB$39 & \"psi\",IF('Start Page'!$Y$36=2,$AC$39 & \"metres head\",IF('Start Page'!$Y$36=3,$AB$39 & \"psi\"))),(\"Average System Pressure\"))","v":"70psi"},null,null,"Average Awareness Duration","Average Duration for Location and Repair/Shutoff Failure",null,"Total Duration",null,null,null,null,null,{"$f":"\"Average System Pressure\"","v":"Average System Pressure"}]
[null,null,null,null,null,{"$f":"IF('Start Page'!$Y$36=1,\"(gpm)\",IF('Start Page'!$Y$36=2,\"(lpm)\", IF('Start Page'!$Y$36=3,\"(gpm)\")))","v":"(gpm)"},{"$f":"$G$38","v":"(psi)"},null,"(days)","(days)",null,"(days)",{"$f":"$I$38","v":"(MG)"},{"$f":"$I$38","v":"(MG)"},null,null,null,{"$f":"$F$57","v":"(gpm)"},null,null,null,null,null,null,"gpm","lpm",null,{"$f":"$F$57","v":"(gpm)"},null,null,null,null,null,"days",{"$f":"$N$57","v":"(MG)"},{"$f":"$N$57","v":"(MG)"}]
[null,"Hydrants",0,0,{"$f":"IF(D86=0,0,C86/D86*1000)","v":0},{"$f":"IF(S86=1,AB86,R86)","v":3.5},{"$f":"'AWWA-Water Balance Data Transf.'!$D$41","v":0},1,0,0,null,{"$f":"IF(SUM(I86:K86)>'Start Page'!$K$35,'Start Page'!$K$35,SUM(I86:K86))","v":0},{"$f":"IF(ISERROR(IF(C86=0,0,IF(C86=0,\"\",IF('Start Page'!$Y$36=1,(F86*60*24*L86)*((G86/AD86)^H86)/10^6,IF('Start Page'!$Y$36=2,(F86*60*24*L86)*((G86/AD86)^H86)/10^6,IF('Start Page'!$Y$36=3,('Unit Conversion Sheet'!$E$17*F86*60*24*L86)*((G86/AD86)^H86)/10^6)))))),0,IF(C86=0,0,IF(C86=0,\"\",IF('Start Page'!$Y$36=1,(F86*60*24*L86)*((G86/AD86)^H86)/10^6,IF('Start Page'!$Y$36=2,(F86*60*24*L86)*((G86/AD86)^H86)/10^6,IF('Start Page'!$Y$36=3,('Unit Conversion Sheet'!$E$17*F86*60*24*L86)*((G86/AD86)^H86)/10^6))))))","v":0},{"$f":"IF(C86=0,0,M86*C86)","v":0},null,null,null,0,1,null,null,null,null,null,3.5,{"$f":"Y86*'Unit Conversion Sheet'!$C$5","v":13.2489413},null,{"$f":"IF('Start Page'!$Y$36=1,Y86,IF('Start Page'!$Y$36=2,Z86,IF('Start Page'!$Y$36=3,Y86)))","v":3.5},{"$f":"SUM(S86:S88)","v":3},{"$f":"IF(S86=1,(IF('Start Page'!$Y$36=1,$AB$39,IF('Start Page'!$Y$36=2,$AC$39,IF('Start Page'!$Y$36=3,$AB$39)))),'AWWA-Water Balance Data Transf.'!$D$41)","v":70},{"$f":"'AWWA-Water Balance Data Transf.'!$E$41","v":"PSI"},null,null,{"$f":"IF(C86=0,\"\",C86*J86)","v":""},{"$f":"IF(C86=0,\"\",IF('Start Page'!$Y$36=1,($F86*60*24*J86)*(($G86/$AB$39)^$H86)/10^6,IF('Start Page'!$Y$36=2,($F86*60*24*J86)*(($G86/$AC$39)^$H86)/10^6,IF('Start Page'!$Y$36=3,('Unit Conversion Sheet'!$E$17*$F86*60*24*J86)*(($G86/$AB$39)^$H86)/10^6))))","v":""},{"$f":"IF(C86=0,\"\",AI86*C86)","v":""}]
[null,"Valves",0,0,{"$f":"IF(D87=0,0,C87/D87*1000)","v":0},{"$f":"IF(S87=1,AB87,R87)","v":6.9},{"$f":"'AWWA-Water Balance Data Transf.'!$D$41","v":0},1,0,0,null,{"$f":"IF(SUM(I87:K87)>'Start Page'!$K$35,'Start Page'!$K$35,SUM(I87:K87))","v":0},{"$f":"IF(ISERROR(IF(C87=0,0,IF(C87=0,\"\",IF('Start Page'!$Y$36=1,(F87*60*24*L87)*((G87/AD87)^H87)/10^6,IF('Start Page'!$Y$36=2,(F87*60*24*L87)*((G87/AD87)^H87)/10^6,IF('Start Page'!$Y$36=3,('Unit Conversion Sheet'!$E$17*F87*60*24*L87)*((G87/AD87)^H87)/10^6)))))),0,IF(C87=0,0,IF(C87=0,\"\",IF('Start Page'!$Y$36=1,(F87*60*24*L87)*((G87/AD87)^H87)/10^6,IF('Start Page'!$Y$36=2,(F87*60*24*L87)*((G87/AD87)^H87)/10^6,IF('Start Page'!$Y$36=3,('Unit Conversion Sheet'!$E$17*F87*60*24*L87)*((G87/AD87)^H87)/10^6))))))","v":0},{"$f":"IF(C87=0,0,M87*C87)","v":0},null,null,null,0,1,null,null,null,null,null,6.9,{"$f":"Y87*'Unit Conversion Sheet'!$C$5","v":26.119341420000001},null,{"$f":"IF('Start Page'!$Y$36=1,Y87,IF('Start Page'!$Y$36=2,Z87,IF('Start Page'!$Y$36=3,Y87)))","v":6.9},null,{"$f":"IF(S87=1,(IF('Start Page'!$Y$36=1,$AB$39,IF('Start Page'!$Y$36=2,$AC$39,IF('Start Page'!$Y$36=3,$AB$39)))),'AWWA-Water Balance Data Transf.'!$D$41)","v":70},{"$f":"'AWWA-Water Balance Data Transf.'!$E$41","v":"PSI"},null,null,{"$f":"IF(C87=0,\"\",C87*J87)","v":""},{"$f":"IF(C87=0,\"\",IF('Start Page'!$Y$36=1,($F87*60*24*J87)*(($G87/$AB$39)^$H87)/10^6,IF('Start Page'!$Y$36=2,($F87*60*24*J87)*(($G87/$AC$39)^$H87)/10^6,IF('Start Page'!$Y$36=3,('Unit Conversion Sheet'!$E$17*$F87*60*24*J87)*(($G87/$AB$39)^$H87)/10^6))))","v":""},{"$f":"IF(C87=0,\"\",AI87*C87)","v":""}]
[null,"Meters",0,0,{"$f":"IF(D88=0,0,C88/D88*1000)","v":0},0.25,{"$f":"'AWWA-Water Balance Data Transf.'!$D$41","v":0},1,0,0,null,{"$f":"IF(SUM(I88:K88)>'Start Page'!$K$35,'Start Page'!$K$35,SUM(I88:K88))","v":0},{"$f":"IF(ISERROR(IF(C88=0,0,IF(C88=0,\"\",IF('Start Page'!$Y$36=1,(F88*60*24*L88)*((G88/AD88)^H88)/10^6,IF('Start Page'!$Y$36=2,(F88*60*24*L88)*((G88/AD88)^H88)/10^6,IF('Start Page'!$Y$36=3,('Unit Conversion Sheet'!$E$17*F88*60*24*L88)*((G88/AD88)^H88)/10^6)))))),0,IF(C88=0,0,IF(C88=0,\"\",IF('Start Page'!$Y$36=1,(F88*60*24*L88)*((G88/AD88)^H88)/10^6,IF('Start Page'!$Y$36=2,(F88*60*24*L88)*((G88/AD88)^H88)/10^6,IF('Start Page'!$Y$36=3,('Unit Conversion Sheet'!$E$17*F88*60*24*L88)*((G88/AD88)^H88)/10^6))))))","v":0},0,null,null,null,0,1,null,null,null,null,null,0.25,{"$f":"Y88*'Unit Conversion Sheet'!$C$5","v":0.94635294999999997},null,{"$f":"IF('Start Page'!$Y$36=1,Y88,IF('Start Page'!$Y$36=2,Z88,IF('Start Page'!$Y$36=3,Y88)))","v":0.25},null,{"$f":"IF(S88=1,(IF('Start Page'!$Y$36=1,$AB$39,IF('Start Page'!$Y$36=2,$AC$39,IF('Start Page'!$Y$36=3,$AB$39)))),'AWWA-Water Balance Data Transf.'!$D$41)","v":70},{"$f":"'AWWA-Water Balance Data Transf.'!$E$41","v":"PSI"},null,null,"",{"$f":"IF(C88=0,\"\",IF('Start Page'!$Y$36=1,($F88*60*24*J88)*(($G88/$AB$39)^$H88)/10^6,IF('Start Page'!$Y$36=2,($F88*60*24*J88)*(($G88/$AC$39)^$H88)/10^6,IF('Start Page'!$Y$36=3,('Unit Conversion Sheet'!$E$17*$F88*60*24*J88)*(($G88/$AB$39)^$H88)/10^6))))","v":""},{"$f":"IF(C88=0,\"\",AI88*C88)","v":""}]
[null,"Other (e.g. Blow-offs, etc.)",0,0,{"$f":"IF(D89=0,0,C89/D89*1000)","v":0},{"$f":"R89","v":0},{"$f":"'AWWA-Water Balance Data Transf.'!$D$41","v":0},1,0,0,null,{"$f":"IF(SUM(I89:K89)>'Start Page'!$K$35,'Start Page'!$K$35,SUM(I89:K89))","v":0},{"$f":"IF(ISERROR(IF(C89=0,0,IF(C89=0,\"\",IF('Start Page'!$Y$36=1,(F89*60*24*L89)*((G89/AD89)^H89)/10^6,IF('Start Page'!$Y$36=2,(F89*60*24*L89)*((G89/AD89)^H89)/10^6,IF('Start Page'!$Y$36=3,('Unit Conversion Sheet'!$E$17*F89*60*24*L89)*((G89/AD89)^H89)/10^6)))))),0,IF(C89=0,0,IF(C89=0,\"\",IF('Start Page'!$Y$36=1,(F89*60*24*L89)*((G89/AD89)^H89)/10^6,IF('Start Page'!$Y$36=2,(F89*60*24*L89)*((G89/AD89)^H89)/10^6,IF('Start Page'!$Y$36=3,('Unit Conversion Sheet'!$E$17*F89*60*24*L89)*((G89/AD89)^H89)/10^6))))))","v":0},0,null,"Enter avg flow rate",null,0,{"$f":"IF(R89>0,2,0)","v":0},null,null,null,null,null,null,null,null,null,null,{"$f":"'AWWA-Water Balance Data Transf.'!$D$41","v":0},{"$f":"'AWWA-Water Balance Data Transf.'!$E$41","v":"PSI"},null,null,"",{"$f":"IF(C89=0,\"\",IF('Start Page'!$Y$36=1,($F89*60*24*J89)*(($G89/$AB$39)^$H89)/10^6,IF('Start Page'!$Y$36=2,($F89*60*24*J89)*(($G89/$AC$39)^$H89)/10^6,IF('Start Page'!$Y$36=3,('Unit Conversion Sheet'!$E$17*$F89*60*24*J89)*(($G89/$AB$39)^$H89)/10^6))))","v":""},{"$f":"IF(C89=0,\"\",AI89*C89)","v":""}]
[null,{"$f":"IF(C89=0,\"\",IF(C89=\"\",\"\",IF(R89=0,\"PLEASE ENTER FLOW RATE FOR OTHER APPURTENANCE LEAKS IN CELL R89\",IF(R89=\"\",\"PLEASE ENTER FLOW RATE FOR OTHER APPURTENANCE LEAKS IN CELL R89\",\"\"))))","v":""},null,null,null,null,null,null,null,null,null,null,"SUB-TOTAL REPORTED LEAKS ON SYSTEM APPURTENANCES",{"$f":"SUM(N86:N89)","v":0},null,null,null,null,null,null,null,null,null,null,null,null,null,null,null,null,null,null,"sum",{"$f":"SUM(AH86:AH89)","v":0},{"$f":"SUM(AI86:AI89)","v":0},0]
[null,"STEP 3C: REPORTED FAILURES ON SERVICE CONNECTIONS"]
[]
[null,"Instructions: ","Enter the total number of failures by service connection size (<1\" or >=1\") that were reported to and repaired the water utility during the audit period in cells C98 to C99. Next enter the total number of service connections for each service connection size group in cells D98 to D99  (Note: this information is not required for the real loss component analysis but serves to calculate failure frequencies by service connection size group). Next enter the average awareness duration for reported failure events by  service connection size group in cells I98 to I99 (Awareness duration is the average time from the occurrence of the failure event until the water utility becomes aware of its existence). Next enter the average duration of locating and containing reported failure events by service connection size group in cells K89 to K99. Next select either the default average leak flow rate provided by the model in cells P98 to P99 or select and enter your own utility specific average leakage flow rates in cells Q98 to R99. Average failure flow rates are based on AWWA M36 recommended flow rates and flow rates collected by the research team."]
[]
[null,"Service Connections by Size","Number of Failures per Year","Total Number of Service Connections","Failure Frequency","Average Failure Flow Rate @ ","Average Pressure","N1 (Leakage-Pressure Exponent) Value","Average Failure Duration",null,null,null,"Average Annual Loss per Failure","Total Annual Loss",null,"Use Default Average Failure Flow Rate","Use Utility Specific Average Failure Flow Rate ","Average Failure Flow Rate @",null,null,null,null,null,null,null,null,null,"Based on Select Preferred Volumetric Units for Audit and Component Analysis","Sum for whether F56 states that its at 70/49.2 pressure or at system specific pressure)","Pressure for average leak flow rate depending on whether user utilized default flow rate or utility specific flow rate (which does not need to be pressure corrected)",null,null,null,"Number of Leaks times Location and Repair Duration ","Real Loss Volume per Leak Stemming From Location and Repair Duration","Total Annual Real Loss Volume Stemming From Location and Repair Duration"]
[null,null,null,null,"Number of Failures per 1000 Service Connections",{"$f":"IF(AC98=2,IF('Start Page'!$Y$36=1,$AB$39 & \"psi\",IF('Start Page'!$Y$36=2,$AC$39 & \"metres head\",IF('Start Page'!$Y$36=3,$AB$39 & \"psi\"))),(\"Avergage System Presure\"))","v":"70psi"},null,null,"Average Awareness Duration","Average Duration for Location and Repair/Shutoff Failure ",null,"Total Duration",null,null,null,null,null,{"$f":"\"average system pressure\"","v":"average system pressure"}]
[null,null,null,null,null,{"$f":"IF('Start Page'!$Y$36=1,\"(gpm)\",IF('Start Page'!$Y$36=2,\"(lpm)\", IF('Start Page'!$Y$36=3,\"(gpm)\")))","v":"(gpm)"},{"$f":"$G$38","v":"(psi)"},null,"(days)","(days)",null,"(days)",{"$f":"$I$38","v":"(MG)"},{"$f":"$I$38","v":"(MG)"},null,null,null,{"$f":"$F$57","v":"(gpm)"},null,null,null,null,null,null,"gpm","lpm",null,{"$f":"$F$57","v":"(gpm)"},null,null,null,null,null,"days",{"$f":"$N$57","v":"(MG)"},{"$f":"$N$57","v":"(MG)"}]
[null,{"$f":"IF('Start Page'!$Y$36=2,\"Services < DN 25\",\"Services < 1''\")","v":"Services < 1''"},0,0,{"$f":"IF(D98=0,0,C98/D98*1000)","v":0},{"$f":"IF(S98=1,AB98,R98)","v":6.9},{"$f":"'AWWA-Water Balance Data Transf.'!$D$41","v":0},1,0,0,null,{"$f":"IF(SUM(I98:K98)>'Start Page'!$K$35,'Start Page'!$K$35,SUM(I98:K98))","v":0},{"$f":"IF(ISERROR(IF(C98=0,0,IF('Start Page'!$Y$36=1,(F98*60*24*L98)*((G98/AD98)^H98)/10^6,IF('Start Page'!$Y$36=2,(F98*60*24*L98)*((G98/AD98)^H98)/10^6,IF('Start Page'!$Y$36=3,('Unit Conversion Sheet'!$E$17*F98*60*24*L98)*((G98/AD98)^H98)/10^6))))),0,IF(C98=0,0,IF('Start Page'!$Y$36=1,(F98*60*24*L98)*((G98/AD98)^H98)/10^6,IF('Start Page'!$Y$36=2,(F98*60*24*L98)*((G98/AD98)^H98)/10^6,IF('Start Page'!$Y$36=3,('Unit Conversion Sheet'!$E$17*F98*60*24*L98)*((G98/AD98)^H98)/10^6)))))","v":0},{"$f":"IF(C98=0,0,M98*C98)","v":0},null,null,null,0,1,null,null,null,null,null,6.9,{"$f":"Y98*'Unit Conversion Sheet'!$C$5","v":26.119341420000001},null,{"$f":"IF('Start Page'!$Y$36=1,Y98,IF('Start Page'!$Y$36=2,Z98,IF('Start Page'!$Y$36=3,Y98)))","v":6.9},{"$f":"SUM(S98:S99)","v":2},{"$f":"IF(S98=1,(IF('Start Page'!$Y$36=1,$AB$39,IF('Start Page'!$Y$36=2,$AC$39,IF('Start Page'!$Y$36=3,$AB$39)))),'AWWA-Water Balance Data Transf.'!$D$41)","v":70},{"$f":"'AWWA-Water Balance Data Transf.'!$E$41","v":"PSI"},null,null,{"$f":"IF(C98=0,\"\",C98*J98)","v":""},{"$f":"IF(C98=0,\"\",IF('Start Page'!$Y$36=1,($F98*60*24*J98)*(($G98/$AB$39)^$H98)/10^6,IF('Start Page'!$Y$36=2,($F98*60*24*J98)*(($G98/$AC$39)^$H98)/10^6,IF('Start Page'!$Y$36=3,('Unit Conversion Sheet'!$E$17*$F98*60*24*J98)*(($G98/$AB$39)^$H98)/10^6))))","v":""},{"$f":"IF(C98=0,\"\",AI98*C98)","v":""}]
[null,{"$f":"IF('Start Page'!$Y$36=2,\"Services >= DN 25\",\"Services >= 1''\")","v":"Services >= 1''"},0,0,{"$f":"IF(D99=0,0,C99/D99*1000)","v":0},{"$f":"IF(S99=1,AB99,R99)","v":13.9},{"$f":"'AWWA-Water Balance Data Transf.'!$D$41","v":0},1,0,0,null,{"$f":"IF(SUM(I99:K99)>'Start Page'!$K$35,'Start Page'!$K$35,SUM(I99:K99))","v":0},{"$f":"IF(ISERROR(IF(C99=0,0,IF('Start Page'!$Y$36=1,(F99*60*24*L99)*((G99/AD99)^H99)/10^6,IF('Start Page'!$Y$36=2,(F99*60*24*L99)*((G99/AD99)^H99)/10^6,IF('Start Page'!$Y$36=3,('Unit Conversion Sheet'!$E$17*F99*60*24*L99)*((G99/AD99)^H99)/10^6))))),0,IF(C99=0,0,IF('Start Page'!$Y$36=1,(F99*60*24*L99)*((G99/AD99)^H99)/10^6,IF('Start Page'!$Y$36=2,(F99*60*24*L99)*((G99/AD99)^H99)/10^6,IF('Start Page'!$Y$36=3,('Unit Conversion Sheet'!$E$17*F99*60*24*L99)*((G99/AD99)^H99)/10^6)))))","v":0},{"$f":"IF(C99=0,0,M99*C99)","v":0},null,null,null,0,1,null,null,null,null,null,13.9,{"$f":"Y99*'Unit Conversion Sheet'!$C$5","v":52.617224020000002},null,{"$f":"IF('Start Page'!$Y$36=1,Y99,IF('Start Page'!$Y$36=2,Z99,IF('Start Page'!$Y$36=3,Y99)))","v":13.9},null,{"$f":"IF(S99=1,(IF('Start Page'!$Y$36=1,$AB$39,IF('Start Page'!$Y$36=2,$AC$39,IF('Start Page'!$Y$36=3,$AB$39)))),'AWWA-Water Balance Data Transf.'!$D$41)","v":70},{"$f":"'AWWA-Water Balance Data Transf.'!$E$41","v":"PSI"},null,null,{"$f":"IF(C99=0,\"\",C99*J99)","v":""},{"$f":"IF(C99=0,\"\",IF('Start Page'!$Y$36=1,($F99*60*24*J99)*(($G99/$AB$39)^$H99)/10^6,IF('Start Page'!$Y$36=2,($F99*60*24*J99)*(($G99/$AC$39)^$H99)/10^6,IF('Start Page'!$Y$36=3,('Unit Conversion Sheet'!$E$17*$F99*60*24*J99)*(($G99/$AB$39)^$H99)/10^6))))","v":""},{"$f":"IF(C99=0,\"\",AI99*C99)","v":""}]
[null,null,null,null,null,null,null,null,null,null,null,null,"SUB-TOTAL REPORTED LEAKS ON SERVICE CONNECTIONS",{"$f":"SUM(N98:N99)","v":0},null,null,null,null,null,null,null,null,null,null,null,null,null,null,null,null,null,null,"Sum",{"$f":"SUM(AH98:AH99)","v":0},{"$f":"SUM(AI98:AI99)","v":0},0]
[null,null,null,null,null,null,null,null,null,null,null,null,"GRAND TOTAL REPORTED FAILURES",{"$f":"N78+N90+N100","v":0}]
[]
[]
[]
[null,"Did your utility carry out proactive leak detection during the audit period? If NO then go to the Component Analysis Summary Table at the top of this sheet - If YES then provide the data requested in STEP 4A, 4B , and 4C "]
[null,"STEP 4: UNREPORTED FAILURES"]
[]
[null,"Instructions: ","Drinking water utilities supply water through underground piping systems.  Such systems - sooner or later - will incur failures in the form of leaks and breaks (ruptures) in distribution piping. Failures are categorized into three broad types: failures that occur on the primary water main piping , failures on customer service connection piping, and failures on appurtenances attached to water mains; including fire hydrants, valves and air valves or taps. This section \"UNREPORTED FAILURES\" of the model features a standardized calculation of the real loss volume stemming from failure events found through proactive leak detection programs. Unreported leaks and breaks (failure events) are defined as events that are usually hidden and are found only if a water utility has an active leakage control/leak detection program. Follow Steps 4A, 4B and 4C to calculate the real loss volume stemming from unreported leaks and breaks."]
[]
[null,"STEP 4A: UNREPORTED FAILURES ON MAINS"]
[]
[null,"Instructions: ","Enter the total failures by main size that were detected and repaired through proactive leak detection during the audit period in cells C117 to C136. Next enter the total length of mains for each mains size group in cells D117 to D136  (Note: this information is not required for the real loss component analysis but serves to calculate failure frequencies by mains size). Next enter the average awareness duration for unreported failure events by mains size in cells I117 to I136 (If the entire distribution system is surveyed once a year the average awareness time is 365 days ÷ 2 = 182.5 days, if the system is surveyed twice a year then the average awareness time is 365 days ÷ 4 = 91.25 days and so on). Next enter the average duration of locating and containing unreported failure events by mains size in cells K117 to K136. Next select either the default average leak flow rate provided by the model in cells P117 to P136 or select and enter your own utility specific average leakage flow rates in cells Q117 to R136. Average failure flow rates are based on AWWA M36 recommended flow rates and flow rates collected by the research team."]
[]
[null,"Mains by Size","Number of Failures per Year","Length of Main","Failure Frequency","Average Failure Flow Rate @ ","Average Pressure","N1 (Leakage-Pressure Exponent) Value","Average Failure Duration",null,null,null,"Average Annual Loss per Failure","Total Annual Loss",null,"Use Default Average Failure Flow Rate","Use Utility Specific Average Failure Flow Rate ","Average Failure Flow Rate @",null,null,null,null,null,null,null,null,null,"Based on Select Preferred Volumetric Units for Audit and Component Analysis","Sum for whether F56 states that its at 70/49.2 pressure or at system specific pressure)","Pressure for average leak flow rate depending on whether user utilized default flow rate or utility specific flow rate (which does not need to be pressure corrected)",null,null,null,"Number of Leaks times Location and Repair Duration ","Real Loss Volume per Leak Stemming From Location and Repair Duration","Total Annual Real Loss Volume Stemming From Location and Repair Duration"]
[null,null,null,null,{"$f":"IF('Start Page'!$Y$42=1,\"(number / 100miles / yr)\",IF('Start Page'!$Y$42=2,\"(number /100kilometers / yr)\"))","v":"(number / 100miles / yr)"},{"$f":"IF(AC58=19,IF('Start Page'!$Y$36=1,$AB$39 & \"psi\",IF('Start Page'!$Y$36=2,$AC$39 & \"metres head\",IF('Start Page'!$Y$36=3,$AB$39 & \"psi\"))),(\"Avergage System Presure\"))","v":"70psi"},null,null,"Average Awareness Duration","Average Duration for Location and Repair/Shutoff Failure",null,"Total Duration",null,null,null,null,null,{"$f":"\"average system pressure\"","v":"average system pressure"}]
[null,null,null,{"$f":"$C$39","v":"miles"},null,{"$f":"IF('Start Page'!$Y$36=1,\"(gpm)\",IF('Start Page'!$Y$36=2,\"(lpm)\", IF('Start Page'!$Y$36=3,\"(gpm)\")))","v":"(gpm)"},{"$f":"$G$38","v":"(psi)"},null,"(days)","(days)",null,"(days)",{"$f":"$I$38","v":"(MG)"},{"$f":"$I$38","v":"(MG)"},null,null,null,{"$f":"$F$57","v":"(gpm)"},null,null,null,null,null,null,"gpm","lpm",null,{"$f":"$F$57","v":"(gpm)"},null,null,null,null,null,"days",{"$f":"$N$57","v":"(MG)"},{"$f":"$N$57","v":"(MG)"}]
[null,{"$f":"IF('Start Page'!$Y$36=2,\"DN 50\",\"Diameter 2''\")","v":"Diameter 2''"},0,0,{"$f":"IF(D117=0,0,C117/D117*100)","v":0},{"$f":"IF(S117=1,AB117,R117)","v":13.9},{"$f":"'AWWA-Water Balance Data Transf.'!$D$41","v":0},1,0,0,null,{"$f":"IF(SUM(I117:K117)>'Start Page'!$K$35,'Start Page'!$K$35,SUM(I117:K117))","v":0},{"$f":"IF(ISERROR(IF(C117=0,0,IF('Start Page'!$Y$36=1,($F117*60*24*$L117)*(($G117/AD117)^$H117)/10^6,IF('Start Page'!$Y$36=2,($F117*60*24*$L117)*(($G117/AD117)^$H117)/10^6,IF('Start Page'!$Y$36=3,('Unit Conversion Sheet'!$E$17*$F117*60*24*$L117)*(($G117/AD117)^$H117)/10^6))))),0,IF(C117=0,0,IF('Start Page'!$Y$36=1,($F117*60*24*$L117)*(($G117/AD117)^$H117)/10^6,IF('Start Page'!$Y$36=2,($F117*60*24*$L117)*(($G117/AD117)^$H117)/10^6,IF('Start Page'!$Y$36=3,('Unit Conversion Sheet'!$E$17*$F117*60*24*$L117)*(($G117/AD117)^$H117)/10^6)))))","v":0},{"$f":"IF(C117=0,0,M117*C117)","v":0},null,null,null,0,1,"provide option for default flow are or individual flow rate",null,null,null,null,13.9,{"$f":"Y117*'Unit Conversion Sheet'!$C$5","v":52.617224020000002},null,{"$f":"IF('Start Page'!$Y$36=1,Y117,IF('Start Page'!$Y$36=2,Z117,IF('Start Page'!$Y$36=3,Y117)))","v":13.9},{"$f":"SUM(S117:S135)","v":19},{"$f":"IF(S117=1,(IF('Start Page'!$Y$36=1,$AB$39,IF('Start Page'!$Y$36=2,$AC$39,IF('Start Page'!$Y$36=3,$AB$39)))),'AWWA-Water Balance Data Transf.'!$D$41)","v":70},{"$f":"'AWWA-Water Balance Data Transf.'!$E$41","v":"PSI"},null,null,{"$f":"IF(C117=0,\"\",C117*J117)","v":""},{"$f":"IF(C117=0,\"\",IF('Start Page'!$Y$36=1,($F117*60*24*J117)*(($G117/$AB$39)^$H117)/10^6,IF('Start Page'!$Y$36=2,($F117*60*24*J117)*(($G117/$AC$39)^$H117)/10^6,IF('Start Page'!$Y$36=3,('Unit Conversion Sheet'!$E$17*$F117*60*24*J117)*(($G117/$AB$39)^$H117)/10^6))))","v":""},{"$f":"IF(C117=0,\"\",AI117*C117)","v":""}]
[null,{"$f":"IF('Start Page'!$Y$36=2,\"DN 80\",\"Diameter 3''\")","v":"Diameter 3''"},0,0,{"$f":"IF(D118=0,0,C118/D118*100)","v":0},{"$f":"IF(S118=1,AB118,R118)","v":13.9},{"$f":"'AWWA-Water Balance Data Transf.'!$D$41","v":0},1,0,0,null,{"$f":"IF(SUM(I118:K118)>'Start Page'!$K$35,'Start Page'!$K$35,SUM(I118:K118))","v":0},{"$f":"IF(ISERROR(IF(C118=0,0,IF('Start Page'!$Y$36=1,($F118*60*24*$L118)*(($G118/AD118)^$H118)/10^6,IF('Start Page'!$Y$36=2,($F118*60*24*$L118)*(($G118/AD118)^$H118)/10^6,IF('Start Page'!$Y$36=3,('Unit Conversion Sheet'!$E$17*$F118*60*24*$L118)*(($G118/AD118)^$H118)/10^6))))),0,IF(C118=0,0,IF('Start Page'!$Y$36=1,($F118*60*24*$L118)*(($G118/AD118)^$H118)/10^6,IF('Start Page'!$Y$36=2,($F118*60*24*$L118)*(($G118/AD118)^$H118)/10^6,IF('Start Page'!$Y$36=3,('Unit Conversion Sheet'!$E$17*$F118*60*24*$L118)*(($G118/AD118)^$H118)/10^6)))))","v":0},{"$f":"IF(C118=0,0,M118*C118)","v":0},null,null,null,0,1,null,null,null,null,null,13.9,{"$f":"Y118*'Unit Conversion Sheet'!$C$5","v":52.617224020000002},null,{"$f":"IF('Start Page'!$Y$36=1,Y118,IF('Start Page'!$Y$36=2,Z118,IF('Start Page'!$Y$36=3,Y118)))","v":13.9},null,{"$f":"IF(S118=1,(IF('Start Page'!$Y$36=1,$AB$39,IF('Start Page'!$Y$36=2,$AC$39,IF('Start Page'!$Y$36=3,$AB$39)))),'AWWA-Water Balance Data Transf.'!$D$41)","v":70},{"$f":"'AWWA-Water Balance Data Transf.'!$E$41","v":"PSI"},null,null,{"$f":"IF(C118=0,\"\",C118*J118)","v":""},{"$f":"IF(C118=0,\"\",IF('Start Page'!$Y$36=1,($F118*60*24*J118)*(($G118/$AB$39)^$H118)/10^6,IF('Start Page'!$Y$36=2,($F118*60*24*J118)*(($G118/$AC$39)^$H118)/10^6,IF('Start Page'!$Y$36=3,('Unit Conversion Sheet'!$E$17*$F118*60*24*J118)*(($G118/$AB$39)^$H118)/10^6))))","v":""},{"$f":"IF(C118=0,\"\",AI118*C118)","v":""}]
[null,{"$f":"IF('Start Page'!$Y$36=2,\"DN 100\",\"Diameter 4''\")","v":"Diameter 4''"},0,0,0,22,{"$f":"'AWWA-Water Balance Data Transf.'!$D$41","v":0},1,0,0,null,{"$f":"IF(SUM(I119:K119)>'Start Page'!$K$35,'Start Page'!$K$35,SUM(I119:K119))","v":0},{"$f":"IF(ISERROR(IF(C119=0,0,IF('Start Page'!$Y$36=1,($F119*60*24*$L119)*(($G119/AD119)^$H119)/10^6,IF('Start Page'!$Y$36=2,($F119*60*24*$L119)*(($G119/AD119)^$H119)/10^6,IF('Start Page'!$Y$36=3,('Unit Conversion Sheet'!$E$17*$F119*60*24*$L119)*(($G119/AD119)^$H119)/10^6))))),0,IF(C119=0,0,IF('Start Page'!$Y$36=1,($F119*60*24*$L119)*(($G119/AD119)^$H119)/10^6,IF('Start Page'!$Y$36=2,($F119*60*24*$L119)*(($G119/AD119)^$H119)/10^6,IF('Start Page'!$Y$36=3,('Unit Conversion Sheet'!$E$17*$F119*60*24*$L119)*(($G119/AD119)^$H119)/10^6)))))","v":0},0,null,null,null,0,1,null,null,null,null,null,22,{"$f":"Y119*'Unit Conversion Sheet'!$C$5","v":83.279059599999997},null,{"$f":"IF('Start Page'!$Y$36=1,Y119,IF('Start Page'!$Y$36=2,Z119,IF('Start Page'!$Y$36=3,Y119)))","v":22},null,{"$f":"IF(S119=1,(IF('Start Page'!$Y$36=1,$AB$39,IF('Start Page'!$Y$36=2,$AC$39,IF('Start Page'!$Y$36=3,$AB$39)))),'AWWA-Water Balance Data Transf.'!$D$41)","v":70},{"$f":"'AWWA-Water Balance Data Transf.'!$E$41","v":"PSI"},null,null,"",{"$f":"IF(C119=0,\"\",IF('Start Page'!$Y$36=1,($F119*60*24*J119)*(($G119/$AB$39)^$H119)/10^6,IF('Start Page'!$Y$36=2,($F119*60*24*J119)*(($G119/$AC$39)^$H119)/10^6,IF('Start Page'!$Y$36=3,('Unit Conversion Sheet'!$E$17*$F119*60*24*J119)*(($G119/$AB$39)^$H119)/10^6))))","v":""},""]
[null,{"$f":"IF('Start Page'!$Y$36=2,\"DN 150\",\"Diameter 6''\")","v":"Diameter 6''"},0,0,0,46,{"$f":"'AWWA-Water Balance Data Transf.'!$D$41","v":0},1,0,0,null,{"$f":"IF(SUM(I120:K120)>'Start Page'!$K$35,'Start Page'!$K$35,SUM(I120:K120))","v":0},{"$f":"IF(ISERROR(IF(C120=0,0,IF('Start Page'!$Y$36=1,($F120*60*24*$L120)*(($G120/AD120)^$H120)/10^6,IF('Start Page'!$Y$36=2,($F120*60*24*$L120)*(($G120/AD120)^$H120)/10^6,IF('Start Page'!$Y$36=3,('Unit Conversion Sheet'!$E$17*$F120*60*24*$L120)*(($G120/AD120)^$H120)/10^6))))),0,IF(C120=0,0,IF('Start Page'!$Y$36=1,($F120*60*24*$L120)*(($G120/AD120)^$H120)/10^6,IF('Start Page'!$Y$36=2,($F120*60*24*$L120)*(($G120/AD120)^$H120)/10^6,IF('Start Page'!$Y$36=3,('Unit Conversion Sheet'!$E$17*$F120*60*24*$L120)*(($G120/AD120)^$H120)/10^6)))))","v":0},0,null,null,null,0,1,null,null,null,null,null,46,{"$f":"Y120*'Unit Conversion Sheet'!$C$5","v":174.1289428},null,{"$f":"IF('Start Page'!$Y$36=1,Y120,IF('Start Page'!$Y$36=2,Z120,IF('Start Page'!$Y$36=3,Y120)))","v":46},null,{"$f":"IF(S120=1,(IF('Start Page'!$Y$36=1,$AB$39,IF('Start Page'!$Y$36=2,$AC$39,IF('Start Page'!$Y$36=3,$AB$39)))),'AWWA-Water Balance Data Transf.'!$D$41)","v":70},{"$f":"'AWWA-Water Balance Data Transf.'!$E$41","v":"PSI"},null,null,"",{"$f":"IF(C120=0,\"\",IF('Start Page'!$Y$36=1,($F120*60*24*J120)*(($G120/$AB$39)^$H120)/10^6,IF('Start Page'!$Y$36=2,($F120*60*24*J120)*(($G120/$AC$39)^$H120)/10^6,IF('Start Page'!$Y$36=3,('Unit Conversion Sheet'!$E$17*$F120*60*24*J120)*(($G120/$AB$39)^$H120)/10^6))))","v":""},""]
[null,{"$f":"IF('Start Page'!$Y$36=2,\"DN 200\",\"Diameter 8''\")","v":"Diameter 8''"},0,0,0,46,{"$f":"'AWWA-Water Balance Data Transf.'!$D$41","v":0},1,0,0,null,{"$f":"IF(SUM(I121:K121)>'Start Page'!$K$35,'Start Page'!$K$35,SUM(I121:K121))","v":0},{"$f":"IF(ISERROR(IF(C121=0,0,IF('Start Page'!$Y$36=1,($F121*60*24*$L121)*(($G121/AD121)^$H121)/10^6,IF('Start Page'!$Y$36=2,($F121*60*24*$L121)*(($G121/AD121)^$H121)/10^6,IF('Start Page'!$Y$36=3,('Unit Conversion Sheet'!$E$17*$F121*60*24*$L121)*(($G121/AD121)^$H121)/10^6))))),0,IF(C121=0,0,IF('Start Page'!$Y$36=1,($F121*60*24*$L121)*(($G121/AD121)^$H121)/10^6,IF('Start Page'!$Y$36=2,($F121*60*24*$L121)*(($G121/AD121)^$H121)/10^6,IF('Start Page'!$Y$36=3,('Unit Conversion Sheet'!$E$17*$F121*60*24*$L121)*(($G121/AD121)^$H121)/10^6)))))","v":0},0,null,null,null,0,1,null,null,null,null,null,46,{"$f":"Y121*'Unit Conversion Sheet'!$C$5","v":174.1289428},null,{"$f":"IF('Start Page'!$Y$36=1,Y121,IF('Start Page'!$Y$36=2,Z121,IF('Start Page'!$Y$36=3,Y121)))","v":46},null,{"$f":"IF(S121=1,(IF('Start Page'!$Y$36=1,$AB$39,IF('Start Page'!$Y$36=2,$AC$39,IF('Start Page'!$Y$36=3,$AB$39)))),'AWWA-Water Balance Data Transf.'!$D$41)","v":70},{"$f":"'AWWA-Water Balance Data Transf.'!$E$41","v":"PSI"},null,null,"",{"$f":"IF(C121=0,\"\",IF('Start Page'!$Y$36=1,($F121*60*24*J121)*(($G121/$AB$39)^$H121)/10^6,IF('Start Page'!$Y$36=2,($F121*60*24*J121)*(($G121/$AC$39)^$H121)/10^6,IF('Start Page'!$Y$36=3,('Unit Conversion Sheet'!$E$17*$F121*60*24*J121)*(($G121/$AB$39)^$H121)/10^6))))","v":""},""]
[null,{"$f":"IF('Start Page'!$Y$36=2,\"DN 250\",\"Diameter 10''\")","v":"Diameter 10''"},0,0,0,46,{"$f":"'AWWA-Water Balance Data Transf.'!$D$41","v":0},1,0,0,null,{"$f":"IF(SUM(I122:K122)>'Start Page'!$K$35,'Start Page'!$K$35,SUM(I122:K122))","v":0},{"$f":"IF(ISERROR(IF(C122=0,0,IF('Start Page'!$Y$36=1,($F122*60*24*$L122)*(($G122/AD122)^$H122)/10^6,IF('Start Page'!$Y$36=2,($F122*60*24*$L122)*(($G122/AD122)^$H122)/10^6,IF('Start Page'!$Y$36=3,('Unit Conversion Sheet'!$E$17*$F122*60*24*$L122)*(($G122/AD122)^$H122)/10^6))))),0,IF(C122=0,0,IF('Start Page'!$Y$36=1,($F122*60*24*$L122)*(($G122/AD122)^$H122)/10^6,IF('Start Page'!$Y$36=2,($F122*60*24*$L122)*(($G122/AD122)^$H122)/10^6,IF('Start Page'!$Y$36=3,('Unit Conversion Sheet'!$E$17*$F122*60*24*$L122)*(($G122/AD122)^$H122)/10^6)))))","v":0},0,null,null,null,0,1,null,null,null,null,null,46,{"$f":"Y122*'Unit Conversion Sheet'!$C$5","v":174.1289428},null,{"$f":"IF('Start Page'!$Y$36=1,Y122,IF('Start Page'!$Y$36=2,Z122,IF('Start Page'!$Y$36=3,Y122)))","v":46},null,{"$f":"IF(S122=1,(IF('Start Page'!$Y$36=1,$AB$39,IF('Start Page'!$Y$36=2,$AC$39,IF('Start Page'!$Y$36=3,$AB$39)))),'AWWA-Water Balance Data Transf.'!$D$41)","v":70},{"$f":"'AWWA-Water Balance Data Transf.'!$E$41","v":"PSI"},null,null,"",{"$f":"IF(C122=0,\"\",IF('Start Page'!$Y$36=1,($F122*60*24*J122)*(($G122/$AB$39)^$H122)/10^6,IF('Start Page'!$Y$36=2,($F122*60*24*J122)*(($G122/$AC$39)^$H122)/10^6,IF('Start Page'!$Y$36=3,('Unit Conversion Sheet'!$E$17*$F122*60*24*J122)*(($G122/$AB$39)^$H122)/10^6))))","v":""},""]
[null,{"$f":"IF('Start Page'!$Y$36=2,\"DN 300\",\"Diameter 12''\")","v":"Diameter 12''"},0,0,0,111,{"$f":"'AWWA-Water Balance Data Transf.'!$D$41","v":0},1,0,0,null,{"$f":"IF(SUM(I123:K123)>'Start Page'!$K$35,'Start Page'!$K$35,SUM(I123:K123))","v":0},{"$f":"IF(ISERROR(IF(C123=0,0,IF('Start Page'!$Y$36=1,($F123*60*24*$L123)*(($G123/AD123)^$H123)/10^6,IF('Start Page'!$Y$36=2,($F123*60*24*$L123)*(($G123/AD123)^$H123)/10^6,IF('Start Page'!$Y$36=3,('Unit Conversion Sheet'!$E$17*$F123*60*24*$L123)*(($G123/AD123)^$H123)/10^6))))),0,IF(C123=0,0,IF('Start Page'!$Y$36=1,($F123*60*24*$L123)*(($G123/AD123)^$H123)/10^6,IF('Start Page'!$Y$36=2,($F123*60*24*$L123)*(($G123/AD123)^$H123)/10^6,IF('Start Page'!$Y$36=3,('Unit Conversion Sheet'!$E$17*$F123*60*24*$L123)*(($G123/AD123)^$H123)/10^6)))))","v":0},0,null,null,null,0,1,null,null,null,null,null,111,{"$f":"Y123*'Unit Conversion Sheet'!$C$5","v":420.18070979999999},null,{"$f":"IF('Start Page'!$Y$36=1,Y123,IF('Start Page'!$Y$36=2,Z123,IF('Start Page'!$Y$36=3,Y123)))","v":111},null,{"$f":"IF(S123=1,(IF('Start Page'!$Y$36=1,$AB$39,IF('Start Page'!$Y$36=2,$AC$39,IF('Start Page'!$Y$36=3,$AB$39)))),'AWWA-Water Balance Data Transf.'!$D$41)","v":70},{"$f":"'AWWA-Water Balance Data Transf.'!$E$41","v":"PSI"},null,null,"",{"$f":"IF(C123=0,\"\",IF('Start Page'!$Y$36=1,($F123*60*24*J123)*(($G123/$AB$39)^$H123)/10^6,IF('Start Page'!$Y$36=2,($F123*60*24*J123)*(($G123/$AC$39)^$H123)/10^6,IF('Start Page'!$Y$36=3,('Unit Conversion Sheet'!$E$17*$F123*60*24*J123)*(($G123/$AB$39)^$H123)/10^6))))","v":""},""]
[null,{"$f":"IF('Start Page'!$Y$36=2,\"DN 350\",\"Diameter 14''\")","v":"Diameter 14''"},0,0,0,111,{"$f":"'AWWA-Water Balance Data Transf.'!$D$41","v":0},1,0,0,null,{"$f":"IF(SUM(I124:K124)>'Start Page'!$K$35,'Start Page'!$K$35,SUM(I124:K124))","v":0},{"$f":"IF(ISERROR(IF(C124=0,0,IF('Start Page'!$Y$36=1,($F124*60*24*$L124)*(($G124/AD124)^$H124)/10^6,IF('Start Page'!$Y$36=2,($F124*60*24*$L124)*(($G124/AD124)^$H124)/10^6,IF('Start Page'!$Y$36=3,('Unit Conversion Sheet'!$E$17*$F124*60*24*$L124)*(($G124/AD124)^$H124)/10^6))))),0,IF(C124=0,0,IF('Start Page'!$Y$36=1,($F124*60*24*$L124)*(($G124/AD124)^$H124)/10^6,IF('Start Page'!$Y$36=2,($F124*60*24*$L124)*(($G124/AD124)^$H124)/10^6,IF('Start Page'!$Y$36=3,('Unit Conversion Sheet'!$E$17*$F124*60*24*$L124)*(($G124/AD124)^$H124)/10^6)))))","v":0},0,null,null,null,0,1,null,null,null,null,null,111,{"$f":"Y124*'Unit Conversion Sheet'!$C$5","v":420.18070979999999},null,{"$f":"IF('Start Page'!$Y$36=1,Y124,IF('Start Page'!$Y$36=2,Z124,IF('Start Page'!$Y$36=3,Y124)))","v":111},null,{"$f":"IF(S124=1,(IF('Start Page'!$Y$36=1,$AB$39,IF('Start Page'!$Y$36=2,$AC$39,IF('Start Page'!$Y$36=3,$AB$39)))),'AWWA-Water Balance Data Transf.'!$D$41)","v":70},{"$f":"'AWWA-Water Balance Data Transf.'!$E$41","v":"PSI"},null,null,"",{"$f":"IF(C124=0,\"\",IF('Start Page'!$Y$36=1,($F124*60*24*J124)*(($G124/$AB$39)^$H124)/10^6,IF('Start Page'!$Y$36=2,($F124*60*24*J124)*(($G124/$AC$39)^$H124)/10^6,IF('Start Page'!$Y$36=3,('Unit Conversion Sheet'!$E$17*$F124*60*24*J124)*(($G124/$AB$39)^$H124)/10^6))))","v":""},""]
[null,{"$f":"IF('Start Page'!$Y$36=2,\"DN 400\",\"Diameter 16''\")","v":"Diameter 16''"},0,0,0,111,{"$f":"'AWWA-Water Balance Data Transf.'!$D$41","v":0},1,0,0,null,{"$f":"IF(SUM(I125:K125)>'Start Page'!$K$35,'Start Page'!$K$35,SUM(I125:K125))","v":0},{"$f":"IF(ISERROR(IF(C125=0,0,IF('Start Page'!$Y$36=1,($F125*60*24*$L125)*(($G125/AD125)^$H125)/10^6,IF('Start Page'!$Y$36=2,($F125*60*24*$L125)*(($G125/AD125)^$H125)/10^6,IF('Start Page'!$Y$36=3,('Unit Conversion Sheet'!$E$17*$F125*60*24*$L125)*(($G125/AD125)^$H125)/10^6))))),0,IF(C125=0,0,IF('Start Page'!$Y$36=1,($F125*60*24*$L125)*(($G125/AD125)^$H125)/10^6,IF('Start Page'!$Y$36=2,($F125*60*24*$L125)*(($G125/AD125)^$H125)/10^6,IF('Start Page'!$Y$36=3,('Unit Conversion Sheet'!$E$17*$F125*60*24*$L125)*(($G125/AD125)^$H125)/10^6)))))","v":0},0,null,null,null,0,1,null,null,null,null,null,111,{"$f":"Y125*'Unit Conversion Sheet'!$C$5","v":420.18070979999999},null,{"$f":"IF('Start Page'!$Y$36=1,Y125,IF('Start Page'!$Y$36=2,Z125,IF('Start Page'!$Y$36=3,Y125)))","v":111},null,{"$f":"IF(S125=1,(IF('Start Page'!$Y$36=1,$AB$39,IF('Start Page'!$Y$36=2,$AC$39,IF('Start Page'!$Y$36=3,$AB$39)))),'AWWA-Water Balance Data Transf.'!$D$41)","v":70},{"$f":"'AWWA-Water Balance Data Transf.'!$E$41","v":"PSI"},null,null,"",{"$f":"IF(C125=0,\"\",IF('Start Page'!$Y$36=1,($F125*60*24*J125)*(($G125/$AB$39)^$H125)/10^6,IF('Start Page'!$Y$36=2,($F125*60*24*J125)*(($G125/$AC$39)^$H125)/10^6,IF('Start Page'!$Y$36=3,('Unit Conversion Sheet'!$E$17*$F125*60*24*J125)*(($G125/$AB$39)^$H125)/10^6))))","v":""},""]
[null,{"$f":"IF('Start Page'!$Y$36=2,\"DN 450\",\"Diameter 18''\")","v":"Diameter 18''"},0,0,0,111,{"$f":"'AWWA-Water Balance Data Transf.'!$D$41","v":0},1,0,0,null,{"$f":"IF(SUM(I126:K126)>'Start Page'!$K$35,'Start Page'!$K$35,SUM(I126:K126))","v":0},{"$f":"IF(ISERROR(IF(C126=0,0,IF('Start Page'!$Y$36=1,($F126*60*24*$L126)*(($G126/AD126)^$H126)/10^6,IF('Start Page'!$Y$36=2,($F126*60*24*$L126)*(($G126/AD126)^$H126)/10^6,IF('Start Page'!$Y$36=3,('Unit Conversion Sheet'!$E$17*$F126*60*24*$L126)*(($G126/AD126)^$H126)/10^6))))),0,IF(C126=0,0,IF('Start Page'!$Y$36=1,($F126*60*24*$L126)*(($G126/AD126)^$H126)/10^6,IF('Start Page'!$Y$36=2,($F126*60*24*$L126)*(($G126/AD126)^$H126)/10^6,IF('Start Page'!$Y$36=3,('Unit Conversion Sheet'!$E$17*$F126*60*24*$L126)*(($G126/AD126)^$H126)/10^6)))))","v":0},0,null,null,null,0,1,null,null,null,null,null,111,{"$f":"Y126*'Unit Conversion Sheet'!$C$5","v":420.18070979999999},null,{"$f":"IF('Start Page'!$Y$36=1,Y126,IF('Start Page'!$Y$36=2,Z126,IF('Start Page'!$Y$36=3,Y126)))","v":111},null,{"$f":"IF(S126=1,(IF('Start Page'!$Y$36=1,$AB$39,IF('Start Page'!$Y$36=2,$AC$39,IF('Start Page'!$Y$36=3,$AB$39)))),'AWWA-Water Balance Data Transf.'!$D$41)","v":70},{"$f":"'AWWA-Water Balance Data Transf.'!$E$41","v":"PSI"},null,null,"",{"$f":"IF(C126=0,\"\",IF('Start Page'!$Y$36=1,($F126*60*24*J126)*(($G126/$AB$39)^$H126)/10^6,IF('Start Page'!$Y$36=2,($F126*60*24*J126)*(($G126/$AC$39)^$H126)/10^6,IF('Start Page'!$Y$36=3,('Unit Conversion Sheet'!$E$17*$F126*60*24*J126)*(($G126/$AB$39)^$H126)/10^6))))","v":""},""]
[null,{"$f":"IF('Start Page'!$Y$36=2,\"DN 500\",\"Diameter 20''\")","v":"Diameter 20''"},0,0,0,111,{"$f":"'AWWA-Water Balance Data Transf.'!$D$41","v":0},1,0,0,null,{"$f":"IF(SUM(I127:K127)>'Start Page'!$K$35,'Start Page'!$K$35,SUM(I127:K127))","v":0},{"$f":"IF(ISERROR(IF(C127=0,0,IF('Start Page'!$Y$36=1,($F127*60*24*$L127)*(($G127/AD127)^$H127)/10^6,IF('Start Page'!$Y$36=2,($F127*60*24*$L127)*(($G127/AD127)^$H127)/10^6,IF('Start Page'!$Y$36=3,('Unit Conversion Sheet'!$E$17*$F127*60*24*$L127)*(($G127/AD127)^$H127)/10^6))))),0,IF(C127=0,0,IF('Start Page'!$Y$36=1,($F127*60*24*$L127)*(($G127/AD127)^$H127)/10^6,IF('Start Page'!$Y$36=2,($F127*60*24*$L127)*(($G127/AD127)^$H127)/10^6,IF('Start Page'!$Y$36=3,('Unit Conversion Sheet'!$E$17*$F127*60*24*$L127)*(($G127/AD127)^$H127)/10^6)))))","v":0},0,null,null,null,0,1,null,null,null,null,null,111,{"$f":"Y127*'Unit Conversion Sheet'!$C$5","v":420.18070979999999},null,{"$f":"IF('Start Page'!$Y$36=1,Y127,IF('Start Page'!$Y$36=2,Z127,IF('Start Page'!$Y$36=3,Y127)))","v":111},null,{"$f":"IF(S127=1,(IF('Start Page'!$Y$36=1,$AB$39,IF('Start Page'!$Y$36=2,$AC$39,IF('Start Page'!$Y$36=3,$AB$39)))),'AWWA-Water Balance Data Transf.'!$D$41)","v":70},{"$f":"'AWWA-Water Balance Data Transf.'!$E$41","v":"PSI"},null,null,"",{"$f":"IF(C127=0,\"\",IF('Start Page'!$Y$36=1,($F127*60*24*J127)*(($G127/$AB$39)^$H127)/10^6,IF('Start Page'!$Y$36=2,($F127*60*24*J127)*(($G127/$AC$39)^$H127)/10^6,IF('Start Page'!$Y$36=3,('Unit Conversion Sheet'!$E$17*$F127*60*24*J127)*(($G127/$AB$39)^$H127)/10^6))))","v":""},""]
[null,{"$f":"IF('Start Page'!$Y$36=2,\"DN 600\",\"Diameter 24''\")","v":"Diameter 24''"},0,0,0,111,{"$f":"'AWWA-Water Balance Data Transf.'!$D$41","v":0},1,0,0,null,{"$f":"IF(SUM(I128:K128)>'Start Page'!$K$35,'Start Page'!$K$35,SUM(I128:K128))","v":0},{"$f":"IF(ISERROR(IF(C128=0,0,IF('Start Page'!$Y$36=1,($F128*60*24*$L128)*(($G128/AD128)^$H128)/10^6,IF('Start Page'!$Y$36=2,($F128*60*24*$L128)*(($G128/AD128)^$H128)/10^6,IF('Start Page'!$Y$36=3,('Unit Conversion Sheet'!$E$17*$F128*60*24*$L128)*(($G128/AD128)^$H128)/10^6))))),0,IF(C128=0,0,IF('Start Page'!$Y$36=1,($F128*60*24*$L128)*(($G128/AD128)^$H128)/10^6,IF('Start Page'!$Y$36=2,($F128*60*24*$L128)*(($G128/AD128)^$H128)/10^6,IF('Start Page'!$Y$36=3,('Unit Conversion Sheet'!$E$17*$F128*60*24*$L128)*(($G128/AD128)^$H128)/10^6)))))","v":0},0,null,null,null,0,1,null,null,null,null,null,111,{"$f":"Y128*'Unit Conversion Sheet'!$C$5","v":420.18070979999999},null,{"$f":"IF('Start Page'!$Y$36=1,Y128,IF('Start Page'!$Y$36=2,Z128,IF('Start Page'!$Y$36=3,Y128)))","v":111},null,{"$f":"IF(S128=1,(IF('Start Page'!$Y$36=1,$AB$39,IF('Start Page'!$Y$36=2,$AC$39,IF('Start Page'!$Y$36=3,$AB$39)))),'AWWA-Water Balance Data Transf.'!$D$41)","v":70},{"$f":"'AWWA-Water Balance Data Transf.'!$E$41","v":"PSI"},null,null,"",{"$f":"IF(C128=0,\"\",IF('Start Page'!$Y$36=1,($F128*60*24*J128)*(($G128/$AB$39)^$H128)/10^6,IF('Start Page'!$Y$36=2,($F128*60*24*J128)*(($G128/$AC$39)^$H128)/10^6,IF('Start Page'!$Y$36=3,('Unit Conversion Sheet'!$E$17*$F128*60*24*J128)*(($G128/$AB$39)^$H128)/10^6))))","v":""},""]
[null,{"$f":"IF('Start Page'!$Y$36=2,\"DN 750\",\"Diameter 30''\")","v":"Diameter 30''"},0,0,0,111,{"$f":"'AWWA-Water Balance Data Transf.'!$D$41","v":0},1,0,0,null,{"$f":"IF(SUM(I129:K129)>'Start Page'!$K$35,'Start Page'!$K$35,SUM(I129:K129))","v":0},{"$f":"IF(ISERROR(IF(C129=0,0,IF('Start Page'!$Y$36=1,($F129*60*24*$L129)*(($G129/AD129)^$H129)/10^6,IF('Start Page'!$Y$36=2,($F129*60*24*$L129)*(($G129/AD129)^$H129)/10^6,IF('Start Page'!$Y$36=3,('Unit Conversion Sheet'!$E$17*$F129*60*24*$L129)*(($G129/AD129)^$H129)/10^6))))),0,IF(C129=0,0,IF('Start Page'!$Y$36=1,($F129*60*24*$L129)*(($G129/AD129)^$H129)/10^6,IF('Start Page'!$Y$36=2,($F129*60*24*$L129)*(($G129/AD129)^$H129)/10^6,IF('Start Page'!$Y$36=3,('Unit Conversion Sheet'!$E$17*$F129*60*24*$L129)*(($G129/AD129)^$H129)/10^6)))))","v":0},0,null,null,null,0,1,null,null,null,null,null,111,{"$f":"Y129*'Unit Conversion Sheet'!$C$5","v":420.18070979999999},null,{"$f":"IF('Start Page'!$Y$36=1,Y129,IF('Start Page'!$Y$36=2,Z129,IF('Start Page'!$Y$36=3,Y129)))","v":111},null,{"$f":"IF(S129=1,(IF('Start Page'!$Y$36=1,$AB$39,IF('Start Page'!$Y$36=2,$AC$39,IF('Start Page'!$Y$36=3,$AB$39)))),'AWWA-Water Balance Data Transf.'!$D$41)","v":70},{"$f":"'AWWA-Water Balance Data Transf.'!$E$41","v":"PSI"},null,null,"",{"$f":"IF(C129=0,\"\",IF('Start Page'!$Y$36=1,($F129*60*24*J129)*(($G129/$AB$39)^$H129)/10^6,IF('Start Page'!$Y$36=2,($F129*60*24*J129)*(($G129/$AC$39)^$H129)/10^6,IF('Start Page'!$Y$36=3,('Unit Conversion Sheet'!$E$17*$F129*60*24*J129)*(($G129/$AB$39)^$H129)/10^6))))","v":""},""]
[null,{"$f":"IF('Start Page'!$Y$36=2,\"DN 900\",\"Diameter 36''\")","v":"Diameter 36''"},0,0,0,111,{"$f":"'AWWA-Water Balance Data Transf.'!$D$41","v":0},1,0,0,null,{"$f":"IF(SUM(I130:K130)>'Start Page'!$K$35,'Start Page'!$K$35,SUM(I130:K130))","v":0},{"$f":"IF(ISERROR(IF(C130=0,0,IF('Start Page'!$Y$36=1,($F130*60*24*$L130)*(($G130/AD130)^$H130)/10^6,IF('Start Page'!$Y$36=2,($F130*60*24*$L130)*(($G130/AD130)^$H130)/10^6,IF('Start Page'!$Y$36=3,('Unit Conversion Sheet'!$E$17*$F130*60*24*$L130)*(($G130/AD130)^$H130)/10^6))))),0,IF(C130=0,0,IF('Start Page'!$Y$36=1,($F130*60*24*$L130)*(($G130/AD130)^$H130)/10^6,IF('Start Page'!$Y$36=2,($F130*60*24*$L130)*(($G130/AD130)^$H130)/10^6,IF('Start Page'!$Y$36=3,('Unit Conversion Sheet'!$E$17*$F130*60*24*$L130)*(($G130/AD130)^$H130)/10^6)))))","v":0},0,null,null,null,0,1,null,null,null,null,null,111,{"$f":"Y130*'Unit Conversion Sheet'!$C$5","v":420.18070979999999},null,{"$f":"IF('Start Page'!$Y$36=1,Y130,IF('Start Page'!$Y$36=2,Z130,IF('Start Page'!$Y$36=3,Y130)))","v":111},null,{"$f":"IF(S130=1,(IF('Start Page'!$Y$36=1,$AB$39,IF('Start Page'!$Y$36=2,$AC$39,IF('Start Page'!$Y$36=3,$AB$39)))),'AWWA-Water Balance Data Transf.'!$D$41)","v":70},{"$f":"'AWWA-Water Balance Data Transf.'!$E$41","v":"PSI"},null,null,"",{"$f":"IF(C130=0,\"\",IF('Start Page'!$Y$36=1,($F130*60*24*J130)*(($G130/$AB$39)^$H130)/10^6,IF('Start Page'!$Y$36=2,($F130*60*24*J130)*(($G130/$AC$39)^$H130)/10^6,IF('Start Page'!$Y$36=3,('Unit Conversion Sheet'!$E$17*$F130*60*24*J130)*(($G130/$AB$39)^$H130)/10^6))))","v":""},""]
[null,{"$f":"IF('Start Page'!$Y$36=2,\"DN 1050\",\"Diameter 42''\")","v":"Diameter 42''"},0,0,0,111,{"$f":"'AWWA-Water Balance Data Transf.'!$D$41","v":0},1,0,0,null,{"$f":"IF(SUM(I131:K131)>'Start Page'!$K$35,'Start Page'!$K$35,SUM(I131:K131))","v":0},{"$f":"IF(ISERROR(IF(C131=0,0,IF('Start Page'!$Y$36=1,($F131*60*24*$L131)*(($G131/AD131)^$H131)/10^6,IF('Start Page'!$Y$36=2,($F131*60*24*$L131)*(($G131/AD131)^$H131)/10^6,IF('Start Page'!$Y$36=3,('Unit Conversion Sheet'!$E$17*$F131*60*24*$L131)*(($G131/AD131)^$H131)/10^6))))),0,IF(C131=0,0,IF('Start Page'!$Y$36=1,($F131*60*24*$L131)*(($G131/AD131)^$H131)/10^6,IF('Start Page'!$Y$36=2,($F131*60*24*$L131)*(($G131/AD131)^$H131)/10^6,IF('Start Page'!$Y$36=3,('Unit Conversion Sheet'!$E$17*$F131*60*24*$L131)*(($G131/AD131)^$H131)/10^6)))))","v":0},0,null,null,null,0,1,null,null,null,null,null,111,{"$f":"Y131*'Unit Conversion Sheet'!$C$5","v":420.18070979999999},null,{"$f":"IF('Start Page'!$Y$36=1,Y131,IF('Start Page'!$Y$36=2,Z131,IF('Start Page'!$Y$36=3,Y131)))","v":111},null,{"$f":"IF(S131=1,(IF('Start Page'!$Y$36=1,$AB$39,IF('Start Page'!$Y$36=2,$AC$39,IF('Start Page'!$Y$36=3,$AB$39)))),'AWWA-Water Balance Data Transf.'!$D$41)","v":70},{"$f":"'AWWA-Water Balance Data Transf.'!$E$41","v":"PSI"},null,null,"",{"$f":"IF(C131=0,\"\",IF('Start Page'!$Y$36=1,($F131*60*24*J131)*(($G131/$AB$39)^$H131)/10^6,IF('Start Page'!$Y$36=2,($F131*60*24*J131)*(($G131/$AC$39)^$H131)/10^6,IF('Start Page'!$Y$36=3,('Unit Conversion Sheet'!$E$17*$F131*60*24*J131)*(($G131/$AB$39)^$H131)/10^6))))","v":""},""]
[null,{"$f":"IF('Start Page'!$Y$36=2,\"DN 1200\",\"Diameter 48''\")","v":"Diameter 48''"},0,0,0,111,{"$f":"'AWWA-Water Balance Data Transf.'!$D$41","v":0},1,0,0,null,{"$f":"IF(SUM(I132:K132)>'Start Page'!$K$35,'Start Page'!$K$35,SUM(I132:K132))","v":0},{"$f":"IF(ISERROR(IF(C132=0,0,IF('Start Page'!$Y$36=1,($F132*60*24*$L132)*(($G132/AD132)^$H132)/10^6,IF('Start Page'!$Y$36=2,($F132*60*24*$L132)*(($G132/AD132)^$H132)/10^6,IF('Start Page'!$Y$36=3,('Unit Conversion Sheet'!$E$17*$F132*60*24*$L132)*(($G132/AD132)^$H132)/10^6))))),0,IF(C132=0,0,IF('Start Page'!$Y$36=1,($F132*60*24*$L132)*(($G132/AD132)^$H132)/10^6,IF('Start Page'!$Y$36=2,($F132*60*24*$L132)*(($G132/AD132)^$H132)/10^6,IF('Start Page'!$Y$36=3,('Unit Conversion Sheet'!$E$17*$F132*60*24*$L132)*(($G132/AD132)^$H132)/10^6)))))","v":0},0,null,null,null,0,1,null,null,null,null,null,111,{"$f":"Y132*'Unit Conversion Sheet'!$C$5","v":420.18070979999999},null,{"$f":"IF('Start Page'!$Y$36=1,Y132,IF('Start Page'!$Y$36=2,Z132,IF('Start Page'!$Y$36=3,Y132)))","v":111},null,{"$f":"IF(S132=1,(IF('Start Page'!$Y$36=1,$AB$39,IF('Start Page'!$Y$36=2,$AC$39,IF('Start Page'!$Y$36=3,$AB$39)))),'AWWA-Water Balance Data Transf.'!$D$41)","v":70},{"$f":"'AWWA-Water Balance Data Transf.'!$E$41","v":"PSI"},null,null,"",{"$f":"IF(C132=0,\"\",IF('Start Page'!$Y$36=1,($F132*60*24*J132)*(($G132/$AB$39)^$H132)/10^6,IF('Start Page'!$Y$36=2,($F132*60*24*J132)*(($G132/$AC$39)^$H132)/10^6,IF('Start Page'!$Y$36=3,('Unit Conversion Sheet'!$E$17*$F132*60*24*J132)*(($G132/$AB$39)^$H132)/10^6))))","v":""},""]
[null,{"$f":"IF('Start Page'!$Y$36=2,\"DN 1350\",\"Diameter 54''\")","v":"Diameter 54''"},0,0,0,111,{"$f":"'AWWA-Water Balance Data Transf.'!$D$41","v":0},1,0,0,null,{"$f":"IF(SUM(I133:K133)>'Start Page'!$K$35,'Start Page'!$K$35,SUM(I133:K133))","v":0},{"$f":"IF(ISERROR(IF(C133=0,0,IF('Start Page'!$Y$36=1,($F133*60*24*$L133)*(($G133/AD133)^$H133)/10^6,IF('Start Page'!$Y$36=2,($F133*60*24*$L133)*(($G133/AD133)^$H133)/10^6,IF('Start Page'!$Y$36=3,('Unit Conversion Sheet'!$E$17*$F133*60*24*$L133)*(($G133/AD133)^$H133)/10^6))))),0,IF(C133=0,0,IF('Start Page'!$Y$36=1,($F133*60*24*$L133)*(($G133/AD133)^$H133)/10^6,IF('Start Page'!$Y$36=2,($F133*60*24*$L133)*(($G133/AD133)^$H133)/10^6,IF('Start Page'!$Y$36=3,('Unit Conversion Sheet'!$E$17*$F133*60*24*$L133)*(($G133/AD133)^$H133)/10^6)))))","v":0},0,null,null,null,0,1,null,null,null,null,null,111,{"$f":"Y133*'Unit Conversion Sheet'!$C$5","v":420.18070979999999},null,{"$f":"IF('Start Page'!$Y$36=1,Y133,IF('Start Page'!$Y$36=2,Z133,IF('Start Page'!$Y$36=3,Y133)))","v":111},null,{"$f":"IF(S133=1,(IF('Start Page'!$Y$36=1,$AB$39,IF('Start Page'!$Y$36=2,$AC$39,IF('Start Page'!$Y$36=3,$AB$39)))),'AWWA-Water Balance Data Transf.'!$D$41)","v":70},{"$f":"'AWWA-Water Balance Data Transf.'!$E$41","v":"PSI"},null,null,"",{"$f":"IF(C133=0,\"\",IF('Start Page'!$Y$36=1,($F133*60*24*J133)*(($G133/$AB$39)^$H133)/10^6,IF('Start Page'!$Y$36=2,($F133*60*24*J133)*(($G133/$AC$39)^$H133)/10^6,IF('Start Page'!$Y$36=3,('Unit Conversion Sheet'!$E$17*$F133*60*24*J133)*(($G133/$AB$39)^$H133)/10^6))))","v":""},""]
[null,{"$f":"IF('Start Page'!$Y$36=2,\"DN 1500\",\"Diameter 60''\")","v":"Diameter 60''"},0,0,0,111,{"$f":"'AWWA-Water Balance Data Transf.'!$D$41","v":0},1,0,0,null,{"$f":"IF(SUM(I134:K134)>'Start Page'!$K$35,'Start Page'!$K$35,SUM(I134:K134))","v":0},{"$f":"IF(ISERROR(IF(C134=0,0,IF('Start Page'!$Y$36=1,($F134*60*24*$L134)*(($G134/AD134)^$H134)/10^6,IF('Start Page'!$Y$36=2,($F134*60*24*$L134)*(($G134/AD134)^$H134)/10^6,IF('Start Page'!$Y$36=3,('Unit Conversion Sheet'!$E$17*$F134*60*24*$L134)*(($G134/AD134)^$H134)/10^6))))),0,IF(C134=0,0,IF('Start Page'!$Y$36=1,($F134*60*24*$L134)*(($G134/AD134)^$H134)/10^6,IF('Start Page'!$Y$36=2,($F134*60*24*$L134)*(($G134/AD134)^$H134)/10^6,IF('Start Page'!$Y$36=3,('Unit Conversion Sheet'!$E$17*$F134*60*24*$L134)*(($G134/AD134)^$H134)/10^6)))))","v":0},0,null,null,null,0,1,null,null,null,null,null,111,{"$f":"Y134*'Unit Conversion Sheet'!$C$5","v":420.18070979999999},null,{"$f":"IF('Start Page'!$Y$36=1,Y134,IF('Start Page'!$Y$36=2,Z134,IF('Start Page'!$Y$36=3,Y134)))","v":111},null,{"$f":"IF(S134=1,(IF('Start Page'!$Y$36=1,$AB$39,IF('Start Page'!$Y$36=2,$AC$39,IF('Start Page'!$Y$36=3,$AB$39)))),'AWWA-Water Balance Data Transf.'!$D$41)","v":70},{"$f":"'AWWA-Water Balance Data Transf.'!$E$41","v":"PSI"},null,null,"",{"$f":"IF(C134=0,\"\",IF('Start Page'!$Y$36=1,($F134*60*24*J134)*(($G134/$AB$39)^$H134)/10^6,IF('Start Page'!$Y$36=2,($F134*60*24*J134)*(($G134/$AC$39)^$H134)/10^6,IF('Start Page'!$Y$36=3,('Unit Conversion Sheet'!$E$17*$F134*60*24*J134)*(($G134/$AB$39)^$H134)/10^6))))","v":""},""]
[null,{"$f":"IF('Start Page'!$Y$36=2,\"> DN 1500\",\"Diameter >60''\")","v":"Diameter >60''"},0,0,0,111,{"$f":"'AWWA-Water Balance Data Transf.'!$D$41","v":0},1,0,0,null,{"$f":"IF(SUM(I135:K135)>'Start Page'!$K$35,'Start Page'!$K$35,SUM(I135:K135))","v":0},{"$f":"IF(ISERROR(IF(C135=0,0,IF('Start Page'!$Y$36=1,($F135*60*24*$L135)*(($G135/AD135)^$H135)/10^6,IF('Start Page'!$Y$36=2,($F135*60*24*$L135)*(($G135/AD135)^$H135)/10^6,IF('Start Page'!$Y$36=3,('Unit Conversion Sheet'!$E$17*$F135*60*24*$L135)*(($G135/AD135)^$H135)/10^6))))),0,IF(C135=0,0,IF('Start Page'!$Y$36=1,($F135*60*24*$L135)*(($G135/AD135)^$H135)/10^6,IF('Start Page'!$Y$36=2,($F135*60*24*$L135)*(($G135/AD135)^$H135)/10^6,IF('Start Page'!$Y$36=3,('Unit Conversion Sheet'!$E$17*$F135*60*24*$L135)*(($G135/AD135)^$H135)/10^6)))))","v":0},0,null,null,null,0,1,null,null,null,null,null,111,{"$f":"Y135*'Unit Conversion Sheet'!$C$5","v":420.18070979999999},null,{"$f":"IF('Start Page'!$Y$36=1,Y135,IF('Start Page'!$Y$36=2,Z135,IF('Start Page'!$Y$36=3,Y135)))","v":111},null,{"$f":"IF(S135=1,(IF('Start Page'!$Y$36=1,$AB$39,IF('Start Page'!$Y$36=2,$AC$39,IF('Start Page'!$Y$36=3,$AB$39)))),'AWWA-Water Balance Data Transf.'!$D$41)","v":70},{"$f":"'AWWA-Water Balance Data Transf.'!$E$41","v":"PSI"},null,null,"",{"$f":"IF(C135=0,\"\",IF('Start Page'!$Y$36=1,($F135*60*24*J135)*(($G135/$AB$39)^$H135)/10^6,IF('Start Page'!$Y$36=2,($F135*60*24*J135)*(($G135/$AC$39)^$H135)/10^6,IF('Start Page'!$Y$36=3,('Unit Conversion Sheet'!$E$17*$F135*60*24*J135)*(($G135/$AB$39)^$H135)/10^6))))","v":""},""]
[null,"Other Diameter",0,0,0,{"$f":"R136","v":0},{"$f":"'AWWA-Water Balance Data Transf.'!$D$41","v":0},1,0,0,null,{"$f":"IF(SUM(I136:K136)>'Start Page'!$K$35,'Start Page'!$K$35,SUM(I136:K136))","v":0},{"$f":"IF(ISERROR(IF(C136=0,0,IF('Start Page'!$Y$36=1,($F136*60*24*$L136)*(($G136/AD136)^$H136)/10^6,IF('Start Page'!$Y$36=2,($F136*60*24*$L136)*(($G136/AD136)^$H136)/10^6,IF('Start Page'!$Y$36=3,('Unit Conversion Sheet'!$E$17*$F136*60*24*$L136)*(($G136/AD136)^$H136)/10^6))))),0,IF(C136=0,0,IF('Start Page'!$Y$36=1,($F136*60*24*$L136)*(($G136/AD136)^$H136)/10^6,IF('Start Page'!$Y$36=2,($F136*60*24*$L136)*(($G136/AD136)^$H136)/10^6,IF('Start Page'!$Y$36=3,('Unit Conversion Sheet'!$E$17*$F136*60*24*$L136)*(($G136/AD136)^$H136)/10^6)))))","v":0},0,null,"Enter Avg Flow Rate",null,0,null,null,null,null,null,null,null,null,null,null,null,{"$f":"'AWWA-Water Balance Data Transf.'!$D$41","v":0},{"$f":"'AWWA-Water Balance Data Transf.'!$E$41","v":"PSI"},null,null,"",{"$f":"IF(C136=0,\"\",IF('Start Page'!$Y$36=1,($F136*60*24*J136)*(($G136/$AB$39)^$H136)/10^6,IF('Start Page'!$Y$36=2,($F136*60*24*J136)*(($G136/$AC$39)^$H136)/10^6,IF('Start Page'!$Y$36=3,('Unit Conversion Sheet'!$E$17*$F136*60*24*J136)*(($G136/$AB$39)^$H136)/10^6))))","v":""},""]
[null,{"$f":"IF(C136=0,\"\",IF(C136=\"\",\"\",IF(R136=0,\"PLEASE ENTER FLOW RATE FOR OTHER DIAMETER LEAKS IN CELL R136\",IF(R136=\"\",\"PLEASE ENTER FLOW RATE FOR OTHER DIAMETER LEAKS IN CELL R136\",\"\"))))","v":""},null,null,null,null,null,null,null,null,null,null,"SUB-TOTAL UNREPORTED FAILURES ON  MAINS",{"$f":"SUM(N117:N136)","v":0},null,null,null,null,null,null,null,null,null,null,null,null,null,null,null,null,null,null,"Sum",{"$f":"SUM(AH117:AH136)","v":0},{"$f":"SUM(AI117:AI136)","v":0},{"$f":"SUM(AJ117:AJ136)","v":0}]
[null,"Step 4B: UNREPORTED FAILURES ON DISTRIBUTION SYSTEM APPURTENANCES"]
[]
[null,"Instructions: ","Enter the total number of failures by distribution system appurtenance type that were detected and repaired through proactive leak detection during the audit period in cells C145 to C148. Next enter the total number of system appurtenances for each appurtenance type in cells D145 to D148 (Note: this information is not required for the real loss component analysis but serves to calculate failure frequencies by appurtenance type). Next enter the average awareness duration for unreported failure events by system appurtenance type in cells I145 to I148  (If the entire distribution system is surveyed once a year the average awareness time is 365 days ÷ 2 = 182.5 days, if the system is surveyed twice a year then the average awareness time is 365 days ÷ 4 = 91.25 days and so on). Next enter the average duration of locating and containing unreported failure events by system appurtenance type in cells K145 to K48. Next select either the default average leak flow rate provided by the model in cells P145 to P148 or select and enter your own utility specific average leakage flow rates in cells Q145 to R148. Average failure flow rates are based on AWWA M36 recommended flow rates and flow rates collected by the research team."]
[null,null,null,null,null,null,null,null,null,null,null,null,null,null,null,null,null,null,null,null,null,null,null,null,null,null,null,"Based on Select Preferred Volumetric Units for Audit and Component Analysis","Sum for whether F56 states that its at 70/49.2 pressure or at system specific pressure)","Pressure for average leak flow rate depending on whether user utilized default flow rate or utility specific flow rate (which does not need to be pressure corrected)"]
[null,"System Appurtenances by Type","Number of Failures per Year","Total Number of Appurtenances","Failure Frequency","Average Failure Flow Rate @ ","Average Pressure","N1 (Leakage-Pressure Exponent) Value","Average Failure Duration",null,null,null,"Average Annual Loss per Failure","Total Annual Loss",null,"Use Default Average Failure Flow Rate","Use Utility Specific Average Failure Flow Rate ","Average Failure Flow Rate @",null,null,null,null,null,null,null,null,null,null,null,null,null,null,null,"Number of Leaks times Location and Repair Duration ","Real Loss Volume per Leak Stemming From Location and Repair Duration","Total Annual Real Loss Volume Stemming From Location and Repair Duration"]
[null,null,null,null,"Number of Failures per 1000 Appurtenances",{"$f":"IF(AC145=3,IF('Start Page'!$Y$36=1,$AB$39 & \"psi\",IF('Start Page'!$Y$36=2,$AC$39 & \"metres head\",IF('Start Page'!$Y$36=3,$AB$39 & \"psi\"))),(\"Avergage System Presure\"))","v":"70psi"},null,null,"Average Awareness Duration","Average Duration for Location and Repair/Shutoff Failure ",null,"Total Duration",null,null,null,null,null,{"$f":"\"average system pressure\"","v":"average system pressure"}]
[null,null,null,null,null,{"$f":"IF('Start Page'!$Y$36=1,\"(gpm)\",IF('Start Page'!$Y$36=2,\"(lpm)\", IF('Start Page'!$Y$36=3,\"(gpm)\")))","v":"(gpm)"},{"$f":"$G$38","v":"(psi)"},null,"(days)","(days)",null,"(days)",{"$f":"$I$38","v":"(MG)"},{"$f":"$I$38","v":"(MG)"},null,null,null,{"$f":"$F$57","v":"(gpm)"},null,null,null,null,null,null,"gpm","lpm",null,{"$f":"$F$57","v":"(gpm)"},null,null,null,null,null,"days",{"$f":"$N$57","v":"(MG)"},{"$f":"$N$57","v":"(MG)"}]
[null,"Hydrants",0,0,{"$f":"IF(D145=0,0,C145/D145*1000)","v":0},{"$f":"IF(S145=1,AB145,R145)","v":3.5},{"$f":"'AWWA-Water Balance Data Transf.'!$D$41","v":0},1,0,0,null,{"$f":"IF(SUM(I145:K145)>'Start Page'!$K$35,'Start Page'!$K$35,SUM(I145:K145))","v":0},{"$f":"IF(ISERROR(IF(C145=0,0,IF('Start Page'!$Y$36=1,(F145*60*24*L145)*((G145/AD145)^H145)/10^6,IF('Start Page'!$Y$36=2,(F145*60*24*L145)*((G145/AD145)^H145)/10^6,IF('Start Page'!$Y$36=3,('Unit Conversion Sheet'!$E$17*F145*60*24*L145)*((G145/AD145)^H145)/10^6))))),0,IF(C145=0,0,IF('Start Page'!$Y$36=1,(F145*60*24*L145)*((G145/AD145)^H145)/10^6,IF('Start Page'!$Y$36=2,(F145*60*24*L145)*((G145/AD145)^H145)/10^6,IF('Start Page'!$Y$36=3,('Unit Conversion Sheet'!$E$17*F145*60*24*L145)*((G145/AD145)^H145)/10^6)))))","v":0},{"$f":"IF(C145=0,0,M145*C145)","v":0},null,null,null,0,1,null,null,null,null,null,3.5,{"$f":"Y145*'Unit Conversion Sheet'!$C$5","v":13.2489413},null,{"$f":"IF('Start Page'!$Y$36=1,Y145,IF('Start Page'!$Y$36=2,Z145,IF('Start Page'!$Y$36=3,Y145)))","v":3.5},{"$f":"SUM(S145:S147)","v":3},{"$f":"IF(S145=1,(IF('Start Page'!$Y$36=1,$AB$39,IF('Start Page'!$Y$36=2,$AC$39,IF('Start Page'!$Y$36=3,$AB$39)))),'AWWA-Water Balance Data Transf.'!$D$41)","v":70},{"$f":"'AWWA-Water Balance Data Transf.'!$E$41","v":"PSI"},null,null,{"$f":"IF(C145=0,\"\",C145*J145)","v":""},{"$f":"IF(C145=0,\"\",IF('Start Page'!$Y$36=1,($F145*60*24*J145)*(($G145/$AB$39)^$H145)/10^6,IF('Start Page'!$Y$36=2,($F145*60*24*J145)*(($G145/$AC$39)^$H145)/10^6,IF('Start Page'!$Y$36=3,('Unit Conversion Sheet'!$E$17*$F145*60*24*J145)*(($G145/$AB$39)^$H145)/10^6))))","v":""},{"$f":"IF(C145=0,\"\",AI145*C145)","v":""}]
[null,"Valves",0,0,{"$f":"IF(D146=0,0,C146/D146*1000)","v":0},{"$f":"IF(S146=1,AB146,R146)","v":6.9},{"$f":"'AWWA-Water Balance Data Transf.'!$D$41","v":0},1,0,0,null,{"$f":"IF(SUM(I146:K146)>'Start Page'!$K$35,'Start Page'!$K$35,SUM(I146:K146))","v":0},{"$f":"IF(ISERROR(IF(C146=0,0,IF('Start Page'!$Y$36=1,(F146*60*24*L146)*((G146/AD146)^H146)/10^6,IF('Start Page'!$Y$36=2,(F146*60*24*L146)*((G146/AD146)^H146)/10^6,IF('Start Page'!$Y$36=3,('Unit Conversion Sheet'!$E$17*F146*60*24*L146)*((G146/AD146)^H146)/10^6))))),0,IF(C146=0,0,IF('Start Page'!$Y$36=1,(F146*60*24*L146)*((G146/AD146)^H146)/10^6,IF('Start Page'!$Y$36=2,(F146*60*24*L146)*((G146/AD146)^H146)/10^6,IF('Start Page'!$Y$36=3,('Unit Conversion Sheet'!$E$17*F146*60*24*L146)*((G146/AD146)^H146)/10^6)))))","v":0},{"$f":"IF(C146=0,0,M146*C146)","v":0},null,null,null,0,1,null,null,null,null,null,6.9,{"$f":"Y146*'Unit Conversion Sheet'!$C$5","v":26.119341420000001},null,{"$f":"IF('Start Page'!$Y$36=1,Y146,IF('Start Page'!$Y$36=2,Z146,IF('Start Page'!$Y$36=3,Y146)))","v":6.9},null,{"$f":"IF(S146=1,(IF('Start Page'!$Y$36=1,$AB$39,IF('Start Page'!$Y$36=2,$AC$39,IF('Start Page'!$Y$36=3,$AB$39)))),'AWWA-Water Balance Data Transf.'!$D$41)","v":70},{"$f":"'AWWA-Water Balance Data Transf.'!$E$41","v":"PSI"},null,null,{"$f":"IF(C146=0,\"\",C146*J146)","v":""},{"$f":"IF(C146=0,\"\",IF('Start Page'!$Y$36=1,($F146*60*24*J146)*(($G146/$AB$39)^$H146)/10^6,IF('Start Page'!$Y$36=2,($F146*60*24*J146)*(($G146/$AC$39)^$H146)/10^6,IF('Start Page'!$Y$36=3,('Unit Conversion Sheet'!$E$17*$F146*60*24*J146)*(($G146/$AB$39)^$H146)/10^6))))","v":""},{"$f":"IF(C146=0,\"\",AI146*C146)","v":""}]
[null,"Meters",0,0,{"$f":"IF(D147=0,0,C147/D147*1000)","v":0},0.25,{"$f":"'AWWA-Water Balance Data Transf.'!$D$41","v":0},1,0,0,null,{"$f":"IF(SUM(I147:K147)>'Start Page'!$K$35,'Start Page'!$K$35,SUM(I147:K147))","v":0},{"$f":"IF(ISERROR(IF(C147=0,0,IF('Start Page'!$Y$36=1,(F147*60*24*L147)*((G147/AD147)^H147)/10^6,IF('Start Page'!$Y$36=2,(F147*60*24*L147)*((G147/AD147)^H147)/10^6,IF('Start Page'!$Y$36=3,('Unit Conversion Sheet'!$E$17*F147*60*24*L147)*((G147/AD147)^H147)/10^6))))),0,IF(C147=0,0,IF('Start Page'!$Y$36=1,(F147*60*24*L147)*((G147/AD147)^H147)/10^6,IF('Start Page'!$Y$36=2,(F147*60*24*L147)*((G147/AD147)^H147)/10^6,IF('Start Page'!$Y$36=3,('Unit Conversion Sheet'!$E$17*F147*60*24*L147)*((G147/AD147)^H147)/10^6)))))","v":0},0,null,null,null,0,1,null,null,null,null,null,0.25,{"$f":"Y147*'Unit Conversion Sheet'!$C$5","v":0.94635294999999997},null,{"$f":"IF('Start Page'!$Y$36=1,Y147,IF('Start Page'!$Y$36=2,Z147,IF('Start Page'!$Y$36=3,Y147)))","v":0.25},null,{"$f":"IF(S147=1,(IF('Start Page'!$Y$36=1,$AB$39,IF('Start Page'!$Y$36=2,$AC$39,IF('Start Page'!$Y$36=3,$AB$39)))),'AWWA-Water Balance Data Transf.'!$D$41)","v":70},{"$f":"'AWWA-Water Balance Data Transf.'!$E$41","v":"PSI"},null,null,"",{"$f":"IF(C147=0,\"\",IF('Start Page'!$Y$36=1,($F147*60*24*J147)*(($G147/$AB$39)^$H147)/10^6,IF('Start Page'!$Y$36=2,($F147*60*24*J147)*(($G147/$AC$39)^$H147)/10^6,IF('Start Page'!$Y$36=3,('Unit Conversion Sheet'!$E$17*$F147*60*24*J147)*(($G147/$AB$39)^$H147)/10^6))))","v":""},""]
[null,"Other (e.g. Blow-offs, etc.)",0,0,{"$f":"IF(D148=0,0,C148/D148*1000)","v":0},{"$f":"R148","v":0},{"$f":"'AWWA-Water Balance Data Transf.'!$D$41","v":0},1,0,0,null,{"$f":"IF(SUM(I148:K148)>'Start Page'!$K$35,'Start Page'!$K$35,SUM(I148:K148))","v":0},{"$f":"IF(ISERROR(IF(C148=0,0,IF('Start Page'!$Y$36=1,(F148*60*24*L148)*((G148/AD148)^H148)/10^6,IF('Start Page'!$Y$36=2,(F148*60*24*L148)*((G148/AD148)^H148)/10^6,IF('Start Page'!$Y$36=3,('Unit Conversion Sheet'!$E$17*F148*60*24*L148)*((G148/AD148)^H148)/10^6))))),0,IF(C148=0,0,IF('Start Page'!$Y$36=1,(F148*60*24*L148)*((G148/AD148)^H148)/10^6,IF('Start Page'!$Y$36=2,(F148*60*24*L148)*((G148/AD148)^H148)/10^6,IF('Start Page'!$Y$36=3,('Unit Conversion Sheet'!$E$17*F148*60*24*L148)*((G148/AD148)^H148)/10^6)))))","v":0},0,null,"Enter avg flow rate",null,0,null,null,null,null,null,null,null,null,null,null,null,{"$f":"'AWWA-Water Balance Data Transf.'!$D$41","v":0},{"$f":"'AWWA-Water Balance Data Transf.'!$E$41","v":"PSI"},null,null,"",{"$f":"IF(C148=0,\"\",IF('Start Page'!$Y$36=1,($F148*60*24*J148)*(($G148/$AB$39)^$H148)/10^6,IF('Start Page'!$Y$36=2,($F148*60*24*J148)*(($G148/$AC$39)^$H148)/10^6,IF('Start Page'!$Y$36=3,('Unit Conversion Sheet'!$E$17*$F148*60*24*J148)*(($G148/$AB$39)^$H148)/10^6))))","v":""},""]
[null,{"$f":"IF(C148=0,\"\",IF(C148=\"\",\"\",IF(R148=0,\"PLEASE ENTER FLOW RATE FOR OTHER APPURTENANCE LEAKS IN CELL R148\",IF(R148=\"\",\"PLEASE ENTER FLOW RATE FOR OTHER APPURTENANCE LEAKS IN CELL R148\",\"\"))))","v":""},null,null,null,null,null,null,null,null,null,null,"SUB-TOTAL UNREPORTED FAILURES ON SYSTEM APPURTENANCES",{"$f":"SUM(N145:N148)","v":0},null,null,null,null,null,null,null,null,null,null,null,null,null,null,null,null,null,null,"sum",{"$f":"SUM(AH145:AH148)","v":0},{"$f":"SUM(AI145:AI148)","v":0},{"$f":"SUM(AJ145:AJ148)","v":0}]
[null,"Step 4C: UNREPORTED LEAKS ON SERVICE CONNECTIONS"]
[]
[null,"Instructions: ","Enter the total number of failures by service connection size (<1\" or >=1\") that were detected and repaired through proactive leak detection during the audit period in cells C157 to C158. Next enter the total number of service connections for each service connection size group in cells D157 to D158  (Note: this information is not required for the real loss component analysis but serves to calculate failure frequencies by service connection size group). Next enter the average awareness duration for unreported failure events by  service connection size group in cells I157 to I158 (If the entire distribution system is surveyed once a year the average awareness time is 365 days ÷ 2 = 182.5 days, if the system is surveyed twice a year then the average awareness time is 365 days ÷ 4 = 91.25 days and so on). Next enter the average duration of locating and containing unreported failure events by service connection size group in cells K157 to K158. Next select either the default average leak flow rate provided by the model in cells P157 to P158 or select and enter your own utility specific average leakage flow rates in cells Q157 to R158. Average failure flow rates are based on AWWA M36 recommended flow rates and flow rates collected by the research team."]
[null,null,null,null,null,null,null,null,null,null,null,null,null,null,null,null,null,null,null,null,null,null,null,null,null,null,null,"Based on Select Preferred Volumetric Units for Audit and Component Analysis"]
[null,"Service Connections by Size","Number of Failures per Year","Total Number of Service Connections","Failure Frequency","Average Failure Flow Rate @ ","Average Pressure","N1 (Leakage-Pressure Exponent) Value","Average Failure Duration",null,null,null,"Average Annual Loss per Failure","Total Annual Loss",null,"Use Default Average Failure Flow Rate","Use Utility Specific Average Failure Flow Rate ","Average Failure Flow Rate @",null,null,null,null,null,null,null,null,null,null,"Sum for whether F56 states that its at 70/49.2 pressure or at system specific pressure)","Pressure for average leak flow rate depending on whether user utilized default flow rate or utility specific flow rate (which does not need to be pressure corrected)",null,null,null,"Number of Leaks times Location and Repair Duration ","Real Loss Volume per Leak Stemming From Location and Repair Duration","Total Annual Real Loss Volume Stemming From Location and Repair Duration"]
[null,null,null,null,"Number of Failures per 1000 Service Connections",{"$f":"IF(AC157=2,IF('Start Page'!$Y$36=1,$AB$39 & \"psi\",IF('Start Page'!$Y$36=2,$AC$39 & \"metres head\",IF('Start Page'!$Y$36=3,$AB$39 & \"psi\"))),(\"Avergage System Presure\"))","v":"70psi"},null,null,"Average Awareness Duration","Average Duration for Location and Repair/Shutoff Failure ",null,"Total Duration",null,null,null,null,null,{"$f":"\"average system pressure\"","v":"average system pressure"}]
[null,null,null,null,null,{"$f":"IF('Start Page'!$Y$36=1,\"(gpm)\",IF('Start Page'!$Y$36=2,\"(lpm)\", IF('Start Page'!$Y$36=3,\"(gpm)\")))","v":"(gpm)"},{"$f":"$G$38","v":"(psi)"},null,"(days)","(days)",null,"(days)",{"$f":"$I$38","v":"(MG)"},{"$f":"$I$38","v":"(MG)"},null,null,null,{"$f":"$F$57","v":"(gpm)"},null,null,null,null,null,null,"gpm","lpm",null,{"$f":"$F$57","v":"(gpm)"},null,null,null,null,null,"days",{"$f":"$N$57","v":"(MG)"},{"$f":"$N$57","v":"(MG)"}]
[null,{"$f":"IF('Start Page'!$Y$36=2,\"Services < DN 25\",\"Services < 1''\")","v":"Services < 1''"},0,0,{"$f":"IF(D157=0,0,C157/D157*1000)","v":0},{"$f":"IF(S157=1,AB157,R157)","v":6.9},{"$f":"'AWWA-Water Balance Data Transf.'!$D$41","v":0},1,0,0,null,{"$f":"IF(SUM(I157:K157)>'Start Page'!$K$35,'Start Page'!$K$35,SUM(I157:K157))","v":0},{"$f":"IF(ISERROR(IF(C157=0,0,IF('Start Page'!$Y$36=1,(F157*60*24*L157)*((G157/AD157)^H157)/10^6,IF('Start Page'!$Y$36=2,(F157*60*24*L157)*((G157/AD157)^H157)/10^6,IF('Start Page'!$Y$36=3,('Unit Conversion Sheet'!$E$17*F157*60*24*L157)*((G157/AD157)^H157)/10^6))))),0,IF(C157=0,0,IF('Start Page'!$Y$36=1,(F157*60*24*L157)*((G157/AD157)^H157)/10^6,IF('Start Page'!$Y$36=2,(F157*60*24*L157)*((G157/AD157)^H157)/10^6,IF('Start Page'!$Y$36=3,('Unit Conversion Sheet'!$E$17*F157*60*24*L157)*((G157/AD157)^H157)/10^6)))))","v":0},{"$f":"IF(C157=0,0,M157*C157)","v":0},null,null,null,0,1,null,null,null,null,null,6.9,{"$f":"Y157*'Unit Conversion Sheet'!$C$5","v":26.119341420000001},null,{"$f":"IF('Start Page'!$Y$36=1,Y157,IF('Start Page'!$Y$36=2,Z157,IF('Start Page'!$Y$36=3,Y157)))","v":6.9},{"$f":"SUM(S157:S158)","v":2},{"$f":"IF(S157=1,(IF('Start Page'!$Y$36=1,$AB$39,IF('Start Page'!$Y$36=2,$AC$39,IF('Start Page'!$Y$36=3,$AB$39)))),'AWWA-Water Balance Data Transf.'!$D$41)","v":70},{"$f":"'AWWA-Water Balance Data Transf.'!$E$41","v":"PSI"},null,null,{"$f":"IF(C157=0,\"\",C157*J157)","v":""},{"$f":"IF(C157=0,\"\",IF('Start Page'!$Y$36=1,($F157*60*24*J157)*(($G157/$AB$39)^$H157)/10^6,IF('Start Page'!$Y$36=2,($F157*60*24*J157)*(($G157/$AC$39)^$H157)/10^6,IF('Start Page'!$Y$36=3,('Unit Conversion Sheet'!$E$17*$F157*60*24*J157)*(($G157/$AB$39)^$H157)/10^6))))","v":""},{"$f":"IF(C157=0,\"\",AI157*C157)","v":""}]
[null,{"$f":"IF('Start Page'!$Y$36=2,\"Services >= DN 25\",\"Services >= 1''\")","v":"Services >= 1''"},0,0,{"$f":"IF(D158=0,0,C158/D158*1000)","v":0},{"$f":"IF(S158=1,AB158,R158)","v":13.9},{"$f":"'AWWA-Water Balance Data Transf.'!$D$41","v":0},1,0,0,null,{"$f":"IF(SUM(I158:K158)>'Start Page'!$K$35,'Start Page'!$K$35,SUM(I158:K158))","v":0},{"$f":"IF(ISERROR(IF(C158=0,0,IF('Start Page'!$Y$36=1,(F158*60*24*L158)*((G158/AD158)^H158)/10^6,IF('Start Page'!$Y$36=2,(F158*60*24*L158)*((G158/AD158)^H158)/10^6,IF('Start Page'!$Y$36=3,('Unit Conversion Sheet'!$E$17*F158*60*24*L158)*((G158/AD158)^H158)/10^6))))),0,IF(C158=0,0,IF('Start Page'!$Y$36=1,(F158*60*24*L158)*((G158/AD158)^H158)/10^6,IF('Start Page'!$Y$36=2,(F158*60*24*L158)*((G158/AD158)^H158)/10^6,IF('Start Page'!$Y$36=3,('Unit Conversion Sheet'!$E$17*F158*60*24*L158)*((G158/AD158)^H158)/10^6)))))","v":0},{"$f":"IF(C158=0,0,M158*C158)","v":0},null,null,null,0,1,null,null,null,null,null,13.9,{"$f":"Y158*'Unit Conversion Sheet'!$C$5","v":52.617224020000002},null,{"$f":"IF('Start Page'!$Y$36=1,Y158,IF('Start Page'!$Y$36=2,Z158,IF('Start Page'!$Y$36=3,Y158)))","v":13.9},null,{"$f":"IF(S158=1,(IF('Start Page'!$Y$36=1,$AB$39,IF('Start Page'!$Y$36=2,$AC$39,IF('Start Page'!$Y$36=3,$AB$39)))),'AWWA-Water Balance Data Transf.'!$D$41)","v":70},{"$f":"'AWWA-Water Balance Data Transf.'!$E$41","v":"PSI"},null,null,{"$f":"IF(C158=0,\"\",C158*J158)","v":""},{"$f":"IF(C158=0,\"\",IF('Start Page'!$Y$36=1,($F158*60*24*J158)*(($G158/$AB$39)^$H158)/10^6,IF('Start Page'!$Y$36=2,($F158*60*24*J158)*(($G158/$AC$39)^$H158)/10^6,IF('Start Page'!$Y$36=3,('Unit Conversion Sheet'!$E$17*$F158*60*24*J158)*(($G158/$AB$39)^$H158)/10^6))))","v":""},{"$f":"IF(C158=0,\"\",AI158*C158)","v":""}]
[null,null,null,null,null,null,null,null,null,null,null,null,"SUB-TOTAL UNREPORTED FAILURES ON SERVICE CONNECTIONS",{"$f":"SUM(N157:N158)","v":0},null,null,null,null,null,null,null,null,null,null,null,null,null,null,null,null,null,null,"Sum",{"$f":"SUM(AH157:AH158)","v":0},{"$f":"SUM(AI157:AI158)","v":0},{"$f":"SUM(AJ157:AJ158)","v":0}]
[null,null,null,null,null,null,null,null,null,null,null,null,"GRAND TOTAL UNREPORTED FAILURES",{"$f":"SUM(N159,N149,N137)","v":0}]
[null,"NOTES: "]
[null,{"$f":"IF('Start Page'!$H$29=\"\",\"\",'Start Page'!$H$29)","v":""}]
[]
[]
[]
[]
[]
[]
[]
[]
[]
[]
[]
[]
[]
[]
[]
[]
[null,null,null,null,null,null,null,null,null,null,null,null,null,null,null,null,null,"©2014 Water Research Foundation. ALL RIGHTS RESERVED."]

{"sheet":"Real Loss Components Chart","index":8,"n_rows":35,"n_cols":26,"rows_kept":35,"cut":false,"hidden":false,"merged":[[0,1,1,15],[2,1,2,16]]}
[null,"WaterRF 4372: Real Loss Component Analysis: A Tool for Economic Water Loss Control"]
[]
[null,{"$f":"IF('Start Page'!$Y$37=\"\",\"\",IF('Start Page'!$K$37=\"Partial Audit Period\",\"Water Audit: \"&'Start Page'!$D$26&\", \"&'Start Page'!$H$26&\", \"&'Start Page'!$K$26&\", \"&'Start Page'!$Y$37,\"Water Audit: \"&'Start Page'!$D$26&\", \"&'Start Page'!$H$26&\", \"&'Start Page'!$K$26&\", \"&YEAR('Start Page'!$Y$37)))","v":""}]
[null,"REAL LOSSES COMPONENTS CHART"]
[]
[]
[]
[null,null,null,null,null,null,null,null,null,null,null,null,null,null,null,null,null,null,null,null,null,null,"Real Loss Component","Volume","Unit","Percentage"]
[null,null,null,null,null,null,null,null,null,null,null,null,null,null,null,null,null,null,null,null,null,null,"Background Leakage",{"$f":"'Real Losses Component Analysis'!C15","v":0},{"$f":"'Real Losses Component Analysis'!C11","v":"(MG)"},{"$f":"IF(ISERROR(X9/$X$14),\"\",X9/$X$14)","v":""}]
[null,null,null,null,null,null,null,null,null,null,null,null,null,null,null,null,null,null,null,null,null,null,"Reported Failures",{"$f":"'Real Losses Component Analysis'!D15","v":0},{"$f":"'Real Losses Component Analysis'!D11","v":"(MG)"},{"$f":"IF(ISERROR(X10/$X$14),\"\",X10/$X$14)","v":""}]
[null,null,null,null,null,null,null,null,null,null,null,null,null,null,null,null,null,null,null,null,null,null,"Unreported Failures",{"$f":"'Real Losses Component Analysis'!E15","v":0},{"$f":"'Real Losses Component Analysis'!E11","v":"(MG)"},{"$f":"IF(ISERROR(X11/$X$14),\"\",X11/$X$14)","v":""}]
[null,null,null,null,null,null,null,null,null,null,null,null,null,null,null,null,null,null,null,null,null,null,"Hidden Losses",{"$f":"'Real Losses Component Analysis'!F17","v":0},{"$f":"'Real Losses Component Analysis'!F11","v":"(MG)"},{"$f":"IF(ISERROR(X12/$X$14),\"\",X12/$X$14)","v":""}]
[]
[null,null,null,null,null,null,null,null,null,null,null,null,null,null,null,null,null,null,null,null,null,null,{"$f":"IF(Z14=\"\",\"\",\"Total\")","v":"Total"},{"$f":"SUM(X9:X12)","v":0},{"$f":"'Real Losses Component Analysis'!F11","v":"(MG)"},{"$f":"SUM(Z9:Z13)","v":0}]
[]
[]
[]
[]
[]
[]
[]
[]
[]
[]
[]
[]
[]
[]
[]
[]
[]
[]
[]
[]
[null,{"$f":"IF('Start Page'!$H$29=\"\",\"\",'Start Page'!$H$29)","v":""},null,null,null,null,null,null,null,null,null,null,null,null,null,null,null,"©2014 Water Research Foundation. ALL RIGHTS RESERVED."]

{"sheet":"Failure Frequency Analysis","index":9,"n_rows":32,"n_cols":23,"rows_kept":32,"cut":false,"hidden":false,"merged":[[13,21,13,25],[2,1,2,3],[0,1,1,6]]}
[null,"WaterRF 4372: Real Loss Component Analysis: A Tool for Economic Water Loss Control"]
[]
[null,{"$f":"IF('Start Page'!$Y$37=\"\",\"\",IF('Start Page'!$K$37=\"Partial Audit Period\",\"Water Audit: \"&'Start Page'!$D$26&\", \"&'Start Page'!$H$26&\", \"&'Start Page'!$K$26&\", \"&'Start Page'!$Y$37,\"Water Audit: \"&'Start Page'!$D$26&\", \"&'Start Page'!$H$26&\", \"&'Start Page'!$K$26&\", \"&YEAR('Start Page'!$Y$37)))","v":""}]
[null,"INFRASTRUCTURE FAILURE FREQUENCY ANALYSIS"]
[]
[null,{"$f":"V6","v":""},null,null,null,null,{"$f":"B6","v":""},null,null,null,null,null,null,null,null,null,null,null,null,null,null,{"$f":"'Start Page'!Y21","v":""}]
[null,{"$f":"\"Total Number of Mains Failures Reported for \"&$B$3","v":"Total Number of Mains Failures Reported for "},{"$f":"SUM('Real Losses Component Analysis'!C58:C77)","v":0},null,null,null,{"$f":"\"Total Number of Service Connection Failures Reported for \"&$B$3","v":"Total Number of Service Connection Failures Reported for "},{"$f":"SUM('Real Losses Component Analysis'!C98:C99)","v":0}]
[null,"Total Length of Mains ",{"$f":"'AWWA-Water Balance Data Transf.'!D37","v":0},{"$f":"IF('Start Page'!$Y$42=1,\"(miles)\",IF('Start Page'!$Y$42=2,\"(kilometers)\"))","v":"(miles)"},null,null,"Total Number of Service Connections",{"$f":"'AWWA-Water Balance Data Transf.'!D38","v":0},"(service connections)",null,null,null,null,null,"Mains Failure Frequency Comparison Chart Titles"]
[null,{"$f":"\"Failure Frequency \" & B6","v":"Failure Frequency "},{"$f":"IF(C8<100,\"N/A\",C7/C8*100)","v":"N/A"},{"$f":"IF('Start Page'!$Y$42=1,\"(number / 100miles / yr)\",IF('Start Page'!$Y$42=2,\"(number /100kilometers / yr)\"))","v":"(number / 100miles / yr)"},null,null,{"$f":"\"Service Connection Failure Frequency \" & B6","v":"Service Connection Failure Frequency "},{"$f":"IF(H8<1000,\"N/A\",H7/H8*1000)","v":"N/A"},"(number / 1000 service connections / yr)",null,null,null,null,null,"Chart Title",null,null,null,null,null,null,"Average Failure Frequency in NA Based on Literature Review - WaterRF 4372"]
[null,"Average Failure Frequency in North America Based on Literature Review - WaterRF 4372",{"$f":"IF('Start Page'!$Y$42=1,$V$11,IF('Start Page'!$Y$42=2,$V$12))","v":25},{"$f":"IF('Start Page'!$Y$42=1,\"(number / 100miles / yr)\",IF('Start Page'!$Y$42=2,\"(number /100kilometers / yr)\"))","v":"(number / 100miles / yr)"},null,null,"AWWA Unavoidable Annual Real Losses (UARL) Component of Reported Service Line Failures",{"$f":"IF('AWWA-Water Balance Data Transf.'!D40=0,2.25,3.75)","v":2.25},"(number / 1000 service connections / yr)",null,null,null,null,null,"Mains Failure Frequency Comparison"]
[null,"Failure Frequency for Optimized Distribution Systems (Friedman 2010)",{"$f":"IF('Start Page'!$Y$42=1,$V$15,IF('Start Page'!$Y$42=2,$V$16))","v":15},{"$f":"IF('Start Page'!$Y$42=1,\"(number / 100miles / yr)\",IF('Start Page'!$Y$42=2,\"(number /100kilometers / yr)\"))","v":"(number / 100miles / yr)"},null,null,"Ratio of Failure Frequency to UARL Break Frequency",{"$f":"IF(ISERROR(H9/H10),\"N/A\",H9/H10)","v":"N/A"},null,null,null,null,null,null,null,null,null,null,null,null,null,25,"per 100 miles"]
[null,{"$f":"IF(C9<C11,\"Note: reported failure frequency is less than failure frequency for optimized distribution systems - check failure data\", \"\")","v":""},null,null,null,null,{"$f":"IF(H9<H10,\"Note: reported failure frequency is less than UARL based minimum failure frequency - check service line failure data\", \"\")","v":""},null,null,null,null,null,null,null,"Y- Axis Legend",null,null,null,null,null,null,{"$f":"V11*(100/160.934722)","v":15.534248724771773},"per 100 km"]
[null,null,null,null,null,null,null,null,null,null,null,null,null,null,{"$f":"D9","v":"(number / 100miles / yr)"}]
[null,null,null,null,null,null,null,null,null,null,null,null,null,null,null,null,null,null,null,null,null,"Failure Frequency for Optimized Distribution Systems (Friedman 2010)"]
[null,null,null,null,null,null,null,null,null,null,null,null,null,null,null,null,null,null,null,null,null,15,"per 100 miles"]
[null,null,null,null,null,null,null,null,null,null,null,null,null,null,"Service Connection Failure Frequency Comparison Chart Titles",null,null,null,null,null,null,{"$f":"V15*(100/160.934722)","v":9.3205492348630639},"per 100 km"]
[null,null,null,null,null,null,null,null,null,null,null,null,null,null,"Chart Title"]
[null,null,null,null,null,null,null,null,null,null,null,null,null,null,"Service Connection Failure Frequency Comparison"]
[]
[null,null,null,null,null,null,null,null,null,null,null,null,null,null,"Y- Axis Legend"]
[null,null,null,null,null,null,null,null,null,null,null,null,null,null,{"$f":"I9","v":"(number / 1000 service connections / yr)"}]
[]
[]
[]
[]
[]
[]
[]
[]
[]
[]
[null,{"$f":"IF('Start Page'!$H$29=\"\",\"\",'Start Page'!$H$29)","v":""},null,null,null,null,null,null,"©2014 Water Research Foundation. ALL RIGHTS RESERVED."]

{"sheet":"A-L-R Times Options","index":10,"n_rows":52,"n_cols":8,"rows_kept":52,"cut":false,"hidden":false,"merged":[[51,1,51,2],[24,2,24,3],[25,2,25,3],[26,2,26,3],[27,2,27,3],[50,2,50,3],[48,2,48,3],[49,2,49,3],[28,2,28,3],[29,2,29,3],[33,2,33,3],[32,2,32,3],[34,2,34,3],[35,2,35,3],[36,2,36,3],[47,2,47,3],[0,1,1,6],[9,3,12,7],[43,2,43,3],[17,2,17,3],[18,2,18,3],[19,2,19,3],[20,2,20,3],[21,2,21,3],[2,1,2,7],[37,2,37,3],[38,2,38,3],[39,2,39,3],[40,2,40,3],[41,2,41,3],[45,2,45,3],[46,2,46,3],[22,2,22,3],[23,2,23,3],[30,2,30,3],[31,2,31,3],[44,2,44,3],[42,2,42,3]]}
[null,"WaterRF 4372: Real Loss Component Analysis: A Tool for Economic Water Loss Control"]
[]
[null,{"$f":"IF('Start Page'!$Y$37=\"\",\"\",IF('Start Page'!$K$37=\"Partial Audit Period\",\"Water Audit: \"&'Start Page'!$D$26&\", \"&'Start Page'!$H$26&\", \"&'Start Page'!$K$26&\", \"&'Start Page'!$Y$37,\"Water Audit: \"&'Start Page'!$D$26&\", \"&'Start Page'!$H$26&\", \"&'Start Page'!$K$26&\", \"&YEAR('Start Page'!$Y$37)))","v":""}]
[null,"EVALUATION OF LOCATION AND REPAIR TIME REDUCTION OPTIONS"]
[]
[]
[]
[]
[]
[null,null,"Instructions:","Use What IF option in the blue highlighted cells to evaluate potential savings in real losses stemming from reducing the average location and repair time for each of the three infrastructure components for both reported and unreported failure events. Enter a target average location and repair duration (in days) and the model will calculate the resulting savings in leakage volume as well as the corresponding monetary savings. Undertake further cost benefit analysis if this analysis has shown potentially cost effective options for leakage loss reductions by reducing the current average location and repair times."]
[]
[]
[]
[]
[null,null,"Reported and Unreported Failure Events"]
[]
[null,null,"Failures on Mains",null,"Reported","Unreported"]
[null,null,{"$f":"IF('Start Page'!Y37=\"\",\"Total Failures on Mains\",IF('Start Page'!Y37=\"Partial Audit Period\",\"Total Number of Failures on Mains\",\"Total Number of Failures on Mains in \"&YEAR('Start Page'!Y37)))","v":"Total Failures on Mains"},null,{"$f":"IF(ISERROR(SUM('Real Losses Component Analysis'!C58:C77)),\"\",SUM('Real Losses Component Analysis'!C58:C77))","v":0},{"$f":"IF(ISERROR(SUM('Real Losses Component Analysis'!C117:C136)),\"\",SUM('Real Losses Component Analysis'!C117:C136))","v":0}]
[null,null,"Average location and repair duration",null,{"$f":"IF(ISERROR(IF(E18=0,0,'Real Losses Component Analysis'!AH78/SUM('Real Losses Component Analysis'!C58:C77))),\"\",IF(E18=0,0,'Real Losses Component Analysis'!AH78/SUM('Real Losses Component Analysis'!C58:C77)))","v":0},{"$f":"IF(ISERROR(IF(F18=0,0,'Real Losses Component Analysis'!AH137/SUM('Real Losses Component Analysis'!C117:C136))),\"\",IF(F18=0,0,'Real Losses Component Analysis'!AH137/SUM('Real Losses Component Analysis'!C117:C136)))","v":0},"days"]
[null,null,"Total Volume lost (stemming from location and repair duration )",null,{"$f":"IF(ISERROR('Real Losses Component Analysis'!$AJ$78),\"\",'Real Losses Component Analysis'!$AJ$78)","v":0},{"$f":"IF(ISERROR('Real Losses Component Analysis'!$AJ$137),\"\",'Real Losses Component Analysis'!$AJ$137)","v":0},{"$f":"'Real Losses Component Analysis'!$N$57","v":"(MG)"}]
[null,null,"Total Cost of Volume lost (stemming from location and repair duration )",null,{"$f":"IF(ISERROR('AWWA-Water Balance Data Transf.'!$D$47*'A-L-R Times Options'!E20),\"\",('AWWA-Water Balance Data Transf.'!$D$47*'A-L-R Times Options'!E20))","v":0},{"$f":"IF(ISERROR(('AWWA-Water Balance Data Transf.'!$D$47*'A-L-R Times Options'!F20)),\"\",('AWWA-Water Balance Data Transf.'!$D$47*'A-L-R Times Options'!F20))","v":0}]
[]
[null,null,"What IF Location and Repair Duration is Reduced to",null,null,null,"days"]
[null,null,"Percent Reduction",null,{"$f":"IF(E23=\"\",0,IF(ISERROR((E19-E23)/E19),0,(E19-E23)/E19))","v":0},{"$f":"IF(F23=\"\",0,IF(ISERROR((F19-F23)/F19),0,(F19-F23)/F19))","v":0}]
[null,null,"Potential Related Savings in Leakage Volume",null,{"$f":"IF(ISERROR(E20-((1-E24)*E20)),\"\",E20-((1-E24)*E20))","v":0},{"$f":"IF(ISERROR(F20-((1-F24)*F20)),\"\",F20-((1-F24)*F20))","v":0},{"$f":"'Real Losses Component Analysis'!$N$57","v":"(MG)"}]
[null,null,"Potential Related Savings in Leakage Volume Cost ",null,{"$f":"IF(ISERROR(E21-((1-E24)*E21)),\"\",E21-((1-E24)*E21))","v":0},{"$f":"IF(ISERROR(F21-((1-F24)*F21)),\"\",F21-((1-F24)*F21))","v":0}]
[]
[null,null,"Service Line Failures",null,"Reported","Unreported"]
[null,null,{"$f":"IF('Start Page'!Y37=\"\",\"Total Number of Failures on Service Connections\",IF('Start Page'!Y37=\"Partial Audit Period\",\"Total Number of Failures on Service Connections\",\"Total Number of Failures on Service Connections in \"&YEAR('Start Page'!Y37)))","v":"Total Number of Failures on Service Connections"},null,{"$f":"IF(ISERROR(SUM('Real Losses Component Analysis'!C98:C99)),\"\",SUM('Real Losses Component Analysis'!C98:C99))","v":0},{"$f":"IF(ISERROR(SUM('Real Losses Component Analysis'!C157:C158)),\"\",SUM('Real Losses Component Analysis'!C157:C158))","v":0}]
[null,null,"Average location and repair duration",null,{"$f":"IF(ISERROR(IF(E29=0,0,'Real Losses Component Analysis'!AH100/SUM('Real Losses Component Analysis'!C98:C99))),\"\",IF(E29=0,0,'Real Losses Component Analysis'!AH100/SUM('Real Losses Component Analysis'!C98:C99)))","v":0},{"$f":"IF(ISERROR(IF(F29=0,0,'Real Losses Component Analysis'!AH159/SUM('Real Losses Component Analysis'!C157:C158))),\"\",IF(F29=0,0,'Real Losses Component Analysis'!AH159/SUM('Real Losses Component Analysis'!C157:C158)))","v":0},"days"]
[null,null,"Total Volume lost (stemming from location and repair duration )",null,{"$f":"IF(ISERROR('Real Losses Component Analysis'!AJ100),\"\",'Real Losses Component Analysis'!AJ100)","v":0},{"$f":"IF(ISERROR('Real Losses Component Analysis'!AJ159),\"\",'Real Losses Component Analysis'!AJ159)","v":0},{"$f":"'Real Losses Component Analysis'!$N$57","v":"(MG)"}]
[null,null,"Total Cost of Volume lost (stemming from location and repair duration )",null,{"$f":"IF(ISERROR(('AWWA-Water Balance Data Transf.'!$D$47*'A-L-R Times Options'!E31)),\"\",('AWWA-Water Balance Data Transf.'!$D$47*'A-L-R Times Options'!E31))","v":0},{"$f":"IF(ISERROR(('AWWA-Water Balance Data Transf.'!$D$47*'A-L-R Times Options'!F31)),\"\",('AWWA-Water Balance Data Transf.'!$D$47*'A-L-R Times Options'!F31))","v":0}]
[]
[null,null,"What IF Location and Repair Duration is Reduced to",null,null,null,"days"]
[null,null,"Percent Reduction",null,{"$f":"IF(E34=\"\",0,IF(ISERROR((E30-E34)/E30),0,(E30-E34)/E30))","v":0},{"$f":"IF(F34=\"\",0,IF(ISERROR((F30-F34)/F30),0,(F30-F34)/F30))","v":0}]
[null,null,"Potential Related Savings in Leakage Volume",null,{"$f":"IF(ISERROR(E31-((1-E35)*E31)),\"\",E31-((1-E35)*E31))","v":0},{"$f":"IF(ISERROR(F31-((1-F35)*F31)),\"\",F31-((1-F35)*F31))","v":0},{"$f":"'Real Losses Component Analysis'!$N$57","v":"(MG)"}]
[null,null,"Potential Related Savings in Leakage Volume Cost ",null,{"$f":"IF(ISERROR(E32-((1-E35)*E32)),\"\",E32-((1-E35)*E32))","v":0},{"$f":"IF(ISERROR(F32-((1-F35)*F32)),\"\",F32-((1-F35)*F32))","v":0}]
[]
[null,null,"Failures on System Appurtenances",null,"Reported","Unreported"]
[null,null,{"$f":"IF('Start Page'!Y37=\"\",\"Total Number of Failures on System Appurtenances\",IF('Start Page'!Y37=\"Partial Audit Period\",\"Total Number of Failures on System Appurtenances\",\"Total Number of Failures on System Appurtenances in \"&YEAR('Start Page'!Y37)))","v":"Total Number of Failures on System Appurtenances"},null,{"$f":"IF(ISERROR(SUM('Real Losses Component Analysis'!C86:C89)),\"\",SUM('Real Losses Component Analysis'!C86:C89))","v":0},{"$f":"IF(ISERROR(SUM('Real Losses Component Analysis'!C145:C148)),\"\",SUM('Real Losses Component Analysis'!C145:C148))","v":0}]
[null,null,"Average location and repair duration",null,{"$f":"IF(ISERROR(IF(E40=0,0,'Real Losses Component Analysis'!AH90/SUM('Real Losses Component Analysis'!C86:C89))),\"\",IF(E40=0,0,'Real Losses Component Analysis'!AH90/SUM('Real Losses Component Analysis'!C86:C89)))","v":0},{"$f":"IF(ISERROR(IF(F40=0,0,'Real Losses Component Analysis'!AH149/SUM('Real Losses Component Analysis'!C145:C148))),\"\",IF(F40=0,0,'Real Losses Component Analysis'!AH149/SUM('Real Losses Component Analysis'!C145:C148)))","v":0},"days"]
[null,null,"Total Volume lost (stemming from location and repair duration )",null,{"$f":"IF(ISERROR('Real Losses Component Analysis'!AJ90),\"\",'Real Losses Component Analysis'!AJ90)","v":0},{"$f":"IF(ISERROR('Real Losses Component Analysis'!AJ149),\"\",'Real Losses Component Analysis'!AJ149)","v":0},{"$f":"'Real Losses Component Analysis'!$N$57","v":"(MG)"}]
[null,null,"Total Cost of Volume lost (stemming from location and repair duration )",null,{"$f":"IF(ISERROR(('AWWA-Water Balance Data Transf.'!$D$47*'A-L-R Times Options'!E42)),\"\",('AWWA-Water Balance Data Transf.'!$D$47*'A-L-R Times Options'!E42))","v":0},{"$f":"IF(ISERROR(('AWWA-Water Balance Data Transf.'!$D$47*'A-L-R Times Options'!F42)),\"\",('AWWA-Water Balance Data Transf.'!$D$47*'A-L-R Times Options'!F42))","v":0}]
[]
[null,null,"What IF Location and Repair Duration is Reduced to",null,null,null,"days"]
[null,null,"Percent Reduction",null,{"$f":"IF(E45=\"\",0,IF(ISERROR((E41-E45)/E41),0,(E41-E45)/E41))","v":0},{"$f":"IF(F45=\"\",0,IF(ISERROR((F41-F45)/F41),0,(F41-F45)/F41))","v":0}]
[null,null,"Potential Related Savings in Leakage Volume",null,{"$f":"IF(ISERROR(E42-((1-E46)*E42)),\"\",E42-((1-E46)*E42))","v":0},{"$f":"IF(ISERROR(F42-((1-F46)*F42)),\"\",F42-((1-F46)*F42))","v":0},{"$f":"'Real Losses Component Analysis'!$N$57","v":"(MG)"}]
[null,null,"Potential Related Savings in Leakage Volume Cost ",null,{"$f":"IF(ISERROR(E43-((1-E46)*E43)),\"\",E43-((1-E46)*E43))","v":0},{"$f":"IF(ISERROR(F43-((1-F46)*F43)),\"\",F43-((1-F46)*F43))","v":0}]
[]
[null,null,"Total Potential Savings if Location and Repair Duration is Reduced as Simulated in the Above Sections",null,{"$f":"IF(ISERROR(E47+E36+E25),\"\",E47+E36+E25)","v":0},{"$f":"IF(ISERROR(F47+F36+F25),\"\",F47+F36+F25)","v":0},{"$f":"'Real Losses Component Analysis'!$N$57","v":"(MG)"}]
[null,null,"Total Potential Cost Savings if Location and Repair Duration is Reduced as Simulated in the Above Sections",null,{"$f":"IF(ISERROR(E48+E37+E26),\"\",E48+E37+E26)","v":0},{"$f":"IF(ISERROR(F48+F37+F26),\"\",F48+F37+F26)","v":0},"Per Year"]
[null,{"$f":"IF('Start Page'!$H$29=\"\",\"\",'Start Page'!$H$29)","v":""},null,null,null,null,null,"©2014 Water Research Foundation. ALL RIGHTS RESERVED."]

{"sheet":"Economic Intervention Frequency","index":11,"n_rows":48,"n_cols":27,"rows_kept":48,"cut":false,"hidden":false,"merged":[[2,1,2,14],[0,1,1,7],[5,7,19,13]]}
[null,"WaterRF 4372: Real Loss Component Analysis: A Tool for Economic Water Loss Control"]
[]
[null,{"$f":"IF('Start Page'!$Y$37=\"\",\"\",IF('Start Page'!$K$37=\"Partial Audit Period\",\"Water Audit: \"&'Start Page'!$D$26&\", \"&'Start Page'!$H$26&\", \"&'Start Page'!$K$26&\", \"&'Start Page'!$Y$37,\"Water Audit: \"&'Start Page'!$D$26&\", \"&'Start Page'!$H$26&\", \"&'Start Page'!$K$26&\", \"&YEAR('Start Page'!$Y$37)))","v":""}]
[null,"CALCULATION OF ECONOMIC INTERVENTION FREQUENCY FOR PROACTIVE LEAK DETECTION"]
[]
[null,null,"System Characteristics",null,null,null,null,"Instructions: Use this sheet to establish a preliminary schedule for proactive leak detection surveys and the corresponding necessary budget. Once the results from consecutive leak surveys are available, the Rate of Rise of Unreported Leakage should be updated and the proactive leak detection schedule should be refined taking into consideration these findings. \n\nIn order to establish a preliminary schedule for proactive leak detection or to review the currently utilized proactive leak detection schedule enter the cost for undertaking proactive leak detection ($/mile or $/km) in cell D31. Next enter the Average Rate of Rise of Unreported Leakage in cell D34. The Average Rate of Rise of Unreported Leakage is the rate at which leakage increases with time. The rate of rise is not necessarily linear since it can quickly change due to seasonal effects and other system specific impacts. The AWWA M36 Manual recommends assessing The Average Rate of Rise of Unreported Leakage either by comparing water balance results of several consecutive years and calculating the Average Rate of Rise of Unreported Leakage based on the increase in Real Loss volume from year to year (if utility does not employ proactive leak detection), or by analysis of District Metered Area night flow data or repair records of leaks detected through proactive leak detection (if utility employs proactive leakage control). Further details about how to assess the Average Rate of Rise of Unreported Leakage are provided in the AWWA M36 Manual. Note: kgal = 1,000 gallons. \n\nPlease note that the calculations used to determine the Economic Intervention Frequency are not best fit for systems with Infrastructure Leakage Index values that approach 1. For such systems, it is advised to review the Economic Intervention Frequency and associated costs with caution. "]
[null,null,"Total Length of Mains ",{"$f":"IF(ISERROR('AWWA-Water Balance Data Transf.'!D37),\"\",'AWWA-Water Balance Data Transf.'!D37)","v":0},{"$f":"'AWWA-Water Balance Data Transf.'!E37","v":"miles"}]
[null,null,"Number of Service Connections",{"$f":"IF(ISERROR('AWWA-Water Balance Data Transf.'!D38),\"\",'AWWA-Water Balance Data Transf.'!D38)","v":0},{"$f":"'AWWA-Water Balance Data Transf.'!E38","v":"service connections"}]
[null,null,"Service Connection Density",{"$f":"IF(ISERROR('AWWA-Water Balance Data Transf.'!D39),\"\",'AWWA-Water Balance Data Transf.'!D39)","v":""},{"$f":"'AWWA-Water Balance Data Transf.'!E39","v":"conn./mile main"}]
[null,null,"Average System Pressure",{"$f":"IF(ISERROR('AWWA-Water Balance Data Transf.'!D41),\"\",'AWWA-Water Balance Data Transf.'!D41)","v":0},{"$f":"'AWWA-Water Balance Data Transf.'!E41","v":"PSI"}]
[]
[null,null,"Water Balance Results"]
[null,"TBL","Current Annual Background Leakage",{"$f":"IF(ISERROR('Real Losses Component Analysis'!C15),\"\",'Real Losses Component Analysis'!C15)","v":0},{"$f":"E18","v":"MG/Yr"}]
[null,"CRL","Real Losses from Current Reported Leakage",{"$f":"IF(ISERROR('Real Losses Component Analysis'!D15),\"\",'Real Losses Component Analysis'!D15)","v":0},{"$f":"E18","v":"MG/Yr"},null,null,null,null,null,null,null,null,null,null,null,null,null,null,1,"AF",100,"/AF"]
[null,"UL","Unreported Failures Identified Through Existing Proactive Leak Detection Program",{"$f":"IF(ISERROR('Real Losses Component Analysis'!E15),\"\",'Real Losses Component Analysis'!E15)","v":0},{"$f":"E18","v":"MG/Yr"},null,null,null,null,null,null,null,null,null,null,null,null,null,null,{"$f":"325851.427242/1000000","v":0.325851427242},"MG",{"$f":"V14*T19","v":306.88832897372282},"/MG"]
[null,null,"Hidden Failures/Unreported Failures not Identified or Captured by Current Leakage Management Policy",{"$f":"IF(ISERROR('Real Losses Component Analysis'!F17),\"\",'Real Losses Component Analysis'!F17)","v":0},{"$f":"E19","v":"MG/Yr"}]
[]
[null,"CARL","Current Annual Real Losses",{"$f":"IF(ISERROR('AWWA-Water Balance Data Transf.'!D62),\"\",'AWWA-Water Balance Data Transf.'!D62)","v":""},{"$f":"'AWWA-Water Balance Data Transf.'!E62","v":"MG/Yr"},null,null,null,null,null,null,null,null,null,null,null,null,null,null,1,"MG"]
[null,"UARL","Unavoidable Annual Real Losses",{"$f":"IF(ISERROR('AWWA-Water Balance Data Transf.'!D61),\"\",'AWWA-Water Balance Data Transf.'!D61)","v":"N/A"},{"$f":"E18","v":"MG/Yr"},null,null,null,null,null,null,null,null,null,null,null,null,null,null,{"$f":"T14/T15","v":3.068883289737228},"AF"]
[null,null,"Infrastructure Leakage Index (ILI) [CARL/UARL]",{"$f":"IF(ISERROR('AWWA-Water Balance Data Transf.'!D63),\"\",'AWWA-Water Balance Data Transf.'!D63)","v":""}]
[]
[null,null,"Variable Cost of Real Losses",null,null,null,null,null,null,null,null,null,null,null,null,null,null,null,null,"Component",null,null,null,null,"Volume ","Unit","Percentage"]
[null,"CV",{"$f":"'AWWA-Water Balance Data Transf.'!B47","v":"Variable Production cost (applied to Real Losses):"},{"$f":"IF(ISERROR(IF('Start Page'!$Y$36=1,D24/1000,IF('Start Page'!$Y$36=2,D24/1000,IF('Start Page'!$Y$36=3,(D24*T19)/1000)))),\"\",IF('Start Page'!$Y$36=1,D24/1000,IF('Start Page'!$Y$36=2,D24/1000,IF('Start Page'!$Y$36=3,(D24*T19)/1000))))","v":0},{"$f":"IF('Start Page'!$Y$36=1,\"$/per kgal\",IF('Start Page'!$Y$36=2,\"$/m3\", IF('Start Page'!$Y$36=3,\"$/per kgal\")))","v":"$/per kgal"},null,null,null,null,null,null,null,null,null,null,null,null,null,null,"Current Annual Real Losses",null,null,null,null,{"$f":"IF(Y24=\"\",\"\",D18)","v":""},{"$f":"E18","v":"MG/Yr"},1]
[null,null,null,{"$f":"IF(ISERROR('AWWA-Water Balance Data Transf.'!D47),\"\",'AWWA-Water Balance Data Transf.'!D47)","v":0},{"$f":"'AWWA-Water Balance Data Transf.'!E47","v":"$/MG"},null,null,null,null,null,null,null,null,null,null,null,null,null,null,"Potentially Recoverable Leakage Through Proactive Leak Detection ",null,null,null,null,{"$f":"D46","v":""},{"$f":"E18","v":"MG/Yr"},{"$f":"Y24/Y23","v":{"$error":"#VALUE!"}}]
[]
[]
[null,"CI","Cost of comprehensive leak detection survey (excluding leak repair cost)",null,{"$f":"IF('Start Page'!Y42=1,\"$/per mile\",IF('Start Page'!Y42=2,\"$/km\",\"\"))","v":"$/per mile"}]
[null,null,null,{"$f":"IF(ISERROR(IF(D27=0,\"\",D27*D7)),\"\",IF(D27=0,\"\",D27*D7))","v":""},"$/for entire system"]
[]
[null,"RR","Average Rate of Rise of Unreported Leakage",null,{"$f":"IF('Start Page'!Y42=1,\"kgal/mile of mains/day in a year\",IF('Start Page'!Y42=2,\"m3/km of mains/day in a year\",\"\"))","v":"kgal/mile of mains/day in a year"}]
[null,null,null,{"$f":"IF(ISERROR(IF(D30=\"\",\"\",IF('Start Page'!$Y$36=1,D30*1000*D7/10^6,IF('Start Page'!$Y$36=2,D30*1000*D7/10^6,IF('Start Page'!$Y$36=3,D30*1000*D7/10^6*$T$19))))),\"\",IF(D30=\"\",\"\",IF('Start Page'!$Y$36=1,D30*1000*D7/10^6,IF('Start Page'!$Y$36=2,D30*1000*D7/10^6,IF('Start Page'!$Y$36=3,D30*1000*D7/10^6*$T$19)))))","v":""},{"$f":"IF('Start Page'!$Y$36=1,\"MG/day in a year\",IF('Start Page'!$Y$36=2,\"ML/day in a year\", IF('Start Page'!$Y$36=3,\"AF/day in a year\")))","v":"MG/day in a year"}]
[]
[null,null,"CI/CV",{"$f":"IF(ISERROR(IF(D27=0,\"\",$D$27/$D$23)),\"\",IF(D27=0,\"\",$D$27/$D$23))","v":""},{"$f":"IF('Start Page'!Y42=1,\"kgal/mile\",IF('Start Page'!Y42=2,\"m3/km \",\"\"))","v":"kgal/mile"}]
[]
[null,"EIF","Economic Intervention Frequency [0.789 * (CI/CV)/RR] ^0.5",{"$f":"IF(ISERROR(IF(D30=\"\",\"\",IF(D33=\"\",\"\",(0.789*($D$27/$D$23)/D30)^0.5))),\"\",IF(D30=\"\",\"\",IF(D33=\"\",\"\",(0.789*($D$27/$D$23)/D30)^0.5)))","v":""},"months"]
[null,null,null,{"$f":"IF(ISERROR(IF(D35=\"\",\"\",365*(D35/12))),\"\",IF(D35=\"\",\"\",365*(D35/12)))","v":""},"days"]
[null,null,"Economic Intervention Frequency - Average Leak Run Time",{"$f":"IF(ISERROR(IF(D35=\"\",\"\",D36/2)),\"\",IF(D35=\"\",\"\",D36/2))","v":""},"days"]
[null,null,"Economic Percentage of System to be Surveyed per Year",{"$f":"IF(ISERROR(IF(D35=\"\",\"\",100*12/D35)),\"\",IF(D35=\"\",\"\",100*12/D35))","v":""},"%"]
[]
[null,"ABI","Average Annual Budget for Intervention (Proactive Leak Detection)",{"$f":"IF(ISERROR(IF(D35=\"\",\"\",($D$27*$D$7)*D38/100)),\"\",IF(D35=\"\",\"\",($D$27*$D$7)*D38/100))","v":""},"$/year"]
[]
[null,"EUL","Economic Unreported Real Losses",{"$f":"IF(ISERROR(IF(D40=\"\",\"\",D40/$D$23)),\"\",IF(D40=\"\",\"\",D40/$D$23))","v":""},{"$f":"IF('Start Page'!Y42=1,\"kgal/year\",IF('Start Page'!Y42=2,\"m3/year \",\"\"))","v":"kgal/year"}]
[null,null,null,{"$f":"IF(ISERROR(IF(D42=\"\",\"\",IF('Start Page'!$Y$36=1,D42*1000/10^6,IF('Start Page'!$Y$36=2,D42*1000/10^6,IF('Start Page'!$Y$36=3,D42*1000/10^6*$T$19))))),\"\",IF(D42=\"\",\"\",IF('Start Page'!$Y$36=1,D42*1000/10^6,IF('Start Page'!$Y$36=2,D42*1000/10^6,IF('Start Page'!$Y$36=3,D42*1000/10^6*$T$19)))))","v":""},{"$f":"IF('Start Page'!$Y$36=1,\"MG/year\",IF('Start Page'!$Y$36=2,\"ML/year\", IF('Start Page'!$Y$36=3,\"AF/year\")))","v":"MG/year"}]
[null,null,"Economic Infrastructure Leakage Index (ILI)",{"$f":"IF(ISERROR(IF(D42=\"\",\"\",(D43+$D$13+$D$14+D15)/$D$19)),\"\",IF(D42=\"\",\"\",(D43+$D$13+$D$14+D15)/$D$19))","v":""}]
[]
[null,"PRL","Potentially Recoverable Leakage (CARL-CRL-EUL-TBL-UL)",{"$f":"IF(ISERROR(IF(D43=\"\",\"\",(D18-D13-D14-D15-D43))),\"\",IF(D43=\"\",\"\",(D18-D13-D14-D15-D43)))","v":""},{"$f":"E43","v":"MG/year"}]
[null,null,{"$f":"IF(D43>D16,\"Check the Data entered in Cell D27 and D30 - Cost of Leak Detection or Average Rate of Rise produce unrealistic results\",\"\")","v":"Check the Data entered in Cell D27 and D30 - Cost of Leak Detection or Average Rate of Rise produce unrealistic results"}]
[null,{"$f":"IF('Start Page'!$H$29=\"\",\"\",'Start Page'!$H$29)","v":""},null,null,null,null,null,null,null,null,null,null,null,null,"©2014 Water Research Foundation. ALL RIGHTS RESERVED."]

{"sheet":"Pressure Management Options","index":12,"n_rows":49,"n_cols":22,"rows_kept":49,"cut":false,"hidden":false,"merged":[[0,1,1,2],[5,20,5,24],[20,2,21,3],[6,2,12,4],[38,2,47,6],[2,1,2,6]]}
[null,"WaterRF 4372: Real Loss Component Analysis: A Tool for Economic Water Loss Control"]
[]
[null,{"$f":"IF('Start Page'!$Y$37=\"\",\"\",IF('Start Page'!$K$37=\"Partial Audit Period\",\"Water Audit: \"&'Start Page'!$D$26&\", \"&'Start Page'!$H$26&\", \"&'Start Page'!$K$26&\", \"&'Start Page'!$Y$37,\"Water Audit: \"&'Start Page'!$D$26&\", \"&'Start Page'!$H$26&\", \"&'Start Page'!$K$26&\", \"&YEAR('Start Page'!$Y$37)))","v":""}]
[null,"EVALUATION OF PRESSURE MANAGEMENT OPPORTUNITIES"]
[]
[null,"Instructions:","This sheet was designed to provide a simple way to simulate various scenarios of pressure reduction and the resulting savings in real losses.",null,null,null,null,null,null,null,null,null,null,null,null,null,null,null,null,null,"Failure Frequency for Optimized Distribution Systems (Friedman 2010)"]
[null,null,"The calculated reductions in real losses are based on the FAVAD (Fixed and Variable Area Discharges) concept.  The effect of reducing the average system pressure is assessed using data in the white cells D18 to D20 which are automatically copied from the AWWA - Water Balance Results Sheet. Next enter if default N1 value is to be used or if system specific N1 value should be calculated using the following formula N1= 1.5 - (1-0.65/ILI) * Prig/100 (Source: Thornton, J. and Lambert, A., 2005. Progress in practical prediction of pressure: leakage, pressure: burst frequency and pressure: consumption relationships. In: Leakage 2005 Conference Proceedings. Halifax, Canada), which requires entering the percentage of rigid pipes (percentage of metal vs. plastic pipe) and service connections in the system in cell D25.  Next enter the targeted reduction in average system pressure in cell D29. Next the reduction in real losses and the related cost savings are calculated by the model. Next enter an initial best estimate for the cost of implementing this alternative pressure management policy in cell D35 to calculate a simple payback in years for this new pressure management policy. "]
[]
[]
[]
[]
[]
[null,null,null,null,null,null,null,null,null,null,null,null,null,null,null,null,null,null,null,null,null,1]
[null,null,"Pressure Management Opportunities",null,null,null,null,null,null,null,null,null,null,null,null,null,null,null,null,null,15,"per 100 miles"]
[null,null,null,null,null,null,null,null,null,null,null,null,null,null,null,null,null,null,null,null,{"$f":"U14*(100/160.934722)","v":9.3205492348630639},"per 100 km"]
[null,null,null,"Existing Pressure Management Policy"]
[]
[null,null,"Current Average System Pressure",{"$f":"IF(ISERROR('AWWA-Water Balance Data Transf.'!D41),\"\",'AWWA-Water Balance Data Transf.'!D41)","v":0},{"$f":"'AWWA-Water Balance Data Transf.'!E41","v":"PSI"},null,null,null,null,null,null,null,null,null,null,null,null,null,null,null,"N1Value",2]
[null,null,"Total Annual Real Losses",{"$f":"IF(ISERROR('AWWA-Water Balance Data Transf.'!D30),\"\",'AWWA-Water Balance Data Transf.'!D30)","v":""},{"$f":"'AWWA-Water Balance Data Transf.'!E30","v":"MG/Yr"},null," "]
[null,null,"Value of Real Losses",{"$f":"IF(ISERROR('AWWA-Water Balance Data Transf.'!D54),\"\",'AWWA-Water Balance Data Transf.'!D54)","v":""}," $/year "]
[null,null,"FAVAD N1 Value Used for Calculation of Real Loss Reduction Due to Reduction of Average System Pressure"]
[]
[null,null,null,null,1]
[null,null,null,null,{"$f":"IF(ISERROR(IF(D26=\"N/A\",\"\",1.5-(1-0.65/D26)*(D25/100%))),\"\",IF(D26=\"N/A\",\"\",1.5-(1-0.65/D26)*(D25/100%)))","v":""}]
[null,null,"Enter % of rigid pipes and service connections in system"]
[null,null,"ILI",{"$f":"IF(ISERROR('AWWA-Water Balance Data Transf.'!D63),\"\",'AWWA-Water Balance Data Transf.'!D63)","v":""}]
[]
[null,null,null,"Alternative Pressure Management Policy"]
[null,null,"Assumed Reduction in Average System Pressure",null,{"$f":"E18","v":"PSI"}]
[null,null,"Assumed % Reduction in Average System Pressure",{"$f":"IF(ISERROR(D29/D18),\"\",D29/D18)","v":""}]
[null,null,"Real Loss Volume Saved Through Alternative Pressure Management Policy",{"$f":"IF(ISERROR(IF(D26=\"N/A\",0,D19-(D19*((D18-D29)/D18)^IF(V13=2,E24,E23)))),\"\",IF(D26=\"N/A\",0,D19-(D19*((D18-D29)/D18)^IF(V13=2,E24,E23))))","v":""},{"$f":"E19","v":"MG/Yr"}]
[null,null,"Value of Real Loss Volume Saved Through Alternative Pressure Management Policy",{"$f":"IF(ISERROR(IF(D26=\"0\",0,D31*'AWWA-Water Balance Data Transf.'!D47)),\"\",IF(D26=\"0\",0,D31*'AWWA-Water Balance Data Transf.'!D47))","v":""},"$/Year"]
[]
[]
[null,null,"Enter Estimated Cost of Implementing Alternative Pressure Management Policy",null,"$"]
[null,null,"Simple Payback Period for Implementing Alternative Pressure Management Policy",{"$f":"IF(ISERROR(IF(D26=\"N/A\",\"\",D35/D32)),\"\",IF(D26=\"N/A\",\"\",D35/D32))","v":""},"Years"]
[]
[]
[null,"Note:","Evaluation of Pressure Management Opportunities looks at Results of Reduced Pressure on the Volume of Real Losses. Pressure Management has additional benefits and impacts such as:  reduced number of new infrastructure failures, reduced annual repair costs, extended infrastructure life, reduction in residential consumption (mainly for pressure dependent outdoor consumption such as irrigation) which are not quantified in this model. However, these additional benefits and impacts should be evaluated before implementing a new or updated pressure management policy. \nIf this initial assessment of pressure management options indicates that pressure reduction could provide cost effective means of reducing and controlling real losses in the system then it is recommended to conduct a detailed pressure management study. Such a study should collect pressure data from the field, assess the presence of pressure transients, identify pressure zones with excessive pressures and prioritize pressure management in parts of the system where its most feasible. In addition a more detailed assessment of costs for implementing the new pressure management policy should be assessed.  This study should further consider the potential revenue impact a change in pressure management policy might have on residential consumption (mainly for pressure dependent outdoor consumption such as irrigation). Typical pressure management options include: introduction of pressure controlled areas, fixed outlet pressure control, time or demand based pressure control, transient control, altitude and level control at reservoirs and tanks etc. (see AWWA M36 for more details)."]
[]
[]
[]
[]
[]
[]
[]
[]
[]
[null,{"$f":"IF('Start Page'!$H$29=\"\",\"\",'Start Page'!$H$29)","v":""},null,null,null,null,"©2014 Water Research Foundation. ALL RIGHTS RESERVED."]

{"sheet":"Glossary","index":13,"n_rows":150,"n_cols":11,"rows_kept":150,"cut":false,"hidden":false,"merged":[[126,0,127,0],[2,1,2,10],[35,3,36,3],[35,2,36,2],[35,0,36,0],[35,4,36,4],[0,1,1,4],[149,1,149,2],[126,2,127,2],[126,3,127,3],[126,4,127,4]]}
[null,"WaterRF 4372: Real Loss Component Analysis: A Tool for Economic Water Loss Control"]
[]
[null,{"$f":"IF('Start Page'!$Y$37=\"\",\"\",IF('Start Page'!$K$37=\"Partial Audit Period\",\"Water Audit: \"&'Start Page'!$D$26&\", \"&'Start Page'!$H$26&\", \"&'Start Page'!$K$26&\", \"&'Start Page'!$Y$37,\"Water Audit: \"&'Start Page'!$D$26&\", \"&'Start Page'!$H$26&\", \"&'Start Page'!$K$26&\", \"&YEAR('Start Page'!$Y$37)))","v":""}]
[null,"GLOSSARY"]
[]
[]
[]
[null,null,"Term","Definition","Source"]
[]
[null,null,"Annual Cost of Apparent Losses","The cost associated to the Apparent Losses within a distribution system\n\nCost of Apparent Losses = (Apparent Losses Per Year) * (Customer Retail Cost of Water)","Julian Thornton, Reinhard Sturm and George Kunkel, P.E., Water Loss Control, (McGraw-Hill, 2008)"]
[]
[null,null,"Annual Cost of Real Losses","The cost associated to the Real Losses within a distribution system.\n\nAnnual Cost or Real Losses - (Real Losses Per Year) * (Variable Production cost of Water)","Julian Thornton, Reinhard Sturm and George Kunkel, P.E., Water Loss Control, (McGraw-Hill, 2008)"]
[]
[null,null,"Apparent Losses","Losses in customer consumption attributed to inaccuracies associated with customer metering, systematic data handling error, plus unauthorized consumption (theft or illegal use of water).  Apparent losses represent paper losses that result in uncaptured revenue for the water utility and distortion of customer consumption data.  ","Water Audits and Loss Control Programs; M36, (Denver: AWWA, 2009)"]
[]
[null,null,"Apparent Losses per Service Connection per Day","Performance indicator that normalizes the apparent losses within the distribution by the number of service connections.  This is considered one of the most reliable of the traditional performance indicators for apparent losses.  \n\nOp24 = (Apparent Losses per Day) / (Service Connections)","Julian Thornton, Reinhard Sturm and George Kunkel, P.E., Water Loss Control, (McGraw-Hill, 2008)"]
[]
[null,null,"Assumed Reduction in Average System Pressure","A theoretical value for evaluating system pressure reduction options.  Based upon this assumed reduction in Average System Pressure, users will be able to estimate the associated reduction in real losses in the system. "]
[]
[null,null,"Authorized Consumption","= billed metered + billed unmetered + unbilled metered + unbilled unmetered\n\nThe volume of water taken by registered customers, the water supplier, and others who are implicitly or explicitly authorized to do so by the water supplier, for residential, commercial, industrial, or agricultural purposes.  It also includes water exported across operational boundaries.  Authorized consumption also include water consumed in such activities as fire fighting and training, flushing of mains and sewers, street cleaning, watering of municipal gardens, public fountains, frost protection, building water, etc.  These may be billed or unbilled, metered or unmetered.","Water Audits and Loss Control Programs; M36, (Denver: AWWA, 2009)"]
[]
[null,null,"Average Annual Budget for Intervention (Proactive Leak Detection)","The annual budget for proactive leak detection as calculated by the Economic Intervention Frequency model."]
[]
[null,null,"Average Annual Loss per Leak","The average amount of water lost per leak based upon the assigned leak flow rate and the average leak duration\n\n=(Leak Flow Rate) * (average leak duration)"]
[]
[null,null,"Average Awareness Duration","Awareness Duration is the average time from the occurrence of a leak until the water utility becomes aware of its existence.  The awareness time is influenced by the type of active leak detection policy.","Julian Thornton, Reinhard Sturm and George Kunkel, P.E., Water Loss Control, (McGraw-Hill, 2008)"]
[]
[null,null,"Average Duration for Location and Repair/Shut-off Leak","The average amount of time that it takes a utility to locate and contain/shut-off or repair a leak.  In this model this is categorized by main size and water distribution appurtenance type (i.e. hydrant, service, etc.)"]
[]
[null,null,"Average Failure Frequency in NA based on Literature Review - WaterRF 4379","Results of a literature review on reported mains failure frequencies.  "]
[]
[null,null,"Average Leak Duration","The average amount of time that it takes a utility to become aware, locate and repair/shut-off a leak.\n\n=Awareness Duration + Location & Duration of Repair/Shut-off"]
[]
[null,null,"Average Leak Flow Rate ","The average flow rate of a leak on the given size of main, service connection and appurtenance type.  In the real loss component analysis sheet, the user has the choice of a default average leak flow rate or a system specific average leak flow rate by  size of main, service connection and appurtenance type. "]
[]
[null,null,"Average Length of Customer Service Line","This is entered for unmetered services and in cold or other areas where meters are installed inside homes and buildings.  It is the length of customer service line either between the utility's service connection (often at the curb stop) and the meter, or to the building line (first point of customer consumption) if customers are unmetered.  Note that the length of service connection between the main and customer service line is owned by the utility and its length and potential leakage is account for in the UARL formula by the number of service connections.\n\nWhat role does the \"Average Length of Customer Service Line\" parameter serve in the Water Audit?\nIn many water distribution systems the water utility has maintenance responsibility for a portion of the customer service piping from its connection point at the water main to the curb stop valve located midway to the customer building.  The customer is responsible to maintain the customer service piping from the curb stop to the building premises.  When leaks arise on customer service piping , water utilities respond faster to repair leaks than customers when the leak is on piping under their responsibility.  Leak durations are longer on the customer-maintained piping than the utility-maintained piping.  The total length of pipe maintained by customers is one of the components of the Unavoidable Annual Real Losses (UARL) equation and is determined by multiplying the average length of customer maintained pipe, Lp by the number of customer service connections.  Therefore this parameter is important to the calculation of the UARL and the Infrastructure Leakage Index (ILI).","Water Audits and Loss Control Programs; M36, (Denver: AWWA, 2009)"]
[]
[]
[null,null,"Average Operating Pressure","The average pressure may be approximated when coupling the preliminary water audit.  Once routine water auditing has been established, a more accurate assessment of average pressure should be pursued.  If the water utility infrastructure is recorded in a Geographical Information System (GIS) the average at many locations in the distribution system can be readily obtained.  If a GIS does not exist, a weighted average of pressure data can be calculated from water pressure measured at various fire hydrants scattered across a water distribution system.  A utility can also determine a reliable value for the average operating pressure if the water utility has a calibrated hydraulic model of the potable water distribution system.","AWWA Free Water Audit Software"]
[]
[null,null,"Average Rate of Rise of Unreported Leakage","The rate at which leakage increases with time under a policy of passive leakage control, at a specified average system pressure; or the rate at which leakage increases with time between period of active leakage control interventions, such as leak surveys, at a specified average system pressure.  The rate of rise is not necessarily a linear variable as it can change quickly because of seasonal changing temperatures and other impacts.  This can be assessed from water balances in successive years (in the case of passive leakage control), or by analysis of night flows and or repair records (in the case of active leakage control).  It is usually expressed in volume per day in a year, or a volume per service connection per day in a year; or a volume per mile (or kilometer) of mains per day in a year.","Water Audits and Loss Control Programs; M36, (Denver: AWWA, 2009)"]
[]
[null,null,"AWWA Water Audit Data Validity Score","Data Validity Score produced by the AWWA Free Water Audit Software.  If the Data Validity Score is less than 51, it is recommended to improve the quality and accuracy of the data used to produce the AWWA Water Audit before any of the results from the economic analysis produced by this model are considered for implementation."]
[]
[null,null,"Background Losses","Individual water loss events (small leaks and weeps at pipe joints) that will continue to flow, with flow rates too low to be detected by sonic methods of an active leakage control program.  They can be detected either by chance or when they gradually worsen to the point that they are detected acoustically, become disruptive, and are detected as reported leaks.  Background Leakage is sensitive to pressure levels.","Water Audits and Loss Control Programs; M36, (Denver: AWWA, 2009)"]
[]
[null,null,"Balancing Error - Hidden Losses","= real losses from top-down water balance - real losses from component analysis\n\nThe volume associated to Balancing Error - Hidden Losses represents the quantity of water lost by leaks that are not currently being detected and repaired.","Julian Thornton, Reinhard Sturm and George Kunkel, P.E., Water Loss Control, (McGraw-Hill, 2008)"]
[]
[null,null,"Billed Metered Consumption","All metered consumption which is billed.  This includes all groups of customers such as domestic, commercial, industrial or institutional.  It does NOT include water sold to neighboring utilities (water exported) which is metered and billed.  The metered consumption data can be taken directly from billing records for the water audit period.  The accuracy of yearly metered consumption data can be refined by including an adjustment to account for customer meter reading lag time, however additional analysis is necessary to determine the adjustment value, which may or may not be significant.","AWWA Free Water Audit Software"]
[]
[null,null,"Billed Unmetered Consumption","All billed consumption which is calculated based on estimates or norms but is not metered.  This might be a very small component in fully metered systems (for example billing based on estimates for the period a customer meter is out of order) but can be the key consumption component in systems without universal metering.  It does NOT include water sold to neighboring utilities (water exported) which is unmetered but billed","AWWA Free Water Audit Software"]
[]
[null,null,"Cost of Comprehensive Leak Detection Survey","The cost of undertaking a comprehensive leak survey per unit of network (e.g. $/mile or $/km)"]
[]
[null,null,"Current Annual Real Losses (CARL)","The volume of water lost from reported leaks, unreported leaks, background losses, and operator error (storage tank overflows) during the water audit reporting period.  The ratio of the CARL to the unavoidable annual real losses (UARL) is the infrastructure leakage index (ILI).","Water Audits and Loss Control Programs; M36, (Denver: AWWA, 2009)"]
[]
[null,null,"Customer Retail Unit Cost (Applied to Apparent Losses)","The Customer Retail Unit Cost represents the charge that customers pay for water service.  This unit cost is applied to the components of apparent loss, since these losses represent water reaching customers but not (fully) paid for.  It is important to compile these costs per the same unit cost basis as the volume measure included in the water audit.  For example, if all water volumes are measured in million gallons, then the unit cost should be dollars per million gallons ($/mil gal).  The software allows the user to select the units that are charged to customers and automatically converts these units to the units that appear in the \"TOTAL SYSTEM INPUT VOLUME\" box.  Since most water utilities have a rate structure that includes a variety of different costs based upon class of customer, a weighted average of individual costs and number of customer accounts in each class can be calculated to determine a single composite cost that should be entered into this cell.  Finally, the weighted average cost should also include additional charges for sewer, storm water or biosolids processing IF these charges are based upon the volume of potable water consumed.","AWWA Free Water Audit Software"]
[]
[null,null,"Economic Infrastructure Leakage Index","The Infrastructure Leakage Index (ILI) that could be achieved by implementing the proactive leak detection efforts as calculated by the Economic Intervention Frequency model. Note: it is not recommended to use the ILI as a target setting tool.  "]
[]
[null,null,"Economic Intervention Frequency","The frequency of undertaking proactive leak detection surveys in a system as calculated by the Economic Intervention Frequency model. Note: The Economic Intervention Frequency model should be used to establish a preliminary schedule for proactive leak detection surveys and needs to be updated and refined as the results of proactive leak detection surveys become available and the Rate of Rise of Unreported Leaks should be updated. Then the proactive leak detection schedule should be refined taking into consideration these findings. "]
[]
[null,null,"Economic Unreported Real Losses","The portion of unreported leakage in a water distribution network that is not cost effective to be reduced further by proactive leak detection at the current cost of undertaking leak surveys and the current cost of real losses. "]
[]
[null,null,"Estimated Cost of Implementing Alternative Pressure Management Policy","An initial approximation of the cost associated with achieving the assumed pressure reduction. "]
[]
[null,null,"Failure Frequency","The Failure Frequency is also referred to as the break frequency of a distribution system.  It is measured as the total number of breaks/leaks per length of mains or number of service connections.  \n\ne.g. number of breaks/100 miles of main/year or number of breaks /1000 service connections/year"]
[]
[null,null,"Failure Frequency for Optimized Distribution Systems (Friedman 2010)","Break frequency goal for an optimized system. Based on top quartile performance in AWWA (2007a) data. No more than 15 reported breaks and leaks per 100 miles of utility-controlled distribution and transmission piping per year. This includes breaks and leaks on appurtenances such as valves, blow-offs, fittings tapping sleeves/saddles and the connected tapping valves/corporation stops. It does not include service lines and appurtenances beyond the connecting point at the main, regardless of whether utility-owned/controlled or customer owned/controlled. Reported leaks and breaks include both emergency events (i.e., needing immediate response and repair) and non-emergency events (i.e., addressed during normally scheduled work hours) (Friedman 2010). ","Friedman, M., G. Kirmeyer, J. Lemieux, M. LeChevallier, S. Seidl, J. Routt. 2010. Criteria for Optimized Distribution Systems. Water Research Foundation, Denver, CO. # 4109"]
[]
[null,null,"Fixed and Variable Area Discharge Path (FAVAD) Model","A concept used to assess the relationship between pressure and discharges (leakage and consumption) from pressurized water pipes.  Losses from fixed area leakage paths (cracks in metal pipe) vary according to the square root of the system pressure during the leak, while discharges from variable area paths (splits in plastic pipe that extend with increasing pressure, and background losses) vary according to pressure to the power of 1.5.  As there will be a mixture of fixed and variable area leaks in any distribution system, loss rates vary with pressure to a power that normally lies between the limits of 0.5 and 1.5.  The simplest version of the FAVAD model, suitable for most practical predictions is:\n\nleakage rate L (volume/unit time) varies with pressure^N1 or L1/L0 = (P1/P0)^N1\n\nThe higher the N1 value, the more sensitive existing leakage flow rates are to changes in pressure.  The FAVAD concepts allow accurate forecasting of the increase or decrease of leakage loss rates in a pipe system caused by changes in operating pressure.  The development of this model was the foundation for pressure management application that have been found to be very economical in reducing leakage, particularly background losses, under appropriate conditions.","Water Audits and Loss Control Programs; M36, (Denver: AWWA, 2009)"]
[]
[null,null,"Infrastructure Condition Factor (ICF)","ICF is the ratio between the actual level of background leakage in a zone or district metered area and the calculated unavoidable background leakage of a well maintained system. Several methods exist to quantify the ICF; the more accurate methods require more detailed field data and greater effort to calculate","Water Audits and Loss Control Programs; M36, (Denver: AWWA, 2009)"]
[]
[null,null,"Infrastructure Leakage Index (ILI)","ILI is the performance indicator quantifying how well a distribution system is managed (maintained, repaired, rehabilitated) for the control of real (leakage) losses at the current operating pressure.  Mathematically, it is the ratio of current annual real losses (CARL) to unavoidable annual real losses (UARL) or ILI = CARL/UARL.   A low ILI value indicates that the water utility has managed its leakage down toward the level of the UARL, or the theoretical technical low limit of leakage achievable.  As a dimensionless indicator, ILI is a leading benchmarking leakage performance indicator used in international performance comparisons.  ","Water Audits and Loss Control Programs; M36, (Denver: AWWA, 2009)"]
[]
[null,null,"Length of Mains","Length of all pipelines (except service connections) in the system starting from the point of potable water system input metering (for example at the outlet of the treatment plant).  It is also recommended to include in this measure the total length of fire hydrant lead pipe.  Hydrant lead pipe is the pipe branching from the water main to the fire hydrant.  Fire hydrant leads are typically of a sufficiently large size that is not more representative of a pipeline than a service connection.  The average length of hydrant leads across the entire system can be assumed if not known, and multiplied by the number of fire hydrants in the system, which can also be assumed if not known.  This value can then be added the total pipeline length.  Total length of mains can therefore be calculated as:\n\nLength of Mains, miles = (total pipeline length, miles) + [ {(average fire hydrant lead length, ft) x (number of fire hydrants)} / 5,280 ft/mile ]\nOR\nLength of Mains, kilometres = (total pipeline length, km) + [ {(average fire hydrant lead length, km) x (number of fire hydrants)} / 1,000 metres/km ]","AWWA Free Water Audit Software"]
[]
[null,null,"N1 (Leakage-Pressure Exponent) Value","The N1 value is used in the fixed area variable discharge (FAVAD) concepts to calculate pressure/leakage relationships\n\nLeakage Rate L (volume/unit time) varies with pressure N1 or L1/L0 = (P1/P0)^N1\n\nThe higher the N1 value, the more sensitive existing leakage flow rates will be to changes in pressures. N1 factors range between 0.5 (corrosion holes only in metallic systems) and 1.5 with occasional values of up to 2.5 (splits in plastic pipe).  In distribution systems with a mix of pipe materials, N1 vales might be in the order of 1 to 1.15.  Therefore, a linear relationship can be assumed initially until N1 step tests are carries out to derive better data.\n\nThe model allows the user to choose between a default N1 value and a utility specific N1 value. ","Julian Thornton, Reinhard Sturm and George Kunkel, P.E., Water Loss Control, (McGraw-Hill, 2008)"]
[]
[null,null,"Non-Revenue Water","= Apparent Losses + Real Losses +Unbilled Metered Consumption + Unbilled Unmetered Consumption\n\nThose components of system input that are not billed and produce no revenue; equal to unbilled authorized consumption plus apparent losses plus real losses","Water Audits and Loss Control Programs; M36, (Denver: AWWA, 2009)"]
[]
[null,null,"Non-Revenue Water as Percent by Cost of Operating System","Performance indicator that displays the value of Non-Revenue Water as a percent of the annual cost of running the distribution system.  This performance indicator has been labeled Fi37 by the International Water Association (IWA)\n\nFi37 = {[(Real Losses + Unbilled Metered Consumption + Unbilled Unmetered Consumption) * Variable Production Cost of Water] + (Apparent Losses * Customer Retail Cost of Water)} / (Cost to Operate System)","Julian Thornton, Reinhard Sturm and George Kunkel, P.E., Water Loss Control, (McGraw-Hill, 2008)"]
[]
[null,null,"Non-Revenue Water as Percent by Volume of Water Supplied","Basic performance indicator that shows the amount of Non-Revenue Water as a percent of the total volume of water supplied to the distribution system (System Input Volume). This performance indicator has been labeled Fi36 by the International Water Association (IWA)\n\nFi36 = [(NRW Volume)/(Total SIV)] * 100%","Julian Thornton, Reinhard Sturm and George Kunkel, P.E., Water Loss Control, (McGraw-Hill, 2008)"]
[]
[null,null,"Number of Active AND Inactive Service Connections","Number of service connections main to curb stop.  Please note that this includes the actual number of distinct piping connections including fire connections whether active or inactive.  This may differ substantially from the number of Customers (or number of accounts).","AWWA Free Water Audit Software"]
[]
[null,null,"Percent of Rigid Pipes and Service Connections","The percentage of pipe material and service connections in a distribution system that is of rigid (not flexible) material - e.g. cast iron, steel, copper, etc. "]
[]
[null,null,"Potentially Recoverable Leakage","Is the volume of real losses that is potentially recoverable by implementing the proactive leak detection survey schedule as calculated by the Economic Intervention Frequency model. "]
[]
[null,null,"Pressure Management","A generally effective method to optimize pressures in a water distribution system to minimize losses and surge impacts, while maintaining adequate water service, including fire-fighting flows.  Under appropriate conditions, pressure management is particularly effective in minimizing background losses.","Water Audits and Loss Control Programs; M36, (Denver: AWWA, 2009)"]
[]
[null,null,"Ratio of Failure Frequency to UARL Break Frequency","The UARL component break frequency represents the technical/theoretical minimum failure frequency for a distribution system.  The ratio of failure frequency to UARL break frequency allows a utility to benchmark their failure frequency against the theoretical minimum failure frequency.\n\n=(Utility Failure Frequency) / (UARL Break Frequency)"]
[]
[null,null,"Real Loss Volume Saved through Alternative Pressure Management Policy","Volume of real losses that could be saved if the theoretical/alternative pressure management policy was implemented by the utility.  Due to the relationship between average system pressure and leakage losses, a decrease in leakage loss volume due to a decrease in average system pressure can be determined based upon the FAVAD discharge model.  "]
[]
[null,null,"Real Losses","Physical water losses from the pressurized system and the utility's storage tanks, up the  point of customer consumption, which is the customer meter in those utilities that meter their customers.  In unmetered systems, the delineation is the point at which the customer is responsible for customer service connection piping maintenance and repairs.  Real losses include leakage (the largest component by volume for most systems), storage tank overflow, or similar operator error.","Water Audits and Loss Control Programs; M36, (Denver: AWWA, 2009)"]
[]
[null,null,"Real Losses per Length of Main per Day","Performance indicator that normalizes the real losses within the distribution system by the length of main in the system.  This performance indicator should only be used for water utilities with a low density of service connections (such as rural systems), of less than 32 service connections per mile.\n\n= (Real Losses per Day) / (Length of Main)","Water Audits and Loss Control Programs; M36, (Denver: AWWA, 2009)"]
[]
[null,null,"Real Losses per Service Connection per Day","Performance indicator that normalizes the real losses within the distribution by the number of service connections.  This is considered one of the most reliable of the traditional performance indicators for real losses, for all systems with service line densities of >32/mile.  This performance Indicator has been labeled Op24 by the International Water Association.\n\nOp24 = (Real Losses per Day)/(Service Connections)","Julian Thornton, Reinhard Sturm and George Kunkel, P.E., Water Loss Control, (McGraw-Hill, 2008)"]
[]
[null,null,"Real Losses per Service Connection per Day per Pressure (PSI or Meter Head)","Real Losses per Service Connection per Day per PSI/Meter Head of pressure further improves upon the Real Losses per service connection per day performance indicator (Op24) by taking into account the average pressure of the distribution system.  ","Julian Thornton, Reinhard Sturm and George Kunkel, P.E., Water Loss Control, (McGraw-Hill, 2008)"]
[]
[null,null,"Reported Leaks","Reported breaks are those events that are brought to the attention of the water utility by the general public or the water utility's own personnel.  A break or a leak that manifests itself at the surface will normally be reported to the water utility whether or not it causes a nuisance such as flooding.","Julian Thornton, Reinhard Sturm and George Kunkel, P.E., Water Loss Control, (McGraw-Hill, 2008)"]
[]
[null,null,"Reported Reservoir Leakage and any recorded Reservoir and Tank Overflows","Reservoir leakage that was identified by utility personnel or a contractor during the audit period and Reservoir overflows that have been brought to the attention of the water utility by the general public or the water utility's own personnel.  Reported reservoir leakage is generally found by SCADA system overflow alerts or by causing a nuisance such as flooding. ","Julian Thornton, Reinhard Sturm and George Kunkel, P.E., Water Loss Control, (McGraw-Hill, 2008)"]
[]
[null,null,"Reservoir Background Leakage Rate","Individual minor and small in volume water loss events that will continue to flow, with flow rates too low to be detected by sonic methods of an active leakage control program."]
[]
[null,null,"Reservoir Capacity","The sum of the capacities of all of finished water reservoirs attached to the distribution system.  This includes finished water reservoirs at the treatment plant in case the system input volume is metered before the finished water reservoirs. If the water balance is based on raw water meters at the water treatment plant then the raw water reservoirs need to be included in this capacity calculation as well."]
[]
[null,null,"Service Connection","A service connection is defined as \"the pipe connecting the main to the measurement point or the customer curb stop, as applicable.\"  Where several registered customers or individually occupied premises share a physical connection, for example, apartment buildings, this will still be regarded as the one connection, irrespective of the configuration and number of customers on the premises.  The \"number of service connections\" variable (Nc) is required for the calculation of several performance indicators.  The Nc variable is also used to calculate the unavoidable annual real losses (UARL) in a system by taking into consideration the unavoidable leakage expected to occur on service connections between the main and curb stop or property line.  It is then added to the other components of UARL (on mains, and on pipes between the curb stop/property line and the customer meter) to calculate the total UARL","Julian Thornton, Reinhard Sturm and George Kunkel, P.E., Water Loss Control, (McGraw-Hill, 2008)"]
[]
[null,null,"Service Connection Density","= Number of connections / length of mains","AWWA Free Water Audit Software"]
[]
[null,null,"Simple Payback Period for Implementing Alternative Pressure Management Policy","A basic calculation of the payback period of an alternative pressure management policy based on the cost to implement an alternative pressure management strategy and the expected real loss reduction as a result of the policy.\n\n=(Value of Real Loss Volume Saved Through Alternative Pressure Management Policy) / (Estimated Cost of Implementing Alternative Pressure Management Policy)"]
[]
[null,null,"Total Annual Cost of Operating the Water System","These costs include those for operations, maintenance and any annually incurred costs for long-term upkeep of the system, such as repayment of capital bonds for infrastructure expansion or improvement.  Typical costs include employee salaries and benefits, materials, equipment, insurance, fees, administrative costs and all other costs that exist to sustain the drinking water supply.  These costs should not include any costs to operate wastewater, biosolids or other systems outside of drinking water.","AWWA Free Water Audit Software"]
[]
[null,null,"Total Annual Loss (Real Loss Component Analysis)","The total annual water losses for a group of leaks based upon the Average Leak Duration and the Average Leak Flow Rate.\n\n=(total number of leaks) * (average leak duration) *(average leak flow rate)"]
[]
[null,null,"Water Supplied","Volume of water input to that part of the water supply system to which the water balance calculation relates.  It is equal to the water volume derived from the water utility's own source waters plus water imported or purchased during the audit period plus or minus the net change in water storage where applicable (and significant).  This volume is the water that has been treated and pressurized to provide service to customers; therefore, it has attained a higher cost value than raw or untreated water coming from a water resource.","AWWA Free Water Audit Software"]
[]
[null,null,"Unavoidable Annual Real Losses (UARL)","Real (leakage) losses in water utilities cannot be totally eliminated.  UARL represents the lowest loss technically achievable in a water utility based on its key characteristics.  UARL calculation is based on leakage data gathered from well-maintained and well-managed systems.  Equations for calculating UARL for individual systems were developed and tested by the International Water Association's Water Loss Task Force and published in 2000.  The equations take into account measured frequencies, flow rates and durations of background losses, reported leaks and unreported leaks, as well as the pressure-leakage relationship (assumed to be linear for most large systems).  A straightforward equation for UARL was developed.  This equation, expressed in gallons is given below (adjusting for units)\n\nUARL(gal) = (5.4Lm + 0.15Nc + 7.5Lc) * P\n\nWhere:\nLm = length of water mains, mi\nNc = number of service connections\nLc = total length of private pipe, mi = Nc x average distance from curb stop to customer meter, Lp\nP = average pressure in the system, PSI\n\nThe ratio of current annual real losses (CARL) to the UARL is the Infrastructure Leakage Index (ILI), which is a powerful leakage benchmarking performance indicator.","Water Audits and Loss Control Programs; M36, (Denver: AWWA, 2009)"]
[]
[]
[null,null,"Unbilled Metered Consumption","Metered Consumption which is for any reason unbilled.  This might  include metered consumption by the utility itself or water provided to institutions free of charge.  It does NOT include water sold to neighboring utilities (water exported) which is metered and billed","AWWA Free Water Audit Software"]
[]
[null,null,"Unbilled Unmetered Consumption","Any kind of Authorized Consumption which is neither billed nor metered.  This component typically includes items such as fire fighting, flushing of mains and sewers, street cleaning, frost protection, etc.  In most water utilities it is a small component which is very often substantially overestimated.  It does NOT include water sold to neighboring utilities (water exported) which is unmetered and unbilled - an unlikely case.  This component has many sub-components of water use which are often tedious to identify and quantify.  Because of this, and the fact that it is usually a small portion of the water supplied, it is recommended that the auditor apply the default value of 1.25% of the volume from own sources.  Select the default percentage to enter this value.  If the water utility already has well validated data that gives a value substantially higher or the default approach is recommended for most water utilities.  \nNote that a value of zero is not permitted, since all water utilities have some volume of water in this component occurring in their system.","AWWA Free Water Audit Software"]
[]
[null,null,"Unreported Leaks","These leaks, usually hidden, are found only if a water utility has an active leakage control program, or when they worsen and appear in some fashion and become reported leaks.  With passive or very infrequent active leakage control, these leaks go undetected and run for long periods of time causing mounting water losses. Active leakage control interventions carried out at an economic frequency that varies with local circumstances, allows the volume lost from unreported leaks to be managed economically.","Water Audits and Loss Control Programs; M36, (Denver: AWWA, 2009)"]
[]
[null,null,"Unreported Reservoir Leakage","Reservoir leakage that has been brought to the attention to the utility through a dedicated program designed to identify unknown reservoir leaks. "]
[]
[null,null,"Value of Real Losses","Monetary value associated to the current volume of real losses in a distribution system based on the variable production cost applied to real losses.\n\n= (Current Annual Real Losses) * (Variable Production Cost Applied to Real Losses)"]
[]
[null,null,"Value of Real Loss Volume Saved Through Alternative Pressure Management Policy","Monetary value associated to the reduction in real losses due to an alternative pressure management strategy.\n\n=(Real Loss Savings due to alternative pressure management strategy) * (Variable Production Cost Applied to Real Losses)"]
[]
[null,null,"Variable Production Cost (Applied to Real Losses)","The cost to produce and supply the next unit of water. (E.g., $/million gallons)  This cost is determined by calculating the summed unit costs for ground and surface water treatment and all power used for pumping from the source to the customer.  It should also include the unit cost of bulk water purchased as an import if applicable.","AWWA Free Water Audit Software"]
[]
[null,null,"Water Losses","The difference of The system input volume and authorized consumption.  Water losses are considered as a total volume for The whole system, or for partial systems such as transmission or distribution systems, or individual zones.  Water losses consist of real losses plus apparent losses.","AWWA Free Water Audit Software"]
[]
[]
[]
[]
[]
[null,{"$f":"IF('Start Page'!$H$29=\"\",\"\",'Start Page'!$H$29)","v":""},null,null,null,null,null,null,null,null,"©2014 Water Research Foundation. ALL RIGHTS RESERVED."]

{"sheet":"License","index":14,"n_rows":11,"n_cols":7,"rows_kept":11,"cut":false,"hidden":false,"merged":[[7,0,9,5],[4,0,6,6],[0,0,1,6]]}
["WaterRF 4372: Real Loss Component Analysis: A Tool for Economic Water Loss Control"]
[]
[{"$f":"IF('Start Page'!$Y$37=\"\",\"\",IF('Start Page'!$K$37=\"Partial Audit Period\",\"Water Audit: \"&'Start Page'!$D$26&\", \"&'Start Page'!$H$26&\", \"&'Start Page'!$K$26&\", \"&'Start Page'!$Y$37,\"Water Audit: \"&'Start Page'!$D$26&\", \"&'Start Page'!$H$26&\", \"&'Start Page'!$K$26&\", \"&YEAR('Start Page'!$Y$37)))","v":""}]
["LICENSE"]
["WaterRF 4372 Component Analysis of Real Losses Model developed by Water Systems Optimization, Inc for the Water Research Foundation and US EPA. December 2013"]
[]
[]
["Development Team:\nReinhard Sturm - Water Systems Optimization, Inc\nTimothy Wilson - Water Systems Optimization, Inc\nStephen Preston - Water Systems Optimization, Inc\nKatherine Gasner - Water Systems Optimization, Inc\nMary Ann Dickinson - Alliance for Water Efficiency"]
[]
[]
[{"$f":"IF('Start Page'!$H$29=\"\",\"\",'Start Page'!$H$29)","v":""},null,null,null,null,null,"©2013 Water Research Foundation. ALL RIGHTS RESERVED."]

{"sheet":"Data 2012","index":15,"n_rows":82,"n_cols":29,"rows_kept":82,"cut":false,"hidden":true,"merged":[[62,1,79,1],[37,1,41,1],[42,1,45,1],[47,1,47,2],[48,1,51,1],[52,1,57,1],[58,1,61,1],[28,1,35,1],[2,1,2,2],[4,1,13,1],[15,1,15,2],[16,1,21,1],[22,1,27,1]]}
[]
[]
[null,"2012 Validated Water Audit Data\nAWWA Water Loss Control Committee\nCopyright © 2012, American Water Works Association. All Rights Reserved"]
[null,"Contact Information","Name of City or Utility","Greater Cincinnati Water Works","City of Santa Monica","ALBUQUERQUE BERNALILLO COUNTY WATER UTILITY","Aqua WSC","Austin Water Utility","City of Belmont","Birmingham Water Works Board","The City of Calgary","Cherokee County Water & Sewerage Authority","Cobb County Water System WSID 67003","City of Cranbrook, BC","Dalton Utilities","DC Water & Sewer Authority","Halifax Regional Water Commission","Water District No. 1 of Johnson County","Las Vegas Valley Water District","Louisville Water Company ","Orange County Utilities Department","PAWC-Pittsburgh","Philadelphia Water Department","City of Rio Rancho","Utilities Inc.","City of Wauwatosa Water Utility","Washington County Service Authority","City of Wilmington, Delaware","Water & Wastewater Authority of Wilson County"]
[null,"Administrative","Name of City or Utility","Cincinnati OH","Santa Montica CA","Albuquerque NM","Aqua TX","Austin TX","Belmont NC","Birmingham AL","Calgary CAN","Cherokee Co GA","Cobb Co GA","Cranbrook BC","Dalton GA","DC WSA","Halifax CAN","Johnson Co KS","Las Vegas NV","Louisville KY","Orange Co FL","PAWC-Pittsburgh PA","Philadelphia PA","Rio Rancho NM","Lexington SC","Wauwatosa WI","Washington Co VA","Wilmington DE","Wilson Co TN"]
[null,null,"Abbreviation","GCWW","SMW","ABCWUA","AquaWSC","AW","BUD","BWWB","CW","CCWSA","CCWS","CBW","DUTIL","DCWATER","HRWC","JCW1","LVVWD","LWCKY","OCFL","PAW","PWD","RRW","UI","WWU","WCSA","WDPW","WWAWC"]
[null,null,"Country","USA","USA","USA","USA","United States","USA","USA","Canada","USA","USA","Canada","US","U.S.A.","Canada","USA","USA","USA","USA","USA","USA","USA","USA","USA","USA","USA","USA"]
[null,null,"Reporting Year",2010,2010,2011,2011,2011,2011,2011,2011,2011,"CY2011",2011,2011,"FY2011","FY10-11",2011,2011,2011,2011,2011,2011,2011,2011,2011,2011,"FY2011","FY10/11"]
[null,null,"Start Date","2010-01-01","2010-01-01","2011-01-01","2010-09-01","2010-10-01","2011-01-01","2011-01-01","2011-01-01","2011-01-01","2011-01-01","2011-01-01","2011-01-01","2010-10-01","2010-04-01","2011-03-01","2011-01-01","2011-01-01","2011-01-01","2011-01-01","2010-07-01","2011-01-01","2011-01-01","2011-01-01","2011-01-01","2010-07-01","2010-07-01"]
[null,null,"End Date","2010-12-01","2010-12-01","2011-12-01","2011-08-01","2011-09-30","2011-12-01","2011-12-01","2011-12-01","2011-12-01","2011-12-01","2011-12-01","2011-12-01","2011-09-01","2011-03-01","2012-02-29","2011-12-01","2011-12-01","2011-12-01","2011-12-31","2011-06-30","2011-12-01","2011-12-01","2011-12-01","2011-12-31","2011-06-01","2011-06-01"]
[null,null,"Name of Contact Person","Mark Ginty","Kimberly O'Cain","ANGELIQUE MALDONADO","Mark Mathis","Dan Strub","Chuck Flowers","Ray Sloan","Stacey Zhao","David Kubala","Kathy Nguyen","Joe McGowan","David A. Oxford","Syed Khalil","Grahma MacDonald","Mark Sunderson","Cecelia Adair","Ralph McCord/ Tonya Taylor","Robert J. Dudas","Anthony J Emanuele","George Kunkel","Marian Wrage","Kendra Rose","James Wojcehowicz","Mark J. Osborne","Colleen Arnold","Chris Leauber"]
[null,null,"E-Mail","mark.ginty@gcww.cincinnati-oh.gov","kimberly.ocain@smgov.net","ADMALDONADO@ABCWUA.ORG","mmathis@aquawsc.com","dan.strub@ci.austin.tx.us","cflowers@cityofbelmont.org","ray.sloan@bwwb.org","stacey.zhao@calgary.ca","dkubala@earthlink.net","kathy.nguyen@cobbcounty.org","mcgowan@cranbrook.ca","doxford@dutil.com","skhalil@dcwater.com","grahamm@halifaxwater.ca","msunderson@waterone.org","cecelia.adair@lvvwd.com","rmccord@lwcky.com","Bob.Dudas@ocfl.net","anthony.emanuele@amwater.com","george.kunkel@phila.gov","mwrage@ci.rio-rancho.nm.us",null,"jwojcehowicz@wauwatosa.net","mosborne@wcsa-water.com","carnold@wilmingtonde.gov","cleauber@wwawc.com"]
[null,null,"Telephone",5135916586,"310-458-8459",5057682721,"512.304.0362","512-972-0349","704-825-0512","205-288-1228","403-268-1450","(770)479-1813","770-419-6244","250-489-0240","706-529-1204","202-7872173","902-869-4338","913-895-5757","702-259-8143",5025693600,"407-836-6835","724-743-3112","215-685-4913","505-896-8737",null,"414-479-8965","(276) 628-7151","302-576-3017","615-449-2951"]
[null,null,"Telephone Ext",null,null,null,null,null,null,null,null,248,null,null,null,null,null,null,null,1888,null,null,null,null,null,null,205]
[]
[null,"Audit Data"]
[null,"Water Supplied","Volume Units","Million gallons (US)","Million gallons (US)","Million gallons (US)","Million gallons (US)","Million gallons (US)","Million gallons (US)","Million gallons (US)","Million gallons (US)","Million gallons (US)","Million gallons (US)","Million gallons (US)","Million gallons (US)","Million gallons (US)","Million gallons (US)","Million gallons (US)","Million gallons (US)","Million gallons (US)","Million gallons (US)","Million gallons (US)","Million gallons (US)","Million gallons (US)","Million gallons (US)","Million gallons (US)","Million gallons (US)","Million gallons (US)","Million gallons (US)"]
[null,null,"Volume From Own Sources",47328.970999999998,1059.99471239478,33345.522984055038,2948.4,52834.737999999998,638.59580000000005,37361.542999999998,43349.312932014203,5326.29,null,1213.9865521251861,7492.7,null,11999.68288583908,22303.348999999998,12600.1,44037,21837.363000000001,25163.71,92613,4437,7.3445999999999998,null,2696.3359999999998,6547]
[null,null,"Master meter error adjustment",264.95,null,null,60.1,1078.26,6.4504626262626061,1450.7940000000001,433.49312932014203,239.68299999999999,null,0,60.954999999999998,null,null,1E-4,0,0,222.66200000000001,127.07,1353.9,88.74,0,null,13.5,65.47]
[null,null,"Water imported",null,3197.2542631471197,null,null,0,0,null,null,21.341999999999999,20632.741000000002,null,709.04549999999995,37556.199999999997,null,0,91134.2,0,115.509,9.452,null,0,null,1782,285.16800000000001,null,395.05442799999997]
[null,null,"Water exported",8195,null,172.52171200000001,72,3514.4333999999999,0,null,2086.6950415916403,286.642,null,null,122.9238,null,null,0,1356.6,1789.8,0,499.42500000000001,7008,8.1969999999999992,null,null,null,7.6689999999999996,2.9999999999999997E-4]
[null,null,"WATER SUPPLIED",39398.920999999995,4257.2489755418992,33173.001272055037,2936.5,50398.564599999998,645.04626262626266,35910.748999999996,41696.111019742704,5300.6729999999998,20632.741000000002,1213.9865521251861,8139.7766999999994,37556.199999999997,11999.68288583908,22303.348999999998,102377.7,42247.199999999997,21730.21,24800.807000000001,84251.1,4517.5429999999997,7.3445999999999998,1782,2995.0039999999999,6604.8010000000004,395.05412799999999]
[null,"Authorized Consumption","Billed metered",31466.799999999999,3838.2040323695401,29368.326811999999,2365.27,44650.879999999997,450.727103,25483.324000000001,33217.258035798761,4582.9359999999997,18973.834999999999,null,7045.4726000000001,29039.7,9965.6875269727352,19587.721000000001,97179.6,32594.9,20441.373,14547.562,50808,3941,6.7579900000000004,1542,1536.9880000000001,3482,318.91840000000002]
[null,null,"Billed unmetered",26.9,null,317.59412035999998,7.44,187.898,0,17.523,3054.8856134910402,0,0,925.13052736472002,null,0,0,0,0,null,0,0,null,0]
[null,null,"Unbilled metered",531.79999999999995,null,572.74,64.27,70.478999999999999,27.339769,3.7170000000000001,34.87071091152,123.033,0,null,null,0,2.17387181887044,3.7370000000000001,2.4,2454.3000000000002,144.80000000000001,439.27800000000002,null,0,null,null,0,115]
[null,null,"Unbilled unmetered",506.5,53.215612194273746,193.8,36.706250000000004,94.727000000000004,14.906499999999999,448.88436249999995,237.75484712400001,8.6020000000000003,19.3,15.174831901564827,101.74720875,687.1,102.26602073755086,278.79186249999998,3.1,528.09,228.8,310.01008750000005,784.7,56.4692875,9.18075E-2,22.275000000000002,37.437550000000002,82.560012500000013,2.171948]
[null,null,"Unbilled unmetered (1 = Default; 2 = Value)",2,1,2,1,2,2,1,2,2,2,1,1,2,2,1,2,1,2,1,2,1,1,1,1,1,2]
[null,null,"AUTHORIZED CONSUMPTION",32532,3891.419644563814,30452.460932360002,2473.6862500000002,45003.983999999997,492.97337199999998,25953.448362500003,36544.76920732532,4714.5709999999999,18993.134999999998,940.30535926628488,7147.2198087500001,29726.799999999999,10070.127419529155,19870.249862500001,97185.1,35577.29,20814.972999999998,15296.850087500001,51592.7,3997.4692875000001,6.8497975000000002,1564.2750000000001,1574.4255500000002,3679.5600125000001,321.09034800000001]
[null,"Water Losses","WATER LOSSES (Water Supplied - Authorized Consumption)",6866.9209999999948,365.82933097808518,2720.5403396950351,462.8137499999998,5394.5806000000011,152.07289062626268,9957.3006374999932,5151.3418124173841,586.10199999999986,1639.6060000000034,273.68119285890123,992.55689124999935,7829.3999999999978,1929.5554663099247,2433.0991374999976,5192.5999999999913,6669.9099999999962,915.23700000000099,9503.9569124999998,32658.400000000009,520.0737124999996,0.49480249999999959,217.72499999999991,1420.5784499999997,2925.2409875000003,73.963779999999986]
[null,null,"Unauthorized consumption",5.9,10.643122438854748,82.932503180137587,7.3412500000000005,156.25299999999999,1.6126156565656566,89.776872499999996,104.24027754935676,13.251682499999999,51.581852500000004,3.0349663803129654,20.34944175,132.6,27.70874239998804,55.7583725,255.94425000000001,105.61799999999999,54.325524999999999,62.002017500000001,3233.2,11.2938575,1.8361499999999999E-2,4.4550000000000001,7.4875100000000003,100,0.98763531999999998]
[null,null,"Unauthorized consumption (1 = Default; 2 = Value)",2,1,1,1,2,1,1,1,1,1,1,1,2,2,1,1,1,1,1,2,1,1,1,1,2,1]
[null,null,"Customer metering inaccuracies",323.21818181818162,78.330694538154148,611.04217983673516,36.998071065989734,894.19600000000003,19.919453000000033,815.37489267285855,335.88008835061191,96.040183673469073,288.94164974619343,0,217.90121443298995,582.20000000000005,132.52191006639401,453.00486065070436,1231,1109.8,207.9411414141432,384.27794871794868,1532.6,121.8865979381444,0.13791816326530615,31.469387755102161,31.367102040816462,189.31578947368416,5.5153741607324491]
[null,null,"Systematic data handling errors",1380.1,0.32585143325999999,235.57,6.82,11.92,1,1E-3,416.96097811140083,23.573,1E-4,null,36.006,1667.6,0.26417205236000002,1E-4,100,900,1.5149999999999999,218.21342999999999,3574.2,5,1E-4,12,12,500,0.02]
[null,null,"Apparent Losses",1709.2181818181816,89.299668410268893,929.5446830168728,51.159321065989737,1062.3690000000001,22.532068656565688,905.15276517285849,857.08134401136954,132.86486617346907,340.52360224619343,3.0349663803129654,274.25665618298996,2382.4,160.49482451874206,508.76333315070434,1586.94425,2115.4179999999997,263.78166641414316,664.49339621794866,8340,138.18045543814441,0.15637966326530614,47.92438775510216,50.854612040816463,789.31578947368416,6.5230094807324486]
[null,null,"Real Losses = (Water Losses - Apparent Losses)",5157.7028181818096,276.5296625678161,1790.995656678162,411.65442893400996,4332.2116000000024,129.54082196969694,9052.1478723271357,4294.2604684060134,453.23713382653114,1299.0823977538093,270.64622647858823,718.30023506700945,5446.9999999999964,1769.0606417911822,1924.3358043492917,3605.6557499999908,4554.4919999999984,651.45533358585817,8839.4635162820505,24318.400000000009,381.89325706185537,0.33842283673469353,169.80061224489782,1369.7238379591834,2135.9251980263161,67.440770519267517]
[null,null,"WATER LOSSES",6866.9209999999912,365.82933097808501,2720.5403396950351,462.81374999999969,5394.580600000003,152.07289062626262,9957.300637499995,5151.3418124173832,586.1020000000002,1639.6060000000027,273.68119285890117,992.55689124999935,7829.399999999996,1929.5554663099242,2433.0991374999962,5192.5999999999913,6669.909999999998,915.23700000000133,9503.9569124999998,32658.400000000009,520.07371249999983,0.4948024999999997,217.72499999999997,1420.5784499999997,2925.2409875000003,73.963779999999971]
[null,"Non-Revenue Water","NON-REVENUE WATER",7905.2209999999914,419.04494317235878,3487.080339695035,563.78999999999962,5559.7866000000031,194.3191596262626,10409.901999999995,5423.9673704529032,717.73700000000019,1658.9060000000027,288.85602476046597,1094.3040999999994,8516.4999999999964,2033.9953588663454,2715.6279999999961,5198.0999999999913,9652.2999999999993,1288.8370000000014,10253.245000000001,33443.100000000006,576.54299999999978,0.58660999999999974,239.99999999999997,1458.0159999999998,3122.8010000000004,76.135727999999972]
[null,"System Data","Length of mains",3132.5,205,3371.63,1590,3649,95,3970,2992.6732625,1227.3,2915,105.322215,1259.17,1350,984.25007999999991,2619.9,4490,4139,1703,2984.5837499999998,3159,398,1.8,200.1,831,410,322]
[null,null,"Number of active AND inactive service connections",246294,17847,203987,17657,211791,4622,226717,294398,61305,176516,6697,40772,133500,83911,135893,394665,295772,94308,243511,524413,31047,113,15500,22311,37495,7001]
[null,null,"Connection density",78.625379090183557,87.058536585365857,60.501003965441043,11.105031446540881,58.040833104960264,48.652631578947371,57.107556675062973,98.372917514579498,49.951112197506724,60.554373927958835,63.585825649413088,32.380059880715073,98.888888888888886,85.253739578055217,51.869537005229205,87.898663697104681,71.459772892002903,55.377568995889604,81.589601900097463,166.00601456157011,78.007537688442213,62.777777777777779,77.461269365317349,26.848375451263539,91.451219512195124,21.742236024844722]
[null,null,"Average length of customer service line",27,0,0,0,0,0,0.23,39.36,0,0,32.799999999999997,0,13,24.599999999999998,0,0,0,0,40,12,0,0,40,0,20,0]
[null,null,"Average operating pressure",94.4,60,75,55,77.3,65,112.22,72.131601731601734,60,80,77.669264069264059,103.4,70,74.403463203463204,90.1,70,78,60,110,55,65,60,50,100,50,60]
[null,"Cost Data","Total annual cost of operating water system",105601000,14183873,20927216,11413065,194664459,2968271,87613297,157517143.71000001,31531588,73162024,1000000,17953000,65550438,34744140,86882139,248781000,62826346,25805535,70631926,224427768,17426563,52366.39,5863843,9474951,24993000,3263615]
[null,null,"Customer retail unit cost (applied to Apparent Losses",2.99,8.02,3.29,4.09,4.12,7.67,4.18,5.22,5.95,4.59,0,3.67,4.1399999999999997,1.56,3.67,3.48,2.83,4.76,9.1,6.5,3.29,6.59,3.3,4.26,4.21,8.3800000000000008]
[null,null,"Customer retail unit cost (units)","$/1000 gallons (US)","$/1000 gallons (US)","$/1000 gallons (US)","$/1000 gallons (US)","$/1000 gallons (US)","$/1000 gallons (US)","$/1000 gallons (US)","$/1000 gallons (US)","$/1000 gallons (US)","$/1000 gallons (US)","$/1000 gallons (US)","$/1000 gallons (US)","$/1000 gallons (US)","$/1000 gallons (US)","$/1000 gallons (US)","$/1000 gallons (US)","$/1000 gallons (US)","$/1000 gallons (US)","$/1000 gallons (US)","$/1000 gallons (US)","$/1000 gallons (US)","$/1000 gallons (US)","$/1000 gallons (US)","$/1000 gallons (US)","$/1000 gallons (US)","$/1000 gallons (US)"]
[null,null,"Variable production cost (applied to Real Losses)",450,2277.11,307,425.15,330,270,340.14,232.88,322.05,2170,605.66999999999996,2205.59,776,204.41,502.14,923.11,186.81,250,362,272.56,532.21,628.91999999999996,1274.04,642.5,285.22000000000003,2259.02]
[]
[null,"Performance Indicators"]
[null,"Financial Indicators","Non-revenue water as percent by volume",0.20064562174177289,9.8430922311519051E-2,0.10511802387420864,0.19199387025370329,0.11031636801814795,0.30124840788179308,0.28988261982505559,0.13008329165002241,0.13540488160654321,8.0401629623519363E-2,0.2379400531701106,0.13443908111140193,0.22676681879423363,0.1695040925845365,0.12175875470540304,5.0773752487113806E-2,0.2284719460697987,5.93108396099256E-2,0.41342384544180349,0.39694555916777352,0.12762313496517905,7.9869564033439491E-2,0.13468013468013468,0.48681604431913944,0.47280773485832506,0.1927222691873757]
[null,null,"Non-revenue water as percent by cost",7.4798189712390759E-2,0.10343609730267948,0.18346885466641644,3.7429608637880564E-2,3.0108773415079341E-2,7.3848877396193613E-2,8.0128098157713046E-2,3.5175922547414272E-2,3.1045186320174407E-2,6.0467068781965269E-2,0.1731120987115381,0.1568100244972947,0.2232320531939431,1.8244232455823815E-2,3.4245432844083046E-2,3.5597814842702989E-2,0.1176989963162906,5.8586832845270831E-2,0.13475518119316801,0.2720345235354299,3.9475060471348258E-2,2.4846517858067945E-2,6.8718418089471614E-2,0.11828471081883732,0.15958772958150386,6.4933928431488888E-2]
[null,null,"Annual cost of Apparent Losses",5110562.3600000003,716257.76,3054328.9,209241.62,4376960.28,172820.97,3787341.46,4477280.92,790545.95,1563003.33,0,1006521.93,9872897.2599999998,250913.66,1867161.43,5522565.9900000002,5986632.9400000004,1255600.73,6046889.9100000001,54210000,454613.7,1030.54,158242,216640.65,3323019.47,54662.82]
[null,null,"Annual cost of Real Losses",2320966.27,629688.84,549835.67000000004,175014.88,1429629.83,34976.019999999997,3078997.58,1000041.28,145965.01999999999,2819008.8,163921.22,1584275.82,4226872,361617.71,966285.98,3328416.88,850824.65,162863.82999999999,3199885.79,6628223.0999999996,203247.41,212.84,216332.77,880047.57,609208.59,152350.04999999999]
[null,"Operational Efficiency Indicators","Apparent Losses per service connection per day",19.013006972268485,13.708557504429798,12.484608145078179,7.9380712164277654,13.742793603127614,13.356056890847045,10.938176623343995,7.9761685398153999,5.9377429570525573,5.2853077115783744,1.2415971904463314,18.429022346990074,48.89230927094556,5.2402169917716819,10.25712984199604,11.01641256699587,19.595045350556024,7.6630773319872096,7.4761709025543572,43.571221667832702,12.193660908992545,3.7914817133060041,8.4709479019181906,6.2447987190809444,57.674596939769806,2.5526723112872132]
[null,null,"Real Losses per service connection per day*",57.373271994254438,42.450580707369731,24.054657480901277,"N/A",56.041441216634951,76.786317949115869,109.38926119198554,39.9632374327105,20.255208745248876,20.163213855173197,110.72069746158603,48.267091373949185,111.78492637627615,57.760502012363133,38.79635366522335,25.030111370680359,42.188105276945066,18.92532057844446,99.452214740962191,127.04824904160948,33.699967663860527,8.2051845492712712,30.013364957118483,"N/A",156.07013888802095,"N/A"]
[null,null,"Real Losses per length of main per day*","N/A","N/A","N/A",709.32097688293265,"N/A","N/A","N/A","N/A","N/A","N/A","N/A","N/A","N/A","N/A","N/A","N/A","N/A","N/A","N/A","N/A","N/A","N/A","N/A",4515.8460279220726,"N/A",573.81749782410884]
[null,null,"Real Losses per service connection per day per psi pressure",0.60776771180354272,0.70750967845616219,0.32072876641201703,null,0.72498630293188815,1.1813279684479365,0.97477509527700534,0.55403230308695772,0.33758681242081462,0.25204017318966498,1.4255407050444986,0.46679972315231316,1.5969275196610877,0.77631469726633096,0.4305921605463191,0.35757301958114801,0.54087314457621882,0.31542200964074102,0.90411104309965629,2.3099681643928998,0.51846104098246959,0.13675307582118784,0.60026729914236965,null,3.121402777760419]
[null,null,"Unavoidable Annual Real Losses (UARL)",2182.3348364136368,82.915589999999995,1336.9558072125001,225.85278374999999,1453.32155923,28.642006250000001,2275.7263934685693,2022.2454638590914,346.79620169999998,1233.6284599999999,53.477021344898937,487.91223998769999,761.22900596590898,566.05407018813457,1136.4788083785002,2133.1861075000002,1900.5942812999999,511.57151699999997,2670.3403794631254,2101.6717839375001,161.57270674999998,"Not Valid",78.260066431818188,286.24614000000003,162.56276676136363,61.148523000000004]
[null,null,"Infrastructure Leakage Index (ILI) [Real Losses/UARL]",2.363387474791804,3.3350744120353739,1.3396072233773508,1.8226670581562401,2.9809036909184075,4.5227565708563775,3.9776960439124762,2.1235109907039624,1.3069264646058871,1.0530580639764175,5.0609817015248666,1.4721914643607166,7.1555339553678747,3.1252502807783267,1.6932438952336353,1.6902677817575233,2.3963515226851793,1.2734394154822701,3.3102384940376903,11.570978963441798,2.363600045722793,null,2.1696967557883644,4.7851259687176331,13.139080003244398,1.1029010548507854]
[null,"Audit Summary","Audit Score",85.376344086021504,75.205479452054789,76.823529411764696,65.268817204301072,83.333333333333314,69.493670886075932,90.941176470588232,69.677419354838705,72.736842105263179,65.384615384615387,56.491228070175445,73.146067415730343,82.92307692307692,88.450704225352126,77.594936708860757,84.022988505747136,72.025316455696199,79.770114942528764,87.157894736842124,82.098765432098773,78.395061728395049,61.692307692307679,88.769230769230759,53.58024691358024,63.563218390804607,85.753424657534254]
[null,null,"Priority Area 1","     1: Volume from own sources","     1: Volume from own sources","     1: Volume from own sources","     1: Volume from own sources","     1: Volume from own sources","     1: Volume from own sources","     1: Variable production cost (applied to Real Losses)","     1: Volume from own sources","     1: Volume from own sources","     1: Water imported","     1: Volume from own sources","     1: Volume from own sources","     1: Water imported","     1: Customer metering inaccuracies","     1: Volume from own sources","     1: Volume from own sources","     1: Volume from own sources","     1: Volume from own sources","     1: Volume from own sources","     1: Volume from own sources","     1: Master meter error adjustment","     1: Volume from own sources","     1: Water imported","     1: Volume from own sources","     1: Volume from own sources","     1: Water imported"]
[null,null,"Priority Area 2","     2: Water exported","     2: Customer retail unit cost (applied to Apparent Losses)","     2: Customer metering inaccuracies","     2: Master meter error adjustment","     2: Master meter error adjustment","     2: Master meter error adjustment","     2: Volume from own sources","     2: Billed metered","     2: Water exported","     2: Systematic data handling errors","     2: Billed unmetered","     2: Master meter error adjustment","     2: Billed metered","     2: Billed metered","     2: Master meter error adjustment","     2: Water exported","     2: Variable production cost (applied to Real Losses)","     2: Water imported","     2: Unauthorized consumption","     2: Billed metered","     2: Customer metering inaccuracies","     2: Customer metering inaccuracies","     2: Unauthorized consumption","     2: Master meter error adjustment","     2: Water exported","     2: Unauthorized consumption"]
[null,null,"Priority Area 3","     3: Unauthorized consumption","     3: Billed metered","     3: Unauthorized consumption","     3: Billed metered","     3: Billed metered","     3: Customer metering inaccuracies","     3: Unauthorized consumption","     3: Master meter error adjustment","     3: Customer metering inaccuracies","     3: Unauthorized consumption","     3: Customer retail unit cost (applied to Apparent Losses)","     3: Customer metering inaccuracies","     3: Unauthorized consumption","     3: Systematic data handling errors","     3: Customer metering inaccuracies","     3: Billed metered","     3: Unauthorized consumption","     3: Unauthorized consumption","     3: Customer metering inaccuracies","     3: Systematic data handling errors","     3: Volume from own sources","     3: Billed metered","     3: Systematic data handling errors","     3: Water imported","     3: Unauthorized consumption","     3: Water exported"]
[null,"GRADING","Volume from own sources",7,5,7,5,8,6,9,7,8,null,6,7,null,10,7,7,5,8,9,7,9,4,null,6,5,"n/a"]
[null,null,"Master meter error adjustment",9,"n/a",null,6,7,5,10,7,8,"n/a",6,5,null,null,5,10,5,9,9,10,7,2,null,2,8,"n/a"]
[null,null,"Water imported","n/a",9,"n/a","n/a","n/a","n/a","n/a","n/a",8,4,"n/a",9,8,"n/a","n/a",10,"n/a",5,9,null,"n/a","n/a",9,3,null,9]
[null,null,"Water exported",8,"n/a",9,8,10,"n/a","n/a",7,5,null,"n/a",9,null,"n/a",4,7,8,"n/a",9,10,8,"n/a",null,"n/a",5,8]
[null,null,"Billed metered",9,7,8,6,7,7,10,6,6,10,"n/a",7,8,8,9,7,9,9,10,7,8,6,10,8,7,10]
[null,null,"Billed unmetered",10,"n/a",7,6,10,"n/a",10,8,"n/a","n/a",2,"n/a",null,"n/a","n/a",10,"n/a","n/a","n/a",null,"n/a","n/a",null,"n/a","n/a","n/a"]
[null,null,"Unbilled metered",10,"n/a",10,6,10,8,10,9,8,"n/a","n/a","n/a",null,10,8,9,9,9,9,null,"n/a","n/a",null,1,9,"n/a"]
[null,null,"Unbilled unmetered",8,5,10,5,8,8,5,5,8,6,5,5,8,9,5,9,5,8,5,8,5,5,5,5,5,9]
[null,null,"Unauthorized consumption",6,5,5,5,8,5,5,5,5,5,5,5,7,8,5,5,5,5,5,8,5,5,5,5,2,5]
[null,null,"Customer metering inaccuracies",9,7,6,5,7,5,10,7,4,8,"n/a",5,8,6,6,7,7,7,8,8,6,4,9,7,6,8]
[null,null,"Systematic data handling errors",7,8,7,5,7,5,8,5,5,1,5,7,8,6,9,9,8,7,7,5,6,5,8,3,3,6]
[null,null,"Length of mains",10,9,9,8,9,5,10,9,8,9,9,9,9,8,10,10,9,9,9,9,8,4,8,5,7,10]
[null,null,"Number of active AND inactive service connections",10,10,8,7,9,6,10,8,7,7,8,8,8,8,9,10,8,7,9,7,5,8,8,7,5,10]
[null,null,"Average length of customer service line",9,10,10,10,10,10,10,8,10,10,5,10,8,9,10,10,10,10,8,7,10,10,8,10,5,10]
[null,null,"Average operating pressure",9,7,4,7,9,6,10,8,8,5,9,5,6,10,7,10,9,10,9,10,7,2,8,7,5,3]
[null,null,"Total annual cost of operating water system",10,10,10,10,8,10,10,9,10,8,7,10,10,10,10,10,10,9,9,10,10,10,10,5,9,9]
[null,null,"Customer retail unit cost (applied to Apparent Losses)",9,5,8,8,10,10,10,6,8,8,5,8,8,10,10,8,8,10,9,9,8,10,9,9,9,9]
[null,null,"Variable production cost (applied to Real Losses)",10,8,7,10,8,10,6,6,9,10,7,8,10,8,10,9,6,8,9,9,8,10,10,3,8,10]
[]
[null,"COMMENTS","Comments",null,null,null,null,null,null,null,null,"PWSID: CS0570002","WSID 67003",null,null,null,null,null,"Master meter error adjustments are listed as zero on the reporting worksheet because they are constantly monitored and corrected directly in our SCADA data.  I don't try to pull them out separately.",null,null,"PAW Pittsburgh Division is comprised of the three PAW Districts, who utilize the same source of System Delivery or PWSID. They are: Pittsburgh District 110; McMurray District 210; and Mon Valley District 220. "]